Workbook

Sheet Menú
B1: Instrumento de cálculo para fijación ordinaria de tarifas para el servicio de transporte remunerado de personas, modalidad autobús
A2: Hoja | B2: Tabla de contenido
A3: 1 | B3: Aclaraciones
A4: 2 | B4: Instructivo de uso
A5: 3 | B5: Datos de entrada
A6: 5 | B6: Datos de costos
A7: 6 | B7: Constantes del modelo
A8: 7 | B8: Ponderaciones para tarifas, distancias y precios de unidades
A9: 8 | B9: Información de la flota
A10: 9 | B10: Información del valor del autobus
A12: 10 | B12: Cálculo de tarifa
A14: 1 | B14: Costos fijos mensuales | C14: 2 | D14: Costos variables
A15: 1.1 | B15: Costo mensual de depreciación de activos fijos | C15: 2.1 | D15: Costo por consumo de combustible
A16: 1.1.1 | B16: Costo de depreciación de la flota | C16: 2.2 | D16: Costo por consumo de llantas
A17: 1.1.2 | B17: Costo de depreciación de la maquinaria, equipo e instalaciones | C17: 2.3 | D17: Costo por consumo de aceite de motor
A18: 1.1.3 | B18: Costo de depreciación del equipo automatizado de conteo de pasajeros | C18: 2.4 | D18: Costo por en consumo de aceite de caja de cambios
A19: 1.2 | B19: Costos en personal de operación y mantenimiento | C19: 2.5 | D19: Costo por en consumo de aceite de diferencial
A20: 1.2.1 | B20: Costos por los salarios de los choferes | C20: 2.6 | D20: Costo por en consumo de líquido de frenos
A21: 1.2.2 | B21: Costos por los salarios de los despachadores | C21: 2.7 | D21: Costo por en consumo por grasa
A22: 1.2.3 | B22: Costos por los salarios de los mecánicos y ayudantes
A23: 1.3 | B23: Costos en personal administrativo | C23: 3 | D23: Rentabilidad al capital invertido
A24: 1.4 | B24: Gastos administrativos | C24: 3.1 | D24: Rentabilidad del capital asociado a los activos fijos
A25: 1.4.1 | B25: Gasto en derecho de circulación | C25: 3.1.1 | D25: Rentabilidad del capital invertido en la flota
A26: 1.4.2 | B26: Gasto en seguro voluntario | C26: 3.1.2 | D26: Rentabilidad del capital invertido en maquinaria, equipo e instalaciones
A27: 1.4.3 | B27: Gasto en la inspección técnica vehicular | C27: 3.1.3 | D27: Rentabilidad del capital invertido en el equipo automatizado de conteos de pasajeros
A28: 1.4.4 | B28: Gasto en canon ARESEP | C28: 3.2 | D28: Rentabilidad del capital invertido en proveeduría
A29: 1.4.5 | B29: Gasto en canon CTP
A30: 1.4.6 | B30: Gasto en pago de peaje y/o transbordador
A31: 1.5 | B31: Costos en repuestos y accesorios
A32: 1.6 | B32: Otros gastos
A33: 1.7 | B33: Costo del sistema automatizado de pago electrónico y seguridad
A34: 1.8 | B34: Costo mensual de los estudios de calidad del servicio

Sheet Control_Cambios
B1: Control de cambios
B3: Fecha: | C3: Descripción
B5: 42167 | C5: Se incluye hojas para cálculo del Valor del bus para regla 2
B6: 42170 | C6: Cálculo de mecánicos
B7: 42172 | C7: Incluir las reglas de inversión que aplican a la flota
B8: 42173 | C8: Depreciación de vehículos con regla tipo 2
B9: 42174 | C9: RTV, Arriendo( pendiente) en CDF
B10: 42177 | C10: Actualización de costos de CDMEI, CDSP, CPOM, CPA, GA, CRA, OG, CSPE, CECS
B11: 42178 | C11: Actualización de costos de CV, CCC, CCLL, CCAM, CCACC,CCAD, CCLF, CCG
B12: 42179 | C12: Actualización de costos de RT, RAF
B13: 42180 | C13: Actualización de costos de RMEI,RSCP,RP. Vínculos de Tarifa Total.
B14: 42185 | C14: Inclusión de cálculo de arrendamiento

Sheet Aclaraciones
B1: Aclaraciones
B4: Aclaraciones: 1. Este instrumento de cálculo de tarifas para el servicio de transporte público por autobús fue elaborado con el único propósito de revisar la consistencia interna de la propuesta de la "Metodología para fijación ordinaria de tarifas para el servicio de transporte remunerado de personas, modalidad autobús". 2. Este instrumento no forma parte del Expediente OT-104-2015 y por tanto, no es parte de la propuesta de "metodología para fijación ordinaria de tarifas para el servicio de transporte remunerado de personas, modalidad autobús". 3. Este instrumento de cálculo corresponde a una versión preliminar, y por lo tanto no es necesariamente el que se usará para estimar los ajustes tarifarios derivados de la aplicación del "Metodología para fijación ordinaria de tarifas para el servicio de transporte remunerado de personas, modalidad autobús", pues este debe ser elaborado y validado por la Intendencia de Transportes dentro de la etapa de fijación tarifaria.

Sheet Instructivo
B1: Instructivo de uso
F2: Esta hoja está en construcción por ser versión preliminar
B4: Para utilizar las hojas de este libro de excel considerar lo siguiente:
B6: Los campos se codifican por colores de la siguiente forma
B11: HOJA | C11: DESCRIPCIÓN | D11: CELDAS | E11: DATOS POR INGRESAR
B12: DATOS DE ENTRADA | C12: RUTA Nº (CODIGO) | D12: D15 | E12: Código (número) de identificación de la ruta.
C13: RUTA-DESCRIPCIÓN | D13: D16 | E13: Descripción o nombre de la ruta
C14: Fecha del cálculo tarifario (Día de la Audiencia Pública) | D14: D21 | E14: Fecha de la audiencia pública.
C15: Especificaciones de ruta | D15: D39 a D42 | E15: Se ingresan a partir de la hoja de ponderaciones
C16: Total de flota efectiva | D16: D43 | E16: Se ingresan a partir de la hoja de flota
C17: Ajuste de 10% al costo variable/Km, por ruta con más del 20% de carretera no asfaltada. | D17: D56 | E17: Seleccionar con "SI", si el recorrido de la ruta “r” tiene más del 20% no pavimentado
C18: Factor de ajuste por Kilometraje fuera de ruta | D18: D58 | E18: Seleccionar el coeficiente de reconocimiento por kilometraje improductivo. - Urbana de 0 a 25 km por viaje usar 0,10 - No urbana de 25 o mas km por viaje usar 0,05
C19: NOMBRES DE PEAJES | D19: B65 a B79 | E19: Marcar con una "X" el peaje que efectivamente se paga en cada carrera de la ruta “r”.
B20: Ponderaciones | C20: Ruta | D20: B7 a Bn | E20: Código (número) de identificación de la ruta o ramal
C21: Nombre de Ruta / Ramal | D21: C7 a Cn | E21: Descripción o nombre de la ruta o ramal
C22: DEMANDA PROMEDIO MES / Acuerdo demanda CTP | D22: D7 a Dn | E22: Digitar el volumen promedio de pasajeros movilizados por mes por la ruta ("Demanda") según CTP
C23: DEMANDA PROMEDIO MES / Estudio Técnico Aresep | D23: E7 a En | E23: Digitar el volumen promedio de pasajeros movilizados por mes por la ruta ("Demanda") según Estudio de Aresep
C24: DEMANDA PROMEDIO MES / Fij. Anterior (histórico) | D24: G7 a Gn | E24: Digitar el volumen promedio de pasajeros movilizados por mes por la ruta ("Demanda") según fijación anterior | F24: N/A
C25: Tarifa actual / Trayecto | D25: J7 a Jn | E25: Digitar la tarifa actual de la ruta o ramal
C26: CARRERAS POR MES / Empresa | D26: N7 a Nn | E26: Digitar las carreras por mes según datos del operador para la ruta o ramal | F26: N/A
C27: CARRERAS POR MES / Fij. Anterior (histórico) | D27: O7 a On | E27: Digitar las carreras por mes según la última fijación anterior para la ruta o ramal | F27: N/A
C28: CARRERAS POR MES / Estadísticas últimos 12 meses | D28: P7 a Pn | E28: Digitar las carreras por mes según las estadísticas de operación reportadas para los últimos doce meses de operación para la ruta o ramal | F28: N/A
C29: CARRERAS POR MES / MOPT-CTP | D29: Q7 a Qn | E29: Digitar las carreras por mes autorizadas según acuerdo de horarios del CTP para la ruta o ramal
C30: PEAJE | D30: T7 a Tn | E30: Marcar con una "X" si la ruta paga peaje y/o transbordador
C31: Distancia por Carrera / MOPT-CTP | D31: V7 a Vn | E31: Digitar la distancia por carrera según mediciones del CTP para la ruta o ramal
C32: Distancia por Carrera / Fij. Ant. | D32: W7 a Wn | E32: Digitar la distancia por carrera según la fijación ordinaria anterior para la ruta o ramal | F32: N/A
C33: Distancia por Carrera / ARESEP-GPS. | D33: X7 a Xn | E33: Digitar la distancia por carrera según las mediciones con GPS realizada por la ARESEP para la ruta o ramal
C34: Ramales | D34: M24 a Mn | E34: Digitar la descripción o nombre de la ruta o ramal
C35: Nº de Carreras / L-V | D35: N24 a Nn | E35: Digitar la cantidad de carreras autorizadas para Lunes a Viernes para la ruta o ramal
C36: Nº de Carreras / S | D36: O7 a On | E36: Digitar la cantidad de carreras autorizadas para Sábado para la ruta o ramal
C37: Nº de Carreras / D | D37: P7 a Pn | E37: Digitar la cantidad de carreras autorizadas para Domingo para la ruta o ramal
B38: Flota | C38: Propiedad Empresa | D38: B7 a Bn | E38: Digitar "SI" si la unidad de transporte es propiedad del operador de la ruta
C39: Nombre del propietario del vehículo | D39: C7 a Cn | E39: Digitar el nombre del propietario de la unidad de transporte
C40: PlacaA | D40: D7 a Dn | E40: Digitar el código de la placa de la unidad de transporte
C41: PlacaN | D41: E7 a En | E41: Digitar el número de la placa de la unidad de transporte
C42: Rampa | D42: F7 a Fn | E42: Seleccionar "SI" o "NO" para verificar que la unidad de transporte dispone o no de rampa según acuerdo de flota del CTP
C43: Modelo Aceptado | D43: G7 a Gn | E43: Digitar el año modelo de la unidad de transporte según la información de Registro Nacional de la Propiedad
C44: Capacidad Aceptada | D44: H7 a Hn | E44: Digitar la capacidad de la unidad de transporte según acuerdo de flota del CTP
C45: Edad | D45: I7 a In | E45: Valor autocalculado que expresa la edad del vehículo
C46: Tipo de vehículo | D46: J7 a Jn | E46: Seleccionar el tipo de vehículo de la lista para cada placa
C47: En arriendo | D47: K7 a Kn | E47: En caso de arriendo de la placa, indicar "SI" de lo contrario indicar "NO".
C48: Monto Arrendado | D48: L7 a Ln | E48: En caso de que el vehículo este arrendado indicar el monto del contrato de arriendo
C49: Tipo de combustible | D49: M7 a Mn | E49: Seleccionar el tipo de combustible que utiliza el vehículo
C50: Tipo de tecnología | D50: N7 a Nn | E50: Seleccionar el tipo de tecnología que utiliza el vehículo
C51: Próximo RTV por placa | D51: O7 a On | E51: Valor fecha autocalculado de acuerdo a la placa del vehículo
C52: Siguiente RTV reportado | D52: P7 a Pn | E52: Digitar el la fecha reportada por RTV de próxima revisión en formato dd/mm/aaaa
C53: Factor ponderador | D53: Q7 a Qn | E53: Valor porcentual autocalculado de la hoja de ponderaciones que indica el peso del tipo de vehículo según km recorridos
C54: Valor de la unidad | D54: R7 a Rn | E54: Valor en colones del vehículo que se registra automáticamente a partir de la actualización de los precios de los vehículos en la hoja "ValorAutobús"
C55: Valor ponderado | D55: S7 a Sn | E55: Valor calculado que determina el valor final de cada vehículo. Es calculado automaticamente a partir de la multiplicación del valor del vehículo según tipo por el factor ponderador del tipo correspondiente.
B56: Datos para costos | C56: Costos Fijos: Gastos Administrativos | D56: E25 a E40 | E56: Ingresar los valores para cada rubro según la fuente de información indicada y le fecha de vigencia del día de AP
C57: Costos Variables | D57: E53 a E73 | E57: Ingresar los valores para cada rubro según la fuente de información indicada y le fecha de vigencia del día de AP
C58: Rentabilidad | D58: E81 a E83 | E58: Se ingresan los valores para las tasas de rentabilidad que aplican para las reglas tipo 1 y tipo 2.
C59: Peajes | D59: K25 a K39 | E59: Ingresar el precio de los peajes vigente al día de AP
B60: ValorAutobus | C60: Busetas | D60: C6 y J6 | E60: Valor de la unidad de transporte tipo Buseta para el año 2014 Con rampa(C6) y Sin rampa (J6)
C61: Urbanos | D61: D6 y K6 | E61: Valor de la unidad de transporte tipo Urbano para el año 2014 Con rampa(C6) y Sin rampa (J6)
C62: Rurales | D62: E6 y L6 | E62: Valor de la unidad de transporte tipo Rurales para el año 2014 Con rampa(C6) y Sin rampa (J6)
C63: Montanos | D63: F6 y M6 | E63: Valor de la unidad de transporte tipo Montano para el año 2014 Con rampa(C6) y Sin rampa (J6)
C64: Interurbano Corto | D64: G6 y N6 | E64: Valor de la unidad de transporte tipo Interurbano Corto para el año 2014 Con rampa(C6) y Sin rampa (J6)
C65: Interurbano Medio | D65: H6 y O6 | E65: Valor de la unidad de transporte tipo Interurbano Medio para el año 2014 Con rampa(C6) y Sin rampa (J6)
C66: Interurbano Largo | D66: I6 y P6 | E66: Valor de la unidad de transporte tipo Interurbano Largo para el año 2014 Con rampa(C6) y Sin rampa (J6)

Sheet Desplegables_IN
A1: Deplegables
A2: Tipo de Bus | B2: Rampa / Arriendo | C2: Combustible | D2: Tecnologia | E2: Año Modelo | F2: Edad | G2: Ruta
A3: Buseta | B3: SI | C3: Diesel | D3: No Aplica | E3: =CONCATENATE(YEAR('DATOS DE ENTRADA'!$D$34)+1) -> 2015 | F3: 0 | G3: Urbana
A4: Autobús Urbano | B4: NO | E4: =CONCATENATE(YEAR('DATOS DE ENTRADA'!$D$34)) -> 2014 | F4: 0 | G4: Interurbana
A5: Autobús Rural | E5: =CONCATENATE(YEAR('DATOS DE ENTRADA'!$D$34)-F5) -> 2013 | F5: 1 | G5: Interregional
A6: Autobús Montano | E6: =CONCATENATE(YEAR('DATOS DE ENTRADA'!$D$34)-F6) -> 2012 | F6: 2
A7: Autobús Interurbano Corto | E7: =CONCATENATE(YEAR('DATOS DE ENTRADA'!$D$34)-F7) -> 2011 | F7: 3
A8: Autobús Interurbano Medio | E8: =CONCATENATE(YEAR('DATOS DE ENTRADA'!$D$34)-F8) -> 2010 | F8: 4
A9: Autobús Interurbano Largo | E9: =CONCATENATE(YEAR('DATOS DE ENTRADA'!$D$34)-F9) -> 2009 | F9: 5
E10: =CONCATENATE(YEAR('DATOS DE ENTRADA'!$D$34)-F10) -> 2008 | F10: 6
E11: =CONCATENATE(YEAR('DATOS DE ENTRADA'!$D$34)-F11) -> 2007 | F11: 7
E12: =CONCATENATE(YEAR('DATOS DE ENTRADA'!$D$34)-F12) -> 2006 | F12: 8
E13: =CONCATENATE(YEAR('DATOS DE ENTRADA'!$D$34)-F13) -> 2005 | F13: 9
E14: =CONCATENATE(YEAR('DATOS DE ENTRADA'!$D$34)-F14) -> 2004 | F14: 10
E15: =CONCATENATE(YEAR('DATOS DE ENTRADA'!$D$34)-F15) -> 2003 | F15: 11
E16: =CONCATENATE(YEAR('DATOS DE ENTRADA'!$D$34)-F16) -> 2002 | F16: 12
E17: =CONCATENATE(YEAR('DATOS DE ENTRADA'!$D$34)-F17) -> 2001 | F17: 13
E18: =CONCATENATE(YEAR('DATOS DE ENTRADA'!$D$34)-F18) -> 2000 | F18: 14
E19: =CONCATENATE(YEAR('DATOS DE ENTRADA'!$D$34)-F19) -> 1999 | F19: 15

Sheet DATOS DE ENTRADA
A1: Información Cédula Tarifaria de uso interno de ARESEP:
C4: INFORMACIÓN GENERAL PARA IDENTIFICACIÓN
C6: Responsable Estudio
C7: Número Expediente | D7: ET-XXX-2014
C8: Nombre del operador o empresa | D8: AUTOTRANSPORTES XXX S. A.
C9: ¿Concesión o Permiso? | D9: CONCESION / PERMISO
C10: Vencimiento de la Conces o Permiso | D10: DD/MM/200X
C11: CONCESIÓN O PERMISO -CODIGO | D11: XXX-XXX
C12: CONCESIÓN O PERMISO -DESCRIPCIÓN | D12: SAN JOSE-LUGAR DE DESTINO
C13: Último Nº Acuerdo MOPT respecto a flota | D13: XXX-CTP-200X
C14: Fecha de último Acuerdo MOPT respecto a flota | D14: DD/MM/200X
C15: RUTA Nº (CODIGO) | D15: XXXX
C16: RUTA-DESCRIPCIÓN | D16: SAN JOSE-LUGARES DE DESTINO
C17: TIPO DE RUTA | D17: Urbana
C19: IDENTIFICACIÓN DE LOS DOCUMENTOS QUE RESPALDAN LA FIJACIÓN TARIFARIA
C21: Fecha del cálculo tarifario (Día de la Audiencia Pública) | D21: 2014-03-11
C22: Número Informe (Oficio) | D22: XXX-DITRA-2014
C23: Fecha del informe tarifario | D23: DD/MM/2014
C24: Nº Resolución Tarifa Aprobada | D24: RCR-XXX-2014
C25: Fecha Resolución Tarifa Aprobada | D25: DD/MM/2014
C26: Nº Resolución ÚLTIMA FIJACIÓN INDIVIDUAL | D26: RRG-XXX-200X
C27: Fecha Resolución ULTIMA FIJACIÓN INDIVIDUAL | D27: DD/MM/200X
C28: NÚMERO DE GACETA DE LA ULTIMA FIJACIÓN INDIVIDUAL | D28: XXX
C29: FECHA DE GACETA DE LA ULTIMA FIJACIÓN INDIVIDUAL | D29: DD/MM/200X
C30: Nº Gaceta Tarifa vig. Durante estudio | D30: XXX
C31: Fecha Gaceta Tarifa Vig. Durante estudio | D31: DD/MM/200X
C32: Nº Gaceta Tarifa aprobada | D32: XXX
C33: Fecha Gaceta Tarifa aprobada | D33: DD/MM/2014
C34: Fecha último día del presente año | D34: 42004
B37: Código | C37: Descripción | D37: Dato (por fórmula) | E37: Unidad
B39: I.1 | C39: Número de carreras realizadas por ruta, por mes | D39: =Ponderaciones!$R$11 -> 1306.610485 | E39: carreras
B40: I.2 | C40: Extensión en kilómetros de la ruta | D40: =Ponderaciones!$AA$11 -> 30.68 | E40: kilómetros
B41: I.3 | C41: Promedio de pasajeros por mes | D41: =Ponderaciones!$H$14 -> 91139 | E41: pasajeros
B42: I.4 | C42: Tarifa Actual | D42: =Ponderaciones!$K$11 -> 380 | E42: colones
B43: I.5 | C43: Flota efectiva | D43: =Flota!$I$45 -> 10 | E43: Vehículos
A44: x | B44: Ruta | C44: Tipo de unidad según ruta | D44: Peso (%) | E44: Total
B45: =+Ponderaciones!C7 -> xxx | C45: =+Ponderaciones!AD7 -> Autobús Interurbano Corto
B46: =+Ponderaciones!C8 -> 0 | C46: =+Ponderaciones!AD8 -> 0
B47: =+Ponderaciones!C9 -> 0 | C47: =+Ponderaciones!AD9 -> 0
B56: K.1 | C56: Ajuste de 10% al costo variable/Km, por ruta con más del 20% de carretera no asfaltada. | D56: NO | E56: condición | G56: SI | H56: NO
B58: C.11 | C58: Factor de ajuste por Kilometraje fuera de ruta | D58: 0.05 | E58: porcentaje | G58: 0.05 | H58: 0.1
C61: Carreras Mes Pagan Peaje | D61: Tarifa Peaje | E61: Total Peaje
C62: =Ponderaciones!$U$11 -> 0 | D62: =SUMIF(B65:B68,"=X",'Datos para costos'!K25:K28)+SUMIF(B70:B79,"=X",'Datos para costos'!K30:K39) -> 0 | E62: =C62*D62 -> 0
C64: Ubicación de peajes
C65: Autopista General Cañas
C66: Autopista Bernardo Soto (Naranjo)
C67: Autopista Braulio Carrillo ( Zurquí)
C68: Autopista Florencio del Castillo (Tres Ríos)
C69: Autopista a Caldera
C70: Escazú
C71: Ciudad Colón
C72: San Rafael
C73: Guácima
C74: Siquiares
C75: Rampa Atenas
C76: Atenas
C77: Pozón
C78: Costanera Sur
C79: Peajes de Ferrys

Sheet ParámetrosPropuesta
A2: Parámetros de propuesta de Modelo
A4: Propuesta | B4: Modificacion_Propuesta
A5: Fecha de aprobación | B5: 42339
A6: AñoCorte | B6: =YEAR(B5) -> 2015
A7: QR | B7: =IF($B$4="AP_12_Marzo_2014",2,IF($B$4="Modificacion_Propuesta",0,0)) -> 0
A8: QN | B8: =IF($B$4="AP_12_Marzo_2014",2,IF($B$4="Modificacion_Propuesta",1,1)) -> 1
A9: CDFr: Valor de referencia | B9: =IF($B$4="AP_12_Marzo_2014","VTANib",IF($B$4="Modificacion_Propuesta","VTANiNuevo","ValorDepreciacion")) -> VTANiNuevo
A10: CRAr: Valor de referencia | B10: =IF($B$4="AP_12_Marzo_2014","VTANib",IF($B$4="Modificacion_Propuesta","VTANiNuevo","ValorDepreciacion")) -> VTANiNuevo
A11: CRAr: Valor de referencia | B11: =IF($B$4="AP_12_Marzo_2014","VTANib",IF($B$4="Modificacion_Propuesta","VTANiNuevo","ValorDepreciacion")) -> VTANiNuevo
A12: OGr: Valora de referencia | B12: =IF($B$4="AP_12_Marzo_2014","VTANib",IF($B$4="Modificacion_Propuesta","VTANiNuevo","ValorDepreciacion")) -> VTANiNuevo
A13: RFr: Valor de referencia | B13: =IF($B$4="AP_12_Marzo_2014","VTANib",IF($B$4="Modificacion_Propuesta","VTANiNuevo","ValorHistorico")) -> VTANiNuevo
A14: RMEIr: Valor de referencia | B14: =IF($B$4="AP_12_Marzo_2014","VTANib",IF($B$4="Modificacion_Propuesta","VTANiNuevo","ValorHistorico")) -> VTANiNuevo
A15: RCPr: Valor de referencia | B15: =IF($B$4="AP_12_Marzo_2014","VTANib",IF($B$4="Modificacion_Propuesta","VTANiNuevo","ValorHistorico")) -> VTANiNuevo

Sheet Datos para costos
B1: Precios y valores del modelo
A4: Ruta: | B4: ='DATOS DE ENTRADA'!D15 -> XXXX
A5: Descripción: | B5: ='DATOS DE ENTRADA'!D16 -> SAN JOSE-LUGARES DE DESTINO
A6: Fecha AP: | B6: ='DATOS DE ENTRADA'!D21 -> 41709
J7: Fecha Dia Audiencia Pública | K7: Fecha Inicial | L7: Fecha Final
B8: Tasa de interés para préstamos de los Bancos Estatales para "Otras Actividades" | F8: =DAVERAGE(TblTIBanEstOtrasActividades,"TIBanEstOtrasActividades",K8:L9)/100 -> 0.1449731748 | G8: ="Entre " & TEXT(DATE(YEAR(EOMONTH('DATOS DE ENTRADA'!$D$21,-12)),MONTH(EOMONTH('DATOS DE ENTRADA'!$D$21,-12)),1),"dd/mm/yyyy") & " y " & TEXT(EOMONTH('DATOS DE ENTRADA'!$D$21,-1),"dd/mm/yyyy") -> Entre 01/03/2013 y 28/02/2014 | J8: Fecha | K8: Fecha | L8: Fecha
B9: Tasa de interés básica pasiva | F9: =DAVERAGE(TblTIBPDiaria,"TIBPDiariaBCCR",K8:L9)/100 -> 0.06648219178 | G9: ="Entre " & TEXT(DATE(YEAR(EOMONTH('DATOS DE ENTRADA'!$D$21,-12)),MONTH(EOMONTH('DATOS DE ENTRADA'!$D$21,-12)),1),"dd/mm/yyyy") & " y " & TEXT(EOMONTH('DATOS DE ENTRADA'!$D$21,-1),"dd/mm/yyyy") -> Entre 01/03/2013 y 28/02/2014 | J9: ="="&'DATOS DE ENTRADA'!$D$21 -> =41709 | K9: =">="&DATE(YEAR(EOMONTH('DATOS DE ENTRADA'!$D$21,-12)),MONTH(EOMONTH('DATOS DE ENTRADA'!$D$21,-12)),1) -> >=41334 | L9: ="<="&EOMONTH('DATOS DE ENTRADA'!$D$21,-1) -> <=41698
B10: Tasa de interés activa promedio del sistema financiero nacional | F10: =DGET(TblTIAPromSistFinanciero,"TIAPromSistFinanciero",J8:J9)/100 -> 0.1658231259 | G10: ="Día "&TEXT('DATOS DE ENTRADA'!$D$21,"dd/mm/yyy") -> Día 11/03/2014
K11: Fecha | L11: Fecha
B12: Tipo cambio | F12: =IFERROR(DAVERAGE(TblTipoCambio,"TipoCambioVentaBCCR",K11:L12),530.88) -> 530.88 | G12: ="Entre " & TEXT(DATE(YEAR(EOMONTH(ParámetrosPropuesta!$B$5,-6)),MONTH(EOMONTH(ParámetrosPropuesta!$B$5,-6)),1),"dd/mm/yyyy") & " y " & TEXT(EOMONTH(ParámetrosPropuesta!$B$5,-1),"dd/mm/yyyy") -> Entre 01/06/2015 y 30/11/2015 | K12: =">="&DATE(YEAR(EOMONTH(ParámetrosPropuesta!$B$5,-6)),MONTH(EOMONTH(ParámetrosPropuesta!$B$5,-6)),1) -> >=42156 | L12: ="<="&EOMONTH(ParámetrosPropuesta!$B$5,-1) -> <=42338
B14: Costos Fijos (CF)
A16: 2 | B16: Tipo de puesto | C16: Sigla | D16: Fecha | E16: SiglaCategoría | F16: Salario mínimo en jornada ordinaria | G16: Salario mensual | H16: Unidad | I16: Fuente | K16: Jornada mensual (días) | L16: 26
B17: Salarios del personal de operación y mantenimiento | C17: (CPOM) | D17: Fecha | E17: SiglaCategoría | H17: colones x mes | I17: ="** MTSS, Salarios mínimos al mes " & MONTH(B6) & "/ " & YEAR(B6) -> ** MTSS, Salarios mínimos al mes 3/ 2014 | K17: Fecha | L17: SiglaCategoría
B18: Salario mensual de los choferes | C18: CSCH | D18: ='DATOS DE ENTRADA'!$D$21 -> 41709 | E18: TE | F18: =K19 -> 11896.82 | G18: =+F18*$L$16 -> 309317.32 | H18: colones x mes | K18: =DATE(YEAR('DATOS DE ENTRADA'!$D$21),IF(MONTH('DATOS DE ENTRADA'!$D$21)<=6,1,7),1) -> 41640 | L18: =CONCATENATE("=",E18) -> =TE
B19: Salario mensual de los despachadores o chequeadores | C19: CSD | E19: TNC | F19: =L20 -> 8944.51 | G19: =+F19*$L$16 -> 232557.26 | H19: colones x mes | K19: =DGET(TblSalMinimos,"Valor",K17:L18) -> 11896.82 | L19: =K18 -> 41640
B20: Salario mensual de mecánicos | C20: CSMA | E20: TC | F20: =L21 -> 9926.53 | G20: =+F20*$L$16 -> 258089.78 | H20: colones x mes | K20: =CONCATENATE("=",E19) -> =TNC | L20: 8944.51
K21: =CONCATENATE("=",E20) -> =TC | L21: 9926.53
A23: 4 | B23: Gastos Administrativos (GA) | C23: Sigla | D23: Fecha | E23: Valor | F23: Unidad | G23: Fuente
B24: Gasto por derecho de circulación | C24: (GDCr) | G24: Varios | J24: NOMBRES DE PEAJES | K24: TASA DE PEAJE PARA BUSES
B25: Valor anual de la prima del seguro obligatorio automotor (SOA) por vehículo más los impuestos aplicables (impuesto de ventas) | C25: VP | D25: ='DATOS DE ENTRADA'!$D$21 -> 41709 | E25: =81649+10614 -> 92263 | F25: colones x año | G25: INS; Oficio DSS-00634-2014, enero 2014. dato con I.V.I. | J25: General Cañas | K25: 150
B26: Valor anual de impuesto a la propiedad de vehículo de transporte público | C26: VIPV | E26: 8000 | F26: colones x año | G26: Ministerio de Hacienda | J26: Bernardo Soto (Naranjo) | K26: 375
B27: Valor anual de las tasas de la Ley 7088 y sus reformas | C27: VL7088 | E27: 1000 | F27: colones x año | J27: Braulio Carrillo ( Zurquí) | K27: 375
B28: Valor anual del timbre por Fauna Silvestre por vehículo | C28: VTFS | E28: 104 | F28: colones x año | G28: MINAET | J28: Florencio del Castillo (Tres Ríos) | K28: 150
B29: Valor anual del impuesto a favor de las municipalidades | C29: VIM | E29: 200 | F29: colones x año | G29: Ministerio de Hacienda | J29: Autopista a Caldera
B30: Gasto en seguro voluntario | C30: (GSV) | G30: INS; Oficio DOP-0085-2014, enero 2014 | J30: Escazú | K30: 610
B31: Valor de la prima A del seguro semestral por vehículo más los impuestos aplicables (impuesto de ventas) | C31: VPA | D31: ='DATOS DE ENTRADA'!$D$21 -> 41709 | E31: 325172.19 | F31: colones x sem. | J31: Ciudad Colón | K31: 300
B32: Valor de la prima C del seguro semestral por vehículo más los impuestos aplicables (impuesto de ventas) | C32: VPC | E32: 153285.63 | F32: colones x sem. | J32: San Rafael | K32: 920
B33: Gasto en la inspección técnica vehicular | C33: (GRTV) | G33: ARESEP | J33: Guácima | K33: 690
B34: Valor semestral de la inspección técnica vehicular por vehículo de transporte público de personas. | C34: VRTV | D34: ='DATOS DE ENTRADA'!$D$21 -> 41709 | E34: =26152/2 -> 13076 | F34: colones x sem. | J34: Siquiares | K34: 720
B35: Gasto en canon de ARESEP | C35: (GAR) | J35: Rampa Atenas | K35: 610
B36: Valor anual del canon de regulación de la ARESEP | C36: VCAR | D36: ='DATOS DE ENTRADA'!$D$21 -> 41709 | E36: 404511.7 | F36: colones x año | J36: Atenas | K36: 1210
B37: Gasto en canon del CTP | C37: (GCTP) | G37: CTP/ARESEP | J37: Pozón | K37: 920
B38: Valor anual del canon del CTP por vehículo de transporte público de personas, modalidad autobús | C38: VCTP | D38: ='DATOS DE ENTRADA'!$D$21 -> 41709 | E38: 286094 | F38: colones x año | J38: Costanera Sur | K38: 300
B39: Gasto en pago de peaje y/o transbordador | C39: (GP) | G39: CONAVI | J39: Peajes de Ferrys | K39: 0
B40: Tarifa (s) de peaje(s) y/o transbordador(es) para vehículo tipo autobús en el peaje “p” que efectivamente se pagan en cada carrera de la ruta “r” | C40: Tpr | D40: ='DATOS DE ENTRADA'!$D$21 -> 41709 | E40: =+L42 -> 0
A44: 6 | B44: Costos de equipo de conteo automático | C44: Sigla | D44: Fecha | E44: Valor | F44: Unidad | G44: Fuente
B45: Valor representativo del equipo automatizado de conteo de pasajeros | C45: VNECP | D45: ='DATOS DE ENTRADA'!$D$21 -> 41709 | E45: =3000*E72 -> 0 | F45: colones | G45: ARESEP; según encuesta de precios de mercado señalada en el modelo ordinario
B48: Costos Variables (CV)
C51: Sigla | D51: Fecha | E51: PrecioDiesel | F51: Unidad | G51: Fuente
A52: 1 | B52: Costo de consumo de combustible | C52: CCC | G52: ARESEP; según encuesta de precios de mercado señalada en el modelo ordinario | K52: Fecha | L52: Fecha
B53: Precio de combustible por litro | C53: PC | D53: ='DATOS DE ENTRADA'!$D$21 -> 41709 | E53: =DAVERAGE(TblPrecioDiesel,"PrecioDiesel",K52:L53) -> 627.326087 | F53: colones por litro | H53: ="Entre " & TEXT(IF(MONTH($B$6)<=6,DATE(YEAR($B$6)-1,7,1),DATE(YEAR($B$6),1,1)),"dd/mm/yyyy") & " y " & TEXT(IF(MONTH($B$6)<=6,DATE(YEAR($B$6)-1,12,31),DATE(YEAR($B$6),6,30)),"dd/mm/yyyy") -> Entre 01/07/2013 y 31/12/2013 | K53: =">="&IF(MONTH($B$6)<=6,DATE(YEAR($B$6)-1,7,1),DATE(YEAR($B$6),1,1)) -> >=41456 | L53: ="<="&IF(MONTH($B$6)<=6,DATE(YEAR($B$6)-1,12,31),DATE(YEAR($B$6),6,30)) -> <=41639
A55: 2 | B55: Costo por consumo de llantas | C55: CCLL
B56: Precio de la llanta nueva | C56: PLL | D56: ='DATOS DE ENTRADA'!$D$21 -> 41709 | E56: 204300 | F56: colones por llanta
B57: Precio de reencauche nuevo | C57: PR | E57: 106149.58 | F57: colones por llanta
B58: Precio de neumático nuevo | C58: PN | E58: 17825.4 | F58: colones por llanta
A60: 3 | B60: Costo por consumo de aceite de motor | C60: CCAM
B61: Precio dedel aceite de motor del tipo de vehículo "i" | C61: PAM | D61: ='DATOS DE ENTRADA'!$D$21 -> 41709 | E61: 2795.18 | F61: colones por litro
A63: 3 | B63: Costo por consumo de aceite de caja de cambios | C63: CCACC
B64: Precio del litro de aceite de caja de cambios para todo tipo de vehículo "i" | C64: PACC | D64: ='DATOS DE ENTRADA'!$D$21 -> 41709 | E64: 2857.86 | F64: colones por litro
A66: 3 | B66: Costo por consumo de aceite de diferencial | C66: CCAD
B67: Precio del litro de aceite de diferencial para todo tipo de vehículo "i" | C67: PAD | D67: ='DATOS DE ENTRADA'!$D$21 -> 41709 | E67: 2857.86 | F67: colones por litro
A69: 3 | B69: Costo por consumo de líquido de frenos | C69: CCLF
B70: Precio del litro de líquido de frenos para todo tipo de vehículo "i" | C70: PLF | D70: ='DATOS DE ENTRADA'!$D$21 -> 41709 | E70: 5482.448276 | F70: colones por litro
A72: 3 | B72: Costo por consumo de grasa | C72: CCG
B73: Precio del kilogramo de grasa para todo tipo de vehículo "i" | C73: PG | D73: ='DATOS DE ENTRADA'!$D$21 -> 41709 | E73: 5036.51 | F73: colones por litro
B78: Remuneración del capital (RT)
C80: Sigla | D80: Fecha | E80: Valor | F80: Unidad
B81: Tasa de rentabilidad para vehículos de regla de cálculo tipo 1 | C81: tra | D81: ='DATOS DE ENTRADA'!$D$21 -> 41709 | E81: =DGET(TblTIAPromSistFinanciero,"TIAPromSistFinanciero",J8:J9)/100 -> 0.1658231259 | F81: porcentaje
B83: Tasa de rentabilidad para vehículos de regla de cálculo tipo 2 | C83: trg | D83: ='DATOS DE ENTRADA'!$D$21 -> 41709 | E83: 0.129 | F83: porcentaje

Sheet Constantes
A1: Constantes del modelo
C4: Ruta: | D4: ='DATOS DE ENTRADA'!D15 -> XXXX
C5: Descrip: | D5: ='DATOS DE ENTRADA'!D16 -> SAN JOSE-LUGARES DE DESTINO
B7: Costos Fijos
B10: Costos por depreciación de activos fijos
C12: ="i. Unidades de transporte con año de fabricación mayor al 2007 y menor o igual al año " & ParámetrosPropuesta!$B$6 -> i. Unidades de transporte con año de fabricación mayor al 2007 y menor o igual al año 2015 | G12: ="ii.Unidades de transporte con año de fabricación mayor al año "&ParámetrosPropuesta!$B$6 -> ii.Unidades de transporte con año de fabricación mayor al año 2015
B13: a. Costo de depreciación de la flota | C13: Edad de la unidad de transporte público (años) | D13: Factor anual de depreciación | E13: Factor anual de depreciación acumulada | G13: Edad de la unidad de transporte público (años) | H13: Factor anual de depreciación | I13: Factor anual de depreciación acumulada
D14: fdf | H14: fdf
C15: 0 | D15: 0 | E15: 0 | G15: 0 | H15: 0 | I15: 0
C16: 1 | D16: =7/28 -> 0.25 | E16: =E15+D16 -> 0.25 | G16: 1 | H16: =1/15 -> 0.06666666667 | I16: =I15+H16 -> 0.06666666667
C17: 2 | D17: =6/28 -> 0.2142857143 | E17: 0.4642857143 | G17: 2 | H17: 0.06666666667 | I17: =I16+H16 -> 0.1333333333
C18: 3 | D18: =5/28 -> 0.1785714286 | E18: 0.6428571429 | G18: 3 | H18: 0.06666666667 | I18: 0.2
C19: 4 | D19: =4/28 -> 0.1428571429 | E19: 0.7857142857 | G19: 4 | H19: 0.06666666667 | I19: 0.2666666667
C20: 5 | D20: =3/28 -> 0.1071428571 | E20: 0.8928571429 | G20: 5 | H20: 0.06666666667 | I20: 0.3333333333
C21: 6 | D21: =2/28 -> 0.07142857143 | E21: 0.9642857143 | G21: 6 | H21: 0.06666666667 | I21: 0.4
C22: 7 | D22: =1/28 -> 0.03571428571 | E22: 1 | G22: 7 | H22: 0.06666666667 | I22: 0.4666666667
C23: Más de 7 | D23: 0 | E23: =E21+D22 -> 1 | G23: 8 | H23: 0.06666666667 | I23: 0.5333333333
G24: 9 | H24: 0.06666666667 | I24: 0.6
G25: 10 | H25: 0.06666666667 | I25: 0.6666666667
G26: 11 | H26: 0.06666666667 | I26: 0.7333333333
G27: 12 | H27: 0.06666666667 | I27: 0.8
G28: 13 | H28: 0.06666666667 | I28: 0.8666666667
G29: 14 | H29: 0.06666666667 | I29: 0.9333333333
G30: 15 | H30: 0.06666666667 | I30: =I29+H29 -> 1
G31: Más de 15 | H31: 0 | I31: =I29+H29 -> 1
B34: c. Costo de depreciación de la maquinaria, equipo e instalaciones
B36: Tipo de Activo | C36: Sigla | D36: Coeficiente de depreciación mensual
B37: Maquinaria, equipo e instalaciones | C37: cdmei | D37: 0.0001
B40: d. Costo de depreciación del equipo automatizado de conteo de pasajeros
B42: Tipo de Activo | C42: Sigla | D42: Factor anual de depreciación | E42: Vida útil
E43: (años)
B44: Factor de depreciación anual de la inversión en el equipo automatizado de conteo de pasajeros | C44: fdecp | D44: 0.2 | E44: 5
B52: Costos en personal de operación y mantenimiento
J53: Tipo de trabajador según ocupación | O53: Cargas sociales según la legislación vigente
B54: Tipo de puesto | C54: Sigla coeficiente | D54: Coeficiente por Tipo de ruta | G54: unidades | J54: Sigla Salario | K54: Personal de Operación y Mantenimiento por Ocupación | L54: Categoría de Salario Mínimo | M54: Sigla | O54: Cargas sociales | P54: Porcentaje | Q54: Fuente
D55: Interregional | E55: Interurbana | F55: Urbana | M55: Categoría(2) | O55: Caja Costarricense de Seguro Social (CCSS) Seguro de Enfermedad y Maternidad | P55: 0.0925 | Q55: CCSS: http://portal.ccss.sa.cr/portal/page/portal/SICERE/Tramites/Info_General_Patronos/porcentajes_cotizacion_2011.pdf (12 de julio del 2012)
B56: Salarios del personal de operación y mantenimiento | C56: (CPOM) | D56: Interregional | E56: Interurbana | F56: Urbana | J56: SCH | K56: Chofer de bus ( cobrador) | L56: Trabajador Especializado | M56: TE | O56: CCSS Seguro de Invalidez. Vejez y Muerte | P56: 0.0492
B57: Salario mensual de los choferes | C57: cch | D57: 1.9 | E57: 1.9 | F57: 1.9 | G57: colones x mes | J57: SD | K57: Despachador /Chequeador de autobús | L57: Trabajo no Calificado | M57: TNC | O57: Banco Popular y de Desarrollo Comunal (BPDC)- Cuota | P57: 0.0025
B58: Salario mensual de los despachadores o chequeadores | C58: cd | D58: 0.3 | E58: 0.3 | F58: 0.3 | G58: colones x mes | J58: SM | K58: Mecánico | L58: Trabajador Calificado | M58: TC | O58: BPDC – Aporte | P58: 0.0025
B59: Salario mensual de mecánicos | C59: cm | D59: 0.8 | E59: 0.8 | F59: 0.8 | G59: colones x mes | O59: Instituto Nacional de Aprendizaje (INA) | P59: 0.015
B60: Coeficiente por sobresueldo de choferes | C60: csch | D60: 0.2 | E60: 0.2 | F60: 0.2 | O60: Instituto Mixto de Ayuda Social (IMAS) | P60: 0.005
B61: Coeficiente por sobresueldo de chequeadores | C61: csd | D61: 0.2 | E61: 0.2 | F61: 0.2 | J61: Fuente: Decretos de Salarios Mínimos MTSS. | O61: Fondo de Capitalización Laboral – FCL | P61: 0.03
B62: Coeficiente por sobresueldo de mecánicos | C62: csm | D62: 0.2 | E62: 0.2 | F62: 0.2 | J62: (1) Corresponde al valor del salario mínimo mensual | O62: Fondo de Pensiones Complementarias | P62: 0.015
J63: (2) Corresponde a las siglas de las categorías según el Decreto de Salarios Mínimos | O63: Asignaciones Familiares | P63: 0.05
B64: Costos en personal administrativo | O64: Riesgos del Trabajo | P64: 0.0398 | Q64: Ley No. 6727. Publicada en La Gaceta No. 57 de 24 de marzo de 1982.
O65: Aguinaldo | P65: 0.0833 | Q65: 1. Ley 2412 y sus reformas. Sueldo adicional o Ley del Aguinaldo en Empresa Privada. 2. Decreto Ejecutivo N° 20236-TSS. Reglamento a la Ley 2412.
B66: Tipo de puesto | C66: Sigla coeficiente | D66: Coeficiente por Tipo de ruta | G66: unidades
D67: Interregional | E67: Interurbana | F67: Urbana | O67: Vacaciones | P67: 0.0417 | Q67: Código de Trabajo y sus reformas. art. del 153 a 161.2.f.
B68: Salarios del personal administrativo | C68: (CPA) | D68: Interregional | E68: Interurbana | F68: Urbana | O68: Factor de cargas sociales | P68: =SUM(P55:P67) -> 0.4265
B69: Coeficiente de personal administrativo | C69: cpa | D69: 0.1 | E69: 0.1 | F69: 0.1
C73: Sigla | D73: Coeficiente de gasto anual en repuestos y accesorios | G73: unidades
B74: Costos en repuestos y accesorios | C74: (CRA) | D74: Interregional | E74: Interurbana | F74: Urbana
B75: Coeficiente de gasto anual en repuestos y accesorios | C75: ccra | D75: 0.1 | E75: 0.1 | F75: 0.1 | G75: colones
C77: Sigla | D77: Coeficiente de gasto mensual en otros gastos | G77: unidades
B78: Costos en otros gastos | C78: (OG) | D78: Interregional | E78: Interurbana | F78: Urbana
B79: Coeficiente de otros gastos | C79: cog | D79: 0.02 | E79: 0.02 | F79: 0.02 | G79: colones
B83: Costos Variables
C85: Sigla | D85: Coeficiente de consumo combustible diésel | G85: unidades
B86: Costo de consumo de combustible | C86: CCC | D86: Interregional | E86: Interurbana | F86: Urbana
B87: Consumo unitario de combustible diésel | C87: ccci | D87: 0.42 | E87: 0.42 | F87: 0.42 | G87: * (L/Km)
C89: Sigla | D89: Coeficiente de consumo de llantas por km | G89: unidades
B90: Costo de consumo de llantas | C90: CCLL | D90: Interregional | E90: Interurbana | F90: Urbana
B91: Consumo de llantas para todo tipo de vehículo "i" | C91: ccll | D91: 1e-05 | E91: 1e-05 | F91: 1e-05 | G91: * (Llantas / Km)
C93: Sigla | D93: Coeficiente de consumo de aceite de motor por c/ km | G93: unidades
B94: Costo por consumo de aceite de motor | C94: CCAM | D94: Interregional | E94: Interurbana | F94: Urbana
B95: Consumo de aceite de motor para todo tipo de vehículo "i" | C95: ccam | D95: 0.0073 | E95: 0.0073 | F95: 0.0073 | G95: * (L/ Km)
C97: Sigla | D97: Coeficiente de consumo de aceite de caja de cambios por c/ km | G97: unidades
B98: Costo por consumo de aceite de caja de cambios | C98: CCACC | D98: Interregional | E98: Interurbana | F98: Urbana
B99: Consumo de aceite de caja de cambios para todo tipo de vehículo "i" | C99: ccacc | D99: 0.00042 | E99: 0.00042 | F99: 0.00042 | G99: * (L/ Km)
C101: Sigla | D101: Coeficiente de consumo de aceite de motor por c/ km | G101: unidades
B102: Costo por consumo de aceite de diferencial | C102: CCAD | D102: Interregional | E102: Interurbana | F102: Urbana
B103: Consumo de aceite de diferencial para todo tipo de vehículo "i" | C103: ccad | D103: 0.00058 | E103: 0.00058 | F103: 0.00058 | G103: * (L/ Km)
C105: Sigla | D105: Coeficiente de consumo de aceite de caja de cambios por c/ km | G105: unidades
B106: Costo por consumo de líquido de frenos | C106: CCLF | D106: Interregional | E106: Interurbana | F106: Urbana
B107: Consumo de líquido de frenos para todo tipo de vehículo "i" | C107: cclf | D107: 0.00022 | E107: 0.00022 | F107: 0.00022 | G107: * (L/ Km)
C109: Sigla | D109: Coeficiente de consumo de aceite de caja de cambios por c/ km | G109: unidades
B110: Costo por consumo de grasa | C110: CCG | D110: Interregional | E110: Interurbana | F110: Urbana
B111: Consumo de grasa para todo tipo de vehículo "i" | C111: ccg | D111: 0.00092 | E111: 0.00092 | F111: 0.00092 | G111: * (L/ Km)
B116: Rentabilidad
B119: Rentabilidad sobre el capital asociado a los activos fijos
C120: ="i. Unidades de transporte con año de fabricación mayor al 2007 y menor o igual al año " & ParámetrosPropuesta!$B$6 -> i. Unidades de transporte con año de fabricación mayor al 2007 y menor o igual al año 2015
C121: Edad de la unidad de transporte público (años) | D121: Factor anual de depreciación acumulada fdfa | E121: Factor de rentabilidad frf
C122: 0 | D122: =E15 -> 0 | E122: =1-D122 -> 1
C123: 1 | D123: =E16 -> 0.25 | E123: =1-D123 -> 0.75
C124: 2 | D124: 0.4642857143 | E124: 0.5357142857
C125: 3 | D125: 0.6428571429 | E125: 0.3571428571
C126: 4 | D126: 0.7857142857 | E126: 0.2142857143
C127: 5 | D127: 0.8928571429 | E127: 0.1071428571
C128: 6 | D128: 0.9642857143 | E128: 0.03571428571
C129: 7 | D129: 1 | E129: 0
C130: Más de 7 | D130: 1 | E130: 0
C132: ="ii.Unidades de transporte con año de fabricación mayor al año "&ParámetrosPropuesta!$B$6 -> ii.Unidades de transporte con año de fabricación mayor al año 2015
C133: Edad de la unidad de transporte público (años) | D133: Factor anual de depreciación acumulada fdfa | E133: Factor de rentabilidad frf
C134: 0 | D134: =I15 -> 0 | E134: =1-D134 -> 1
C135: 1 | D135: 0.06666666667 | E135: =1-D135 -> 0.9333333333
C136: 2 | D136: 0.1333333333 | E136: 0.8666666667
C137: 3 | D137: 0.2 | E137: 0.8
C138: 4 | D138: 0.2666666667 | E138: 0.7333333333
C139: 5 | D139: 0.3333333333 | E139: 0.6666666667
C140: 6 | D140: 0.4 | E140: 0.6
C141: 7 | D141: 0.4666666667 | E141: 0.5333333333
C142: 8 | D142: 0.5333333333 | E142: 0.4666666667
C143: 9 | D143: 0.6 | E143: 0.4
C144: 10 | D144: 0.6666666667 | E144: 0.3333333333
C145: 11 | D145: 0.7333333333 | E145: 0.2666666667
C146: 12 | D146: 0.8 | E146: 0.2
C147: 13 | D147: 0.8666666667 | E147: 0.1333333333
C148: 14 | D148: 0.9333333333 | E148: 0.06666666667
C149: 15 | D149: 1 | E149: 0
C150: Más de 15 | D150: 1 | E150: 0
B152: Rentabilidad del capital invertido en maquinaria, equipo e instalaciones
B155: Tipo de Activo | C155: Sigla | D155: Coeficiente de remuneración mensual
B156: Maquinaria, equipo e instalaciones | C156: crmei | D156: 0.04
B158: Rentabilidad del capital invertido en proveeduría
B160: Tipo de ruta | C160: Sigla | D160: Interregional | E160: Interurbana | F160: Urbana
B161: Coeficiente de gasto anual de capital en proveeduría | C161: crp | D161: 0.03 | E161: 0.03 | F161: 0.03
B164: Rentabilidad del capital invertido en el equipo automatizado de conteos de pasajeros
C165: Sigla | D165: Factor
B166: Depreciación mensual del equipo automatizado de conteo de pasajeros en la ruta “r” | C166: fdecp | D166: =1/D167 -> 0.2
B167: Vida útil del equipo automatizado de conteo de pasajeros. | D167: 5
B168: Factor de depreciación anual acumulada de la inversión en el equipo automatizado de conteo de pasajeros | C168: frecp | D168: =+(D167/2)*D166 -> 0.5
B172: Estimación del pago de RTV en la Flota
C174: Fecha AP | D174: =+'DATOS DE ENTRADA'!D21 -> 41709
C175: Semestre actual | D175: =+IF('DATOS DE ENTRADA'!$D$21<$F$189,"1er sem.","2do sem.") -> 1er sem.
C177: Placa | D177: Año | E177: Mes | F177: Ultimo día mes
C178: 1er sem.
C179: 1 | D179: =+YEAR('DATOS DE ENTRADA'!$D$21) -> 2014 | E179: 1 | F179: =+DATE(D179,E179+1,0) -> 41670
C180: 6 | D180: =+YEAR('DATOS DE ENTRADA'!$D$21) -> 2014 | E180: 1 | F180: 41670
C181: 2 | D181: =+YEAR('DATOS DE ENTRADA'!$D$21) -> 2014 | E181: 2 | F181: 41698
C182: 7 | D182: =+YEAR('DATOS DE ENTRADA'!$D$21) -> 2014 | E182: 2 | F182: 41698
C183: 3 | D183: =+YEAR('DATOS DE ENTRADA'!$D$21) -> 2014 | E183: 3 | F183: 41729
C184: 8 | D184: =+YEAR('DATOS DE ENTRADA'!$D$21) -> 2014 | E184: 3 | F184: 41729
C185: 4 | D185: =+YEAR('DATOS DE ENTRADA'!$D$21) -> 2014 | E185: 4 | F185: 41759
C186: 9 | D186: =+YEAR('DATOS DE ENTRADA'!$D$21) -> 2014 | E186: 4 | F186: 41759
C187: 5 | D187: =+YEAR('DATOS DE ENTRADA'!$D$21) -> 2014 | E187: 5 | F187: 41790
C188: 0 | D188: =+YEAR('DATOS DE ENTRADA'!$D$21) -> 2014 | E188: 5 | F188: 41790
C189: libre | D189: =+YEAR('DATOS DE ENTRADA'!$D$21) -> 2014 | E189: 6 | F189: 41820
C190: 2do sem.
C191: 1 | D191: =+YEAR('DATOS DE ENTRADA'!$D$21) -> 2014 | E191: 7 | F191: =+DATE(D191,E191+1,0) -> 41851
C192: 6 | D192: =+YEAR('DATOS DE ENTRADA'!$D$21) -> 2014 | E192: 7 | F192: 41851
C193: 2 | D193: =+YEAR('DATOS DE ENTRADA'!$D$21) -> 2014 | E193: 8 | F193: 41882
C194: 7 | D194: =+YEAR('DATOS DE ENTRADA'!$D$21) -> 2014 | E194: 8 | F194: 41882
C195: 3 | D195: =+YEAR('DATOS DE ENTRADA'!$D$21) -> 2014 | E195: 9 | F195: 41912
C196: 8 | D196: =+YEAR('DATOS DE ENTRADA'!$D$21) -> 2014 | E196: 9 | F196: 41912
C197: 4 | D197: =+YEAR('DATOS DE ENTRADA'!$D$21) -> 2014 | E197: 10 | F197: 41943
C198: 9 | D198: =+YEAR('DATOS DE ENTRADA'!$D$21) -> 2014 | E198: 10 | F198: 41943
C199: 5 | D199: =+YEAR('DATOS DE ENTRADA'!$D$21) -> 2014 | E199: 11 | F199: 41973
C200: 0 | D200: =+YEAR('DATOS DE ENTRADA'!$D$21) -> 2014 | E200: 11 | F200: 41973
C201: libre | D201: =+YEAR('DATOS DE ENTRADA'!$D$21) -> 2014 | E201: 12 | F201: 42004

Sheet Ponderaciones
A1: Ponderaciones para tarifas, distancias y precios de unidades
D5: DEMANDA PROMEDIO MES | J5: Tarifa actual | L5: Tarifa Recom. | N5: CARRERAS POR MES | T5: PEAJE | V5: Distancia por Carrera | Z5: Distancia Ponderada
B6: Ruta | C6: Nombre | D6: Acuerdo demanda CTP | E6: Estudio Técnico Aresep | F6: Fij. Anterior (histórico) | G6: Estadísticas últimos 12 meses | H6: Pte. Estudio | I6: Peso Rel. | J6: Trayecto | K6: Pond. | L6: Redond. | M6: Pond. | N6: Empresa | O6: Fij. Anterior (histórico) | P6: Estadísticas últimos 12 meses | Q6: MOPT-CTP | R6: Pte. Estudio | S6: PESO REL | T6: Marque con "X" el ramal | U6: Carreras pagan Peaje | V6: MOPT-CTP. | W6: Fij. Ant. | X6: ARESEP-GPS. | Y6: Pte. Estudio | Z6: Empresa | AA6: Pte. Estudio | AB6: Kms Recorri_ dos | AC6: Peso Relativo | AD6: Tipo de bus asignado
B7: 407 | C7: xxx | D7: 91139 | G7: 0 | H7: =D7 -> 91139 | I7: =+H7/$H$11 -> 1 | J7: 380 | K7: =+J7*I7 -> 380 | M7: =+I7*L7 -> 0 | N7: 1317 | O7: 1306.61 | P7: 1317 | Q7: 1306.610485 | R7: =+MIN(N7,P7,Q7) -> 1306.610485 | S7: =+R7/$R$11 -> 1 | U7: =+IF(T7="X",R7,0) -> 0 | V7: 30.68 | W7: 34.1 | X7: 30.68 | Y7: =+IF(X7>0,X7,V7) -> 30.68 | Z7: =N7/$N$11*V7 -> 30.68 | AA7: =+Y7*S7 -> 30.68 | AB7: =Y7*R7 -> 40086.80968 | AC7: =+AB7/$AB$11 -> 1 | AD7: Autobús Interurbano Corto
H8: =+IF($D$11<>"N/A",D8,IF($E$11<>"N/A",E8,IF($F$11>$G$11,F8,G8))) -> 0 | I8: =+H8/$H$11 -> 0 | K8: =+J8*I8 -> 0 | M8: 0 | R8: =+MIN(N8,P8,Q8) -> 0 | S8: =+R8/$R$11 -> 0 | U8: =+IF(T8="X",R8,0) -> 0 | Y8: =+IF(X8>0,X8,V8) -> 0 | Z8: =N8/$N$11*V8 -> 0 | AA8: 0 | AB8: 0 | AC8: =+AB8/$AB$11 -> 0
H9: =+IF($D$11<>"N/A",D9,IF($E$11<>"N/A",E9,IF($F$11>$G$11,F9,G9))) -> 0 | I9: =+H9/$H$11 -> 0 | K9: =+J9*I9 -> 0 | M9: 0 | R9: =+MIN(N9,P9,Q9) -> 0 | S9: =+R9/$R$11 -> 0 | U9: 0 | Y9: =+IF(X9>0,X9,V9) -> 0 | Z9: =N9/$N$11*V9 -> 0 | AA9: =+Y9*S9 -> 0 | AB9: 0 | AC9: =+AB9/$AB$11 -> 0
U10: 0
C11: Sub-Total | D11: =IF(COUNTBLANK($D7:$D9)>0,"N/A",SUM($D7:$D9)) -> N/A | E11: =IF(COUNTBLANK($E$7:$E$9)>0,"N/A",SUM($E$7:$E$9)) -> N/A | F11: =IF(COUNTBLANK($F$7:$F$9)>0,"N/A",SUM($F$7:$F$9)) -> N/A | G11: =IF(COUNTBLANK($G$7:$G$9)>0,"N/A",SUM($G$7:$G$9)) -> N/A | H11: =SUM(H7:H9) -> 91139 | I11: =SUM(I7:I9) -> 1 | K11: =SUM(K7:K9) -> 380 | M11: =SUM(M7:M9) -> 0 | N11: 1317 | O11: 1306.61 | P11: 1317 | Q11: 1306.610485 | R11: 1306.610485 | S11: 1 | U11: =+SUM(U7:U9) -> 0 | Y11: =SUM(Y7:Y9) -> 30.68 | Z11: =SUM(Z7:Z9) -> 30.68 | AA11: =SUM(AA7:AA9) -> 30.68 | AB11: =SUM(AB7:AB9) -> 40086.80968 | AC11: =SUM(AC7:AC9) -> 1
F13: Estim. o Conteo Adultos mayores | H13: =H11*0 -> 0 | I13: =H13/H11 -> 0 | N13: Pax/Viaje | P13: =H11/R11/2 -> 34.87611689
F14: Demanda Promedio Neta | H14: =H11-H13 -> 91139 | I14: =1-I13 -> 1 | N14: Cap. Media/Busetas | P14: =Flota!$I$41 -> 53.2 | Q14: 921.4
N15: Ocupación Media | P15: =P13/P14 -> 0.6555661069
AF16: Tipos de bus | AG16: Ponderación
AF17: Autobús Interurbano Corto | AG17: 1
AF18: (en blanco) | AG18: 0
L21: Cálculo de Carreras según Esquema de Horarios Autorizados
N22: Nº de Carreras
L23: Ramal | N23: L-V | O23: S | P23: D | Q23: Prom/Mes
L24: XX1 | M24: Ramal 1 | Q24: 2915.444167
L25: XX2 | M25: Ramal 2 | Q25: 1708.97
L26: XX3 | M26: Ramal 3 | Q26: 2874.9125
L27: XX4 | M27: Ramal 4 | Q27: 3617.914667
L28: XX5 | M28: Ramal 5 | Q28: 4296.550333
L29: XX6 | M29: Ramal 6 | Q29: 2208.63
L30: XX7 | M30: Ramal 7 | Q30: 3157.596667
L31: XX8 | M31: Ramal 8 | Q31: 6369.4615
L32: XX9 | M32: Ramal 9 | Q32: 1323.6425
M34: Total | N34: =SUM(N24:N24) -> 0 | O34: =SUM(O24:O24) -> 0 | P34: =SUM(P24:P24) -> 0 | Q34: =SUM(Q24:Q32) -> 28473.12233
M35: Días/Año | N35: =365.24219879/7*5 -> 260.8872848 | O35: =365.24219879/7 -> 52.17745697 | P35: =365.24219879/7 -> 52.17745697 | Q35: =Q34-Q36 -> 28473.12233
M36: Anual | N36: =N34*N35 -> 0 | O36: =O34*O35 -> 0 | P36: =P34*P35 -> 0 | Q36: =SUM(N36:P36)/12 -> 0
M38: Total de días | N38: =SUM(N35:Q35) -> 28838.36453
P39: Empresa | Q39: Fij. Anterior
N40: Variaciones | P40: =Q36-N11 -> -1317 | Q40: =Q36-O11 -> -1306.61
P41: =P40/Q36 ->  | Q41: =Q40/Q36 -> 
L42: Nota:
L43: Un año tropical medio dura 365,24219879 días

Sheet Flota
A1: Información de la flota
D2: Año actual | E2: =+YEAR(TODAY()) -> 2015 | F2: Advertencia: No dejar ningún campo de fila con datos de ruta en cero para no afectar rangos | M2: Advertencia: No dejar ningún campo de fila con datos de ruta en cero para no afectar rangos
B4: Ruta: | C4: ='DATOS DE ENTRADA'!D16 -> SAN JOSE-LUGARES DE DESTINO | R4: *Aplica para vehículo con regla tipo 1 | T4: Valor único promedio | U4: *Aplica para vehículo con regla tipo 2
G5: X | T5: =+SUM(T7:T19)/COUNT(T7:T19) -> 63705600 | U5: =SUM(U7:U41) -> 0 | V5: =SUM(V7:V41) -> 0 | W5: =SUM(W7:W41) -> 0 | X5: =SUM(X7:X41) -> 0 | Y5: =SUM(Y7:Y39) -> 0
B6: Propiedad Empresa | C6: NOMBRE PROPIETARIO DEL VEHICULO | D6: PlacaA | E6: PlacaN | F6: Placa_bus | G6: Rampa | H6: Modelo Aceptado | I6: Capacidad Aceptada | J6: Edad | K6: Tipo de vehículo | L6: En arriendo | M6: Monto Arrendado | N6: Regla que aplica | O6: Tipo de combustible | P6: Próximo RTV por placa | Q6: Siguiente RTV reportado | R6: Factor ponderador | S6: Valor promedio | T6: Valor ponderado (VTA) | U6: *Valor tarifario (VTA) anterior (p-1) | V6: *Valor tarifario (VTAN) anterior (p-1) | W6: *Valor tarifario (VTA) año (p) | X6: Valor tarifario (VTAN) año (p) | Y6: Gasto por Depreciación
B7: SI | C7: xxx | D7: HB | E7: 1359 | F7: =D7&IF(LEN(E7)>4,(IF(LEN(E7)>5,E7,"0"&E7)),"00"&E7) -> HB001359 | G7: SI | H7: 1999 | I7: 80 | J7: =IF(H7<>0,IF(($I$43-H7)<0,0,$I$43-H7),"") -> 15 | K7: Autobús Interurbano Corto | L7: NO | M7: 0 | N7: =INDEX(BD_AcuerdosFlota!Q6,MATCH($F7,BD_AcuerdosFlota!A6:A18,0)) -> tipo 1 | O7: Diesel | P7: =IF(Constantes!$D$175="2do sem.",INDEX(Constantes!$F$191:$F$200,MATCH(VALUE(RIGHT(E7,1)),Constantes!$C$191:$C$200,0)),INDEX(Constantes!$F$179:$F$188,MATCH(VALUE(RIGHT(E7,1)),Constantes!$C$179:$C$188,0))) -> 41759 | Q7: 41913 | R7: =IF(N7="tipo 1",IFERROR(INDEX(Ponderaciones!$AG$17:$AG$23,MATCH(Flota!K7,Ponderaciones!$AF$17:$AF$23,0)),""),"N/A") -> 1 | S7: =IF($N7="tipo 1",IF(AND(P7<Constantes!D$174,P7>=Q7),SUMIFS(ValorColones_U,Año_U,H7,Tipo_U,K7,Rampa_U,G7),SUMIFS(ValorColones_U,Año_U,H7,Tipo_U,K7,Rampa_U,G7)),"N/A") -> 63705600 | T7: =IFERROR(+R7*S7,"N/A") -> 63705600 | U7: =IF($N7="tipo 2",IF(AND(P7<Constantes!D$174,P7>=Q7),INDEX(Valor_P1,MATCH(F7,Placa_BD_IT)),"RTV vencido"),"N/A") -> N/A | V7: =IFERROR(U7-(6*('Datos para costos'!$E$56+'Datos para costos'!$E$58)),"N/A") -> N/A | W7: =IF($N7="tipo 2",IF(AND(P7<Constantes!$D$174,P7>=Q7),INDEX(Valor_p,MATCH(F7,Placa_BD_IT)),"RTV vencido"),"N/A") -> N/A | X7: =IFERROR(W7-(6*('Datos para costos'!$E$56+'Datos para costos'!$E$58)),"N/A") -> N/A | Y7: =IFERROR(IF(V7-X7>0,V7-X7,0),"N/A") -> N/A
B8: SI | C8: xxx | D8: HB | E8: 2977 | F8: HB002977 | G8: SI | H8: 2000 | I8: 50 | J8: 14 | K8: Autobús Interurbano Corto | L8: NO | M8: 0 | N8: =INDEX(BD_AcuerdosFlota!Q7,MATCH($F8,BD_AcuerdosFlota!A7:A19,0)) -> tipo 1 | O8: Diesel | P8: =IF(Constantes!$D$175="2do sem.",INDEX(Constantes!$F$191:$F$200,MATCH(VALUE(RIGHT(E8,1)),Constantes!$C$191:$C$200,0)),INDEX(Constantes!$F$179:$F$188,MATCH(VALUE(RIGHT(E8,1)),Constantes!$C$179:$C$188,0))) -> 41698 | Q8: 41852 | R8: =IF(N8="tipo 1",IFERROR(INDEX(Ponderaciones!$AG$17:$AG$23,MATCH(Flota!K8,Ponderaciones!$AF$17:$AF$23,0)),""),"N/A") -> 1 | S8: =IF($N8="tipo 1",IF(AND(P8<Constantes!D$174,P8>=Q8),SUMIFS(ValorColones_U,Año_U,H8,Tipo_U,K8,Rampa_U,G8),SUMIFS(ValorColones_U,Año_U,H8,Tipo_U,K8,Rampa_U,G8)),"N/A") -> 63705600 | T8: =IFERROR(+R8*S8,"N/A") -> 63705600 | U8: =IF($N8="tipo 2",IF(AND(P8<Constantes!D$174,P8>=Q8),INDEX(Valor_P1,MATCH(F8,Placa_BD_IT)),"RTV vencido"),"N/A") -> N/A | V8: =IFERROR(U8-(6*('Datos para costos'!$E$56+'Datos para costos'!$E$58)),"N/A") -> N/A | W8: =IF($N8="tipo 2",IF(AND(P8<Constantes!$D$174,P8>=Q8),INDEX(Valor_p,MATCH(F8,Placa_BD_IT)),"RTV vencido"),"N/A") -> N/A | X8: =IFERROR(W8-(6*('Datos para costos'!$E$56+'Datos para costos'!$E$58)),"N/A") -> N/A | Y8: =IFERROR(IF(V8-X8>0,V8-X8,0),"N/A") -> N/A
B9: SI | C9: xxx | D9: HB | E9: 2704 | F9: HB002704 | G9: SI | H9: 2001 | I9: 48 | J9: 13 | K9: Autobús Interurbano Corto | L9: NO | M9: 0 | N9: =INDEX(BD_AcuerdosFlota!Q8,MATCH($F9,BD_AcuerdosFlota!A8:A20,0)) -> tipo 1 | O9: Diesel | P9: =IF(Constantes!$D$175="2do sem.",INDEX(Constantes!$F$191:$F$200,MATCH(VALUE(RIGHT(E9,1)),Constantes!$C$191:$C$200,0)),INDEX(Constantes!$F$179:$F$188,MATCH(VALUE(RIGHT(E9,1)),Constantes!$C$179:$C$188,0))) -> 41759 | Q9: 41730 | R9: =IF(N9="tipo 1",IFERROR(INDEX(Ponderaciones!$AG$17:$AG$23,MATCH(Flota!K9,Ponderaciones!$AF$17:$AF$23,0)),""),"N/A") -> 1 | S9: =IF($N9="tipo 1",IF(AND(P9<Constantes!D$174,P9>=Q9),SUMIFS(ValorColones_U,Año_U,H9,Tipo_U,K9,Rampa_U,G9),SUMIFS(ValorColones_U,Año_U,H9,Tipo_U,K9,Rampa_U,G9)),"N/A") -> 63705600 | T9: 63705600 | U9: =IF($N9="tipo 2",IF(AND(P9<Constantes!D$174,P9>=Q9),INDEX(Valor_P1,MATCH(F9,Placa_BD_IT)),"RTV vencido"),"N/A") -> N/A | V9: =IFERROR(U9-(6*('Datos para costos'!$E$56+'Datos para costos'!$E$58)),"N/A") -> N/A | W9: =IF($N9="tipo 2",IF(AND(P9<Constantes!$D$174,P9>=Q9),INDEX(Valor_p,MATCH(F9,Placa_BD_IT)),"RTV vencido"),"N/A") -> N/A | X9: =IFERROR(W9-(6*('Datos para costos'!$E$56+'Datos para costos'!$E$58)),"N/A") -> N/A | Y9: N/A
B10: SI | C10: xxx | D10: HB | E10: 3062 | F10: HB003062 | G10: SI | H10: 2002 | I10: 51 | J10: 12 | K10: Autobús Interurbano Corto | L10: NO | M10: 0 | N10: =INDEX(BD_AcuerdosFlota!Q9,MATCH($F10,BD_AcuerdosFlota!A9:A21,0)) -> tipo 1 | O10: Diesel | P10: =IF(Constantes!$D$175="2do sem.",INDEX(Constantes!$F$191:$F$200,MATCH(VALUE(RIGHT(E10,1)),Constantes!$C$191:$C$200,0)),INDEX(Constantes!$F$179:$F$188,MATCH(VALUE(RIGHT(E10,1)),Constantes!$C$179:$C$188,0))) -> 41698 | Q10: 41852 | R10: =IF(N10="tipo 1",IFERROR(INDEX(Ponderaciones!$AG$17:$AG$23,MATCH(Flota!K10,Ponderaciones!$AF$17:$AF$23,0)),""),"N/A") -> 1 | S10: =IF($N10="tipo 1",IF(AND(P10<Constantes!D$174,P10>=Q10),SUMIFS(ValorColones_U,Año_U,H10,Tipo_U,K10,Rampa_U,G10),SUMIFS(ValorColones_U,Año_U,H10,Tipo_U,K10,Rampa_U,G10)),"N/A") -> 63705600 | T10: 63705600 | U10: =IF($N10="tipo 2",IF(AND(P10<Constantes!D$174,P10>=Q10),INDEX(Valor_P1,MATCH(F10,Placa_BD_IT)),"RTV vencido"),"N/A") -> N/A | V10: =IFERROR(U10-(6*('Datos para costos'!$E$56+'Datos para costos'!$E$58)),"N/A") -> N/A | W10: =IF($N10="tipo 2",IF(AND(P10<Constantes!$D$174,P10>=Q10),INDEX(Valor_p,MATCH(F10,Placa_BD_IT)),"RTV vencido"),"N/A") -> N/A | X10: =IFERROR(W10-(6*('Datos para costos'!$E$56+'Datos para costos'!$E$58)),"N/A") -> N/A | Y10: N/A
B11: SI | C11: xxx | D11: HB | E11: 2330 | F11: HB002330 | G11: SI | H11: 2003 | I11: 50 | J11: 11 | K11: Autobús Interurbano Corto | L11: NO | M11: 0 | N11: =INDEX(BD_AcuerdosFlota!Q10,MATCH($F11,BD_AcuerdosFlota!A10:A22,0)) -> tipo 1 | O11: Diesel | P11: =IF(Constantes!$D$175="2do sem.",INDEX(Constantes!$F$191:$F$200,MATCH(VALUE(RIGHT(E11,1)),Constantes!$C$191:$C$200,0)),INDEX(Constantes!$F$179:$F$188,MATCH(VALUE(RIGHT(E11,1)),Constantes!$C$179:$C$188,0))) -> 41790 | Q11: 41760 | R11: =IF(N11="tipo 1",IFERROR(INDEX(Ponderaciones!$AG$17:$AG$23,MATCH(Flota!K11,Ponderaciones!$AF$17:$AF$23,0)),""),"N/A") -> 1 | S11: =IF($N11="tipo 1",IF(AND(P11<Constantes!D$174,P11>=Q11),SUMIFS(ValorColones_U,Año_U,H11,Tipo_U,K11,Rampa_U,G11),SUMIFS(ValorColones_U,Año_U,H11,Tipo_U,K11,Rampa_U,G11)),"N/A") -> 63705600 | T11: 63705600 | U11: =IF($N11="tipo 2",IF(AND(P11<Constantes!D$174,P11>=Q11),INDEX(Valor_P1,MATCH(F11,Placa_BD_IT)),"RTV vencido"),"N/A") -> N/A | V11: =IFERROR(U11-(6*('Datos para costos'!$E$56+'Datos para costos'!$E$58)),"N/A") -> N/A | W11: =IF($N11="tipo 2",IF(AND(P11<Constantes!$D$174,P11>=Q11),INDEX(Valor_p,MATCH(F11,Placa_BD_IT)),"RTV vencido"),"N/A") -> N/A | X11: =IFERROR(W11-(6*('Datos para costos'!$E$56+'Datos para costos'!$E$58)),"N/A") -> N/A | Y11: N/A
B12: SI | C12: xxx | D12: HB | E12: 2761 | F12: HB002761 | G12: SI | H12: 2005 | I12: 49 | J12: 9 | K12: Autobús Interurbano Corto | L12: SI | M12: 1200000 | N12: =INDEX(BD_AcuerdosFlota!Q11,MATCH($F12,BD_AcuerdosFlota!A11:A23,0)) -> tipo 1 | O12: Diesel | P12: =IF(Constantes!$D$175="2do sem.",INDEX(Constantes!$F$191:$F$200,MATCH(VALUE(RIGHT(E12,1)),Constantes!$C$191:$C$200,0)),INDEX(Constantes!$F$179:$F$188,MATCH(VALUE(RIGHT(E12,1)),Constantes!$C$179:$C$188,0))) -> 41670 | Q12: 41821 | R12: =IF(N12="tipo 1",IFERROR(INDEX(Ponderaciones!$AG$17:$AG$23,MATCH(Flota!K12,Ponderaciones!$AF$17:$AF$23,0)),""),"N/A") -> 1 | S12: =IF($N12="tipo 1",IF(AND(P12<Constantes!D$174,P12>=Q12),SUMIFS(ValorColones_U,Año_U,H12,Tipo_U,K12,Rampa_U,G12),SUMIFS(ValorColones_U,Año_U,H12,Tipo_U,K12,Rampa_U,G12)),"N/A") -> 63705600 | T12: 63705600 | U12: =IF($N12="tipo 2",IF(AND(P12<Constantes!D$174,P12>=Q12),INDEX(Valor_P1,MATCH(F12,Placa_BD_IT)),"RTV vencido"),"N/A") -> N/A | V12: =IFERROR(U12-(6*('Datos para costos'!$E$56+'Datos para costos'!$E$58)),"N/A") -> N/A | W12: =IF($N12="tipo 2",IF(AND(P12<Constantes!$D$174,P12>=Q12),INDEX(Valor_p,MATCH(F12,Placa_BD_IT)),"RTV vencido"),"N/A") -> N/A | X12: =IFERROR(W12-(6*('Datos para costos'!$E$56+'Datos para costos'!$E$58)),"N/A") -> N/A | Y12: N/A
B13: SI | C13: xxx | D13: HB | E13: 3103 | F13: HB003103 | G13: SI | H13: 2005 | I13: 50 | J13: 9 | K13: Autobús Interurbano Corto | L13: NO | M13: 0 | N13: =INDEX(BD_AcuerdosFlota!Q12,MATCH($F13,BD_AcuerdosFlota!A12:A24,0)) -> tipo 1 | O13: Diesel | P13: =IF(Constantes!$D$175="2do sem.",INDEX(Constantes!$F$191:$F$200,MATCH(VALUE(RIGHT(E13,1)),Constantes!$C$191:$C$200,0)),INDEX(Constantes!$F$179:$F$188,MATCH(VALUE(RIGHT(E13,1)),Constantes!$C$179:$C$188,0))) -> 41729 | Q13: 41883 | R13: =IF(N13="tipo 1",IFERROR(INDEX(Ponderaciones!$AG$17:$AG$23,MATCH(Flota!K13,Ponderaciones!$AF$17:$AF$23,0)),""),"N/A") -> 1 | S13: =IF($N13="tipo 1",IF(AND(P13<Constantes!D$174,P13>=Q13),SUMIFS(ValorColones_U,Año_U,H13,Tipo_U,K13,Rampa_U,G13),SUMIFS(ValorColones_U,Año_U,H13,Tipo_U,K13,Rampa_U,G13)),"N/A") -> 63705600 | T13: 63705600 | U13: =IF($N13="tipo 2",IF(AND(P13<Constantes!D$174,P13>=Q13),INDEX(Valor_P1,MATCH(F13,Placa_BD_IT)),"RTV vencido"),"N/A") -> N/A | V13: =IFERROR(U13-(6*('Datos para costos'!$E$56+'Datos para costos'!$E$58)),"N/A") -> N/A | W13: =IF($N13="tipo 2",IF(AND(P13<Constantes!$D$174,P13>=Q13),INDEX(Valor_p,MATCH(F13,Placa_BD_IT)),"RTV vencido"),"N/A") -> N/A | X13: =IFERROR(W13-(6*('Datos para costos'!$E$56+'Datos para costos'!$E$58)),"N/A") -> N/A | Y13: N/A
B14: SI | C14: xxx | D14: HB | E14: 3292 | F14: HB003292 | G14: SI | H14: 2006 | I14: 52 | J14: 8 | K14: Autobús Interurbano Corto | L14: NO | M14: 0 | N14: =INDEX(BD_AcuerdosFlota!Q13,MATCH($F14,BD_AcuerdosFlota!A13:A25,0)) -> tipo 1 | O14: Diesel | P14: =IF(Constantes!$D$175="2do sem.",INDEX(Constantes!$F$191:$F$200,MATCH(VALUE(RIGHT(E14,1)),Constantes!$C$191:$C$200,0)),INDEX(Constantes!$F$179:$F$188,MATCH(VALUE(RIGHT(E14,1)),Constantes!$C$179:$C$188,0))) -> 41698 | Q14: 41852 | R14: =IF(N14="tipo 1",IFERROR(INDEX(Ponderaciones!$AG$17:$AG$23,MATCH(Flota!K14,Ponderaciones!$AF$17:$AF$23,0)),""),"N/A") -> 1 | S14: =IF($N14="tipo 1",IF(AND(P14<Constantes!D$174,P14>=Q14),SUMIFS(ValorColones_U,Año_U,H14,Tipo_U,K14,Rampa_U,G14),SUMIFS(ValorColones_U,Año_U,H14,Tipo_U,K14,Rampa_U,G14)),"N/A") -> 63705600 | T14: 63705600 | U14: =IF($N14="tipo 2",IF(AND(P14<Constantes!D$174,P14>=Q14),INDEX(Valor_P1,MATCH(F14,Placa_BD_IT)),"RTV vencido"),"N/A") -> N/A | V14: =IFERROR(U14-(6*('Datos para costos'!$E$56+'Datos para costos'!$E$58)),"N/A") -> N/A | W14: =IF($N14="tipo 2",IF(AND(P14<Constantes!$D$174,P14>=Q14),INDEX(Valor_p,MATCH(F14,Placa_BD_IT)),"RTV vencido"),"N/A") -> N/A | X14: =IFERROR(W14-(6*('Datos para costos'!$E$56+'Datos para costos'!$E$58)),"N/A") -> N/A | Y14: N/A
B15: SI | C15: xxx | D15: HB | E15: 3334 | F15: HB003334 | G15: SI | H15: 2007 | I15: 52 | J15: 7 | K15: Autobús Interurbano Corto | L15: SI | M15: 120000 | N15: =INDEX(BD_AcuerdosFlota!Q14,MATCH($F15,BD_AcuerdosFlota!A14:A26,0)) -> tipo 1 | O15: Diesel | P15: =IF(Constantes!$D$175="2do sem.",INDEX(Constantes!$F$191:$F$200,MATCH(VALUE(RIGHT(E15,1)),Constantes!$C$191:$C$200,0)),INDEX(Constantes!$F$179:$F$188,MATCH(VALUE(RIGHT(E15,1)),Constantes!$C$179:$C$188,0))) -> 41759 | Q15: 41730 | R15: =IF(N15="tipo 1",IFERROR(INDEX(Ponderaciones!$AG$17:$AG$23,MATCH(Flota!K15,Ponderaciones!$AF$17:$AF$23,0)),""),"N/A") -> 1 | S15: =IF($N15="tipo 1",IF(AND(P15<Constantes!D$174,P15>=Q15),SUMIFS(ValorColones_U,Año_U,H15,Tipo_U,K15,Rampa_U,G15),SUMIFS(ValorColones_U,Año_U,H15,Tipo_U,K15,Rampa_U,G15)),"N/A") -> 63705600 | T15: 63705600 | U15: =IF($N15="tipo 2",IF(AND(P15<Constantes!D$174,P15>=Q15),INDEX(Valor_P1,MATCH(F15,Placa_BD_IT)),"RTV vencido"),"N/A") -> N/A | V15: =IFERROR(U15-(6*('Datos para costos'!$E$56+'Datos para costos'!$E$58)),"N/A") -> N/A | W15: =IF($N15="tipo 2",IF(AND(P15<Constantes!$D$174,P15>=Q15),INDEX(Valor_p,MATCH(F15,Placa_BD_IT)),"RTV vencido"),"N/A") -> N/A | X15: =IFERROR(W15-(6*('Datos para costos'!$E$56+'Datos para costos'!$E$58)),"N/A") -> N/A | Y15: N/A
B16: SI | C16: xxx | D16: HB | E16: 3196 | F16: HB003196 | G16: SI | H16: 2010 | I16: 50 | J16: 4 | K16: Autobús Interurbano Corto | L16: NO | M16: 0 | N16: =INDEX(BD_AcuerdosFlota!Q15,MATCH($F16,BD_AcuerdosFlota!A15:A27,0)) -> tipo 1 | O16: Diesel | P16: =IF(Constantes!$D$175="2do sem.",INDEX(Constantes!$F$191:$F$200,MATCH(VALUE(RIGHT(E16,1)),Constantes!$C$191:$C$200,0)),INDEX(Constantes!$F$179:$F$188,MATCH(VALUE(RIGHT(E16,1)),Constantes!$C$179:$C$188,0))) -> 41670 | Q16: 41821 | R16: =IF(N16="tipo 1",IFERROR(INDEX(Ponderaciones!$AG$17:$AG$23,MATCH(Flota!K16,Ponderaciones!$AF$17:$AF$23,0)),""),"N/A") -> 1 | S16: =IF($N16="tipo 1",IF(AND(P16<Constantes!D$174,P16>=Q16),SUMIFS(ValorColones_U,Año_U,H16,Tipo_U,K16,Rampa_U,G16),SUMIFS(ValorColones_U,Año_U,H16,Tipo_U,K16,Rampa_U,G16)),"N/A") -> 63705600 | T16: 63705600 | U16: =IF($N16="tipo 2",IF(AND(P16<Constantes!D$174,P16>=Q16),INDEX(Valor_P1,MATCH(F16,Placa_BD_IT)),"RTV vencido"),"N/A") -> N/A | V16: =IFERROR(U16-(6*('Datos para costos'!$E$56+'Datos para costos'!$E$58)),"N/A") -> N/A | W16: =IF($N16="tipo 2",IF(AND(P16<Constantes!$D$174,P16>=Q16),INDEX(Valor_p,MATCH(F16,Placa_BD_IT)),"RTV vencido"),"N/A") -> N/A | X16: =IFERROR(W16-(6*('Datos para costos'!$E$56+'Datos para costos'!$E$58)),"N/A") -> N/A | Y16: N/A
R17: =IFERROR(INDEX(Ponderaciones!$AG$17:$AG$23,MATCH(Flota!K17,Ponderaciones!$AF$17:$AF$23,0)),"") ->  | S17: =IF(AND(P17<Constantes!D$174,P17>=Q17),SUMIFS(ValorColones_U,Año_U,H17,Tipo_U,K17,Rampa_U,G17),SUMIFS(ValorColones_U,Año_U,H17,Tipo_U,K17,Rampa_U,G17)) -> 0
R18: =IFERROR(INDEX(Ponderaciones!$AG$17:$AG$23,MATCH(Flota!K18,Ponderaciones!$AF$17:$AF$23,0)),"") ->  | S18: =IF(AND(P18<Constantes!D$174,P18>=Q18),SUMIFS(ValorColones_U,Año_U,H18,Tipo_U,K18,Rampa_U,G18),SUMIFS(ValorColones_U,Año_U,H18,Tipo_U,K18,Rampa_U,G18)) -> 0
R19: =IFERROR(INDEX(Ponderaciones!$AG$17:$AG$23,MATCH(Flota!K19,Ponderaciones!$AF$17:$AF$23,0)),"") ->  | S19: =IF(AND(P19<Constantes!D$174,P19>=Q19),SUMIFS(ValorColones_U,Año_U,H19,Tipo_U,K19,Rampa_U,G19),SUMIFS(ValorColones_U,Año_U,H19,Tipo_U,K19,Rampa_U,G19)) -> 0
R20: =IFERROR(INDEX(Ponderaciones!$AG$17:$AG$23,MATCH(Flota!K20,Ponderaciones!$AF$17:$AF$23,0)),"") ->  | S20: =IF(AND(P20<Constantes!D$174,P20>=Q20),SUMIFS(ValorColones_U,Año_U,H20,Tipo_U,K20,Rampa_U,G20),SUMIFS(ValorColones_U,Año_U,H20,Tipo_U,K20,Rampa_U,G20)) -> 0
R21: =IFERROR(INDEX(Ponderaciones!$AG$17:$AG$23,MATCH(Flota!K21,Ponderaciones!$AF$17:$AF$23,0)),"") ->  | S21: =IF(P21<Constantes!D$174,IF(P21>=Q21,0,SUMIFS(ValorColones_U,Año_U,H21,Tipo_U,K21,Rampa_U,G21)),SUMIFS(ValorColones_U,Año_U,H21,Tipo_U,K21,Rampa_U,G21)) -> 0
R22: =IFERROR(INDEX(Ponderaciones!$AG$17:$AG$23,MATCH(Flota!K22,Ponderaciones!$AF$17:$AF$23,0)),"") ->  | S22: =IF(P22<Constantes!D$174,IF(P22>=Q22,0,SUMIFS(ValorColones_U,Año_U,H22,Tipo_U,K22,Rampa_U,G22)),SUMIFS(ValorColones_U,Año_U,H22,Tipo_U,K22,Rampa_U,G22)) -> 0
R23: =IFERROR(INDEX(Ponderaciones!$AG$17:$AG$23,MATCH(Flota!K23,Ponderaciones!$AF$17:$AF$23,0)),"") ->  | S23: =IF(P23<Constantes!D$174,IF(P23>=Q23,0,SUMIFS(ValorColones_U,Año_U,H23,Tipo_U,K23,Rampa_U,G23)),SUMIFS(ValorColones_U,Año_U,H23,Tipo_U,K23,Rampa_U,G23)) -> 0
J24: =IF(H24<>0,IF(($I$43-H24)<0,0,$I$43-H24),"") ->  | R24: =IFERROR(INDEX(Ponderaciones!$AG$17:$AG$23,MATCH(Flota!K24,Ponderaciones!$AF$17:$AF$23,0)),"") ->  | S24: =IF(P24<Constantes!D$174,IF(P24>=Q24,0,SUMIFS(ValorColones_U,Año_U,H24,Tipo_U,K24,Rampa_U,G24)),SUMIFS(ValorColones_U,Año_U,H24,Tipo_U,K24,Rampa_U,G24)) -> 0
R25: =IFERROR(INDEX(Ponderaciones!$AG$17:$AG$23,MATCH(Flota!K25,Ponderaciones!$AF$17:$AF$23,0)),"") ->  | S25: =IF(P25<Constantes!D$174,IF(P25>=Q25,0,SUMIFS(ValorColones_U,Año_U,H25,Tipo_U,K25,Rampa_U,G25)),SUMIFS(ValorColones_U,Año_U,H25,Tipo_U,K25,Rampa_U,G25)) -> 0
R26: =IFERROR(INDEX(Ponderaciones!$AG$17:$AG$23,MATCH(Flota!K26,Ponderaciones!$AF$17:$AF$23,0)),"") ->  | S26: =IF(P26<Constantes!D$174,IF(P26>=Q26,0,SUMIFS(ValorColones_U,Año_U,H26,Tipo_U,K26,Rampa_U,G26)),SUMIFS(ValorColones_U,Año_U,H26,Tipo_U,K26,Rampa_U,G26)) -> 0
R27: =IFERROR(INDEX(Ponderaciones!$AG$17:$AG$23,MATCH(Flota!K27,Ponderaciones!$AF$17:$AF$23,0)),"") ->  | S27: =IF(P27<Constantes!D$174,IF(P27>=Q27,0,SUMIFS(ValorColones_U,Año_U,H27,Tipo_U,K27,Rampa_U,G27)),SUMIFS(ValorColones_U,Año_U,H27,Tipo_U,K27,Rampa_U,G27)) -> 0
R28: =IFERROR(INDEX(Ponderaciones!$AG$17:$AG$23,MATCH(Flota!K28,Ponderaciones!$AF$17:$AF$23,0)),"") ->  | S28: =IF(P28<Constantes!D$174,IF(P28>=Q28,0,SUMIFS(ValorColones_U,Año_U,H28,Tipo_U,K28,Rampa_U,G28)),SUMIFS(ValorColones_U,Año_U,H28,Tipo_U,K28,Rampa_U,G28)) -> 0
R29: =IFERROR(INDEX(Ponderaciones!$AG$17:$AG$23,MATCH(Flota!K29,Ponderaciones!$AF$17:$AF$23,0)),"") ->  | S29: =IF(P29<Constantes!D$174,IF(P29>=Q29,0,SUMIFS(ValorColones_U,Año_U,H29,Tipo_U,K29,Rampa_U,G29)),SUMIFS(ValorColones_U,Año_U,H29,Tipo_U,K29,Rampa_U,G29)) -> 0
R30: =IFERROR(INDEX(Ponderaciones!$AG$17:$AG$23,MATCH(Flota!K30,Ponderaciones!$AF$17:$AF$23,0)),"") ->  | S30: =IF(P30<Constantes!D$174,IF(P30>=Q30,0,SUMIFS(ValorColones_U,Año_U,H30,Tipo_U,K30,Rampa_U,G30)),SUMIFS(ValorColones_U,Año_U,H30,Tipo_U,K30,Rampa_U,G30)) -> 0
R31: =IFERROR(INDEX(Ponderaciones!$AG$17:$AG$23,MATCH(Flota!K31,Ponderaciones!$AF$17:$AF$23,0)),"") ->  | S31: =IF(P31<Constantes!D$174,IF(P31>=Q31,0,SUMIFS(ValorColones_U,Año_U,H31,Tipo_U,K31,Rampa_U,G31)),SUMIFS(ValorColones_U,Año_U,H31,Tipo_U,K31,Rampa_U,G31)) -> 0
R32: =IFERROR(INDEX(Ponderaciones!$AG$17:$AG$23,MATCH(Flota!K32,Ponderaciones!$AF$17:$AF$23,0)),"") ->  | S32: =IF(P32<Constantes!D$174,IF(P32>=Q32,0,SUMIFS(ValorColones_U,Año_U,H32,Tipo_U,K32,Rampa_U,G32)),SUMIFS(ValorColones_U,Año_U,H32,Tipo_U,K32,Rampa_U,G32)) -> 0
R33: =IFERROR(INDEX(Ponderaciones!$AG$17:$AG$23,MATCH(Flota!K33,Ponderaciones!$AF$17:$AF$23,0)),"") ->  | S33: =IF(P33<Constantes!D$174,IF(P33>=Q33,0,SUMIFS(ValorColones_U,Año_U,H33,Tipo_U,K33,Rampa_U,G33)),SUMIFS(ValorColones_U,Año_U,H33,Tipo_U,K33,Rampa_U,G33)) -> 0
R34: =IFERROR(INDEX(Ponderaciones!$AG$17:$AG$23,MATCH(Flota!K34,Ponderaciones!$AF$17:$AF$23,0)),"") ->  | S34: =IF(P34<Constantes!D$174,IF(P34>=Q34,0,SUMIFS(ValorColones_U,Año_U,H34,Tipo_U,K34,Rampa_U,G34)),SUMIFS(ValorColones_U,Año_U,H34,Tipo_U,K34,Rampa_U,G34)) -> 0
R35: =IFERROR(INDEX(Ponderaciones!$AG$17:$AG$23,MATCH(Flota!K35,Ponderaciones!$AF$17:$AF$23,0)),"") ->  | S35: =IF(P35<Constantes!D$174,IF(P35>=Q35,0,SUMIFS(ValorColones_U,Año_U,H35,Tipo_U,K35,Rampa_U,G35)),SUMIFS(ValorColones_U,Año_U,H35,Tipo_U,K35,Rampa_U,G35)) -> 0
R36: =IFERROR(INDEX(Ponderaciones!$AG$17:$AG$23,MATCH(Flota!K36,Ponderaciones!$AF$17:$AF$23,0)),"") ->  | S36: =IF(P36<Constantes!D$174,IF(P36>=Q36,0,SUMIFS(ValorColones_U,Año_U,H36,Tipo_U,K36,Rampa_U,G36)),SUMIFS(ValorColones_U,Año_U,H36,Tipo_U,K36,Rampa_U,G36)) -> 0
R37: =IFERROR(INDEX(Ponderaciones!$AG$17:$AG$23,MATCH(Flota!K37,Ponderaciones!$AF$17:$AF$23,0)),"") ->  | S37: =IF(P37<Constantes!D$174,IF(P37>=Q37,0,SUMIFS(ValorColones_U,Año_U,H37,Tipo_U,K37,Rampa_U,G37)),SUMIFS(ValorColones_U,Año_U,H37,Tipo_U,K37,Rampa_U,G37)) -> 0
R38: =IFERROR(INDEX(Ponderaciones!$AG$17:$AG$23,MATCH(Flota!K38,Ponderaciones!$AF$17:$AF$23,0)),"") ->  | S38: =IF(P38<Constantes!D$174,IF(P38>=Q38,0,SUMIFS(ValorColones_U,Año_U,H38,Tipo_U,K38,Rampa_U,G38)),SUMIFS(ValorColones_U,Año_U,H38,Tipo_U,K38,Rampa_U,G38)) -> 0
R39: =IFERROR(INDEX(Ponderaciones!$AG$17:$AG$23,MATCH(Flota!K39,Ponderaciones!$AF$17:$AF$23,0)),"") ->  | S39: =IF(P39<Constantes!D$174,IF(P39>=Q39,0,SUMIFS(ValorColones_U,Año_U,H39,Tipo_U,K39,Rampa_U,G39)),SUMIFS(ValorColones_U,Año_U,H39,Tipo_U,K39,Rampa_U,G39)) -> 0
B41: =COUNTIF($G$7:$G$39,"SI") -> 10 | G41: =COUNTIF($G$7:$G$40,"SI") -> 10 | H41: =COUNTA(H7:H40) -> 10 | I41: =AVERAGE($I$7:$I$39) -> 53.2
H42: Modelo Promedio | I42: =AVERAGE($H$7:$H$39) -> 2003.8
H43: Año actual | I43: =+YEAR('DATOS DE ENTRADA'!D21) -> 2014
H44: Edad Promedio | I44: =I43-I42 -> 10.2
H45: Flota | I45: =COUNTA($H$7:$H$39) -> 10 | J45: Las que arriendo
H46: Flota con Rampa | I46: =+G41/H41 -> 1

Sheet Precios_bus (hidden)
B2: Precio del vehículo | C2: Fecha | D2: Sin rampa | E2: Con rampa | F2: Unidad | G2: Fuente
B3: Buseta | C3: ='DATOS DE ENTRADA'!$D$21 -> 41709 | D3: 81000 | E3: =+D3+10000 -> 91000 | F3: dólares x und. | G3: Resolucion 008-RIT-2014
B4: Autobús Urbano | D4: 81000 | E4: 91000 | F4: dólares x und.
B5: Autobús Rural | D5: 81000 | E5: 91000 | F5: dólares x und.
B6: Autobús Montano | D6: 130000 | E6: 140000 | F6: dólares x und.
B7: Autobús Interurbano Corto | D7: 110000 | E7: 120000 | F7: dólares x und.
B8: Autobús Interurbano Medio | D8: 143000 | E8: 153000 | F8: dólares x und.
B9: Autobús Interurbano Largo | D9: 165000 | E9: 175000 | F9: dólares x und.

Sheet Calculo de Tarifa
B1: CALCULO DE LA TARIFA
D2: Fecha de Audiencia Pública: | E2: ='DATOS DE ENTRADA'!D21 -> 41709
B4: CTr | C4: = | D4: Costos totales mensuales de la ruta “r” | E4: =+E6+E28+E39 -> 69948927.73
B6: CFr | C6: = | D6: Costos fijos mensuales de la ruta “r” | E6: =SUM(E7,E11,E15,E16,E23,E24,E25,E26) -> 56288884
B7: CDAFr | C7: = | D7: Costo mensual de depreciación de los activos fijos de la ruta “r” | E7: =CFr!D8 -> 798498.38
B8: CDFr | D8: Costo mensual de depreciación de la flota autorizada en la ruta “r” | E8: =CDAF!D8 -> 747533.9 | K8: =K14-$L$2 -> 0
B9: CDMEIr | D9: Costo mensual de depreciación de la maquinaria y equipo para reparaciones y mantenimiento, y, del mobiliario y equipo de oficina en la ruta “r”. | E9: =CDAF!D9 -> 50964.48 | K9: =#REF!-$L$2 -> 
B10: CDSCP | D10: Costo mensual de depreciación del sistema automatizado de conteo de pasajeros en la ruta "r" | E10: =CDAF!$D$10 -> 0 | K10: =#REF!-$L$2 -> 
B11: CPOMr | C11: = | D11: Costo mensual de personal de operación y mantenimiento de la ruta “r” | E11: =CFr!D9 -> 14440484.67
B12: CSCHr | D12: Costo mensual por salarios de los choferes en la ruta “r” | E12: =CPOM!D8 -> 4941900.958
B13: CSDr | D13: Costo mensual por salarios de los despachadores o chequeadores en la ruta “r” | E13: =CPOM!D9 -> 1194274.553
B14: CSMAr | D14: Costo mensual por salarios de los mecánicos y ayudantes de mecánica en la ruta “r” | E14: =CPOM!D10 -> 8304309.157
B15: CPAr | C15: = | D15: Costo mensual de personal administrativo de la ruta “r” | E15: =CPA!D7 -> 1444048.467
B16: GAr | C16: = | D16: Gastos administrativos mensuales de la ruta “r” | E16: =CFr!D11 -> 1080652.1
B17: GDCr | D17: Gasto mensual de derecho de circulación de la flota autorizada en la ruta “r" | E17: =GA!D8 -> 84639.16667
B18: GSVr | D18: Gasto mensual del seguro voluntario de la flota autorizada en la ruta “r” | E18: =GA!D9 -> 398714.85
B19: GRTVr | D19: Gasto mensual de inspección técnica vehicular de la flota autorizada en la ruta “r” | E19: =GA!D10 -> 21793.33333
B20: GARr | D20: Gasto del canon mensual de ARESEP de la flota autorizada en la ruta “r" | E20: =GA!D11 -> 337093.0833
B21: GCTPr | D21: Gasto del canon mensual del CTP de la flota autorizada en la ruta “r" | E21: =GA!D12 -> 238411.6667
B22: GPr | D22: Gasto mensual de los peaje(s) y/o transbordador(es) en la ruta “r” | E22: =GA!D13 -> 0
B23: CRAr | C23: = | D23: Costo mensual en repuestos y accesorios de la ruta “r” | E23: =CFr!D12 -> 37675792.39
B24: OGr | C24: = | D24: Costo mensual de en otros gastos de la ruta "r" | E24: =OG!D7 -> 849408
B25: CSPE | C25: = | D25: Costo mensual de depreciación del sistema automatizado de pago electrónico de la ruta "r" | E25: =CSPE!$D$7 -> 0
B26: CECS | C26: = | D26: Costo mensual de estudios de calidad del servicio de la ruta "r" | E26: =CECS!$D$7 -> 0
B28: CVr | C28: = | D28: Costos variables mensuales de la ruta “r” | E28: =SUM(E29:E35) -> 13457144.97
B29: CCCr | C29: = | D29: Costo mensual en consumo de combustible de la ruta “r" | E29: ='CVr '!D8 -> 11090048.14
B30: CCLLr | C30: = | D30: Costo mensual en consumo de llantas de la ruta “r” | E30: ='CVr '!D9 -> 1142143.259
B31: CCAMr | C31: = | D31: Costo mensual en consumo de aceite de motor de la ruta “r” | E31: ='CVr '!D10 -> 858862.0901
B32: CCACCr | C32: = | D32: Costo mensual en consumo de aceite de caja de cambios de la ruta “r” | E32: =CCACC!D7 -> 50522.05805
B33: CCADr | C33: = | D33: Costo mensual en consumo de aceite de diferencial de la ruta “r” | E33: =CCAD!D7 -> 69768.55635
B34: CCLFr | C34: = | D34: Costo mensual en consumo de líquido de frenos de la ruta “r” | E34: =CCLF!D7 -> 50767.7618
B35: CCGr | C35: = | D35: Costo mensual en consumo por grasa de la ruta “r” | E35: =CCG!D7 -> 195033.0988
B37: UTILIDAD DE OPERACIÓN
B39: RTr | C39: = | D39: Remuneración mensual al capital para la operación de la ruta “r”. | E39: =SUM(E40,E44) -> 202898.7657
B40: RAFr | C40: = | D40: Remuneración mensual al capital invertido en activos fijos en la ruta “r”. | E40: =RTr!D8 -> 197239.5541
B41: RFr | D41: Rentabilidad mensual del capital invertido en la flota de la ruta “r” | E41: =RAF!D8 -> 189693.9386
B42: RMEIr | D42: Rentabilidad mensual del capital invertido en maquinaria, equipo e instalaciones en la ruta “r” | E42: =RAF!D9 -> 7545.615521
B43: RSCPr | D43: Rentabilidad mensual del capital invertido en el sistema automatizado de conteo de pasajeros en la ruta “r” | E43: =RAF!D10 -> 0
B44: RCPr | C44: = | D44: Remuneración mensual al capital invertido en proveeduría en la ruta “r”. | E44: =RTr!D9 -> 5659.211641
D46: Volumen mensual de pasajeros de la ruta “r” | E46: =Ponderaciones!H11 -> 91139
B48: Tr | D48: Tarifa calculada por pasajero de la ruta “r” | E48: =+E4/E46 -> 767.4972046
D49: Tarifa redondeada por pasajero de la ruta "r" | E49: =MROUND(E48,5) -> 765
D50: Tarifa vigente por pasajero de la ruta "r" | E50: ='DATOS DE ENTRADA'!D42 -> 380
D52: Porcentaje de ajuste tarifario, tarifa calculada vrs tarifa vigente | E52: =E48/E50-1 -> 1.019729486
D54: Verificación de Ingresos vrs Costos | E54: =E56-E57 -> 0
D56: Ingresos mensual por concepto de tarifa de la ruta “r” | E56: =+E48*E46 -> 69948927.73
D57: =D4 -> Costos totales mensuales de la ruta “r” | E57: =E4 -> 69948927.73
B59: =+Aclaraciones!$B$4 -> Aclaraciones: 1. Este instrumento de cálculo de tarifas para el servicio de transporte público por autobús fue elaborado con el único propósito de revisar la consistencia interna de la propuesta de la "Metodología para fijación ordinaria de tarifas para el servicio de transporte remunerado de personas, modalidad autobús". 2. Este instrumento no forma parte del Expediente OT-104-2015 y por tanto, no es parte de la propuesta de "metodología para fijación ordinaria de tarifas para el servicio de transporte remunerado de personas, modalidad autobús". 3. Este instrumento de cálculo corresponde a una versión preliminar, y por lo tanto no es necesariamente el que se usará para estimar los ajustes tarifarios derivados de la aplicación del "Metodología para fijación ordinaria de tarifas para el servicio de transporte remunerado de personas, modalidad autobús", pues este debe ser elaborado y validado por la Intendencia de Transportes dentro de la etapa de fijación tarifaria.

Sheet CFr
B1: 1. Costos fijos mensuales
E5: Ecuación 3
B7: CFr | C7: Costos fijos mensuales de la ruta “r” | D7: =SUM(D8:D15) -> 56288884
B8: CDAFr | C8: Costo mensual de depreciación de los activos fijos de la ruta “r” | D8: =+CDAF!D7 -> 798498.38
B9: CPOMr | C9: Costo mensual de personal de operación y mantenimiento de la ruta “r” | D9: =+CPOM!D7 -> 14440484.67
B10: CPAr | C10: Costo mensual de personal administrativo de la ruta “r” | D10: =CPA!D7 -> 1444048.467
B11: GAr | C11: Gastos administrativos mensuales de la ruta “r” | D11: =+GA!D7 -> 1080652.1
B12: CRAr | C12: Costo mensual en repuestos y accesorios de la ruta “r” | D12: =CRA!D7 -> 37675792.39
B13: CSPEr | C13: Costo mensual del sistema automatizado de pago electrónico y seguridad en la ruta “r”. | D13: =CSPE!$D$7 -> 0
B14: CECSr | C14: Costo mensual de los estudios de calidad del servicio en la ruta “r”. | D14: =CECS!$D$7 -> 0
B15: OGr | C15: Costo mensual por otros gastos en la ruta “r”. | D15: =OG!$D$7 -> 849408
B16: r | C16: Ruta de transporte remunerado de personas | D16: =+'DATOS DE ENTRADA'!D17 -> Urbana
A18: =+Aclaraciones!$B$4 -> Aclaraciones: 1. Este instrumento de cálculo de tarifas para el servicio de transporte público por autobús fue elaborado con el único propósito de revisar la consistencia interna de la propuesta de la "Metodología para fijación ordinaria de tarifas para el servicio de transporte remunerado de personas, modalidad autobús". 2. Este instrumento no forma parte del Expediente OT-104-2015 y por tanto, no es parte de la propuesta de "metodología para fijación ordinaria de tarifas para el servicio de transporte remunerado de personas, modalidad autobús". 3. Este instrumento de cálculo corresponde a una versión preliminar, y por lo tanto no es necesariamente el que se usará para estimar los ajustes tarifarios derivados de la aplicación del "Metodología para fijación ordinaria de tarifas para el servicio de transporte remunerado de personas, modalidad autobús", pues este debe ser elaborado y validado por la Intendencia de Transportes dentro de la etapa de fijación tarifaria.

Sheet CDAF
B1: 1.1 Costo mensual de depreciación de activos fijos
F5: Ecuación 4
B7: CDAFr | C7: Costo mensual de depreciación sobre los activos fijos en la ruta “r”. | D7: =SUM(D8:D10) -> 798498.38
B8: CDFr | C8: Costo mensual de depreciación de la flota autorizada en la ruta “r” | D8: =CDF!G9 -> 747533.9
B9: CDMEIr | C9: Costo mensual de depreciación de la maquinaria, el equipo y las instalaciones en la ruta “r” | D9: =CDMEI!F7 -> 50964.48
B10: CDSCPr | C10: Costo mensual de depreciación del sistema automatizado de conteo de pasajeros en la ruta "r" | D10: =CDSCP!$D$7 -> 0
B11: r | C11: Ruta de transporte remunerado de personas. | D11: ='DATOS DE ENTRADA'!D17 -> Urbana
A13: =+Aclaraciones!$B$4 -> Aclaraciones: 1. Este instrumento de cálculo de tarifas para el servicio de transporte público por autobús fue elaborado con el único propósito de revisar la consistencia interna de la propuesta de la "Metodología para fijación ordinaria de tarifas para el servicio de transporte remunerado de personas, modalidad autobús". 2. Este instrumento no forma parte del Expediente OT-104-2015 y por tanto, no es parte de la propuesta de "metodología para fijación ordinaria de tarifas para el servicio de transporte remunerado de personas, modalidad autobús". 3. Este instrumento de cálculo corresponde a una versión preliminar, y por lo tanto no es necesariamente el que se usará para estimar los ajustes tarifarios derivados de la aplicación del "Metodología para fijación ordinaria de tarifas para el servicio de transporte remunerado de personas, modalidad autobús", pues este debe ser elaborado y validado por la Intendencia de Transportes dentro de la etapa de fijación tarifaria.

Sheet CDF
B1: 1.1.1 Costo mensual de depreciación de la flota
B5: Fórmula general: | H5: Ecuación 7
B6: Reglas de cálculo tipo 1: | H6: Ecuación 5
B7: Reglas de cálculo tipo 2: | H7: Ecuación 6
B9: CDFr | C9: Costo mensual de depreciación de la flota autorizada en la ruta “r”. | G9: =(G10+G12+G14)*1/12 -> 747533.9
C10: Factor anual de depreciación equivalente de las unidades que conforman la flota autorizada para la edad “b” multiplicado por Valor tarifario de la unidad de transporte remunerado de personas modalidad autobús sin llantas ni neumáticos para la edad “b” obtenida del año fabricación del tipo de vehículo que se utiliza en la ruta “r” multiplicado por Cantidad de unidades de la flota autorizada según la edad “b”, en la ruta “r” del conjunto de unidades “α”. | G10: =+$L$40+$L$62 -> 8910406.8
C11: Cantidad de unidades de la flota autorizada según la edad “b” en la ruta “r” del conjunto de unidades “α” con regla de cálculo tarifario tipo 1. | G11: =SUM($G$40+$G$62) -> 10
C12: Valor tarifario de la unidad de transporte remunerado de personas modalidad autobús sin llantas en el año “p-1” de edad “b” y número de placa “n”, del tipo de vehículo que se utiliza en la ruta “r”, del conjunto de unidades “γ” menos Valor tarifario de la unidad de transporte remunerado de personas modalidad autobús sin llantas en el año “p” de edad “b” y número de placa “n”, del tipo de vehículo que se utiliza en la ruta “r”, del conjunto de unidades “γ” | G12: =Flota!$Y$5 -> 0
B13: Fbr | C13: Flota total | G13: =Flota!$I$45 -> 10
B14: Arriendo* | C14: Total de depreciación de flota por concepto de arriendo | G14: =CARR!$R$14 -> 60000
B15: r | C15: Ruta de transporte remunerado de personas. | G15: =+'DATOS DE ENTRADA'!D17 -> Urbana
B17: =+Aclaraciones!$B$4 -> Aclaraciones: 1. Este instrumento de cálculo de tarifas para el servicio de transporte público por autobús fue elaborado con el único propósito de revisar la consistencia interna de la propuesta de la "Metodología para fijación ordinaria de tarifas para el servicio de transporte remunerado de personas, modalidad autobús". 2. Este instrumento no forma parte del Expediente OT-104-2015 y por tanto, no es parte de la propuesta de "metodología para fijación ordinaria de tarifas para el servicio de transporte remunerado de personas, modalidad autobús". 3. Este instrumento de cálculo corresponde a una versión preliminar, y por lo tanto no es necesariamente el que se usará para estimar los ajustes tarifarios derivados de la aplicación del "Metodología para fijación ordinaria de tarifas para el servicio de transporte remunerado de personas, modalidad autobús", pues este debe ser elaborado y validado por la Intendencia de Transportes dentro de la etapa de fijación tarifaria.
B19: Reglas de cálculo tipo 1
B20: ="SIN RAMPA, AÑO MODELO MENOR o IGUAL AL "&ParámetrosPropuesta!$B$6 -> SIN RAMPA, AÑO MODELO MENOR o IGUAL AL 2015
B21: Edad del vehículo "b" (años) | C21: Año modelo | D21: valor ponderado | E21: Valor de las llantas | F21: Valor del vehículo sin llantas (VTANbr) | G21: Cantidad de vehículos (Fb) | H21: Cantidad de unidades arrendadas (Fa) | I21: Valor de flota con llantas (VTAbr*Fbr) | J21: Valor de flota sin llantas (VTANbr*Fbr) | K21: Factor DEPRECIACIÓN de unidades (fdfb) | L21: Valor de flota sin llantas x factor de depreciación reconocida
A22: 1 | B22: 0 | C22: =CONCATENATE(YEAR('DATOS DE ENTRADA'!$D$21)+A22) -> 2015 | D22: =IFERROR((SUMIFS(Valor_pond_U,Modelo_Aceptado,CDF!C22,Rampa,"NO"))/(COUNTIFS(Modelo_Aceptado,C22,Regla_calculo,"tipo 1")),0) -> 0 | E22: =6*'Datos para costos'!$E$56+6*'Datos para costos'!$E$58 -> 1332752.4 | F22: =IF(D22=0,0,D22-E22) -> 0 | G22: =COUNTIFS(Modelo_Aceptado,"<="&ParámetrosPropuesta!$B$6,Modelo_Aceptado,C22,Rampa,"NO",Regla_calculo,"tipo 1") -> 0 | H22: =COUNTIFS(Modelo_Aceptado,"<="&ParámetrosPropuesta!$B$6,Modelo_Aceptado,C22,Rampa,"NO",Arriendo_flota,"SI",Regla_calculo,"tipo 1") -> 0 | I22: =IF(ISERROR(D22),0,D22*(G22-H22)) -> 0 | J22: =IF(ISERROR(D22),0,F22*(G22-H22)) -> 0 | K22: =Constantes!$D$15 -> 0 | L22: =K22*J22 -> 0
A23: 0 | B23: 0 | C23: =CONCATENATE(YEAR('DATOS DE ENTRADA'!$D$21)+A23) -> 2014 | D23: =IFERROR((SUMIFS(Valor_pond_U,Modelo_Aceptado,CDF!C23,Rampa,"NO"))/(COUNTIFS(Modelo_Aceptado,C23,Regla_calculo,"tipo 1")),0) -> 0 | E23: =6*'Datos para costos'!$E$56+6*'Datos para costos'!$E$58 -> 1332752.4 | F23: 0 | G23: =COUNTIFS(Modelo_Aceptado,"<="&ParámetrosPropuesta!$B$6,Modelo_Aceptado,C23,Rampa,"NO",Regla_calculo,"tipo 1") -> 0 | H23: =COUNTIFS(Modelo_Aceptado,"<="&ParámetrosPropuesta!$B$6,Modelo_Aceptado,C23,Rampa,"NO",Arriendo_flota,"SI",Regla_calculo,"tipo 1") -> 0 | I23: 0 | J23: 0 | K23: =+K24 -> 0.25 | L23: =K23*J23 -> 0
A24: -1 | B24: 1 | C24: =CONCATENATE(YEAR('DATOS DE ENTRADA'!$D$21)+A24) -> 2013 | D24: =IFERROR((SUMIFS(Valor_pond_U,Modelo_Aceptado,CDF!C24,Rampa,"NO"))/(COUNTIFS(Modelo_Aceptado,C24,Regla_calculo,"tipo 1")),0) -> 0 | E24: =6*'Datos para costos'!$E$56+6*'Datos para costos'!$E$58 -> 1332752.4 | F24: 0 | G24: =COUNTIFS(Modelo_Aceptado,"<="&ParámetrosPropuesta!$B$6,Modelo_Aceptado,C24,Rampa,"NO",Regla_calculo,"tipo 1") -> 0 | H24: =COUNTIFS(Modelo_Aceptado,"<="&ParámetrosPropuesta!$B$6,Modelo_Aceptado,C24,Rampa,"NO",Arriendo_flota,"SI",Regla_calculo,"tipo 1") -> 0 | I24: 0 | J24: 0 | K24: =Constantes!$D$16 -> 0.25 | L24: 0
A25: -2 | B25: 2 | C25: =CONCATENATE(YEAR('DATOS DE ENTRADA'!$D$21)+A25) -> 2012 | D25: =IFERROR((SUMIFS(Valor_pond_U,Modelo_Aceptado,CDF!C25,Rampa,"NO"))/(COUNTIFS(Modelo_Aceptado,C25,Regla_calculo,"tipo 1")),0) -> 0 | E25: =6*'Datos para costos'!$E$56+6*'Datos para costos'!$E$58 -> 1332752.4 | F25: 0 | G25: =COUNTIFS(Modelo_Aceptado,"<="&ParámetrosPropuesta!$B$6,Modelo_Aceptado,C25,Rampa,"NO",Regla_calculo,"tipo 1") -> 0 | H25: =COUNTIFS(Modelo_Aceptado,"<="&ParámetrosPropuesta!$B$6,Modelo_Aceptado,C25,Rampa,"NO",Arriendo_flota,"SI",Regla_calculo,"tipo 1") -> 0 | I25: 0 | J25: 0 | K25: =Constantes!$D$17 -> 0.2142857143 | L25: 0
A26: -3 | B26: 3 | C26: =CONCATENATE(YEAR('DATOS DE ENTRADA'!$D$21)+A26) -> 2011 | D26: =IFERROR((SUMIFS(Valor_pond_U,Modelo_Aceptado,CDF!C26,Rampa,"NO"))/(COUNTIFS(Modelo_Aceptado,C26,Regla_calculo,"tipo 1")),0) -> 0 | E26: =6*'Datos para costos'!$E$56+6*'Datos para costos'!$E$58 -> 1332752.4 | F26: 0 | G26: =COUNTIFS(Modelo_Aceptado,"<="&ParámetrosPropuesta!$B$6,Modelo_Aceptado,C26,Rampa,"NO",Regla_calculo,"tipo 1") -> 0 | H26: =COUNTIFS(Modelo_Aceptado,"<="&ParámetrosPropuesta!$B$6,Modelo_Aceptado,C26,Rampa,"NO",Arriendo_flota,"SI",Regla_calculo,"tipo 1") -> 0 | I26: 0 | J26: 0 | K26: =Constantes!$D$18 -> 0.1785714286 | L26: 0
A27: -4 | B27: 4 | C27: =CONCATENATE(YEAR('DATOS DE ENTRADA'!$D$21)+A27) -> 2010 | D27: =IFERROR((SUMIFS(Valor_pond_U,Modelo_Aceptado,CDF!C27,Rampa,"NO"))/(COUNTIFS(Modelo_Aceptado,C27,Regla_calculo,"tipo 1")),0) -> 0 | E27: =6*'Datos para costos'!$E$56+6*'Datos para costos'!$E$58 -> 1332752.4 | F27: 0 | G27: =COUNTIFS(Modelo_Aceptado,"<="&ParámetrosPropuesta!$B$6,Modelo_Aceptado,C27,Rampa,"NO",Regla_calculo,"tipo 1") -> 0 | H27: =COUNTIFS(Modelo_Aceptado,"<="&ParámetrosPropuesta!$B$6,Modelo_Aceptado,C27,Rampa,"NO",Arriendo_flota,"SI",Regla_calculo,"tipo 1") -> 0 | I27: 0 | J27: 0 | K27: =Constantes!$D$19 -> 0.1428571429 | L27: 0
A28: -5 | B28: 5 | C28: =CONCATENATE(YEAR('DATOS DE ENTRADA'!$D$21)+A28) -> 2009 | D28: =IFERROR((SUMIFS(Valor_pond_U,Modelo_Aceptado,CDF!C28,Rampa,"NO"))/(COUNTIFS(Modelo_Aceptado,C28,Regla_calculo,"tipo 1")),0) -> 0 | E28: =6*'Datos para costos'!$E$56+6*'Datos para costos'!$E$58 -> 1332752.4 | F28: 0 | G28: =COUNTIFS(Modelo_Aceptado,"<="&ParámetrosPropuesta!$B$6,Modelo_Aceptado,C28,Rampa,"NO",Regla_calculo,"tipo 1") -> 0 | H28: =COUNTIFS(Modelo_Aceptado,"<="&ParámetrosPropuesta!$B$6,Modelo_Aceptado,C28,Rampa,"NO",Arriendo_flota,"SI",Regla_calculo,"tipo 1") -> 0 | I28: 0 | J28: 0 | K28: =Constantes!$D$20 -> 0.1071428571 | L28: 0
A29: -6 | B29: 6 | C29: =CONCATENATE(YEAR('DATOS DE ENTRADA'!$D$21)+A29) -> 2008 | D29: =IFERROR((SUMIFS(Valor_pond_U,Modelo_Aceptado,CDF!C29,Rampa,"NO"))/(COUNTIFS(Modelo_Aceptado,C29,Regla_calculo,"tipo 1")),0) -> 0 | E29: =6*'Datos para costos'!$E$56+6*'Datos para costos'!$E$58 -> 1332752.4 | F29: 0 | G29: =COUNTIFS(Modelo_Aceptado,"<="&ParámetrosPropuesta!$B$6,Modelo_Aceptado,C29,Rampa,"NO",Regla_calculo,"tipo 1") -> 0 | H29: =COUNTIFS(Modelo_Aceptado,"<="&ParámetrosPropuesta!$B$6,Modelo_Aceptado,C29,Rampa,"NO",Arriendo_flota,"SI",Regla_calculo,"tipo 1") -> 0 | I29: 0 | J29: 0 | K29: =Constantes!$D$21 -> 0.07142857143 | L29: 0
A30: -7 | B30: 7 | C30: =CONCATENATE(YEAR('DATOS DE ENTRADA'!$D$21)+A30) -> 2007 | D30: =IFERROR((SUMIFS(Valor_pond_U,Modelo_Aceptado,CDF!C30,Rampa,"NO"))/(COUNTIFS(Modelo_Aceptado,C30,Regla_calculo,"tipo 1")),0) -> 0 | E30: =6*'Datos para costos'!$E$56+6*'Datos para costos'!$E$58 -> 1332752.4 | F30: 0 | G30: =COUNTIFS(Modelo_Aceptado,"<="&ParámetrosPropuesta!$B$6,Modelo_Aceptado,C30,Rampa,"NO",Regla_calculo,"tipo 1") -> 0 | H30: =COUNTIFS(Modelo_Aceptado,"<="&ParámetrosPropuesta!$B$6,Modelo_Aceptado,C30,Rampa,"NO",Arriendo_flota,"SI",Regla_calculo,"tipo 1") -> 0 | I30: 0 | J30: 0 | K30: =Constantes!$D$22 -> 0.03571428571 | L30: 0
A31: -8 | B31: 8 | C31: =CONCATENATE(YEAR('DATOS DE ENTRADA'!$D$21)+A31) -> 2006 | D31: =IFERROR((SUMIFS(Valor_pond_U,Modelo_Aceptado,CDF!C31,Rampa,"NO"))/(COUNTIFS(Modelo_Aceptado,C31,Regla_calculo,"tipo 1")),0) -> 0 | E31: =6*'Datos para costos'!$E$56+6*'Datos para costos'!$E$58 -> 1332752.4 | F31: 0 | G31: =COUNTIFS(Modelo_Aceptado,"<="&ParámetrosPropuesta!$B$6,Modelo_Aceptado,C31,Rampa,"NO",Regla_calculo,"tipo 1") -> 0 | H31: =COUNTIFS(Modelo_Aceptado,"<="&ParámetrosPropuesta!$B$6,Modelo_Aceptado,C31,Rampa,"NO",Arriendo_flota,"SI",Regla_calculo,"tipo 1") -> 0 | I31: 0 | J31: 0 | K31: =Constantes!$D$23 -> 0 | L31: 0
A32: -9 | B32: 9 | C32: =CONCATENATE(YEAR('DATOS DE ENTRADA'!$D$21)+A32) -> 2005 | D32: =IFERROR((SUMIFS(Valor_pond_U,Modelo_Aceptado,CDF!C32,Rampa,"NO"))/(COUNTIFS(Modelo_Aceptado,C32,Regla_calculo,"tipo 1")),0) -> 0 | E32: =6*'Datos para costos'!$E$56+6*'Datos para costos'!$E$58 -> 1332752.4 | F32: 0 | G32: =COUNTIFS(Modelo_Aceptado,"<="&ParámetrosPropuesta!$B$6,Modelo_Aceptado,C32,Rampa,"NO",Regla_calculo,"tipo 1") -> 0 | H32: =COUNTIFS(Modelo_Aceptado,"<="&ParámetrosPropuesta!$B$6,Modelo_Aceptado,C32,Rampa,"NO",Arriendo_flota,"SI",Regla_calculo,"tipo 1") -> 0 | I32: 0 | J32: 0 | K32: =Constantes!$D$23 -> 0 | L32: 0
A33: -10 | B33: 10 | C33: =CONCATENATE(YEAR('DATOS DE ENTRADA'!$D$21)+A33) -> 2004 | D33: =IFERROR((SUMIFS(Valor_pond_U,Modelo_Aceptado,CDF!C33,Rampa,"NO"))/(COUNTIFS(Modelo_Aceptado,C33,Regla_calculo,"tipo 1")),0) -> 0 | E33: =6*'Datos para costos'!$E$56+6*'Datos para costos'!$E$58 -> 1332752.4 | F33: 0 | G33: =COUNTIFS(Modelo_Aceptado,"<="&ParámetrosPropuesta!$B$6,Modelo_Aceptado,C33,Rampa,"NO",Regla_calculo,"tipo 1") -> 0 | H33: =COUNTIFS(Modelo_Aceptado,"<="&ParámetrosPropuesta!$B$6,Modelo_Aceptado,C33,Rampa,"NO",Arriendo_flota,"SI",Regla_calculo,"tipo 1") -> 0 | I33: 0 | J33: 0 | K33: =Constantes!$D$23 -> 0 | L33: 0
A34: -11 | B34: 11 | C34: =CONCATENATE(YEAR('DATOS DE ENTRADA'!$D$21)+A34) -> 2003 | D34: =IFERROR((SUMIFS(Valor_pond_U,Modelo_Aceptado,CDF!C34,Rampa,"NO"))/(COUNTIFS(Modelo_Aceptado,C34,Regla_calculo,"tipo 1")),0) -> 0 | E34: =6*'Datos para costos'!$E$56+6*'Datos para costos'!$E$58 -> 1332752.4 | F34: 0 | G34: =COUNTIFS(Modelo_Aceptado,"<="&ParámetrosPropuesta!$B$6,Modelo_Aceptado,C34,Rampa,"NO",Regla_calculo,"tipo 1") -> 0 | H34: =COUNTIFS(Modelo_Aceptado,"<="&ParámetrosPropuesta!$B$6,Modelo_Aceptado,C34,Rampa,"NO",Arriendo_flota,"SI",Regla_calculo,"tipo 1") -> 0 | I34: 0 | J34: 0 | K34: =Constantes!$D$23 -> 0 | L34: 0
A35: -12 | B35: 12 | C35: =CONCATENATE(YEAR('DATOS DE ENTRADA'!$D$21)+A35) -> 2002 | D35: =IFERROR((SUMIFS(Valor_pond_U,Modelo_Aceptado,CDF!C35,Rampa,"NO"))/(COUNTIFS(Modelo_Aceptado,C35,Regla_calculo,"tipo 1")),0) -> 0 | E35: =6*'Datos para costos'!$E$56+6*'Datos para costos'!$E$58 -> 1332752.4 | F35: 0 | G35: =COUNTIFS(Modelo_Aceptado,"<="&ParámetrosPropuesta!$B$6,Modelo_Aceptado,C35,Rampa,"NO",Regla_calculo,"tipo 1") -> 0 | H35: =COUNTIFS(Modelo_Aceptado,"<="&ParámetrosPropuesta!$B$6,Modelo_Aceptado,C35,Rampa,"NO",Arriendo_flota,"SI",Regla_calculo,"tipo 1") -> 0 | I35: 0 | J35: 0 | K35: =Constantes!$D$23 -> 0 | L35: 0
A36: -13 | B36: 13 | C36: =CONCATENATE(YEAR('DATOS DE ENTRADA'!$D$21)+A36) -> 2001 | D36: =IFERROR((SUMIFS(Valor_pond_U,Modelo_Aceptado,CDF!C36,Rampa,"NO"))/(COUNTIFS(Modelo_Aceptado,C36,Regla_calculo,"tipo 1")),0) -> 0 | E36: =6*'Datos para costos'!$E$56+6*'Datos para costos'!$E$58 -> 1332752.4 | F36: 0 | G36: =COUNTIFS(Modelo_Aceptado,"<="&ParámetrosPropuesta!$B$6,Modelo_Aceptado,C36,Rampa,"NO",Regla_calculo,"tipo 1") -> 0 | H36: =COUNTIFS(Modelo_Aceptado,"<="&ParámetrosPropuesta!$B$6,Modelo_Aceptado,C36,Rampa,"NO",Arriendo_flota,"SI",Regla_calculo,"tipo 1") -> 0 | I36: 0 | J36: 0 | K36: =Constantes!$D$23 -> 0 | L36: 0
A37: -14 | B37: 14 | C37: =CONCATENATE(YEAR('DATOS DE ENTRADA'!$D$21)+A37) -> 2000 | D37: =IFERROR((SUMIFS(Valor_pond_U,Modelo_Aceptado,CDF!C37,Rampa,"NO"))/(COUNTIFS(Modelo_Aceptado,C37,Regla_calculo,"tipo 1")),0) -> 0 | E37: =6*'Datos para costos'!$E$56+6*'Datos para costos'!$E$58 -> 1332752.4 | F37: 0 | G37: =COUNTIFS(Modelo_Aceptado,"<="&ParámetrosPropuesta!$B$6,Modelo_Aceptado,C37,Rampa,"NO",Regla_calculo,"tipo 1") -> 0 | H37: =COUNTIFS(Modelo_Aceptado,"<="&ParámetrosPropuesta!$B$6,Modelo_Aceptado,C37,Rampa,"NO",Arriendo_flota,"SI",Regla_calculo,"tipo 1") -> 0 | I37: 0 | J37: 0 | K37: =Constantes!$D$23 -> 0 | L37: 0
A38: -15 | B38: 15 | C38: =CONCATENATE(YEAR('DATOS DE ENTRADA'!$D$21)+A38) -> 1999 | D38: =IFERROR((SUMIFS(Valor_pond_U,Modelo_Aceptado,CDF!C38,Rampa,"NO"))/(COUNTIFS(Modelo_Aceptado,C38,Regla_calculo,"tipo 1")),0) -> 0 | E38: =6*'Datos para costos'!$E$56+6*'Datos para costos'!$E$58 -> 1332752.4 | F38: 0 | G38: =COUNTIFS(Modelo_Aceptado,"<="&ParámetrosPropuesta!$B$6,Modelo_Aceptado,C38,Rampa,"NO",Regla_calculo,"tipo 1") -> 0 | H38: =COUNTIFS(Modelo_Aceptado,"<="&ParámetrosPropuesta!$B$6,Modelo_Aceptado,C38,Rampa,"NO",Arriendo_flota,"SI",Regla_calculo,"tipo 1") -> 0 | I38: 0 | J38: 0 | K38: =Constantes!$D$23 -> 0 | L38: 0
A39: -16 | B39: 16 o más | C39: =CONCATENATE("<=",YEAR('DATOS DE ENTRADA'!$D$21)+A39) -> <=1998 | D39: =IFERROR((SUMIFS(Valor_pond_U,Modelo_Aceptado,CDF!C39,Rampa,"NO"))/(COUNTIFS(Modelo_Aceptado,C39,Regla_calculo,"tipo 1")),0) -> 0 | E39: =6*'Datos para costos'!$E$56+6*'Datos para costos'!$E$58 -> 1332752.4 | F39: 0 | G39: =COUNTIFS(Modelo_Aceptado,"<="&ParámetrosPropuesta!$B$6,Modelo_Aceptado,C39,Rampa,"NO",Regla_calculo,"tipo 1") -> 0 | H39: =COUNTIFS(Modelo_Aceptado,"<="&ParámetrosPropuesta!$B$6,Modelo_Aceptado,C39,Rampa,"NO",Arriendo_flota,"SI",Regla_calculo,"tipo 1") -> 0 | I39: 0 | J39: 0 | K39: =Constantes!$D$23 -> 0 | L39: 0
G40: =SUM(G22:G39) -> 0 | H40: =SUM(H22:H39) -> 0 | I40: =SUM(I22:I39) -> 0 | J40: =SUM(J22:J39) -> 0 | L40: =SUM(L22:L39) -> 0
B42: ="CON RAMPA, AÑO MODELO MENOR o IGUAL AL "&(ParámetrosPropuesta!$B$6) -> CON RAMPA, AÑO MODELO MENOR o IGUAL AL 2015
B43: Edad del vehículo "b" (años) | C43: Año modelo | D43: Valor ponderado | E43: Valor de las llantas | F43: Valor del vehículo sin llantas (VTANbr) | G43: Cantidad de vehículos (Fb) | H43: Cantidad de unidades arrendadas (Fa) | I43: Valor de flota con llantas (VTAbr*Fbr) | J43: Valor de flota sin llantas (VTANbr*Fbr) | K43: Factor DEPRECIACIÓN de unidades (fdfb) | L43: Valor de flota sin llantas x factor de depreciación reconocida
A44: 1 | B44: 0 | C44: =CONCATENATE(YEAR('DATOS DE ENTRADA'!$D$21)+A44) -> 2015 | D44: =IFERROR((SUMIFS(Valor_pond_U,Modelo_Aceptado,C44,Rampa,"SI"))/(COUNTIFS(Modelo_Aceptado,C44,Regla_calculo,"tipo 1")),0) -> 0 | E44: =6*'Datos para costos'!$E$56+6*'Datos para costos'!$E$58 -> 1332752.4 | F44: =IF(D44=0,0,D44-E44) -> 0 | G44: =COUNTIFS(Modelo_Aceptado,"<="&ParámetrosPropuesta!$B$6,Modelo_Aceptado,C44,Rampa,"SI",Regla_calculo,"tipo 1") -> 0 | H44: =COUNTIFS(Modelo_Aceptado,"<="&ParámetrosPropuesta!$B$6,Modelo_Aceptado,C44,Rampa,"SI",Arriendo_flota,"SI",Regla_calculo,"tipo 1") -> 0 | I44: =IF(ISERROR(D44),0,D44*(G44-H44)) -> 0 | J44: =IF(ISERROR(D44),0,F44*(G44-H44)) -> 0 | K44: =Constantes!$D$15 -> 0 | L44: =K44*J44 -> 0 | N44: =+VALUE(C44) -> 2015 | O44: =+VALUE(K44) -> 0
A45: 0 | B45: 0 | C45: =CONCATENATE(YEAR('DATOS DE ENTRADA'!$D$21)+A45) -> 2014 | D45: 0 | E45: =6*'Datos para costos'!$E$56+6*'Datos para costos'!$E$58 -> 1332752.4 | F45: =IF(D45=0,0,D45-E45) -> 0 | G45: =COUNTIFS(Modelo_Aceptado,"<="&ParámetrosPropuesta!$B$6,Modelo_Aceptado,C45,Rampa,"SI",Regla_calculo,"tipo 1") -> 0 | H45: =COUNTIFS(Modelo_Aceptado,"<="&ParámetrosPropuesta!$B$6,Modelo_Aceptado,C45,Rampa,"SI",Arriendo_flota,"SI",Regla_calculo,"tipo 1") -> 0 | I45: 0 | J45: 0 | K45: =+K46 -> 0.25 | L45: =K45*J45 -> 0 | N45: 2014 | O45: =+VALUE(K45) -> 0.25
A46: -1 | B46: 1 | C46: =CONCATENATE(YEAR('DATOS DE ENTRADA'!$D$21)+A46) -> 2013 | D46: 0 | E46: =6*'Datos para costos'!$E$56+6*'Datos para costos'!$E$58 -> 1332752.4 | F46: 0 | G46: =COUNTIFS(Modelo_Aceptado,"<="&ParámetrosPropuesta!$B$6,Modelo_Aceptado,C46,Rampa,"SI",Regla_calculo,"tipo 1") -> 0 | H46: =COUNTIFS(Modelo_Aceptado,"<="&ParámetrosPropuesta!$B$6,Modelo_Aceptado,C46,Rampa,"SI",Arriendo_flota,"SI",Regla_calculo,"tipo 1") -> 0 | I46: 0 | J46: 0 | K46: =Constantes!$D$16 -> 0.25 | L46: 0 | N46: 2013 | O46: 0.25
A47: -2 | B47: 2 | C47: =CONCATENATE(YEAR('DATOS DE ENTRADA'!$D$21)+A47) -> 2012 | D47: 0 | E47: =6*'Datos para costos'!$E$56+6*'Datos para costos'!$E$58 -> 1332752.4 | F47: 0 | G47: =COUNTIFS(Modelo_Aceptado,"<="&ParámetrosPropuesta!$B$6,Modelo_Aceptado,C47,Rampa,"SI",Regla_calculo,"tipo 1") -> 0 | H47: =COUNTIFS(Modelo_Aceptado,"<="&ParámetrosPropuesta!$B$6,Modelo_Aceptado,C47,Rampa,"SI",Arriendo_flota,"SI",Regla_calculo,"tipo 1") -> 0 | I47: 0 | J47: 0 | K47: =Constantes!$D$17 -> 0.2142857143 | L47: 0 | N47: 2012 | O47: 0.2142857143
A48: -3 | B48: 3 | C48: =CONCATENATE(YEAR('DATOS DE ENTRADA'!$D$21)+A48) -> 2011 | D48: 0 | E48: =6*'Datos para costos'!$E$56+6*'Datos para costos'!$E$58 -> 1332752.4 | F48: 0 | G48: =COUNTIFS(Modelo_Aceptado,"<="&ParámetrosPropuesta!$B$6,Modelo_Aceptado,C48,Rampa,"SI",Regla_calculo,"tipo 1") -> 0 | H48: =COUNTIFS(Modelo_Aceptado,"<="&ParámetrosPropuesta!$B$6,Modelo_Aceptado,C48,Rampa,"SI",Arriendo_flota,"SI",Regla_calculo,"tipo 1") -> 0 | I48: 0 | J48: 0 | K48: =Constantes!$D$18 -> 0.1785714286 | L48: 0 | N48: 2011 | O48: 0.1785714286 | Q48: =+SUMPRODUCT(G44:G61,K44:K61) -> 0.1785714286
A49: -4 | B49: 4 | C49: =CONCATENATE(YEAR('DATOS DE ENTRADA'!$D$21)+A49) -> 2010 | D49: 63705600 | E49: =6*'Datos para costos'!$E$56+6*'Datos para costos'!$E$58 -> 1332752.4 | F49: 62372847.6 | G49: =COUNTIFS(Modelo_Aceptado,"<="&ParámetrosPropuesta!$B$6,Modelo_Aceptado,C49,Rampa,"SI",Regla_calculo,"tipo 1") -> 1 | H49: =COUNTIFS(Modelo_Aceptado,"<="&ParámetrosPropuesta!$B$6,Modelo_Aceptado,C49,Rampa,"SI",Arriendo_flota,"SI",Regla_calculo,"tipo 1") -> 0 | I49: 63705600 | J49: 62372847.6 | K49: =Constantes!$D$19 -> 0.1428571429 | L49: 8910406.8 | N49: 2010 | O49: 0.1428571429
A50: -5 | B50: 5 | C50: =CONCATENATE(YEAR('DATOS DE ENTRADA'!$D$21)+A50) -> 2009 | D50: 0 | E50: =6*'Datos para costos'!$E$56+6*'Datos para costos'!$E$58 -> 1332752.4 | F50: 0 | G50: =COUNTIFS(Modelo_Aceptado,"<="&ParámetrosPropuesta!$B$6,Modelo_Aceptado,C50,Rampa,"SI",Regla_calculo,"tipo 1") -> 0 | H50: =COUNTIFS(Modelo_Aceptado,"<="&ParámetrosPropuesta!$B$6,Modelo_Aceptado,C50,Rampa,"SI",Arriendo_flota,"SI",Regla_calculo,"tipo 1") -> 0 | I50: 0 | J50: 0 | K50: =Constantes!$D$20 -> 0.1071428571 | L50: 0 | N50: 2009 | O50: 0.1071428571
A51: -6 | B51: 6 | C51: =CONCATENATE(YEAR('DATOS DE ENTRADA'!$D$21)+A51) -> 2008 | D51: 0 | E51: =6*'Datos para costos'!$E$56+6*'Datos para costos'!$E$58 -> 1332752.4 | F51: 0 | G51: =COUNTIFS(Modelo_Aceptado,"<="&ParámetrosPropuesta!$B$6,Modelo_Aceptado,C51,Rampa,"SI",Regla_calculo,"tipo 1") -> 0 | H51: =COUNTIFS(Modelo_Aceptado,"<="&ParámetrosPropuesta!$B$6,Modelo_Aceptado,C51,Rampa,"SI",Arriendo_flota,"SI",Regla_calculo,"tipo 1") -> 0 | I51: 0 | J51: 0 | K51: =Constantes!$D$21 -> 0.07142857143 | L51: 0 | N51: 2008 | O51: 0.07142857143
A52: -7 | B52: 7 | C52: =CONCATENATE(YEAR('DATOS DE ENTRADA'!$D$21)+A52) -> 2007 | D52: 63705600 | E52: =6*'Datos para costos'!$E$56+6*'Datos para costos'!$E$58 -> 1332752.4 | F52: 62372847.6 | G52: =COUNTIFS(Modelo_Aceptado,"<="&ParámetrosPropuesta!$B$6,Modelo_Aceptado,C52,Rampa,"SI",Regla_calculo,"tipo 1") -> 1 | H52: =COUNTIFS(Modelo_Aceptado,"<="&ParámetrosPropuesta!$B$6,Modelo_Aceptado,C52,Rampa,"SI",Arriendo_flota,"SI",Regla_calculo,"tipo 1") -> 1 | I52: 0 | J52: 0 | K52: =Constantes!$D$22 -> 0.03571428571 | L52: 0 | N52: 2007 | O52: 0.03571428571
A53: -8 | B53: 8 | C53: =CONCATENATE(YEAR('DATOS DE ENTRADA'!$D$21)+A53) -> 2006 | D53: 63705600 | E53: =6*'Datos para costos'!$E$56+6*'Datos para costos'!$E$58 -> 1332752.4 | F53: 62372847.6 | G53: =COUNTIFS(Modelo_Aceptado,"<="&ParámetrosPropuesta!$B$6,Modelo_Aceptado,C53,Rampa,"SI",Regla_calculo,"tipo 1") -> 1 | H53: =COUNTIFS(Modelo_Aceptado,"<="&ParámetrosPropuesta!$B$6,Modelo_Aceptado,C53,Rampa,"SI",Arriendo_flota,"SI",Regla_calculo,"tipo 1") -> 0 | I53: 63705600 | J53: 62372847.6 | K53: =Constantes!$D$23 -> 0 | L53: 0 | N53: 2006 | O53: 0
A54: -9 | B54: 9 | C54: =CONCATENATE(YEAR('DATOS DE ENTRADA'!$D$21)+A54) -> 2005 | D54: 63705600 | E54: =6*'Datos para costos'!$E$56+6*'Datos para costos'!$E$58 -> 1332752.4 | F54: 62372847.6 | G54: =COUNTIFS(Modelo_Aceptado,"<="&ParámetrosPropuesta!$B$6,Modelo_Aceptado,C54,Rampa,"SI",Regla_calculo,"tipo 1") -> 2 | H54: =COUNTIFS(Modelo_Aceptado,"<="&ParámetrosPropuesta!$B$6,Modelo_Aceptado,C54,Rampa,"SI",Arriendo_flota,"SI",Regla_calculo,"tipo 1") -> 1 | I54: 63705600 | J54: 62372847.6 | K54: =Constantes!$D$23 -> 0 | L54: 0 | N54: 2005 | O54: 0
A55: -10 | B55: 10 | C55: =CONCATENATE(YEAR('DATOS DE ENTRADA'!$D$21)+A55) -> 2004 | D55: 0 | E55: =6*'Datos para costos'!$E$56+6*'Datos para costos'!$E$58 -> 1332752.4 | F55: 0 | G55: =COUNTIFS(Modelo_Aceptado,"<="&ParámetrosPropuesta!$B$6,Modelo_Aceptado,C55,Rampa,"SI",Regla_calculo,"tipo 1") -> 0 | H55: =COUNTIFS(Modelo_Aceptado,"<="&ParámetrosPropuesta!$B$6,Modelo_Aceptado,C55,Rampa,"SI",Arriendo_flota,"SI",Regla_calculo,"tipo 1") -> 0 | I55: 0 | J55: 0 | K55: =Constantes!$D$23 -> 0 | L55: 0 | N55: 2004 | O55: 0
A56: -11 | B56: 11 | C56: =CONCATENATE(YEAR('DATOS DE ENTRADA'!$D$21)+A56) -> 2003 | D56: 63705600 | E56: =6*'Datos para costos'!$E$56+6*'Datos para costos'!$E$58 -> 1332752.4 | F56: 62372847.6 | G56: =COUNTIFS(Modelo_Aceptado,"<="&ParámetrosPropuesta!$B$6,Modelo_Aceptado,C56,Rampa,"SI",Regla_calculo,"tipo 1") -> 1 | H56: =COUNTIFS(Modelo_Aceptado,"<="&ParámetrosPropuesta!$B$6,Modelo_Aceptado,C56,Rampa,"SI",Arriendo_flota,"SI",Regla_calculo,"tipo 1") -> 0 | I56: 63705600 | J56: 62372847.6 | K56: =Constantes!$D$23 -> 0 | L56: 0 | N56: 2003 | O56: 0
A57: -12 | B57: 12 | C57: =CONCATENATE(YEAR('DATOS DE ENTRADA'!$D$21)+A57) -> 2002 | D57: 63705600 | E57: =6*'Datos para costos'!$E$56+6*'Datos para costos'!$E$58 -> 1332752.4 | F57: 62372847.6 | G57: =COUNTIFS(Modelo_Aceptado,"<="&ParámetrosPropuesta!$B$6,Modelo_Aceptado,C57,Rampa,"SI",Regla_calculo,"tipo 1") -> 1 | H57: =COUNTIFS(Modelo_Aceptado,"<="&ParámetrosPropuesta!$B$6,Modelo_Aceptado,C57,Rampa,"SI",Arriendo_flota,"SI",Regla_calculo,"tipo 1") -> 0 | I57: 63705600 | J57: 62372847.6 | K57: =Constantes!$D$23 -> 0 | L57: 0 | N57: 2002 | O57: 0
A58: -13 | B58: 13 | C58: =CONCATENATE(YEAR('DATOS DE ENTRADA'!$D$21)+A58) -> 2001 | D58: 63705600 | E58: =6*'Datos para costos'!$E$56+6*'Datos para costos'!$E$58 -> 1332752.4 | F58: 62372847.6 | G58: =COUNTIFS(Modelo_Aceptado,"<="&ParámetrosPropuesta!$B$6,Modelo_Aceptado,C58,Rampa,"SI",Regla_calculo,"tipo 1") -> 1 | H58: =COUNTIFS(Modelo_Aceptado,"<="&ParámetrosPropuesta!$B$6,Modelo_Aceptado,C58,Rampa,"SI",Arriendo_flota,"SI",Regla_calculo,"tipo 1") -> 0 | I58: 63705600 | J58: 62372847.6 | K58: =Constantes!$D$23 -> 0 | L58: 0 | N58: 2001 | O58: 0
A59: -14 | B59: 14 | C59: =CONCATENATE(YEAR('DATOS DE ENTRADA'!$D$21)+A59) -> 2000 | D59: 63705600 | E59: =6*'Datos para costos'!$E$56+6*'Datos para costos'!$E$58 -> 1332752.4 | F59: 62372847.6 | G59: =COUNTIFS(Modelo_Aceptado,"<="&ParámetrosPropuesta!$B$6,Modelo_Aceptado,C59,Rampa,"SI",Regla_calculo,"tipo 1") -> 1 | H59: =COUNTIFS(Modelo_Aceptado,"<="&ParámetrosPropuesta!$B$6,Modelo_Aceptado,C59,Rampa,"SI",Arriendo_flota,"SI",Regla_calculo,"tipo 1") -> 0 | I59: 63705600 | J59: 62372847.6 | K59: =Constantes!$D$23 -> 0 | L59: 0 | N59: 2000 | O59: 0
A60: -15 | B60: 15 | C60: =CONCATENATE(YEAR('DATOS DE ENTRADA'!$D$21)+A60) -> 1999 | D60: 63705600 | E60: =6*'Datos para costos'!$E$56+6*'Datos para costos'!$E$58 -> 1332752.4 | F60: 62372847.6 | G60: =COUNTIFS(Modelo_Aceptado,"<="&ParámetrosPropuesta!$B$6,Modelo_Aceptado,C60,Rampa,"SI",Regla_calculo,"tipo 1") -> 1 | H60: =COUNTIFS(Modelo_Aceptado,"<="&ParámetrosPropuesta!$B$6,Modelo_Aceptado,C60,Rampa,"SI",Arriendo_flota,"SI",Regla_calculo,"tipo 1") -> 0 | I60: 63705600 | J60: 62372847.6 | K60: =Constantes!$D$23 -> 0 | L60: 0 | N60: 1999 | O60: 0
A61: -16 | B61: 16 o más | C61: =CONCATENATE("<=",YEAR('DATOS DE ENTRADA'!$D$21)+A61) -> <=1998 | D61: 0 | E61: =6*'Datos para costos'!$E$56+6*'Datos para costos'!$E$58 -> 1332752.4 | F61: 0 | G61: =COUNTIFS(Modelo_Aceptado,"<="&ParámetrosPropuesta!$B$6,Modelo_Aceptado,C61,Rampa,"SI",Regla_calculo,"tipo 1") -> 0 | H61: =COUNTIFS(Modelo_Aceptado,"<="&ParámetrosPropuesta!$B$6,Modelo_Aceptado,C61,Rampa,"SI",Arriendo_flota,"SI",Regla_calculo,"tipo 1") -> 0 | I61: 0 | J61: 0 | K61: =Constantes!$D$23 -> 0 | L61: 0
G62: =SUM(G44:G61) -> 10 | H62: =SUM(H44:H61) -> 2 | I62: =SUM(I44:I61) -> 509644800 | J62: =SUM(J44:J61) -> 498982780.8 | L62: =SUM(L44:L61) -> 8910406.8
B64: Reglas de cálculo tipo 2
B65: Modelos inscritos en acuerdos de flota posterior al | D65: =ParámetrosPropuesta!$B$5 -> 42339

Sheet CDMEI
B1: 1.1.2 Costos mensual de depreciación de la maquinaria, el equipo y las instalaciones
E5: Ecuación 8
B7: CDMEIr | C7: Costo mensual de depreciación de la maquinaria, el equipo y las instalaciones en la ruta “r” | F7: =F8*(F9+F10) -> 50964.48
B8: cdmei | C8: Coeficiente de depreciación mensual de maquinaria, equipo e instalaciones | F8: =Constantes!$D$37 -> 0.0001
C9: Valor tarifario de la unidad de transporte remunerado de personas modalidad autobús con edad “b” del tipo de vehículo que se utiliza en la ruta “r”, del conjunto de unidades “α” multiplicado Cantidad de unidades de la flota autorizada según la edad “b” en la ruta “r” del conjunto de unidades “α” | F9: =CDF!$I$40+CDF!$I$62 -> 509644800
C10: Sumatoria del valor tarifario de la unidad de transporte remunerado de personas modalidad autobús con edad “b” y número de placa “n”, del tipo de vehículo que se utiliza en la ruta “r”, del conjunto de unidades “γ” | F10: =Flota!$W$5 -> 0
B11: r | C11: Ruta de transporte remunerado de personas | F11: ='DATOS DE ENTRADA'!D17 -> Urbana
A13: =+Aclaraciones!$B$4 -> Aclaraciones: 1. Este instrumento de cálculo de tarifas para el servicio de transporte público por autobús fue elaborado con el único propósito de revisar la consistencia interna de la propuesta de la "Metodología para fijación ordinaria de tarifas para el servicio de transporte remunerado de personas, modalidad autobús". 2. Este instrumento no forma parte del Expediente OT-104-2015 y por tanto, no es parte de la propuesta de "metodología para fijación ordinaria de tarifas para el servicio de transporte remunerado de personas, modalidad autobús". 3. Este instrumento de cálculo corresponde a una versión preliminar, y por lo tanto no es necesariamente el que se usará para estimar los ajustes tarifarios derivados de la aplicación del "Metodología para fijación ordinaria de tarifas para el servicio de transporte remunerado de personas, modalidad autobús", pues este debe ser elaborado y validado por la Intendencia de Transportes dentro de la etapa de fijación tarifaria.

Sheet CDSCP
B1: 1.1.3 Costo mensual de depreciación del sistema automatizado de conteo de pasajeros en la ruta "r"
F5: Ecuación 9
B7: CDSCPr | C7: Costo mensual de depreciación del equipo automatizado de conteo de pasajeros en la ruta “r” | D7: =(D8*D9*D10)/12 -> 0
B8: fdscp | C8: Factor de depreciación anual para el equipo automatizado de conteo de pasajeros | D8: =+Constantes!D44 -> 0.2
B9: VNSCP | C9: Valor representativo del equipo automatizado de conteo de pasajeros | D9: =+'Datos para costos'!E45 -> 0
B10: Fr | C10: Cantidad total de unidades de la flota autorizada de la ruta “r” | D10: =Flota!$I$45 -> 10
B11: r | C11: Ruta de transporte remunerado de personas | D11: ='DATOS DE ENTRADA'!D17 -> Urbana
A13: =+Aclaraciones!$B$4 -> Aclaraciones: 1. Este instrumento de cálculo de tarifas para el servicio de transporte público por autobús fue elaborado con el único propósito de revisar la consistencia interna de la propuesta de la "Metodología para fijación ordinaria de tarifas para el servicio de transporte remunerado de personas, modalidad autobús". 2. Este instrumento no forma parte del Expediente OT-104-2015 y por tanto, no es parte de la propuesta de "metodología para fijación ordinaria de tarifas para el servicio de transporte remunerado de personas, modalidad autobús". 3. Este instrumento de cálculo corresponde a una versión preliminar, y por lo tanto no es necesariamente el que se usará para estimar los ajustes tarifarios derivados de la aplicación del "Metodología para fijación ordinaria de tarifas para el servicio de transporte remunerado de personas, modalidad autobús", pues este debe ser elaborado y validado por la Intendencia de Transportes dentro de la etapa de fijación tarifaria.

Sheet CPOM
C1: 1.2 Costos mensual en personal de operación y mantenimiento
E5: Ecuación 10
B7: CPOMr | C7: Costo mensual de personal de operación y mantenimiento en la ruta “r” | D7: =SUM(D8:D10) -> 14440484.67
B8: CSCHr | C8: Costo mensual por salarios de los choferes en la ruta “r” | D8: =CSCH!D7 -> 4941900.958
B9: CSDr | C9: Costo mensual por salarios de los despachadores o chequeadores en la ruta “r” | D9: =CSD!D7 -> 1194274.553
B10: CSMAr | C10: Costo mensual por salarios de los mecánicos y ayudantes de mecánica en la ruta “r” | D10: =CSMA!D7 -> 8304309.157
B11: r | C11: Ruta de transporte remunerado de personas | D11: ='DATOS DE ENTRADA'!D17 -> Urbana
A13: =+Aclaraciones!$B$4 -> Aclaraciones: 1. Este instrumento de cálculo de tarifas para el servicio de transporte público por autobús fue elaborado con el único propósito de revisar la consistencia interna de la propuesta de la "Metodología para fijación ordinaria de tarifas para el servicio de transporte remunerado de personas, modalidad autobús". 2. Este instrumento no forma parte del Expediente OT-104-2015 y por tanto, no es parte de la propuesta de "metodología para fijación ordinaria de tarifas para el servicio de transporte remunerado de personas, modalidad autobús". 3. Este instrumento de cálculo corresponde a una versión preliminar, y por lo tanto no es necesariamente el que se usará para estimar los ajustes tarifarios derivados de la aplicación del "Metodología para fijación ordinaria de tarifas para el servicio de transporte remunerado de personas, modalidad autobús", pues este debe ser elaborado y validado por la Intendencia de Transportes dentro de la etapa de fijación tarifaria.

Sheet CSCH
B1: 1.2.1 Costos mensual por salarios de los choferes
E5: Ecuación 9
B7: CSCHr | C7: Costo mensual por salarios de los choferes en la ruta “r” | D7: =+(D8*D9*D10)*(1+D11) -> 4941900.958
B8: cch | C8: Coeficiente de necesidades de choferes por vehículo de la ruta “r” | D8: 1.12 | E8: *Dependería del esquema operativo para cada ruta, en procedimiento aparte
B9: SCH | C9: Salario mensual de los choferes | D9: =+'Datos para costos'!$G$18 -> 309317.32
B10: Fr | C10: Cantidad total de unidades de la flota autorizada de la ruta “r” | D10: =Flota!$I$45 -> 10
B11: CS | C11: Factor de cargas sociales según la legislación vigente | D11: =Constantes!$P$68 -> 0.4265
B12: r | C12: Ruta de transporte remunerado de personas | D12: ='DATOS DE ENTRADA'!D17 -> Urbana
A14: =+Aclaraciones!$B$4 -> Aclaraciones: 1. Este instrumento de cálculo de tarifas para el servicio de transporte público por autobús fue elaborado con el único propósito de revisar la consistencia interna de la propuesta de la "Metodología para fijación ordinaria de tarifas para el servicio de transporte remunerado de personas, modalidad autobús". 2. Este instrumento no forma parte del Expediente OT-104-2015 y por tanto, no es parte de la propuesta de "metodología para fijación ordinaria de tarifas para el servicio de transporte remunerado de personas, modalidad autobús". 3. Este instrumento de cálculo corresponde a una versión preliminar, y por lo tanto no es necesariamente el que se usará para estimar los ajustes tarifarios derivados de la aplicación del "Metodología para fijación ordinaria de tarifas para el servicio de transporte remunerado de personas, modalidad autobús", pues este debe ser elaborado y validado por la Intendencia de Transportes dentro de la etapa de fijación tarifaria.

Sheet CSD
B1: 1.2.2 Costos mensual por salarios de los despachadores o chequeadores
F5: Ecuación 10
B7: CSDr | C7: Costo mensual por salarios de los despachadores o chequeadores en la ruta “r” | D7: =+(D8*D9*D10)*(1+D11)*(1+D12) -> 1194274.553
B8: cd | C8: Coeficiente de necesidades de despachadores o chequeadores por vehículo de la ruta “r” | D8: =HLOOKUP(D13,Constantes!D56:F62,3,FALSE) -> 0.3
B9: SD | C9: Salario mensual de los despachadores o chequeadores | D9: ='Datos para costos'!$G$19 -> 232557.26
B10: Fr | C10: Cantidad total de unidades de la flota autorizada de la ruta “r” | D10: =Flota!$I$45 -> 10
B11: csd | C11: Coeficiente por sobresueldo a los despachadores o chequeadores en la ruta “r" | D11: =HLOOKUP(D13,Constantes!D56:F62,6,FALSE) -> 0.2
B12: CS | C12: Factor de cargas sociales según la legislación vigente | D12: =Constantes!$P$68 -> 0.4265
B13: r | C13: Ruta de transporte remunerado de personas | D13: ='DATOS DE ENTRADA'!D17 -> Urbana
A15: =+Aclaraciones!$B$4 -> Aclaraciones: 1. Este instrumento de cálculo de tarifas para el servicio de transporte público por autobús fue elaborado con el único propósito de revisar la consistencia interna de la propuesta de la "Metodología para fijación ordinaria de tarifas para el servicio de transporte remunerado de personas, modalidad autobús". 2. Este instrumento no forma parte del Expediente OT-104-2015 y por tanto, no es parte de la propuesta de "metodología para fijación ordinaria de tarifas para el servicio de transporte remunerado de personas, modalidad autobús". 3. Este instrumento de cálculo corresponde a una versión preliminar, y por lo tanto no es necesariamente el que se usará para estimar los ajustes tarifarios derivados de la aplicación del "Metodología para fijación ordinaria de tarifas para el servicio de transporte remunerado de personas, modalidad autobús", pues este debe ser elaborado y validado por la Intendencia de Transportes dentro de la etapa de fijación tarifaria.

Sheet CSMA
B1: 1.2.3 Costos mensual por salarios de los mecánicos
F5: Ecuación 13
B7: CSMAr | C7: Costo mensual por salarios de los mecánicos en la ruta “r” | D7: =+(D8*D9*D10)*(1+D11) -> 8304309.157
B8: cmr | C8: Coeficiente de necesidades de mecánicos por vehículo de la ruta “r” | D8: =$D$22 -> 2.255593973 | E8: * ver cálculo en la parte inferior
B9: SM | C9: Salario mensual de los mecánicos | D9: ='Datos para costos'!$G$20 -> 258089.78
B10: Fr | C10: Cantidad total de unidades de la flota autorizada de la ruta “r” | D10: =Flota!$I$45 -> 10
B11: CS | C11: Factor de cargas sociales según la legislación vigente | D11: =Constantes!$P$68 -> 0.4265
B12: r | C12: Ruta de transporte remunerado de personas | D12: ='DATOS DE ENTRADA'!D17 -> Urbana
A14: =+Aclaraciones!$B$4 -> Aclaraciones: 1. Este instrumento de cálculo de tarifas para el servicio de transporte público por autobús fue elaborado con el único propósito de revisar la consistencia interna de la propuesta de la "Metodología para fijación ordinaria de tarifas para el servicio de transporte remunerado de personas, modalidad autobús". 2. Este instrumento no forma parte del Expediente OT-104-2015 y por tanto, no es parte de la propuesta de "metodología para fijación ordinaria de tarifas para el servicio de transporte remunerado de personas, modalidad autobús". 3. Este instrumento de cálculo corresponde a una versión preliminar, y por lo tanto no es necesariamente el que se usará para estimar los ajustes tarifarios derivados de la aplicación del "Metodología para fijación ordinaria de tarifas para el servicio de transporte remunerado de personas, modalidad autobús", pues este debe ser elaborado y validado por la Intendencia de Transportes dentro de la etapa de fijación tarifaria.
F18: Ecuación 14
B22: Cmr | C22: Coeficiente de necesidades de mecánicos en la ruta “r” | D22: =$D$27*(($D$23/1000)*(1/(48*52))) -> 2.255593973
B23: CKMr | C23: Kilometraje acumulado para la edad promedio de flota autorizada en la ruta “r” | D23: =$D$24*12*$D$25 -> 515195.678
B24: EPFr | C24: Edad promedio de la flota autorizada en la ruta “r” | D24: =Flota!$I$44 -> 10.2
B25: RPMr | C25: Recorrido promedio mensual por vehículo de la ruta “r” | D25: =('DATOS DE ENTRADA'!$D$39*'DATOS DE ENTRADA'!$D$40/'DATOS DE ENTRADA'!$D$43)*(1+'DATOS DE ENTRADA'!$D$58) -> 4209.115016
B26: PARTSr | C26: Coeficiente de consumo estandarizado de partes por cada 1000 km de flota “r” | D26: =($D$23^0.483)*0.000003 -> 0.001721883771
B27: LHr | C27: Número de horas de mano de obra para mantenimiento por cada 1000 km en la ruta “r” | D27: =293.44*($D$26)^0.517 -> 10.92781403
B30: Donde se tiene:
F31: Ecuación 15
B35: dado: | F35: Ecuación 16
B38: con:
F39: Ecuación 17

Sheet CPA
B1: 1.3 Costos mensual en personal administrativo
F5: Ecuación 18
B7: CPAr | C7: Costo mensual de personal administrativo de la ruta “r” | D7: =D8*D9 -> 1444048.467
B8: cpa | C8: Coeficiente de personal administrativo | D8: =HLOOKUP(D10,Constantes!D68:F69,2,FALSE) -> 0.1
B9: CPOMr | C9: Costo mensual de personal de operación y mantenimiento en la ruta “r” | D9: =CPOM!$D$7 -> 14440484.67
B10: r | C10: Ruta de transporte remunerado de personas | D10: ='DATOS DE ENTRADA'!D17 -> Urbana
A12: =+Aclaraciones!$B$4 -> Aclaraciones: 1. Este instrumento de cálculo de tarifas para el servicio de transporte público por autobús fue elaborado con el único propósito de revisar la consistencia interna de la propuesta de la "Metodología para fijación ordinaria de tarifas para el servicio de transporte remunerado de personas, modalidad autobús". 2. Este instrumento no forma parte del Expediente OT-104-2015 y por tanto, no es parte de la propuesta de "metodología para fijación ordinaria de tarifas para el servicio de transporte remunerado de personas, modalidad autobús". 3. Este instrumento de cálculo corresponde a una versión preliminar, y por lo tanto no es necesariamente el que se usará para estimar los ajustes tarifarios derivados de la aplicación del "Metodología para fijación ordinaria de tarifas para el servicio de transporte remunerado de personas, modalidad autobús", pues este debe ser elaborado y validado por la Intendencia de Transportes dentro de la etapa de fijación tarifaria.

Sheet GA
B1: 1.4 Gastos administrativos mensuales
E5: Ecuación 19
B7: GAr | C7: Gastos administrativos mensuales de la ruta “r” | D7: =SUM(D8:D13) -> 1080652.1
B8: GDCr | C8: Gasto mensual de derecho de circulación de la flota autorizada en la ruta “r" | D8: =GDC!D7 -> 84639.16667
B9: GSVr | C9: Gasto mensual del seguro voluntario de la flota autorizada en la ruta “r” | D9: =GSV!D7 -> 398714.85
B10: GRTVr | C10: Gasto mensual de inspección técnica vehicular de la flota autorizada en la ruta “r” | D10: =GRTV!D7 -> 21793.33333
B11: GARr | C11: Gasto del canon mensual de ARESEP de la flota autorizada en la ruta “r" | D11: =GAR!D7 -> 337093.0833
B12: GCTPr | C12: Gasto del canon mensual del CTP de la flota autorizada en la ruta “r" | D12: =GCTP!D7 -> 238411.6667
B13: GPr | C13: Gasto mensual de los peaje(s) y/o transbordador(es) en la ruta “r” | D13: =GP!D7 -> 0
B14: r | C14: Ruta de transporte remunerado de personas | D14: ='DATOS DE ENTRADA'!D17 -> Urbana
A16: =+Aclaraciones!$B$4 -> Aclaraciones: 1. Este instrumento de cálculo de tarifas para el servicio de transporte público por autobús fue elaborado con el único propósito de revisar la consistencia interna de la propuesta de la "Metodología para fijación ordinaria de tarifas para el servicio de transporte remunerado de personas, modalidad autobús". 2. Este instrumento no forma parte del Expediente OT-104-2015 y por tanto, no es parte de la propuesta de "metodología para fijación ordinaria de tarifas para el servicio de transporte remunerado de personas, modalidad autobús". 3. Este instrumento de cálculo corresponde a una versión preliminar, y por lo tanto no es necesariamente el que se usará para estimar los ajustes tarifarios derivados de la aplicación del "Metodología para fijación ordinaria de tarifas para el servicio de transporte remunerado de personas, modalidad autobús", pues este debe ser elaborado y validado por la Intendencia de Transportes dentro de la etapa de fijación tarifaria.

Sheet GDC
B1: 1.4.1 Gastos mensuales de derecho de circulación de la flota autorizada
E5: Ecuación 20
B7: GDCr | C7: Gasto mensual de derecho de circulación de la flota autorizada de la ruta “r” | D7: =((D8+D9+D10+D11+D12)*D13)/12 -> 84639.16667
B8: VP | C8: Valor anual de la prima del seguro obligatorio automotor (SOA) por vehículo más los impuestos aplicables (impuesto de ventas) | D8: ='Datos para costos'!E25 -> 92263
B9: VIPV | C9: Valor anual de impuesto a la propiedad de vehículo de transporte público según el numeral 2, inciso f, artículo 9 de la Ley N°7088. | D9: ='Datos para costos'!E26 -> 8000
B10: VL7088 | C10: Valor anual de las tasas de la Ley 7088 y sus reformas según el inciso n) artículo 9 Ley N°7088 | D10: ='Datos para costos'!E27 -> 1000
B11: VTFS | C11: Valor anual del timbre por Fauna Silvestre por vehículo | D11: ='Datos para costos'!E28 -> 104
B12: VIM | C12: Valor anual del impuesto a favor de las municipalidades | D12: ='Datos para costos'!E29 -> 200
B13: Fr | C13: Cantidad total de unidades de la flota autorizada de la ruta “r” | D13: =Flota!$I$45 -> 10
B14: r | C14: Ruta de transporte remunerado de personas | D14: ='DATOS DE ENTRADA'!D17 -> Urbana
A16: =+Aclaraciones!$B$4 -> Aclaraciones: 1. Este instrumento de cálculo de tarifas para el servicio de transporte público por autobús fue elaborado con el único propósito de revisar la consistencia interna de la propuesta de la "Metodología para fijación ordinaria de tarifas para el servicio de transporte remunerado de personas, modalidad autobús". 2. Este instrumento no forma parte del Expediente OT-104-2015 y por tanto, no es parte de la propuesta de "metodología para fijación ordinaria de tarifas para el servicio de transporte remunerado de personas, modalidad autobús". 3. Este instrumento de cálculo corresponde a una versión preliminar, y por lo tanto no es necesariamente el que se usará para estimar los ajustes tarifarios derivados de la aplicación del "Metodología para fijación ordinaria de tarifas para el servicio de transporte remunerado de personas, modalidad autobús", pues este debe ser elaborado y validado por la Intendencia de Transportes dentro de la etapa de fijación tarifaria.

Sheet GSV
B1: 1.4.2 Gastos mensuales del seguro voluntario de la flota autorizada
E5: Ecuación 21
B7: GSVr | C7: Gasto mensual del seguro voluntario de la flota autorizada en la ruta “r” | D7: =((D8+D9)*D10)/12 -> 398714.85
B8: VPA | C8: Valor de la prima A del seguro semestral por vehículo más los impuestos aplicables (impuesto de ventas) | D8: ='Datos para costos'!E31 -> 325172.19
B9: VPC | C9: Valor de la prima C del seguro semestral por vehículo más los impuestos aplicables (impuesto de ventas) | D9: ='Datos para costos'!E32 -> 153285.63
B10: Fr | C10: Cantidad total de unidades de la flota autorizada de la ruta “r” | D10: =Flota!$I$45 -> 10
B11: r | C11: Ruta de transporte remunerado de personas | D11: ='DATOS DE ENTRADA'!D17 -> Urbana
A13: =+Aclaraciones!$B$4 -> Aclaraciones: 1. Este instrumento de cálculo de tarifas para el servicio de transporte público por autobús fue elaborado con el único propósito de revisar la consistencia interna de la propuesta de la "Metodología para fijación ordinaria de tarifas para el servicio de transporte remunerado de personas, modalidad autobús". 2. Este instrumento no forma parte del Expediente OT-104-2015 y por tanto, no es parte de la propuesta de "metodología para fijación ordinaria de tarifas para el servicio de transporte remunerado de personas, modalidad autobús". 3. Este instrumento de cálculo corresponde a una versión preliminar, y por lo tanto no es necesariamente el que se usará para estimar los ajustes tarifarios derivados de la aplicación del "Metodología para fijación ordinaria de tarifas para el servicio de transporte remunerado de personas, modalidad autobús", pues este debe ser elaborado y validado por la Intendencia de Transportes dentro de la etapa de fijación tarifaria.

Sheet GRTV
B1: 1.4.3 Gastos mensuales de inspección técnica vehicular de la flota autorizada
E5: Ecuación 22
B7: GRTVr | C7: Gasto mensual de inspección técnica vehicular de la flota autorizada en la ruta “r” | D7: =(D8*D9*2)/12 -> 21793.33333
B8: VRTV | C8: Valor semestral de la inspección técnica vehicular por vehículo de transporte público de personas. | D8: ='Datos para costos'!E34 -> 13076
B9: Fr | C9: Cantidad total de unidades de la flota autorizada de la ruta “r” | D9: =Flota!$I$45 -> 10
B10: r | C10: Ruta de transporte remunerado de personas | D10: ='DATOS DE ENTRADA'!D17 -> Urbana
A12: =+Aclaraciones!$B$4 -> Aclaraciones: 1. Este instrumento de cálculo de tarifas para el servicio de transporte público por autobús fue elaborado con el único propósito de revisar la consistencia interna de la propuesta de la "Metodología para fijación ordinaria de tarifas para el servicio de transporte remunerado de personas, modalidad autobús". 2. Este instrumento no forma parte del Expediente OT-104-2015 y por tanto, no es parte de la propuesta de "metodología para fijación ordinaria de tarifas para el servicio de transporte remunerado de personas, modalidad autobús". 3. Este instrumento de cálculo corresponde a una versión preliminar, y por lo tanto no es necesariamente el que se usará para estimar los ajustes tarifarios derivados de la aplicación del "Metodología para fijación ordinaria de tarifas para el servicio de transporte remunerado de personas, modalidad autobús", pues este debe ser elaborado y validado por la Intendencia de Transportes dentro de la etapa de fijación tarifaria.
C13: ,

Sheet GAR
B1: 1.4.4 Gastos mensuales en canon ARESEP de la flota autorizada
E5: Ecuación 23
B7: GARr | C7: Gasto del canon mensual de ARESEP de la flota autorizada en la ruta “r” | D7: =(D8*D9)/12 -> 337093.0833
B8: VCAR | C8: Valor anual del canon de regulación de la ARESEP | D8: ='Datos para costos'!E36 -> 404511.7
B9: Fr | C9: Cantidad total de unidades de la flota autorizada de la ruta “r” | D9: =Flota!$I$45 -> 10
B10: r | C10: Ruta de transporte remunerado de personas | D10: ='DATOS DE ENTRADA'!D17 -> Urbana
A12: =+Aclaraciones!$B$4 -> Aclaraciones: 1. Este instrumento de cálculo de tarifas para el servicio de transporte público por autobús fue elaborado con el único propósito de revisar la consistencia interna de la propuesta de la "Metodología para fijación ordinaria de tarifas para el servicio de transporte remunerado de personas, modalidad autobús". 2. Este instrumento no forma parte del Expediente OT-104-2015 y por tanto, no es parte de la propuesta de "metodología para fijación ordinaria de tarifas para el servicio de transporte remunerado de personas, modalidad autobús". 3. Este instrumento de cálculo corresponde a una versión preliminar, y por lo tanto no es necesariamente el que se usará para estimar los ajustes tarifarios derivados de la aplicación del "Metodología para fijación ordinaria de tarifas para el servicio de transporte remunerado de personas, modalidad autobús", pues este debe ser elaborado y validado por la Intendencia de Transportes dentro de la etapa de fijación tarifaria.
C13: ,

Sheet GCTP
B1: 1.4.5 Gastos mensuales en canon CTP de la flota autorizada
E5: Ecuación 24
B7: GCTPr | C7: Gasto del canon mensual del CTP de la flota autorizada en la ruta “r” | D7: =(D8*D9)/12 -> 238411.6667
B8: VCTP | C8: Valor anual del canon del CTP por vehículo de transporte público de personas, modalidad autobús | D8: ='Datos para costos'!E38 -> 286094
B9: Fr | C9: Cantidad total de unidades de la flota autorizada de la ruta “r” | D9: =Flota!$I$45 -> 10
B10: r | C10: Ruta de transporte remunerado de personas | D10: ='DATOS DE ENTRADA'!D17 -> Urbana
A12: =+Aclaraciones!$B$4 -> Aclaraciones: 1. Este instrumento de cálculo de tarifas para el servicio de transporte público por autobús fue elaborado con el único propósito de revisar la consistencia interna de la propuesta de la "Metodología para fijación ordinaria de tarifas para el servicio de transporte remunerado de personas, modalidad autobús". 2. Este instrumento no forma parte del Expediente OT-104-2015 y por tanto, no es parte de la propuesta de "metodología para fijación ordinaria de tarifas para el servicio de transporte remunerado de personas, modalidad autobús". 3. Este instrumento de cálculo corresponde a una versión preliminar, y por lo tanto no es necesariamente el que se usará para estimar los ajustes tarifarios derivados de la aplicación del "Metodología para fijación ordinaria de tarifas para el servicio de transporte remunerado de personas, modalidad autobús", pues este debe ser elaborado y validado por la Intendencia de Transportes dentro de la etapa de fijación tarifaria.
C13: ,

Sheet GP
B1: 1.4.6 Gastos mensual en de los peaje(s) y/o transbordador(es)
E5: Ecuación 25
B7: GPr | C7: Gasto mensual de los peaje(s) y/o transbordador(es) en la ruta “r” | D7: =D8*D9 -> 0
B8: CMr | C8: Cantidad de carreras mensuales de la ruta “r” | D8: =Ponderaciones!$R$11 -> 1306.610485
C9: Total de Tarifa (s) de peaje(s) y/o transbordador(es) para vehículo tipo autobús en el peaje “p” que efectivamente se pagan en cada carrera de la ruta “r”. | D9: =IF('DATOS DE ENTRADA'!C62=0,0,'DATOS DE ENTRADA'!D62) -> 0
B10: r | C10: Ruta de transporte remunerado de personas | D10: ='DATOS DE ENTRADA'!D17 -> Urbana
A12: =+Aclaraciones!$B$4 -> Aclaraciones: 1. Este instrumento de cálculo de tarifas para el servicio de transporte público por autobús fue elaborado con el único propósito de revisar la consistencia interna de la propuesta de la "Metodología para fijación ordinaria de tarifas para el servicio de transporte remunerado de personas, modalidad autobús". 2. Este instrumento no forma parte del Expediente OT-104-2015 y por tanto, no es parte de la propuesta de "metodología para fijación ordinaria de tarifas para el servicio de transporte remunerado de personas, modalidad autobús". 3. Este instrumento de cálculo corresponde a una versión preliminar, y por lo tanto no es necesariamente el que se usará para estimar los ajustes tarifarios derivados de la aplicación del "Metodología para fijación ordinaria de tarifas para el servicio de transporte remunerado de personas, modalidad autobús", pues este debe ser elaborado y validado por la Intendencia de Transportes dentro de la etapa de fijación tarifaria.
C13: ,

Sheet CRA
B1: 1.5 Costo mensual en repuestos y accesorios
E5: Ecuación 26
B7: CRAr | C7: Costo mensual en repuestos y accesorios de la ruta “r” | D7: =1/12*D8*(D9/1000)*(D10+D11) -> 37675792.39
B8: PARTSr | C8: Coeficiente de consumo estandarizado de partes por cada 1000 Km de la ruta “r”. | D8: =($D$18^0.483)*0.000003 -> 0.001721883771
B9: CKMr | C9: Kilometraje acumulado para la edad promedio de flota autorizada en la ruta “r”. | D9: =$D$18 -> 515195.678
C10: Sumatoria del valor tarifario de las unidades de transporte remunerado de personas modalidad autobús con edad “b” del tipo de vehículo que se utiliza en la ruta “r”, del conjunto de unidades “α” | D10: =CDF!$I$40+CDF!$I$62 -> 509644800
C11: Sumatoria del valor tarifario de la unidad de transporte remunerado de personas modalidad autobús con edad “b” y número de placa “n”, del tipo de vehículo que se utiliza en la ruta “r”, del conjunto de unidades “γ” | D11: =Flota!$W$5 -> 0
B12: r | C12: Ruta de transporte remunerado de personas. | D12: =+'DATOS DE ENTRADA'!$D$17 -> Urbana
A14: =+Aclaraciones!$B$4 -> Aclaraciones: 1. Este instrumento de cálculo de tarifas para el servicio de transporte público por autobús fue elaborado con el único propósito de revisar la consistencia interna de la propuesta de la "Metodología para fijación ordinaria de tarifas para el servicio de transporte remunerado de personas, modalidad autobús". 2. Este instrumento no forma parte del Expediente OT-104-2015 y por tanto, no es parte de la propuesta de "metodología para fijación ordinaria de tarifas para el servicio de transporte remunerado de personas, modalidad autobús". 3. Este instrumento de cálculo corresponde a una versión preliminar, y por lo tanto no es necesariamente el que se usará para estimar los ajustes tarifarios derivados de la aplicación del "Metodología para fijación ordinaria de tarifas para el servicio de transporte remunerado de personas, modalidad autobús", pues este debe ser elaborado y validado por la Intendencia de Transportes dentro de la etapa de fijación tarifaria.
B18: CKMr | C18: Kilometraje acumulado para la edad promedio de flota autorizada en la ruta “r” | D18: =+$D$19*12*$D$20 -> 515195.678
B19: EPFr | C19: Edad promedio de la flota autorizada en la ruta “r” | D19: =Flota!$I$44 -> 10.2
B20: RPMr | C20: Recorrido promedio mensual por vehículo de la ruta “r” | D20: =('DATOS DE ENTRADA'!$D$39*'DATOS DE ENTRADA'!$D$40/'DATOS DE ENTRADA'!$D$43)*(1+'DATOS DE ENTRADA'!$D$58) -> 4209.115016
C26: dado:
E27: Ecuación 16
C29: con:
E31: Ecuación 17

Sheet OG
B1: 1.6 Costo mensual en otros gastos
E5: Ecuación 27
B7: OGr | C7: Costo mensual por otros gastos la ruta “r” | D7: =1/12*$D$8*(D9+D10) -> 849408
B8: cog | C8: Coeficiente de gasto anual en repuestos y accesorios | D8: =HLOOKUP(D11,Constantes!D78:F79,2,FALSE) -> 0.02
C9: Sumatoria del valor tarifario de las unidades de transporte remunerado de personas modalidad autobús con edad “b” del tipo de vehículo que se utiliza en la ruta “r”, del conjunto de unidades “α” | D9: =CDF!$I$40+CDF!$I$62 -> 509644800
C10: Sumatoria del valor tarifario de la unidad de transporte remunerado de personas modalidad autobús con edad “b” y número de placa “n”, del tipo de vehículo que se utiliza en la ruta “r”, del conjunto de unidades “γ” | D10: =Flota!$W$5 -> 0
B11: r | C11: Ruta de transporte remunerado de personas. | D11: ='DATOS DE ENTRADA'!D17 -> Urbana
A13: =+Aclaraciones!$B$4 -> Aclaraciones: 1. Este instrumento de cálculo de tarifas para el servicio de transporte público por autobús fue elaborado con el único propósito de revisar la consistencia interna de la propuesta de la "Metodología para fijación ordinaria de tarifas para el servicio de transporte remunerado de personas, modalidad autobús". 2. Este instrumento no forma parte del Expediente OT-104-2015 y por tanto, no es parte de la propuesta de "metodología para fijación ordinaria de tarifas para el servicio de transporte remunerado de personas, modalidad autobús". 3. Este instrumento de cálculo corresponde a una versión preliminar, y por lo tanto no es necesariamente el que se usará para estimar los ajustes tarifarios derivados de la aplicación del "Metodología para fijación ordinaria de tarifas para el servicio de transporte remunerado de personas, modalidad autobús", pues este debe ser elaborado y validado por la Intendencia de Transportes dentro de la etapa de fijación tarifaria.

Sheet CSPE
B1: 1.7 Costo mensual de depreciación del sistema automatizado de pago electrónico de la ruta "r"
B7: CSPE | C7: Costo mensual de depreciación del sistema automatizado de pago electrónico de la ruta "r" | D7: 0
B8: Vu | C8: Vida útil máxima a considerar para los sistemas automatizados de pago electrónico
B9: r | C9: Ruta de transporte remunerado de personas | D9: ='DATOS DE ENTRADA'!D17 -> Urbana
A11: =+Aclaraciones!$B$4 -> Aclaraciones: 1. Este instrumento de cálculo de tarifas para el servicio de transporte público por autobús fue elaborado con el único propósito de revisar la consistencia interna de la propuesta de la "Metodología para fijación ordinaria de tarifas para el servicio de transporte remunerado de personas, modalidad autobús". 2. Este instrumento no forma parte del Expediente OT-104-2015 y por tanto, no es parte de la propuesta de "metodología para fijación ordinaria de tarifas para el servicio de transporte remunerado de personas, modalidad autobús". 3. Este instrumento de cálculo corresponde a una versión preliminar, y por lo tanto no es necesariamente el que se usará para estimar los ajustes tarifarios derivados de la aplicación del "Metodología para fijación ordinaria de tarifas para el servicio de transporte remunerado de personas, modalidad autobús", pues este debe ser elaborado y validado por la Intendencia de Transportes dentro de la etapa de fijación tarifaria.

Sheet CECS
B1: 1.8 Costo mensual de estudios de calidad del servicio de la ruta "r"
E5: Ecuación
B7: CECSr | C7: Costo mensual de los estudios de calidad del servicio | D7: =+D8/12 -> 0
C8: Costo anual de estudios de calidad en el servicio de la ruta "r".
B9: r | C9: Ruta de transporte remunerado de personas. | D9: ='DATOS DE ENTRADA'!D17 -> Urbana
A11: =+Aclaraciones!$B$4 -> Aclaraciones: 1. Este instrumento de cálculo de tarifas para el servicio de transporte público por autobús fue elaborado con el único propósito de revisar la consistencia interna de la propuesta de la "Metodología para fijación ordinaria de tarifas para el servicio de transporte remunerado de personas, modalidad autobús". 2. Este instrumento no forma parte del Expediente OT-104-2015 y por tanto, no es parte de la propuesta de "metodología para fijación ordinaria de tarifas para el servicio de transporte remunerado de personas, modalidad autobús". 3. Este instrumento de cálculo corresponde a una versión preliminar, y por lo tanto no es necesariamente el que se usará para estimar los ajustes tarifarios derivados de la aplicación del "Metodología para fijación ordinaria de tarifas para el servicio de transporte remunerado de personas, modalidad autobús", pues este debe ser elaborado y validado por la Intendencia de Transportes dentro de la etapa de fijación tarifaria.

Sheet CARR
B1: 1.1.3 Costo mensual de arriendo en la ruta "r"
B7: CARR | C7: Monto reconocido por arrendamiento de vehículos en la ruta "r" | D7: =SUMIF(Q16:Q57,">0")/12 -> 10000
B8: Fr | C8: Total de Flota arrendada | D8: =+COUNTIF(B16:B57,">< 0") -> 2
B9: r | C9: Ruta de transporte remunerado de personas | D9: ='DATOS DE ENTRADA'!D17 -> Urbana
A11: =+Aclaraciones!$B$4 -> Aclaraciones: 1. Este instrumento de cálculo de tarifas para el servicio de transporte público por autobús fue elaborado con el único propósito de revisar la consistencia interna de la propuesta de la "Metodología para fijación ordinaria de tarifas para el servicio de transporte remunerado de personas, modalidad autobús". 2. Este instrumento no forma parte del Expediente OT-104-2015 y por tanto, no es parte de la propuesta de "metodología para fijación ordinaria de tarifas para el servicio de transporte remunerado de personas, modalidad autobús". 3. Este instrumento de cálculo corresponde a una versión preliminar, y por lo tanto no es necesariamente el que se usará para estimar los ajustes tarifarios derivados de la aplicación del "Metodología para fijación ordinaria de tarifas para el servicio de transporte remunerado de personas, modalidad autobús", pues este debe ser elaborado y validado por la Intendencia de Transportes dentro de la etapa de fijación tarifaria.
B13: Valor mínimo arriendo: | C13: 0 | R13: CDF arriendo | S13: RF arriendo
R14: =SUM(R16:R56) -> 60000 | S14: =SUM(S16:S56) -> 60000
B15: Placa | C15: Rampa | D15: Modelo Aceptado | E15: Capacidad Aceptada | F15: Edad | G15: Tipo de vehículo | H15: En arriendo (propiedad) | I15: Monto Arrendado | J15: Regla que aplica | K15: Valor (VTAN) | L15: Factor depreciación (solo regla 1) | M15: CDF | N15: Factor rentabilidad (solo regla 1) | O15: Tasa de rentabilidad | P15: RF | Q15: Monto a reconocer | R15: Distribución CDF | S15: Distribución RF
B16: =IFERROR(INDEX(Placa_A,SMALL( IF(Monto_arriendo>$C$13,ROW(Placa_A)-ROW(Flota!D$7)+1), ROWS(Flota!D$7:'Flota'!D7))),"") -> HB002761 | C16: =IFERROR(INDEX(Placa_A,SMALL( IF(Monto_arriendo>$C$13,ROW(Placa_A)-ROW(Flota!E$7)+1), ROWS(Flota!E$7:'Flota'!E7))),"") -> SI | D16: =IFERROR(INDEX(Placa_A,SMALL( IF(Monto_arriendo>$C$13,ROW(Placa_A)-ROW(Flota!G$7)+1), ROWS(Flota!G$7:'Flota'!G7))),"") -> 2005 | E16: =IFERROR(INDEX(Placa_A,SMALL( IF(Monto_arriendo>$C$13,ROW(Placa_A)-ROW(Flota!H$7)+1), ROWS(Flota!H$7:'Flota'!H7))),"") -> 49 | F16: =IFERROR(INDEX(Placa_A,SMALL( IF(Monto_arriendo>$C$13,ROW(Placa_A)-ROW(Flota!I$7)+1), ROWS(Flota!I$7:'Flota'!I7))),"") -> 9 | G16: =IFERROR(INDEX(Placa_A,SMALL( IF(Monto_arriendo>$C$13,ROW(Placa_A)-ROW(Flota!J$7)+1), ROWS(Flota!J$7:'Flota'!J7))),"") -> Autobús Interurbano Corto | H16: =IFERROR(INDEX(Placa_A,SMALL( IF(Monto_arriendo>$C$13,ROW(Placa_A)-ROW(Flota!K$7)+1), ROWS(Flota!K$7:'Flota'!K7))),"") -> SI | I16: =IFERROR(INDEX(Placa_A,SMALL( IF(Monto_arriendo>$C$13,ROW(Placa_A)-ROW(Flota!L$7)+1), ROWS(Flota!L$7:'Flota'!L7))),"") -> 1200000 | J16: =IFERROR(INDEX(Placa_A,SMALL( IF(Monto_arriendo>$C$13,ROW(Placa_A)-ROW(Flota!M$7)+1), ROWS(Flota!M$7:'Flota'!M7))),"") -> tipo 1 | K16: =IF(J16="tipo 1",INDEX(Valor_pond_U,MATCH(B16,Placa_bus,0)),INDEX(VTAN_añoP,MATCH(B16,Placa_bus,0))) -> 63705600 | L16: =IF(J16="tipo 1",INDEX(Factor_dep_regla1,MATCH(F16,Edad_depreciacion_regla1,0)),"N/A") ->  | M16: =IF(J16="tipo 1",K16*L16,INDEX(Depreciacion_tipo2,MATCH(B16,Placa_bus,0))) ->  | N16: =IF(J16="tipo 1",INDEX(Factor_de_rentabilidad_tipo1,MATCH(F16,Edad_rentabilidad_tipo1,0)),"N/A") ->  | O16: =IF(J16="tipo 1",'Datos para costos'!$E$81,IF(J16="tipo 2",'Datos para costos'!$E$83,"N/A")) -> 0.1658231259 | P16: =IF(J16="tipo 1",K16*N16*O16,IF(J16="tipo 2",K16*O16,"N/A")) ->  | Q16: =IFERROR(IF($M16+$P16>$I16,$I16,$M16+$P16),"") ->  | R16: =IFERROR(IF($M16+$P16>$I16,$I16/2,$M16),"") ->  | S16: =IFERROR(IF($M16+$P16>$I16,$I16/2,$P16),"") -> 
B17: =IFERROR(INDEX(Placa_A,SMALL( IF(Monto_arriendo>$C$13,ROW(Placa_A)-ROW(Flota!D$7)+1), ROWS(Flota!D$7:'Flota'!D8))),"") -> HB003334 | C17: =IFERROR(INDEX(Placa_A,SMALL( IF(Monto_arriendo>$C$13,ROW(Placa_A)-ROW(Flota!E$7)+1), ROWS(Flota!E$7:'Flota'!E8))),"") -> SI | D17: =IFERROR(INDEX(Placa_A,SMALL( IF(Monto_arriendo>$C$13,ROW(Placa_A)-ROW(Flota!G$7)+1), ROWS(Flota!G$7:'Flota'!G8))),"") -> 2007 | E17: =IFERROR(INDEX(Placa_A,SMALL( IF(Monto_arriendo>$C$13,ROW(Placa_A)-ROW(Flota!H$7)+1), ROWS(Flota!H$7:'Flota'!H8))),"") -> 52 | F17: =IFERROR(INDEX(Placa_A,SMALL( IF(Monto_arriendo>$C$13,ROW(Placa_A)-ROW(Flota!I$7)+1), ROWS(Flota!I$7:'Flota'!I8))),"") -> 7 | G17: =IFERROR(INDEX(Placa_A,SMALL( IF(Monto_arriendo>$C$13,ROW(Placa_A)-ROW(Flota!J$7)+1), ROWS(Flota!J$7:'Flota'!J8))),"") -> Autobús Interurbano Corto | H17: =IFERROR(INDEX(Placa_A,SMALL( IF(Monto_arriendo>$C$13,ROW(Placa_A)-ROW(Flota!K$7)+1), ROWS(Flota!K$7:'Flota'!K8))),"") -> SI | I17: =IFERROR(INDEX(Placa_A,SMALL( IF(Monto_arriendo>$C$13,ROW(Placa_A)-ROW(Flota!L$7)+1), ROWS(Flota!L$7:'Flota'!L8))),"") -> 120000 | J17: =IFERROR(INDEX(Placa_A,SMALL( IF(Monto_arriendo>$C$13,ROW(Placa_A)-ROW(Flota!M$7)+1), ROWS(Flota!M$7:'Flota'!M8))),"") -> tipo 1 | K17: 63705600 | L17: 0.03571428571 | M17: 2275200 | N17: 0 | O17: =IF(J17="tipo 1",'Datos para costos'!$E$81,IF(J17="tipo 2",'Datos para costos'!$E$83,"N/A")) -> 0.1658231259 | P17: =IF(J17="tipo 1",K17*N17*O17,IF(J17="tipo 2",K17*O17,"N/A")) -> 0 | Q17: =IFERROR(IF($M17+$P17>$I17,$I17,$M17+$P17),"") -> 120000 | R17: =IFERROR(IF($M17+$P17>$I17,$I17/2,$M17),"") -> 60000 | S17: =IFERROR(IF($M17+$P17>$I17,$I17/2,$P17),"") -> 60000
B18: =IFERROR(INDEX(Placa_A,SMALL( IF(Monto_arriendo>$C$13,ROW(Placa_A)-ROW(Flota!D$7)+1), ROWS(Flota!D$7:'Flota'!D9))),"") ->  | C18: =IFERROR(INDEX(Placa_A,SMALL( IF(Monto_arriendo>$C$13,ROW(Placa_A)-ROW(Flota!E$7)+1), ROWS(Flota!E$7:'Flota'!E9))),"") ->  | D18: =IFERROR(INDEX(Placa_A,SMALL( IF(Monto_arriendo>$C$13,ROW(Placa_A)-ROW(Flota!G$7)+1), ROWS(Flota!G$7:'Flota'!G9))),"") ->  | E18: =IFERROR(INDEX(Placa_A,SMALL( IF(Monto_arriendo>$C$13,ROW(Placa_A)-ROW(Flota!H$7)+1), ROWS(Flota!H$7:'Flota'!H9))),"") ->  | F18: =IFERROR(INDEX(Placa_A,SMALL( IF(Monto_arriendo>$C$13,ROW(Placa_A)-ROW(Flota!I$7)+1), ROWS(Flota!I$7:'Flota'!I9))),"") ->  | G18: =IFERROR(INDEX(Placa_A,SMALL( IF(Monto_arriendo>$C$13,ROW(Placa_A)-ROW(Flota!J$7)+1), ROWS(Flota!J$7:'Flota'!J9))),"") ->  | H18: =IFERROR(INDEX(Placa_A,SMALL( IF(Monto_arriendo>$C$13,ROW(Placa_A)-ROW(Flota!K$7)+1), ROWS(Flota!K$7:'Flota'!K9))),"") ->  | I18: =IFERROR(INDEX(Placa_A,SMALL( IF(Monto_arriendo>$C$13,ROW(Placa_A)-ROW(Flota!L$7)+1), ROWS(Flota!L$7:'Flota'!L9))),"") ->  | J18: =IFERROR(INDEX(Placa_A,SMALL( IF(Monto_arriendo>$C$13,ROW(Placa_A)-ROW(Flota!M$7)+1), ROWS(Flota!M$7:'Flota'!M9))),"") ->  | L18: N/A | N18: N/A | O18: =IF(J18="tipo 1",'Datos para costos'!$E$81,IF(J18="tipo 2",'Datos para costos'!$E$83,"N/A")) -> N/A | P18: N/A
B19: =IFERROR(INDEX(Placa_A,SMALL( IF(Monto_arriendo>$C$13,ROW(Placa_A)-ROW(Flota!D$7)+1), ROWS(Flota!D$7:'Flota'!D10))),"") ->  | C19: =IFERROR(INDEX(Placa_A,SMALL( IF(Monto_arriendo>$C$13,ROW(Placa_A)-ROW(Flota!E$7)+1), ROWS(Flota!E$7:'Flota'!E10))),"") ->  | D19: =IFERROR(INDEX(Placa_A,SMALL( IF(Monto_arriendo>$C$13,ROW(Placa_A)-ROW(Flota!G$7)+1), ROWS(Flota!G$7:'Flota'!G10))),"") ->  | E19: =IFERROR(INDEX(Placa_A,SMALL( IF(Monto_arriendo>$C$13,ROW(Placa_A)-ROW(Flota!H$7)+1), ROWS(Flota!H$7:'Flota'!H10))),"") ->  | F19: =IFERROR(INDEX(Placa_A,SMALL( IF(Monto_arriendo>$C$13,ROW(Placa_A)-ROW(Flota!I$7)+1), ROWS(Flota!I$7:'Flota'!I10))),"") ->  | G19: =IFERROR(INDEX(Placa_A,SMALL( IF(Monto_arriendo>$C$13,ROW(Placa_A)-ROW(Flota!J$7)+1), ROWS(Flota!J$7:'Flota'!J10))),"") ->  | H19: =IFERROR(INDEX(Placa_A,SMALL( IF(Monto_arriendo>$C$13,ROW(Placa_A)-ROW(Flota!K$7)+1), ROWS(Flota!K$7:'Flota'!K10))),"") ->  | I19: =IFERROR(INDEX(Placa_A,SMALL( IF(Monto_arriendo>$C$13,ROW(Placa_A)-ROW(Flota!L$7)+1), ROWS(Flota!L$7:'Flota'!L10))),"") ->  | J19: =IFERROR(INDEX(Placa_A,SMALL( IF(Monto_arriendo>$C$13,ROW(Placa_A)-ROW(Flota!M$7)+1), ROWS(Flota!M$7:'Flota'!M10))),"") ->  | L19: N/A | N19: N/A | O19: =IF(J19="tipo 1",'Datos para costos'!$E$81,IF(J19="tipo 2",'Datos para costos'!$E$83,"N/A")) -> N/A | P19: N/A
B20: =IFERROR(INDEX(Placa_A,SMALL( IF(Monto_arriendo>$C$13,ROW(Placa_A)-ROW(Flota!D$7)+1), ROWS(Flota!D$7:'Flota'!D11))),"") ->  | C20: =IFERROR(INDEX(Placa_A,SMALL( IF(Monto_arriendo>$C$13,ROW(Placa_A)-ROW(Flota!E$7)+1), ROWS(Flota!E$7:'Flota'!E11))),"") ->  | D20: =IFERROR(INDEX(Placa_A,SMALL( IF(Monto_arriendo>$C$13,ROW(Placa_A)-ROW(Flota!G$7)+1), ROWS(Flota!G$7:'Flota'!G11))),"") ->  | E20: =IFERROR(INDEX(Placa_A,SMALL( IF(Monto_arriendo>$C$13,ROW(Placa_A)-ROW(Flota!H$7)+1), ROWS(Flota!H$7:'Flota'!H11))),"") ->  | F20: =IFERROR(INDEX(Placa_A,SMALL( IF(Monto_arriendo>$C$13,ROW(Placa_A)-ROW(Flota!I$7)+1), ROWS(Flota!I$7:'Flota'!I11))),"") ->  | G20: =IFERROR(INDEX(Placa_A,SMALL( IF(Monto_arriendo>$C$13,ROW(Placa_A)-ROW(Flota!J$7)+1), ROWS(Flota!J$7:'Flota'!J11))),"") ->  | H20: =IFERROR(INDEX(Placa_A,SMALL( IF(Monto_arriendo>$C$13,ROW(Placa_A)-ROW(Flota!K$7)+1), ROWS(Flota!K$7:'Flota'!K11))),"") ->  | I20: =IFERROR(INDEX(Placa_A,SMALL( IF(Monto_arriendo>$C$13,ROW(Placa_A)-ROW(Flota!L$7)+1), ROWS(Flota!L$7:'Flota'!L11))),"") ->  | J20: =IFERROR(INDEX(Placa_A,SMALL( IF(Monto_arriendo>$C$13,ROW(Placa_A)-ROW(Flota!M$7)+1), ROWS(Flota!M$7:'Flota'!M11))),"") ->  | L20: N/A | N20: N/A | O20: =IF(J20="tipo 1",'Datos para costos'!$E$81,IF(J20="tipo 2",'Datos para costos'!$E$83,"N/A")) -> N/A | P20: N/A
B21: =IFERROR(INDEX(Placa_A,SMALL( IF(Monto_arriendo>$C$13,ROW(Placa_A)-ROW(Flota!D$7)+1), ROWS(Flota!D$7:'Flota'!D12))),"") ->  | C21: =IFERROR(INDEX(Placa_A,SMALL( IF(Monto_arriendo>$C$13,ROW(Placa_A)-ROW(Flota!E$7)+1), ROWS(Flota!E$7:'Flota'!E12))),"") ->  | D21: =IFERROR(INDEX(Placa_A,SMALL( IF(Monto_arriendo>$C$13,ROW(Placa_A)-ROW(Flota!G$7)+1), ROWS(Flota!G$7:'Flota'!G12))),"") ->  | E21: =IFERROR(INDEX(Placa_A,SMALL( IF(Monto_arriendo>$C$13,ROW(Placa_A)-ROW(Flota!H$7)+1), ROWS(Flota!H$7:'Flota'!H12))),"") ->  | F21: =IFERROR(INDEX(Placa_A,SMALL( IF(Monto_arriendo>$C$13,ROW(Placa_A)-ROW(Flota!I$7)+1), ROWS(Flota!I$7:'Flota'!I12))),"") ->  | G21: =IFERROR(INDEX(Placa_A,SMALL( IF(Monto_arriendo>$C$13,ROW(Placa_A)-ROW(Flota!J$7)+1), ROWS(Flota!J$7:'Flota'!J12))),"") ->  | H21: =IFERROR(INDEX(Placa_A,SMALL( IF(Monto_arriendo>$C$13,ROW(Placa_A)-ROW(Flota!K$7)+1), ROWS(Flota!K$7:'Flota'!K12))),"") ->  | I21: =IFERROR(INDEX(Placa_A,SMALL( IF(Monto_arriendo>$C$13,ROW(Placa_A)-ROW(Flota!L$7)+1), ROWS(Flota!L$7:'Flota'!L12))),"") ->  | J21: =IFERROR(INDEX(Placa_A,SMALL( IF(Monto_arriendo>$C$13,ROW(Placa_A)-ROW(Flota!M$7)+1), ROWS(Flota!M$7:'Flota'!M12))),"") ->  | L21: N/A | N21: N/A | O21: =IF(J21="tipo 1",'Datos para costos'!$E$81,IF(J21="tipo 2",'Datos para costos'!$E$83,"N/A")) -> N/A | P21: N/A
B22: =IFERROR(INDEX(Placa_A,SMALL( IF(Monto_arriendo>$C$13,ROW(Placa_A)-ROW(Flota!D$7)+1), ROWS(Flota!D$7:'Flota'!D13))),"") ->  | C22: =IFERROR(INDEX(Placa_A,SMALL( IF(Monto_arriendo>$C$13,ROW(Placa_A)-ROW(Flota!E$7)+1), ROWS(Flota!E$7:'Flota'!E13))),"") ->  | D22: =IFERROR(INDEX(Placa_A,SMALL( IF(Monto_arriendo>$C$13,ROW(Placa_A)-ROW(Flota!G$7)+1), ROWS(Flota!G$7:'Flota'!G13))),"") ->  | E22: =IFERROR(INDEX(Placa_A,SMALL( IF(Monto_arriendo>$C$13,ROW(Placa_A)-ROW(Flota!H$7)+1), ROWS(Flota!H$7:'Flota'!H13))),"") ->  | F22: =IFERROR(INDEX(Placa_A,SMALL( IF(Monto_arriendo>$C$13,ROW(Placa_A)-ROW(Flota!I$7)+1), ROWS(Flota!I$7:'Flota'!I13))),"") ->  | G22: =IFERROR(INDEX(Placa_A,SMALL( IF(Monto_arriendo>$C$13,ROW(Placa_A)-ROW(Flota!J$7)+1), ROWS(Flota!J$7:'Flota'!J13))),"") ->  | H22: =IFERROR(INDEX(Placa_A,SMALL( IF(Monto_arriendo>$C$13,ROW(Placa_A)-ROW(Flota!K$7)+1), ROWS(Flota!K$7:'Flota'!K13))),"") ->  | I22: =IFERROR(INDEX(Placa_A,SMALL( IF(Monto_arriendo>$C$13,ROW(Placa_A)-ROW(Flota!L$7)+1), ROWS(Flota!L$7:'Flota'!L13))),"") ->  | J22: =IFERROR(INDEX(Placa_A,SMALL( IF(Monto_arriendo>$C$13,ROW(Placa_A)-ROW(Flota!M$7)+1), ROWS(Flota!M$7:'Flota'!M13))),"") ->  | L22: N/A | N22: N/A | O22: =IF(J22="tipo 1",'Datos para costos'!$E$81,IF(J22="tipo 2",'Datos para costos'!$E$83,"N/A")) -> N/A | P22: N/A
B23: =IFERROR(INDEX(Placa_A,SMALL( IF(Monto_arriendo>$C$13,ROW(Placa_A)-ROW(Flota!D$7)+1), ROWS(Flota!D$7:'Flota'!D14))),"") ->  | C23: =IFERROR(INDEX(Placa_A,SMALL( IF(Monto_arriendo>$C$13,ROW(Placa_A)-ROW(Flota!E$7)+1), ROWS(Flota!E$7:'Flota'!E14))),"") ->  | D23: =IFERROR(INDEX(Placa_A,SMALL( IF(Monto_arriendo>$C$13,ROW(Placa_A)-ROW(Flota!G$7)+1), ROWS(Flota!G$7:'Flota'!G14))),"") ->  | E23: =IFERROR(INDEX(Placa_A,SMALL( IF(Monto_arriendo>$C$13,ROW(Placa_A)-ROW(Flota!H$7)+1), ROWS(Flota!H$7:'Flota'!H14))),"") ->  | F23: =IFERROR(INDEX(Placa_A,SMALL( IF(Monto_arriendo>$C$13,ROW(Placa_A)-ROW(Flota!I$7)+1), ROWS(Flota!I$7:'Flota'!I14))),"") ->  | G23: =IFERROR(INDEX(Placa_A,SMALL( IF(Monto_arriendo>$C$13,ROW(Placa_A)-ROW(Flota!J$7)+1), ROWS(Flota!J$7:'Flota'!J14))),"") ->  | H23: =IFERROR(INDEX(Placa_A,SMALL( IF(Monto_arriendo>$C$13,ROW(Placa_A)-ROW(Flota!K$7)+1), ROWS(Flota!K$7:'Flota'!K14))),"") ->  | I23: =IFERROR(INDEX(Placa_A,SMALL( IF(Monto_arriendo>$C$13,ROW(Placa_A)-ROW(Flota!L$7)+1), ROWS(Flota!L$7:'Flota'!L14))),"") ->  | J23: =IFERROR(INDEX(Placa_A,SMALL( IF(Monto_arriendo>$C$13,ROW(Placa_A)-ROW(Flota!M$7)+1), ROWS(Flota!M$7:'Flota'!M14))),"") ->  | L23: N/A | N23: N/A | O23: =IF(J23="tipo 1",'Datos para costos'!$E$81,IF(J23="tipo 2",'Datos para costos'!$E$83,"N/A")) -> N/A | P23: N/A
B24: =IFERROR(INDEX(Placa_A,SMALL( IF(Monto_arriendo>$C$13,ROW(Placa_A)-ROW(Flota!D$7)+1), ROWS(Flota!D$7:'Flota'!D15))),"") ->  | C24: =IFERROR(INDEX(Placa_A,SMALL( IF(Monto_arriendo>$C$13,ROW(Placa_A)-ROW(Flota!E$7)+1), ROWS(Flota!E$7:'Flota'!E15))),"") ->  | D24: =IFERROR(INDEX(Placa_A,SMALL( IF(Monto_arriendo>$C$13,ROW(Placa_A)-ROW(Flota!G$7)+1), ROWS(Flota!G$7:'Flota'!G15))),"") ->  | E24: =IFERROR(INDEX(Placa_A,SMALL( IF(Monto_arriendo>$C$13,ROW(Placa_A)-ROW(Flota!H$7)+1), ROWS(Flota!H$7:'Flota'!H15))),"") ->  | F24: =IFERROR(INDEX(Placa_A,SMALL( IF(Monto_arriendo>$C$13,ROW(Placa_A)-ROW(Flota!I$7)+1), ROWS(Flota!I$7:'Flota'!I15))),"") ->  | G24: =IFERROR(INDEX(Placa_A,SMALL( IF(Monto_arriendo>$C$13,ROW(Placa_A)-ROW(Flota!J$7)+1), ROWS(Flota!J$7:'Flota'!J15))),"") ->  | H24: =IFERROR(INDEX(Placa_A,SMALL( IF(Monto_arriendo>$C$13,ROW(Placa_A)-ROW(Flota!K$7)+1), ROWS(Flota!K$7:'Flota'!K15))),"") ->  | I24: =IFERROR(INDEX(Placa_A,SMALL( IF(Monto_arriendo>$C$13,ROW(Placa_A)-ROW(Flota!L$7)+1), ROWS(Flota!L$7:'Flota'!L15))),"") ->  | J24: =IFERROR(INDEX(Placa_A,SMALL( IF(Monto_arriendo>$C$13,ROW(Placa_A)-ROW(Flota!M$7)+1), ROWS(Flota!M$7:'Flota'!M15))),"") ->  | L24: N/A | N24: N/A | O24: =IF(J24="tipo 1",'Datos para costos'!$E$81,IF(J24="tipo 2",'Datos para costos'!$E$83,"N/A")) -> N/A | P24: N/A
B25: =IFERROR(INDEX(Placa_A,SMALL( IF(Monto_arriendo>$C$13,ROW(Placa_A)-ROW(Flota!D$7)+1), ROWS(Flota!D$7:'Flota'!D16))),"") ->  | C25: =IFERROR(INDEX(Placa_A,SMALL( IF(Monto_arriendo>$C$13,ROW(Placa_A)-ROW(Flota!E$7)+1), ROWS(Flota!E$7:'Flota'!E16))),"") ->  | D25: =IFERROR(INDEX(Placa_A,SMALL( IF(Monto_arriendo>$C$13,ROW(Placa_A)-ROW(Flota!G$7)+1), ROWS(Flota!G$7:'Flota'!G16))),"") ->  | E25: =IFERROR(INDEX(Placa_A,SMALL( IF(Monto_arriendo>$C$13,ROW(Placa_A)-ROW(Flota!H$7)+1), ROWS(Flota!H$7:'Flota'!H16))),"") ->  | F25: =IFERROR(INDEX(Placa_A,SMALL( IF(Monto_arriendo>$C$13,ROW(Placa_A)-ROW(Flota!I$7)+1), ROWS(Flota!I$7:'Flota'!I16))),"") ->  | G25: =IFERROR(INDEX(Placa_A,SMALL( IF(Monto_arriendo>$C$13,ROW(Placa_A)-ROW(Flota!J$7)+1), ROWS(Flota!J$7:'Flota'!J16))),"") ->  | H25: =IFERROR(INDEX(Placa_A,SMALL( IF(Monto_arriendo>$C$13,ROW(Placa_A)-ROW(Flota!K$7)+1), ROWS(Flota!K$7:'Flota'!K16))),"") ->  | I25: =IFERROR(INDEX(Placa_A,SMALL( IF(Monto_arriendo>$C$13,ROW(Placa_A)-ROW(Flota!L$7)+1), ROWS(Flota!L$7:'Flota'!L16))),"") ->  | J25: =IFERROR(INDEX(Placa_A,SMALL( IF(Monto_arriendo>$C$13,ROW(Placa_A)-ROW(Flota!M$7)+1), ROWS(Flota!M$7:'Flota'!M16))),"") ->  | L25: N/A | N25: N/A | O25: =IF(J25="tipo 1",'Datos para costos'!$E$81,IF(J25="tipo 2",'Datos para costos'!$E$83,"N/A")) -> N/A | P25: N/A
B26: =IFERROR(INDEX(Placa_A,SMALL( IF(Monto_arriendo>$C$13,ROW(Placa_A)-ROW(Flota!D$7)+1), ROWS(Flota!D$7:'Flota'!D17))),"") ->  | C26: =IFERROR(INDEX(Placa_A,SMALL( IF(Monto_arriendo>$C$13,ROW(Placa_A)-ROW(Flota!E$7)+1), ROWS(Flota!E$7:'Flota'!E17))),"") ->  | D26: =IFERROR(INDEX(Placa_A,SMALL( IF(Monto_arriendo>$C$13,ROW(Placa_A)-ROW(Flota!G$7)+1), ROWS(Flota!G$7:'Flota'!G17))),"") ->  | E26: =IFERROR(INDEX(Placa_A,SMALL( IF(Monto_arriendo>$C$13,ROW(Placa_A)-ROW(Flota!H$7)+1), ROWS(Flota!H$7:'Flota'!H17))),"") ->  | F26: =IFERROR(INDEX(Placa_A,SMALL( IF(Monto_arriendo>$C$13,ROW(Placa_A)-ROW(Flota!I$7)+1), ROWS(Flota!I$7:'Flota'!I17))),"") ->  | G26: =IFERROR(INDEX(Placa_A,SMALL( IF(Monto_arriendo>$C$13,ROW(Placa_A)-ROW(Flota!J$7)+1), ROWS(Flota!J$7:'Flota'!J17))),"") ->  | H26: =IFERROR(INDEX(Placa_A,SMALL( IF(Monto_arriendo>$C$13,ROW(Placa_A)-ROW(Flota!K$7)+1), ROWS(Flota!K$7:'Flota'!K17))),"") ->  | I26: =IFERROR(INDEX(Placa_A,SMALL( IF(Monto_arriendo>$C$13,ROW(Placa_A)-ROW(Flota!L$7)+1), ROWS(Flota!L$7:'Flota'!L17))),"") ->  | J26: =IFERROR(INDEX(Placa_A,SMALL( IF(Monto_arriendo>$C$13,ROW(Placa_A)-ROW(Flota!M$7)+1), ROWS(Flota!M$7:'Flota'!M17))),"") ->  | L26: N/A | N26: N/A | O26: =IF(J26="tipo 1",'Datos para costos'!$E$81,IF(J26="tipo 2",'Datos para costos'!$E$83,"N/A")) -> N/A | P26: N/A
B27: =IFERROR(INDEX(Placa_A,SMALL( IF(Monto_arriendo>$C$13,ROW(Placa_A)-ROW(Flota!D$7)+1), ROWS(Flota!D$7:'Flota'!D18))),"") ->  | C27: =IFERROR(INDEX(Placa_A,SMALL( IF(Monto_arriendo>$C$13,ROW(Placa_A)-ROW(Flota!E$7)+1), ROWS(Flota!E$7:'Flota'!E18))),"") ->  | D27: =IFERROR(INDEX(Placa_A,SMALL( IF(Monto_arriendo>$C$13,ROW(Placa_A)-ROW(Flota!G$7)+1), ROWS(Flota!G$7:'Flota'!G18))),"") ->  | E27: =IFERROR(INDEX(Placa_A,SMALL( IF(Monto_arriendo>$C$13,ROW(Placa_A)-ROW(Flota!H$7)+1), ROWS(Flota!H$7:'Flota'!H18))),"") ->  | F27: =IFERROR(INDEX(Placa_A,SMALL( IF(Monto_arriendo>$C$13,ROW(Placa_A)-ROW(Flota!I$7)+1), ROWS(Flota!I$7:'Flota'!I18))),"") ->  | G27: =IFERROR(INDEX(Placa_A,SMALL( IF(Monto_arriendo>$C$13,ROW(Placa_A)-ROW(Flota!J$7)+1), ROWS(Flota!J$7:'Flota'!J18))),"") ->  | H27: =IFERROR(INDEX(Placa_A,SMALL( IF(Monto_arriendo>$C$13,ROW(Placa_A)-ROW(Flota!K$7)+1), ROWS(Flota!K$7:'Flota'!K18))),"") ->  | I27: =IFERROR(INDEX(Placa_A,SMALL( IF(Monto_arriendo>$C$13,ROW(Placa_A)-ROW(Flota!L$7)+1), ROWS(Flota!L$7:'Flota'!L18))),"") ->  | J27: =IFERROR(INDEX(Placa_A,SMALL( IF(Monto_arriendo>$C$13,ROW(Placa_A)-ROW(Flota!M$7)+1), ROWS(Flota!M$7:'Flota'!M18))),"") ->  | L27: N/A | N27: N/A | O27: =IF(J27="tipo 1",'Datos para costos'!$E$81,IF(J27="tipo 2",'Datos para costos'!$E$83,"N/A")) -> N/A | P27: N/A
B28: =IFERROR(INDEX(Placa_A,SMALL( IF(Monto_arriendo>$C$13,ROW(Placa_A)-ROW(Flota!D$7)+1), ROWS(Flota!D$7:'Flota'!D19))),"") ->  | C28: =IFERROR(INDEX(Placa_A,SMALL( IF(Monto_arriendo>$C$13,ROW(Placa_A)-ROW(Flota!E$7)+1), ROWS(Flota!E$7:'Flota'!E19))),"") ->  | D28: =IFERROR(INDEX(Placa_A,SMALL( IF(Monto_arriendo>$C$13,ROW(Placa_A)-ROW(Flota!G$7)+1), ROWS(Flota!G$7:'Flota'!G19))),"") ->  | E28: =IFERROR(INDEX(Placa_A,SMALL( IF(Monto_arriendo>$C$13,ROW(Placa_A)-ROW(Flota!H$7)+1), ROWS(Flota!H$7:'Flota'!H19))),"") ->  | F28: =IFERROR(INDEX(Placa_A,SMALL( IF(Monto_arriendo>$C$13,ROW(Placa_A)-ROW(Flota!I$7)+1), ROWS(Flota!I$7:'Flota'!I19))),"") ->  | G28: =IFERROR(INDEX(Placa_A,SMALL( IF(Monto_arriendo>$C$13,ROW(Placa_A)-ROW(Flota!J$7)+1), ROWS(Flota!J$7:'Flota'!J19))),"") ->  | H28: =IFERROR(INDEX(Placa_A,SMALL( IF(Monto_arriendo>$C$13,ROW(Placa_A)-ROW(Flota!K$7)+1), ROWS(Flota!K$7:'Flota'!K19))),"") ->  | I28: =IFERROR(INDEX(Placa_A,SMALL( IF(Monto_arriendo>$C$13,ROW(Placa_A)-ROW(Flota!L$7)+1), ROWS(Flota!L$7:'Flota'!L19))),"") ->  | J28: =IFERROR(INDEX(Placa_A,SMALL( IF(Monto_arriendo>$C$13,ROW(Placa_A)-ROW(Flota!M$7)+1), ROWS(Flota!M$7:'Flota'!M19))),"") ->  | L28: N/A | N28: N/A | O28: =IF(J28="tipo 1",'Datos para costos'!$E$81,IF(J28="tipo 2",'Datos para costos'!$E$83,"N/A")) -> N/A | P28: N/A
B29: =IFERROR(INDEX(Placa_A,SMALL( IF(Monto_arriendo>$C$13,ROW(Placa_A)-ROW(Flota!D$7)+1), ROWS(Flota!D$7:'Flota'!D20))),"") ->  | C29: =IFERROR(INDEX(Placa_A,SMALL( IF(Monto_arriendo>$C$13,ROW(Placa_A)-ROW(Flota!E$7)+1), ROWS(Flota!E$7:'Flota'!E20))),"") ->  | D29: =IFERROR(INDEX(Placa_A,SMALL( IF(Monto_arriendo>$C$13,ROW(Placa_A)-ROW(Flota!G$7)+1), ROWS(Flota!G$7:'Flota'!G20))),"") ->  | E29: =IFERROR(INDEX(Placa_A,SMALL( IF(Monto_arriendo>$C$13,ROW(Placa_A)-ROW(Flota!H$7)+1), ROWS(Flota!H$7:'Flota'!H20))),"") ->  | F29: =IFERROR(INDEX(Placa_A,SMALL( IF(Monto_arriendo>$C$13,ROW(Placa_A)-ROW(Flota!I$7)+1), ROWS(Flota!I$7:'Flota'!I20))),"") ->  | G29: =IFERROR(INDEX(Placa_A,SMALL( IF(Monto_arriendo>$C$13,ROW(Placa_A)-ROW(Flota!J$7)+1), ROWS(Flota!J$7:'Flota'!J20))),"") ->  | H29: =IFERROR(INDEX(Placa_A,SMALL( IF(Monto_arriendo>$C$13,ROW(Placa_A)-ROW(Flota!K$7)+1), ROWS(Flota!K$7:'Flota'!K20))),"") ->  | I29: =IFERROR(INDEX(Placa_A,SMALL( IF(Monto_arriendo>$C$13,ROW(Placa_A)-ROW(Flota!L$7)+1), ROWS(Flota!L$7:'Flota'!L20))),"") ->  | J29: =IFERROR(INDEX(Placa_A,SMALL( IF(Monto_arriendo>$C$13,ROW(Placa_A)-ROW(Flota!M$7)+1), ROWS(Flota!M$7:'Flota'!M20))),"") ->  | L29: N/A | N29: N/A | O29: =IF(J29="tipo 1",'Datos para costos'!$E$81,IF(J29="tipo 2",'Datos para costos'!$E$83,"N/A")) -> N/A | P29: N/A
B30: =IFERROR(INDEX(Placa_A,SMALL( IF(Monto_arriendo>$C$13,ROW(Placa_A)-ROW(Flota!D$7)+1), ROWS(Flota!D$7:'Flota'!D21))),"") ->  | C30: =IFERROR(INDEX(Placa_A,SMALL( IF(Monto_arriendo>$C$13,ROW(Placa_A)-ROW(Flota!E$7)+1), ROWS(Flota!E$7:'Flota'!E21))),"") ->  | D30: =IFERROR(INDEX(Placa_A,SMALL( IF(Monto_arriendo>$C$13,ROW(Placa_A)-ROW(Flota!G$7)+1), ROWS(Flota!G$7:'Flota'!G21))),"") ->  | E30: =IFERROR(INDEX(Placa_A,SMALL( IF(Monto_arriendo>$C$13,ROW(Placa_A)-ROW(Flota!H$7)+1), ROWS(Flota!H$7:'Flota'!H21))),"") ->  | F30: =IFERROR(INDEX(Placa_A,SMALL( IF(Monto_arriendo>$C$13,ROW(Placa_A)-ROW(Flota!I$7)+1), ROWS(Flota!I$7:'Flota'!I21))),"") ->  | G30: =IFERROR(INDEX(Placa_A,SMALL( IF(Monto_arriendo>$C$13,ROW(Placa_A)-ROW(Flota!J$7)+1), ROWS(Flota!J$7:'Flota'!J21))),"") ->  | H30: =IFERROR(INDEX(Placa_A,SMALL( IF(Monto_arriendo>$C$13,ROW(Placa_A)-ROW(Flota!K$7)+1), ROWS(Flota!K$7:'Flota'!K21))),"") ->  | I30: =IFERROR(INDEX(Placa_A,SMALL( IF(Monto_arriendo>$C$13,ROW(Placa_A)-ROW(Flota!L$7)+1), ROWS(Flota!L$7:'Flota'!L21))),"") ->  | J30: =IFERROR(INDEX(Placa_A,SMALL( IF(Monto_arriendo>$C$13,ROW(Placa_A)-ROW(Flota!M$7)+1), ROWS(Flota!M$7:'Flota'!M21))),"") ->  | L30: N/A | N30: N/A | O30: =IF(J30="tipo 1",'Datos para costos'!$E$81,IF(J30="tipo 2",'Datos para costos'!$E$83,"N/A")) -> N/A | P30: N/A
B31: =IFERROR(INDEX(Placa_A,SMALL( IF(Monto_arriendo>$C$13,ROW(Placa_A)-ROW(Flota!D$7)+1), ROWS(Flota!D$7:'Flota'!D22))),"") ->  | C31: =IFERROR(INDEX(Placa_A,SMALL( IF(Monto_arriendo>$C$13,ROW(Placa_A)-ROW(Flota!E$7)+1), ROWS(Flota!E$7:'Flota'!E22))),"") ->  | D31: =IFERROR(INDEX(Placa_A,SMALL( IF(Monto_arriendo>$C$13,ROW(Placa_A)-ROW(Flota!G$7)+1), ROWS(Flota!G$7:'Flota'!G22))),"") ->  | E31: =IFERROR(INDEX(Placa_A,SMALL( IF(Monto_arriendo>$C$13,ROW(Placa_A)-ROW(Flota!H$7)+1), ROWS(Flota!H$7:'Flota'!H22))),"") ->  | F31: =IFERROR(INDEX(Placa_A,SMALL( IF(Monto_arriendo>$C$13,ROW(Placa_A)-ROW(Flota!I$7)+1), ROWS(Flota!I$7:'Flota'!I22))),"") ->  | G31: =IFERROR(INDEX(Placa_A,SMALL( IF(Monto_arriendo>$C$13,ROW(Placa_A)-ROW(Flota!J$7)+1), ROWS(Flota!J$7:'Flota'!J22))),"") ->  | H31: =IFERROR(INDEX(Placa_A,SMALL( IF(Monto_arriendo>$C$13,ROW(Placa_A)-ROW(Flota!K$7)+1), ROWS(Flota!K$7:'Flota'!K22))),"") ->  | I31: =IFERROR(INDEX(Placa_A,SMALL( IF(Monto_arriendo>$C$13,ROW(Placa_A)-ROW(Flota!L$7)+1), ROWS(Flota!L$7:'Flota'!L22))),"") ->  | J31: =IFERROR(INDEX(Placa_A,SMALL( IF(Monto_arriendo>$C$13,ROW(Placa_A)-ROW(Flota!M$7)+1), ROWS(Flota!M$7:'Flota'!M22))),"") ->  | L31: N/A | N31: N/A | O31: =IF(J31="tipo 1",'Datos para costos'!$E$81,IF(J31="tipo 2",'Datos para costos'!$E$83,"N/A")) -> N/A | P31: N/A
B32: =IFERROR(INDEX(Placa_A,SMALL( IF(Monto_arriendo>$C$13,ROW(Placa_A)-ROW(Flota!D$7)+1), ROWS(Flota!D$7:'Flota'!D23))),"") ->  | C32: =IFERROR(INDEX(Placa_A,SMALL( IF(Monto_arriendo>$C$13,ROW(Placa_A)-ROW(Flota!E$7)+1), ROWS(Flota!E$7:'Flota'!E23))),"") ->  | D32: =IFERROR(INDEX(Placa_A,SMALL( IF(Monto_arriendo>$C$13,ROW(Placa_A)-ROW(Flota!G$7)+1), ROWS(Flota!G$7:'Flota'!G23))),"") ->  | E32: =IFERROR(INDEX(Placa_A,SMALL( IF(Monto_arriendo>$C$13,ROW(Placa_A)-ROW(Flota!H$7)+1), ROWS(Flota!H$7:'Flota'!H23))),"") ->  | F32: =IFERROR(INDEX(Placa_A,SMALL( IF(Monto_arriendo>$C$13,ROW(Placa_A)-ROW(Flota!I$7)+1), ROWS(Flota!I$7:'Flota'!I23))),"") ->  | G32: =IFERROR(INDEX(Placa_A,SMALL( IF(Monto_arriendo>$C$13,ROW(Placa_A)-ROW(Flota!J$7)+1), ROWS(Flota!J$7:'Flota'!J23))),"") ->  | H32: =IFERROR(INDEX(Placa_A,SMALL( IF(Monto_arriendo>$C$13,ROW(Placa_A)-ROW(Flota!K$7)+1), ROWS(Flota!K$7:'Flota'!K23))),"") ->  | I32: =IFERROR(INDEX(Placa_A,SMALL( IF(Monto_arriendo>$C$13,ROW(Placa_A)-ROW(Flota!L$7)+1), ROWS(Flota!L$7:'Flota'!L23))),"") ->  | J32: =IFERROR(INDEX(Placa_A,SMALL( IF(Monto_arriendo>$C$13,ROW(Placa_A)-ROW(Flota!M$7)+1), ROWS(Flota!M$7:'Flota'!M23))),"") ->  | L32: N/A | N32: N/A | O32: =IF(J32="tipo 1",'Datos para costos'!$E$81,IF(J32="tipo 2",'Datos para costos'!$E$83,"N/A")) -> N/A | P32: N/A
B33: =IFERROR(INDEX(Placa_A,SMALL( IF(Monto_arriendo>$C$13,ROW(Placa_A)-ROW(Flota!D$7)+1), ROWS(Flota!D$7:'Flota'!D24))),"") ->  | C33: =IFERROR(INDEX(Placa_A,SMALL( IF(Monto_arriendo>$C$13,ROW(Placa_A)-ROW(Flota!E$7)+1), ROWS(Flota!E$7:'Flota'!E24))),"") ->  | D33: =IFERROR(INDEX(Placa_A,SMALL( IF(Monto_arriendo>$C$13,ROW(Placa_A)-ROW(Flota!G$7)+1), ROWS(Flota!G$7:'Flota'!G24))),"") ->  | E33: =IFERROR(INDEX(Placa_A,SMALL( IF(Monto_arriendo>$C$13,ROW(Placa_A)-ROW(Flota!H$7)+1), ROWS(Flota!H$7:'Flota'!H24))),"") ->  | F33: =IFERROR(INDEX(Placa_A,SMALL( IF(Monto_arriendo>$C$13,ROW(Placa_A)-ROW(Flota!I$7)+1), ROWS(Flota!I$7:'Flota'!I24))),"") ->  | G33: =IFERROR(INDEX(Placa_A,SMALL( IF(Monto_arriendo>$C$13,ROW(Placa_A)-ROW(Flota!J$7)+1), ROWS(Flota!J$7:'Flota'!J24))),"") ->  | H33: =IFERROR(INDEX(Placa_A,SMALL( IF(Monto_arriendo>$C$13,ROW(Placa_A)-ROW(Flota!K$7)+1), ROWS(Flota!K$7:'Flota'!K24))),"") ->  | I33: =IFERROR(INDEX(Placa_A,SMALL( IF(Monto_arriendo>$C$13,ROW(Placa_A)-ROW(Flota!L$7)+1), ROWS(Flota!L$7:'Flota'!L24))),"") ->  | J33: =IFERROR(INDEX(Placa_A,SMALL( IF(Monto_arriendo>$C$13,ROW(Placa_A)-ROW(Flota!M$7)+1), ROWS(Flota!M$7:'Flota'!M24))),"") ->  | L33: N/A | N33: N/A | O33: =IF(J33="tipo 1",'Datos para costos'!$E$81,IF(J33="tipo 2",'Datos para costos'!$E$83,"N/A")) -> N/A | P33: N/A
B34: =IFERROR(INDEX(Placa_A,SMALL( IF(Monto_arriendo>$C$13,ROW(Placa_A)-ROW(Flota!D$7)+1), ROWS(Flota!D$7:'Flota'!D25))),"") ->  | C34: =IFERROR(INDEX(Placa_A,SMALL( IF(Monto_arriendo>$C$13,ROW(Placa_A)-ROW(Flota!E$7)+1), ROWS(Flota!E$7:'Flota'!E25))),"") ->  | D34: =IFERROR(INDEX(Placa_A,SMALL( IF(Monto_arriendo>$C$13,ROW(Placa_A)-ROW(Flota!G$7)+1), ROWS(Flota!G$7:'Flota'!G25))),"") ->  | E34: =IFERROR(INDEX(Placa_A,SMALL( IF(Monto_arriendo>$C$13,ROW(Placa_A)-ROW(Flota!H$7)+1), ROWS(Flota!H$7:'Flota'!H25))),"") ->  | F34: =IFERROR(INDEX(Placa_A,SMALL( IF(Monto_arriendo>$C$13,ROW(Placa_A)-ROW(Flota!I$7)+1), ROWS(Flota!I$7:'Flota'!I25))),"") ->  | G34: =IFERROR(INDEX(Placa_A,SMALL( IF(Monto_arriendo>$C$13,ROW(Placa_A)-ROW(Flota!J$7)+1), ROWS(Flota!J$7:'Flota'!J25))),"") ->  | H34: =IFERROR(INDEX(Placa_A,SMALL( IF(Monto_arriendo>$C$13,ROW(Placa_A)-ROW(Flota!K$7)+1), ROWS(Flota!K$7:'Flota'!K25))),"") ->  | I34: =IFERROR(INDEX(Placa_A,SMALL( IF(Monto_arriendo>$C$13,ROW(Placa_A)-ROW(Flota!L$7)+1), ROWS(Flota!L$7:'Flota'!L25))),"") ->  | J34: =IFERROR(INDEX(Placa_A,SMALL( IF(Monto_arriendo>$C$13,ROW(Placa_A)-ROW(Flota!M$7)+1), ROWS(Flota!M$7:'Flota'!M25))),"") ->  | L34: N/A | N34: N/A | O34: =IF(J34="tipo 1",'Datos para costos'!$E$81,IF(J34="tipo 2",'Datos para costos'!$E$83,"N/A")) -> N/A | P34: N/A
B35: =IFERROR(INDEX(Placa_A,SMALL( IF(Monto_arriendo>$C$13,ROW(Placa_A)-ROW(Flota!D$7)+1), ROWS(Flota!D$7:'Flota'!D26))),"") ->  | C35: =IFERROR(INDEX(Placa_A,SMALL( IF(Monto_arriendo>$C$13,ROW(Placa_A)-ROW(Flota!E$7)+1), ROWS(Flota!E$7:'Flota'!E26))),"") ->  | D35: =IFERROR(INDEX(Placa_A,SMALL( IF(Monto_arriendo>$C$13,ROW(Placa_A)-ROW(Flota!G$7)+1), ROWS(Flota!G$7:'Flota'!G26))),"") ->  | E35: =IFERROR(INDEX(Placa_A,SMALL( IF(Monto_arriendo>$C$13,ROW(Placa_A)-ROW(Flota!H$7)+1), ROWS(Flota!H$7:'Flota'!H26))),"") ->  | F35: =IFERROR(INDEX(Placa_A,SMALL( IF(Monto_arriendo>$C$13,ROW(Placa_A)-ROW(Flota!I$7)+1), ROWS(Flota!I$7:'Flota'!I26))),"") ->  | G35: =IFERROR(INDEX(Placa_A,SMALL( IF(Monto_arriendo>$C$13,ROW(Placa_A)-ROW(Flota!J$7)+1), ROWS(Flota!J$7:'Flota'!J26))),"") ->  | H35: =IFERROR(INDEX(Placa_A,SMALL( IF(Monto_arriendo>$C$13,ROW(Placa_A)-ROW(Flota!K$7)+1), ROWS(Flota!K$7:'Flota'!K26))),"") ->  | I35: =IFERROR(INDEX(Placa_A,SMALL( IF(Monto_arriendo>$C$13,ROW(Placa_A)-ROW(Flota!L$7)+1), ROWS(Flota!L$7:'Flota'!L26))),"") ->  | J35: =IFERROR(INDEX(Placa_A,SMALL( IF(Monto_arriendo>$C$13,ROW(Placa_A)-ROW(Flota!M$7)+1), ROWS(Flota!M$7:'Flota'!M26))),"") ->  | L35: N/A | N35: N/A | O35: =IF(J35="tipo 1",'Datos para costos'!$E$81,IF(J35="tipo 2",'Datos para costos'!$E$83,"N/A")) -> N/A | P35: N/A
B36: =IFERROR(INDEX(Placa_A,SMALL( IF(Monto_arriendo>$C$13,ROW(Placa_A)-ROW(Flota!D$7)+1), ROWS(Flota!D$7:'Flota'!D27))),"") ->  | C36: =IFERROR(INDEX(Placa_A,SMALL( IF(Monto_arriendo>$C$13,ROW(Placa_A)-ROW(Flota!E$7)+1), ROWS(Flota!E$7:'Flota'!E27))),"") ->  | D36: =IFERROR(INDEX(Placa_A,SMALL( IF(Monto_arriendo>$C$13,ROW(Placa_A)-ROW(Flota!G$7)+1), ROWS(Flota!G$7:'Flota'!G27))),"") ->  | E36: =IFERROR(INDEX(Placa_A,SMALL( IF(Monto_arriendo>$C$13,ROW(Placa_A)-ROW(Flota!H$7)+1), ROWS(Flota!H$7:'Flota'!H27))),"") ->  | F36: =IFERROR(INDEX(Placa_A,SMALL( IF(Monto_arriendo>$C$13,ROW(Placa_A)-ROW(Flota!I$7)+1), ROWS(Flota!I$7:'Flota'!I27))),"") ->  | G36: =IFERROR(INDEX(Placa_A,SMALL( IF(Monto_arriendo>$C$13,ROW(Placa_A)-ROW(Flota!J$7)+1), ROWS(Flota!J$7:'Flota'!J27))),"") ->  | H36: =IFERROR(INDEX(Placa_A,SMALL( IF(Monto_arriendo>$C$13,ROW(Placa_A)-ROW(Flota!K$7)+1), ROWS(Flota!K$7:'Flota'!K27))),"") ->  | I36: =IFERROR(INDEX(Placa_A,SMALL( IF(Monto_arriendo>$C$13,ROW(Placa_A)-ROW(Flota!L$7)+1), ROWS(Flota!L$7:'Flota'!L27))),"") ->  | J36: =IFERROR(INDEX(Placa_A,SMALL( IF(Monto_arriendo>$C$13,ROW(Placa_A)-ROW(Flota!M$7)+1), ROWS(Flota!M$7:'Flota'!M27))),"") ->  | L36: N/A | N36: N/A | O36: =IF(J36="tipo 1",'Datos para costos'!$E$81,IF(J36="tipo 2",'Datos para costos'!$E$83,"N/A")) -> N/A | P36: N/A
B37: =IFERROR(INDEX(Placa_A,SMALL( IF(Monto_arriendo>$C$13,ROW(Placa_A)-ROW(Flota!D$7)+1), ROWS(Flota!D$7:'Flota'!D28))),"") ->  | C37: =IFERROR(INDEX(Placa_A,SMALL( IF(Monto_arriendo>$C$13,ROW(Placa_A)-ROW(Flota!E$7)+1), ROWS(Flota!E$7:'Flota'!E28))),"") ->  | D37: =IFERROR(INDEX(Placa_A,SMALL( IF(Monto_arriendo>$C$13,ROW(Placa_A)-ROW(Flota!G$7)+1), ROWS(Flota!G$7:'Flota'!G28))),"") ->  | E37: =IFERROR(INDEX(Placa_A,SMALL( IF(Monto_arriendo>$C$13,ROW(Placa_A)-ROW(Flota!H$7)+1), ROWS(Flota!H$7:'Flota'!H28))),"") ->  | F37: =IFERROR(INDEX(Placa_A,SMALL( IF(Monto_arriendo>$C$13,ROW(Placa_A)-ROW(Flota!I$7)+1), ROWS(Flota!I$7:'Flota'!I28))),"") ->  | G37: =IFERROR(INDEX(Placa_A,SMALL( IF(Monto_arriendo>$C$13,ROW(Placa_A)-ROW(Flota!J$7)+1), ROWS(Flota!J$7:'Flota'!J28))),"") ->  | H37: =IFERROR(INDEX(Placa_A,SMALL( IF(Monto_arriendo>$C$13,ROW(Placa_A)-ROW(Flota!K$7)+1), ROWS(Flota!K$7:'Flota'!K28))),"") ->  | I37: =IFERROR(INDEX(Placa_A,SMALL( IF(Monto_arriendo>$C$13,ROW(Placa_A)-ROW(Flota!L$7)+1), ROWS(Flota!L$7:'Flota'!L28))),"") ->  | J37: =IFERROR(INDEX(Placa_A,SMALL( IF(Monto_arriendo>$C$13,ROW(Placa_A)-ROW(Flota!M$7)+1), ROWS(Flota!M$7:'Flota'!M28))),"") ->  | L37: N/A | N37: N/A | O37: =IF(J37="tipo 1",'Datos para costos'!$E$81,IF(J37="tipo 2",'Datos para costos'!$E$83,"N/A")) -> N/A | P37: N/A
B38: =IFERROR(INDEX(Placa_A,SMALL( IF(Monto_arriendo>$C$13,ROW(Placa_A)-ROW(Flota!D$7)+1), ROWS(Flota!D$7:'Flota'!D29))),"") ->  | C38: =IFERROR(INDEX(Placa_A,SMALL( IF(Monto_arriendo>$C$13,ROW(Placa_A)-ROW(Flota!E$7)+1), ROWS(Flota!E$7:'Flota'!E29))),"") ->  | D38: =IFERROR(INDEX(Placa_A,SMALL( IF(Monto_arriendo>$C$13,ROW(Placa_A)-ROW(Flota!G$7)+1), ROWS(Flota!G$7:'Flota'!G29))),"") ->  | E38: =IFERROR(INDEX(Placa_A,SMALL( IF(Monto_arriendo>$C$13,ROW(Placa_A)-ROW(Flota!H$7)+1), ROWS(Flota!H$7:'Flota'!H29))),"") ->  | F38: =IFERROR(INDEX(Placa_A,SMALL( IF(Monto_arriendo>$C$13,ROW(Placa_A)-ROW(Flota!I$7)+1), ROWS(Flota!I$7:'Flota'!I29))),"") ->  | G38: =IFERROR(INDEX(Placa_A,SMALL( IF(Monto_arriendo>$C$13,ROW(Placa_A)-ROW(Flota!J$7)+1), ROWS(Flota!J$7:'Flota'!J29))),"") ->  | H38: =IFERROR(INDEX(Placa_A,SMALL( IF(Monto_arriendo>$C$13,ROW(Placa_A)-ROW(Flota!K$7)+1), ROWS(Flota!K$7:'Flota'!K29))),"") ->  | I38: =IFERROR(INDEX(Placa_A,SMALL( IF(Monto_arriendo>$C$13,ROW(Placa_A)-ROW(Flota!L$7)+1), ROWS(Flota!L$7:'Flota'!L29))),"") ->  | J38: =IFERROR(INDEX(Placa_A,SMALL( IF(Monto_arriendo>$C$13,ROW(Placa_A)-ROW(Flota!M$7)+1), ROWS(Flota!M$7:'Flota'!M29))),"") ->  | L38: N/A | N38: N/A | O38: =IF(J38="tipo 1",'Datos para costos'!$E$81,IF(J38="tipo 2",'Datos para costos'!$E$83,"N/A")) -> N/A | P38: N/A
B39: =IFERROR(INDEX(Placa_A,SMALL( IF(Monto_arriendo>$C$13,ROW(Placa_A)-ROW(Flota!D$7)+1), ROWS(Flota!D$7:'Flota'!D30))),"") ->  | C39: =IFERROR(INDEX(Placa_A,SMALL( IF(Monto_arriendo>$C$13,ROW(Placa_A)-ROW(Flota!E$7)+1), ROWS(Flota!E$7:'Flota'!E30))),"") ->  | D39: =IFERROR(INDEX(Placa_A,SMALL( IF(Monto_arriendo>$C$13,ROW(Placa_A)-ROW(Flota!G$7)+1), ROWS(Flota!G$7:'Flota'!G30))),"") ->  | E39: =IFERROR(INDEX(Placa_A,SMALL( IF(Monto_arriendo>$C$13,ROW(Placa_A)-ROW(Flota!H$7)+1), ROWS(Flota!H$7:'Flota'!H30))),"") ->  | F39: =IFERROR(INDEX(Placa_A,SMALL( IF(Monto_arriendo>$C$13,ROW(Placa_A)-ROW(Flota!I$7)+1), ROWS(Flota!I$7:'Flota'!I30))),"") ->  | G39: =IFERROR(INDEX(Placa_A,SMALL( IF(Monto_arriendo>$C$13,ROW(Placa_A)-ROW(Flota!J$7)+1), ROWS(Flota!J$7:'Flota'!J30))),"") ->  | H39: =IFERROR(INDEX(Placa_A,SMALL( IF(Monto_arriendo>$C$13,ROW(Placa_A)-ROW(Flota!K$7)+1), ROWS(Flota!K$7:'Flota'!K30))),"") ->  | I39: =IFERROR(INDEX(Placa_A,SMALL( IF(Monto_arriendo>$C$13,ROW(Placa_A)-ROW(Flota!L$7)+1), ROWS(Flota!L$7:'Flota'!L30))),"") ->  | J39: =IFERROR(INDEX(Placa_A,SMALL( IF(Monto_arriendo>$C$13,ROW(Placa_A)-ROW(Flota!M$7)+1), ROWS(Flota!M$7:'Flota'!M30))),"") ->  | L39: N/A | N39: N/A | O39: =IF(J39="tipo 1",'Datos para costos'!$E$81,IF(J39="tipo 2",'Datos para costos'!$E$83,"N/A")) -> N/A | P39: N/A
B40: =IFERROR(INDEX(Placa_A,SMALL( IF(Monto_arriendo>$C$13,ROW(Placa_A)-ROW(Flota!D$7)+1), ROWS(Flota!D$7:'Flota'!D31))),"") ->  | C40: =IFERROR(INDEX(Placa_A,SMALL( IF(Monto_arriendo>$C$13,ROW(Placa_A)-ROW(Flota!E$7)+1), ROWS(Flota!E$7:'Flota'!E31))),"") ->  | D40: =IFERROR(INDEX(Placa_A,SMALL( IF(Monto_arriendo>$C$13,ROW(Placa_A)-ROW(Flota!G$7)+1), ROWS(Flota!G$7:'Flota'!G31))),"") ->  | E40: =IFERROR(INDEX(Placa_A,SMALL( IF(Monto_arriendo>$C$13,ROW(Placa_A)-ROW(Flota!H$7)+1), ROWS(Flota!H$7:'Flota'!H31))),"") ->  | F40: =IFERROR(INDEX(Placa_A,SMALL( IF(Monto_arriendo>$C$13,ROW(Placa_A)-ROW(Flota!I$7)+1), ROWS(Flota!I$7:'Flota'!I31))),"") ->  | G40: =IFERROR(INDEX(Placa_A,SMALL( IF(Monto_arriendo>$C$13,ROW(Placa_A)-ROW(Flota!J$7)+1), ROWS(Flota!J$7:'Flota'!J31))),"") ->  | H40: =IFERROR(INDEX(Placa_A,SMALL( IF(Monto_arriendo>$C$13,ROW(Placa_A)-ROW(Flota!K$7)+1), ROWS(Flota!K$7:'Flota'!K31))),"") ->  | I40: =IFERROR(INDEX(Placa_A,SMALL( IF(Monto_arriendo>$C$13,ROW(Placa_A)-ROW(Flota!L$7)+1), ROWS(Flota!L$7:'Flota'!L31))),"") ->  | J40: =IFERROR(INDEX(Placa_A,SMALL( IF(Monto_arriendo>$C$13,ROW(Placa_A)-ROW(Flota!M$7)+1), ROWS(Flota!M$7:'Flota'!M31))),"") ->  | L40: N/A | N40: N/A | O40: =IF(J40="tipo 1",'Datos para costos'!$E$81,IF(J40="tipo 2",'Datos para costos'!$E$83,"N/A")) -> N/A | P40: N/A
B41: =IFERROR(INDEX(Placa_A,SMALL( IF(Monto_arriendo>$C$13,ROW(Placa_A)-ROW(Flota!D$7)+1), ROWS(Flota!D$7:'Flota'!D32))),"") ->  | C41: =IFERROR(INDEX(Placa_A,SMALL( IF(Monto_arriendo>$C$13,ROW(Placa_A)-ROW(Flota!E$7)+1), ROWS(Flota!E$7:'Flota'!E32))),"") ->  | D41: =IFERROR(INDEX(Placa_A,SMALL( IF(Monto_arriendo>$C$13,ROW(Placa_A)-ROW(Flota!G$7)+1), ROWS(Flota!G$7:'Flota'!G32))),"") ->  | E41: =IFERROR(INDEX(Placa_A,SMALL( IF(Monto_arriendo>$C$13,ROW(Placa_A)-ROW(Flota!H$7)+1), ROWS(Flota!H$7:'Flota'!H32))),"") ->  | F41: =IFERROR(INDEX(Placa_A,SMALL( IF(Monto_arriendo>$C$13,ROW(Placa_A)-ROW(Flota!I$7)+1), ROWS(Flota!I$7:'Flota'!I32))),"") ->  | G41: =IFERROR(INDEX(Placa_A,SMALL( IF(Monto_arriendo>$C$13,ROW(Placa_A)-ROW(Flota!J$7)+1), ROWS(Flota!J$7:'Flota'!J32))),"") ->  | H41: =IFERROR(INDEX(Placa_A,SMALL( IF(Monto_arriendo>$C$13,ROW(Placa_A)-ROW(Flota!K$7)+1), ROWS(Flota!K$7:'Flota'!K32))),"") ->  | I41: =IFERROR(INDEX(Placa_A,SMALL( IF(Monto_arriendo>$C$13,ROW(Placa_A)-ROW(Flota!L$7)+1), ROWS(Flota!L$7:'Flota'!L32))),"") ->  | J41: =IFERROR(INDEX(Placa_A,SMALL( IF(Monto_arriendo>$C$13,ROW(Placa_A)-ROW(Flota!M$7)+1), ROWS(Flota!M$7:'Flota'!M32))),"") ->  | L41: N/A | N41: N/A | O41: =IF(J41="tipo 1",'Datos para costos'!$E$81,IF(J41="tipo 2",'Datos para costos'!$E$83,"N/A")) -> N/A | P41: N/A
B42: =IFERROR(INDEX(Placa_A,SMALL( IF(Monto_arriendo>$C$13,ROW(Placa_A)-ROW(Flota!D$7)+1), ROWS(Flota!D$7:'Flota'!D33))),"") ->  | C42: =IFERROR(INDEX(Placa_A,SMALL( IF(Monto_arriendo>$C$13,ROW(Placa_A)-ROW(Flota!E$7)+1), ROWS(Flota!E$7:'Flota'!E33))),"") ->  | D42: =IFERROR(INDEX(Placa_A,SMALL( IF(Monto_arriendo>$C$13,ROW(Placa_A)-ROW(Flota!G$7)+1), ROWS(Flota!G$7:'Flota'!G33))),"") ->  | E42: =IFERROR(INDEX(Placa_A,SMALL( IF(Monto_arriendo>$C$13,ROW(Placa_A)-ROW(Flota!H$7)+1), ROWS(Flota!H$7:'Flota'!H33))),"") ->  | F42: =IFERROR(INDEX(Placa_A,SMALL( IF(Monto_arriendo>$C$13,ROW(Placa_A)-ROW(Flota!I$7)+1), ROWS(Flota!I$7:'Flota'!I33))),"") ->  | G42: =IFERROR(INDEX(Placa_A,SMALL( IF(Monto_arriendo>$C$13,ROW(Placa_A)-ROW(Flota!J$7)+1), ROWS(Flota!J$7:'Flota'!J33))),"") ->  | H42: =IFERROR(INDEX(Placa_A,SMALL( IF(Monto_arriendo>$C$13,ROW(Placa_A)-ROW(Flota!K$7)+1), ROWS(Flota!K$7:'Flota'!K33))),"") ->  | I42: =IFERROR(INDEX(Placa_A,SMALL( IF(Monto_arriendo>$C$13,ROW(Placa_A)-ROW(Flota!L$7)+1), ROWS(Flota!L$7:'Flota'!L33))),"") ->  | J42: =IFERROR(INDEX(Placa_A,SMALL( IF(Monto_arriendo>$C$13,ROW(Placa_A)-ROW(Flota!M$7)+1), ROWS(Flota!M$7:'Flota'!M33))),"") ->  | L42: N/A | N42: N/A | O42: =IF(J42="tipo 1",'Datos para costos'!$E$81,IF(J42="tipo 2",'Datos para costos'!$E$83,"N/A")) -> N/A | P42: N/A
B43: =IFERROR(INDEX(Placa_A,SMALL( IF(Monto_arriendo>$C$13,ROW(Placa_A)-ROW(Flota!D$7)+1), ROWS(Flota!D$7:'Flota'!D34))),"") ->  | C43: =IFERROR(INDEX(Placa_A,SMALL( IF(Monto_arriendo>$C$13,ROW(Placa_A)-ROW(Flota!E$7)+1), ROWS(Flota!E$7:'Flota'!E34))),"") ->  | D43: =IFERROR(INDEX(Placa_A,SMALL( IF(Monto_arriendo>$C$13,ROW(Placa_A)-ROW(Flota!G$7)+1), ROWS(Flota!G$7:'Flota'!G34))),"") ->  | E43: =IFERROR(INDEX(Placa_A,SMALL( IF(Monto_arriendo>$C$13,ROW(Placa_A)-ROW(Flota!H$7)+1), ROWS(Flota!H$7:'Flota'!H34))),"") ->  | F43: =IFERROR(INDEX(Placa_A,SMALL( IF(Monto_arriendo>$C$13,ROW(Placa_A)-ROW(Flota!I$7)+1), ROWS(Flota!I$7:'Flota'!I34))),"") ->  | G43: =IFERROR(INDEX(Placa_A,SMALL( IF(Monto_arriendo>$C$13,ROW(Placa_A)-ROW(Flota!J$7)+1), ROWS(Flota!J$7:'Flota'!J34))),"") ->  | H43: =IFERROR(INDEX(Placa_A,SMALL( IF(Monto_arriendo>$C$13,ROW(Placa_A)-ROW(Flota!K$7)+1), ROWS(Flota!K$7:'Flota'!K34))),"") ->  | I43: =IFERROR(INDEX(Placa_A,SMALL( IF(Monto_arriendo>$C$13,ROW(Placa_A)-ROW(Flota!L$7)+1), ROWS(Flota!L$7:'Flota'!L34))),"") ->  | J43: =IFERROR(INDEX(Placa_A,SMALL( IF(Monto_arriendo>$C$13,ROW(Placa_A)-ROW(Flota!M$7)+1), ROWS(Flota!M$7:'Flota'!M34))),"") ->  | L43: N/A | N43: N/A | O43: =IF(J43="tipo 1",'Datos para costos'!$E$81,IF(J43="tipo 2",'Datos para costos'!$E$83,"N/A")) -> N/A | P43: N/A
B44: =IFERROR(INDEX(Placa_A,SMALL( IF(Monto_arriendo>$C$13,ROW(Placa_A)-ROW(Flota!D$7)+1), ROWS(Flota!D$7:'Flota'!D35))),"") ->  | C44: =IFERROR(INDEX(Placa_A,SMALL( IF(Monto_arriendo>$C$13,ROW(Placa_A)-ROW(Flota!E$7)+1), ROWS(Flota!E$7:'Flota'!E35))),"") ->  | D44: =IFERROR(INDEX(Placa_A,SMALL( IF(Monto_arriendo>$C$13,ROW(Placa_A)-ROW(Flota!G$7)+1), ROWS(Flota!G$7:'Flota'!G35))),"") ->  | E44: =IFERROR(INDEX(Placa_A,SMALL( IF(Monto_arriendo>$C$13,ROW(Placa_A)-ROW(Flota!H$7)+1), ROWS(Flota!H$7:'Flota'!H35))),"") ->  | F44: =IFERROR(INDEX(Placa_A,SMALL( IF(Monto_arriendo>$C$13,ROW(Placa_A)-ROW(Flota!I$7)+1), ROWS(Flota!I$7:'Flota'!I35))),"") ->  | G44: =IFERROR(INDEX(Placa_A,SMALL( IF(Monto_arriendo>$C$13,ROW(Placa_A)-ROW(Flota!J$7)+1), ROWS(Flota!J$7:'Flota'!J35))),"") ->  | H44: =IFERROR(INDEX(Placa_A,SMALL( IF(Monto_arriendo>$C$13,ROW(Placa_A)-ROW(Flota!K$7)+1), ROWS(Flota!K$7:'Flota'!K35))),"") ->  | I44: =IFERROR(INDEX(Placa_A,SMALL( IF(Monto_arriendo>$C$13,ROW(Placa_A)-ROW(Flota!L$7)+1), ROWS(Flota!L$7:'Flota'!L35))),"") ->  | J44: =IFERROR(INDEX(Placa_A,SMALL( IF(Monto_arriendo>$C$13,ROW(Placa_A)-ROW(Flota!M$7)+1), ROWS(Flota!M$7:'Flota'!M35))),"") ->  | L44: N/A | N44: N/A | O44: =IF(J44="tipo 1",'Datos para costos'!$E$81,IF(J44="tipo 2",'Datos para costos'!$E$83,"N/A")) -> N/A | P44: N/A
B45: =IFERROR(INDEX(Placa_A,SMALL( IF(Monto_arriendo>$C$13,ROW(Placa_A)-ROW(Flota!D$7)+1), ROWS(Flota!D$7:'Flota'!D36))),"") ->  | C45: =IFERROR(INDEX(Placa_A,SMALL( IF(Monto_arriendo>$C$13,ROW(Placa_A)-ROW(Flota!E$7)+1), ROWS(Flota!E$7:'Flota'!E36))),"") ->  | D45: =IFERROR(INDEX(Placa_A,SMALL( IF(Monto_arriendo>$C$13,ROW(Placa_A)-ROW(Flota!G$7)+1), ROWS(Flota!G$7:'Flota'!G36))),"") ->  | E45: =IFERROR(INDEX(Placa_A,SMALL( IF(Monto_arriendo>$C$13,ROW(Placa_A)-ROW(Flota!H$7)+1), ROWS(Flota!H$7:'Flota'!H36))),"") ->  | F45: =IFERROR(INDEX(Placa_A,SMALL( IF(Monto_arriendo>$C$13,ROW(Placa_A)-ROW(Flota!I$7)+1), ROWS(Flota!I$7:'Flota'!I36))),"") ->  | G45: =IFERROR(INDEX(Placa_A,SMALL( IF(Monto_arriendo>$C$13,ROW(Placa_A)-ROW(Flota!J$7)+1), ROWS(Flota!J$7:'Flota'!J36))),"") ->  | H45: =IFERROR(INDEX(Placa_A,SMALL( IF(Monto_arriendo>$C$13,ROW(Placa_A)-ROW(Flota!K$7)+1), ROWS(Flota!K$7:'Flota'!K36))),"") ->  | I45: =IFERROR(INDEX(Placa_A,SMALL( IF(Monto_arriendo>$C$13,ROW(Placa_A)-ROW(Flota!L$7)+1), ROWS(Flota!L$7:'Flota'!L36))),"") ->  | J45: =IFERROR(INDEX(Placa_A,SMALL( IF(Monto_arriendo>$C$13,ROW(Placa_A)-ROW(Flota!M$7)+1), ROWS(Flota!M$7:'Flota'!M36))),"") ->  | L45: N/A | N45: N/A | O45: =IF(J45="tipo 1",'Datos para costos'!$E$81,IF(J45="tipo 2",'Datos para costos'!$E$83,"N/A")) -> N/A | P45: N/A
B46: =IFERROR(INDEX(Placa_A,SMALL( IF(Monto_arriendo>$C$13,ROW(Placa_A)-ROW(Flota!D$7)+1), ROWS(Flota!D$7:'Flota'!D37))),"") ->  | C46: =IFERROR(INDEX(Placa_A,SMALL( IF(Monto_arriendo>$C$13,ROW(Placa_A)-ROW(Flota!E$7)+1), ROWS(Flota!E$7:'Flota'!E37))),"") ->  | D46: =IFERROR(INDEX(Placa_A,SMALL( IF(Monto_arriendo>$C$13,ROW(Placa_A)-ROW(Flota!G$7)+1), ROWS(Flota!G$7:'Flota'!G37))),"") ->  | E46: =IFERROR(INDEX(Placa_A,SMALL( IF(Monto_arriendo>$C$13,ROW(Placa_A)-ROW(Flota!H$7)+1), ROWS(Flota!H$7:'Flota'!H37))),"") ->  | F46: =IFERROR(INDEX(Placa_A,SMALL( IF(Monto_arriendo>$C$13,ROW(Placa_A)-ROW(Flota!I$7)+1), ROWS(Flota!I$7:'Flota'!I37))),"") ->  | G46: =IFERROR(INDEX(Placa_A,SMALL( IF(Monto_arriendo>$C$13,ROW(Placa_A)-ROW(Flota!J$7)+1), ROWS(Flota!J$7:'Flota'!J37))),"") ->  | H46: =IFERROR(INDEX(Placa_A,SMALL( IF(Monto_arriendo>$C$13,ROW(Placa_A)-ROW(Flota!K$7)+1), ROWS(Flota!K$7:'Flota'!K37))),"") ->  | I46: =IFERROR(INDEX(Placa_A,SMALL( IF(Monto_arriendo>$C$13,ROW(Placa_A)-ROW(Flota!L$7)+1), ROWS(Flota!L$7:'Flota'!L37))),"") ->  | J46: =IFERROR(INDEX(Placa_A,SMALL( IF(Monto_arriendo>$C$13,ROW(Placa_A)-ROW(Flota!M$7)+1), ROWS(Flota!M$7:'Flota'!M37))),"") ->  | L46: N/A | N46: N/A | O46: =IF(J46="tipo 1",'Datos para costos'!$E$81,IF(J46="tipo 2",'Datos para costos'!$E$83,"N/A")) -> N/A | P46: N/A
B47: =IFERROR(INDEX(Placa_A,SMALL( IF(Monto_arriendo>$C$13,ROW(Placa_A)-ROW(Flota!D$7)+1), ROWS(Flota!D$7:'Flota'!D38))),"") ->  | C47: =IFERROR(INDEX(Placa_A,SMALL( IF(Monto_arriendo>$C$13,ROW(Placa_A)-ROW(Flota!E$7)+1), ROWS(Flota!E$7:'Flota'!E38))),"") ->  | D47: =IFERROR(INDEX(Placa_A,SMALL( IF(Monto_arriendo>$C$13,ROW(Placa_A)-ROW(Flota!G$7)+1), ROWS(Flota!G$7:'Flota'!G38))),"") ->  | E47: =IFERROR(INDEX(Placa_A,SMALL( IF(Monto_arriendo>$C$13,ROW(Placa_A)-ROW(Flota!H$7)+1), ROWS(Flota!H$7:'Flota'!H38))),"") ->  | F47: =IFERROR(INDEX(Placa_A,SMALL( IF(Monto_arriendo>$C$13,ROW(Placa_A)-ROW(Flota!I$7)+1), ROWS(Flota!I$7:'Flota'!I38))),"") ->  | G47: =IFERROR(INDEX(Placa_A,SMALL( IF(Monto_arriendo>$C$13,ROW(Placa_A)-ROW(Flota!J$7)+1), ROWS(Flota!J$7:'Flota'!J38))),"") ->  | H47: =IFERROR(INDEX(Placa_A,SMALL( IF(Monto_arriendo>$C$13,ROW(Placa_A)-ROW(Flota!K$7)+1), ROWS(Flota!K$7:'Flota'!K38))),"") ->  | I47: =IFERROR(INDEX(Placa_A,SMALL( IF(Monto_arriendo>$C$13,ROW(Placa_A)-ROW(Flota!L$7)+1), ROWS(Flota!L$7:'Flota'!L38))),"") ->  | J47: =IFERROR(INDEX(Placa_A,SMALL( IF(Monto_arriendo>$C$13,ROW(Placa_A)-ROW(Flota!M$7)+1), ROWS(Flota!M$7:'Flota'!M38))),"") ->  | L47: N/A | N47: N/A | O47: =IF(J47="tipo 1",'Datos para costos'!$E$81,IF(J47="tipo 2",'Datos para costos'!$E$83,"N/A")) -> N/A | P47: N/A
B48: =IFERROR(INDEX(Placa_A,SMALL( IF(Monto_arriendo>$C$13,ROW(Placa_A)-ROW(Flota!D$7)+1), ROWS(Flota!D$7:'Flota'!D39))),"") ->  | C48: =IFERROR(INDEX(Placa_A,SMALL( IF(Monto_arriendo>$C$13,ROW(Placa_A)-ROW(Flota!E$7)+1), ROWS(Flota!E$7:'Flota'!E39))),"") ->  | D48: =IFERROR(INDEX(Placa_A,SMALL( IF(Monto_arriendo>$C$13,ROW(Placa_A)-ROW(Flota!G$7)+1), ROWS(Flota!G$7:'Flota'!G39))),"") ->  | E48: =IFERROR(INDEX(Placa_A,SMALL( IF(Monto_arriendo>$C$13,ROW(Placa_A)-ROW(Flota!H$7)+1), ROWS(Flota!H$7:'Flota'!H39))),"") ->  | F48: =IFERROR(INDEX(Placa_A,SMALL( IF(Monto_arriendo>$C$13,ROW(Placa_A)-ROW(Flota!I$7)+1), ROWS(Flota!I$7:'Flota'!I39))),"") ->  | G48: =IFERROR(INDEX(Placa_A,SMALL( IF(Monto_arriendo>$C$13,ROW(Placa_A)-ROW(Flota!J$7)+1), ROWS(Flota!J$7:'Flota'!J39))),"") ->  | H48: =IFERROR(INDEX(Placa_A,SMALL( IF(Monto_arriendo>$C$13,ROW(Placa_A)-ROW(Flota!K$7)+1), ROWS(Flota!K$7:'Flota'!K39))),"") ->  | I48: =IFERROR(INDEX(Placa_A,SMALL( IF(Monto_arriendo>$C$13,ROW(Placa_A)-ROW(Flota!L$7)+1), ROWS(Flota!L$7:'Flota'!L39))),"") ->  | J48: =IFERROR(INDEX(Placa_A,SMALL( IF(Monto_arriendo>$C$13,ROW(Placa_A)-ROW(Flota!M$7)+1), ROWS(Flota!M$7:'Flota'!M39))),"") ->  | L48: N/A | N48: N/A | O48: =IF(J48="tipo 1",'Datos para costos'!$E$81,IF(J48="tipo 2",'Datos para costos'!$E$83,"N/A")) -> N/A | P48: N/A
B49: =IFERROR(INDEX(Placa_A,SMALL( IF(Monto_arriendo>$C$13,ROW(Placa_A)-ROW(Flota!D$7)+1), ROWS(Flota!D$7:'Flota'!D40))),"") ->  | C49: =IFERROR(INDEX(Placa_A,SMALL( IF(Monto_arriendo>$C$13,ROW(Placa_A)-ROW(Flota!E$7)+1), ROWS(Flota!E$7:'Flota'!E40))),"") ->  | D49: =IFERROR(INDEX(Placa_A,SMALL( IF(Monto_arriendo>$C$13,ROW(Placa_A)-ROW(Flota!G$7)+1), ROWS(Flota!G$7:'Flota'!G40))),"") ->  | E49: =IFERROR(INDEX(Placa_A,SMALL( IF(Monto_arriendo>$C$13,ROW(Placa_A)-ROW(Flota!H$7)+1), ROWS(Flota!H$7:'Flota'!H40))),"") ->  | F49: =IFERROR(INDEX(Placa_A,SMALL( IF(Monto_arriendo>$C$13,ROW(Placa_A)-ROW(Flota!I$7)+1), ROWS(Flota!I$7:'Flota'!I40))),"") ->  | G49: =IFERROR(INDEX(Placa_A,SMALL( IF(Monto_arriendo>$C$13,ROW(Placa_A)-ROW(Flota!J$7)+1), ROWS(Flota!J$7:'Flota'!J40))),"") ->  | H49: =IFERROR(INDEX(Placa_A,SMALL( IF(Monto_arriendo>$C$13,ROW(Placa_A)-ROW(Flota!K$7)+1), ROWS(Flota!K$7:'Flota'!K40))),"") ->  | I49: =IFERROR(INDEX(Placa_A,SMALL( IF(Monto_arriendo>$C$13,ROW(Placa_A)-ROW(Flota!L$7)+1), ROWS(Flota!L$7:'Flota'!L40))),"") ->  | J49: =IFERROR(INDEX(Placa_A,SMALL( IF(Monto_arriendo>$C$13,ROW(Placa_A)-ROW(Flota!M$7)+1), ROWS(Flota!M$7:'Flota'!M40))),"") ->  | L49: N/A | N49: N/A | O49: =IF(J49="tipo 1",'Datos para costos'!$E$81,IF(J49="tipo 2",'Datos para costos'!$E$83,"N/A")) -> N/A | P49: N/A
B50: =IFERROR(INDEX(Placa_A,SMALL( IF(Monto_arriendo>$C$13,ROW(Placa_A)-ROW(Flota!D$7)+1), ROWS(Flota!D$7:'Flota'!D41))),"") ->  | C50: =IFERROR(INDEX(Placa_A,SMALL( IF(Monto_arriendo>$C$13,ROW(Placa_A)-ROW(Flota!E$7)+1), ROWS(Flota!E$7:'Flota'!E41))),"") ->  | D50: =IFERROR(INDEX(Placa_A,SMALL( IF(Monto_arriendo>$C$13,ROW(Placa_A)-ROW(Flota!G$7)+1), ROWS(Flota!G$7:'Flota'!G41))),"") ->  | E50: =IFERROR(INDEX(Placa_A,SMALL( IF(Monto_arriendo>$C$13,ROW(Placa_A)-ROW(Flota!H$7)+1), ROWS(Flota!H$7:'Flota'!H41))),"") ->  | F50: =IFERROR(INDEX(Placa_A,SMALL( IF(Monto_arriendo>$C$13,ROW(Placa_A)-ROW(Flota!I$7)+1), ROWS(Flota!I$7:'Flota'!I41))),"") ->  | G50: =IFERROR(INDEX(Placa_A,SMALL( IF(Monto_arriendo>$C$13,ROW(Placa_A)-ROW(Flota!J$7)+1), ROWS(Flota!J$7:'Flota'!J41))),"") ->  | H50: =IFERROR(INDEX(Placa_A,SMALL( IF(Monto_arriendo>$C$13,ROW(Placa_A)-ROW(Flota!K$7)+1), ROWS(Flota!K$7:'Flota'!K41))),"") ->  | I50: =IFERROR(INDEX(Placa_A,SMALL( IF(Monto_arriendo>$C$13,ROW(Placa_A)-ROW(Flota!L$7)+1), ROWS(Flota!L$7:'Flota'!L41))),"") ->  | J50: =IFERROR(INDEX(Placa_A,SMALL( IF(Monto_arriendo>$C$13,ROW(Placa_A)-ROW(Flota!M$7)+1), ROWS(Flota!M$7:'Flota'!M41))),"") ->  | L50: N/A | N50: N/A | O50: =IF(J50="tipo 1",'Datos para costos'!$E$81,IF(J50="tipo 2",'Datos para costos'!$E$83,"N/A")) -> N/A | P50: N/A
B51: =IFERROR(INDEX(Placa_A,SMALL( IF(Monto_arriendo>$C$13,ROW(Placa_A)-ROW(Flota!D$7)+1), ROWS(Flota!D$7:'Flota'!D42))),"") ->  | C51: =IFERROR(INDEX(Placa_A,SMALL( IF(Monto_arriendo>$C$13,ROW(Placa_A)-ROW(Flota!E$7)+1), ROWS(Flota!E$7:'Flota'!E42))),"") ->  | D51: =IFERROR(INDEX(Placa_A,SMALL( IF(Monto_arriendo>$C$13,ROW(Placa_A)-ROW(Flota!G$7)+1), ROWS(Flota!G$7:'Flota'!G42))),"") ->  | E51: =IFERROR(INDEX(Placa_A,SMALL( IF(Monto_arriendo>$C$13,ROW(Placa_A)-ROW(Flota!H$7)+1), ROWS(Flota!H$7:'Flota'!H42))),"") ->  | F51: =IFERROR(INDEX(Placa_A,SMALL( IF(Monto_arriendo>$C$13,ROW(Placa_A)-ROW(Flota!I$7)+1), ROWS(Flota!I$7:'Flota'!I42))),"") ->  | G51: =IFERROR(INDEX(Placa_A,SMALL( IF(Monto_arriendo>$C$13,ROW(Placa_A)-ROW(Flota!J$7)+1), ROWS(Flota!J$7:'Flota'!J42))),"") ->  | H51: =IFERROR(INDEX(Placa_A,SMALL( IF(Monto_arriendo>$C$13,ROW(Placa_A)-ROW(Flota!K$7)+1), ROWS(Flota!K$7:'Flota'!K42))),"") ->  | I51: =IFERROR(INDEX(Placa_A,SMALL( IF(Monto_arriendo>$C$13,ROW(Placa_A)-ROW(Flota!L$7)+1), ROWS(Flota!L$7:'Flota'!L42))),"") ->  | J51: =IFERROR(INDEX(Placa_A,SMALL( IF(Monto_arriendo>$C$13,ROW(Placa_A)-ROW(Flota!M$7)+1), ROWS(Flota!M$7:'Flota'!M42))),"") ->  | L51: N/A | N51: N/A | O51: =IF(J51="tipo 1",'Datos para costos'!$E$81,IF(J51="tipo 2",'Datos para costos'!$E$83,"N/A")) -> N/A | P51: N/A
B52: =IFERROR(INDEX(Placa_A,SMALL( IF(Monto_arriendo>$C$13,ROW(Placa_A)-ROW(Flota!D$7)+1), ROWS(Flota!D$7:'Flota'!D43))),"") ->  | C52: =IFERROR(INDEX(Placa_A,SMALL( IF(Monto_arriendo>$C$13,ROW(Placa_A)-ROW(Flota!E$7)+1), ROWS(Flota!E$7:'Flota'!E43))),"") ->  | D52: =IFERROR(INDEX(Placa_A,SMALL( IF(Monto_arriendo>$C$13,ROW(Placa_A)-ROW(Flota!G$7)+1), ROWS(Flota!G$7:'Flota'!G43))),"") ->  | E52: =IFERROR(INDEX(Placa_A,SMALL( IF(Monto_arriendo>$C$13,ROW(Placa_A)-ROW(Flota!H$7)+1), ROWS(Flota!H$7:'Flota'!H43))),"") ->  | F52: =IFERROR(INDEX(Placa_A,SMALL( IF(Monto_arriendo>$C$13,ROW(Placa_A)-ROW(Flota!I$7)+1), ROWS(Flota!I$7:'Flota'!I43))),"") ->  | G52: =IFERROR(INDEX(Placa_A,SMALL( IF(Monto_arriendo>$C$13,ROW(Placa_A)-ROW(Flota!J$7)+1), ROWS(Flota!J$7:'Flota'!J43))),"") ->  | H52: =IFERROR(INDEX(Placa_A,SMALL( IF(Monto_arriendo>$C$13,ROW(Placa_A)-ROW(Flota!K$7)+1), ROWS(Flota!K$7:'Flota'!K43))),"") ->  | I52: =IFERROR(INDEX(Placa_A,SMALL( IF(Monto_arriendo>$C$13,ROW(Placa_A)-ROW(Flota!L$7)+1), ROWS(Flota!L$7:'Flota'!L43))),"") ->  | J52: =IFERROR(INDEX(Placa_A,SMALL( IF(Monto_arriendo>$C$13,ROW(Placa_A)-ROW(Flota!M$7)+1), ROWS(Flota!M$7:'Flota'!M43))),"") ->  | L52: N/A | N52: N/A | O52: =IF(J52="tipo 1",'Datos para costos'!$E$81,IF(J52="tipo 2",'Datos para costos'!$E$83,"N/A")) -> N/A | P52: N/A
B53: =IFERROR(INDEX(Placa_A,SMALL( IF(Monto_arriendo>$C$13,ROW(Placa_A)-ROW(Flota!D$7)+1), ROWS(Flota!D$7:'Flota'!D44))),"") ->  | C53: =IFERROR(INDEX(Placa_A,SMALL( IF(Monto_arriendo>$C$13,ROW(Placa_A)-ROW(Flota!E$7)+1), ROWS(Flota!E$7:'Flota'!E44))),"") ->  | D53: =IFERROR(INDEX(Placa_A,SMALL( IF(Monto_arriendo>$C$13,ROW(Placa_A)-ROW(Flota!G$7)+1), ROWS(Flota!G$7:'Flota'!G44))),"") ->  | E53: =IFERROR(INDEX(Placa_A,SMALL( IF(Monto_arriendo>$C$13,ROW(Placa_A)-ROW(Flota!H$7)+1), ROWS(Flota!H$7:'Flota'!H44))),"") ->  | F53: =IFERROR(INDEX(Placa_A,SMALL( IF(Monto_arriendo>$C$13,ROW(Placa_A)-ROW(Flota!I$7)+1), ROWS(Flota!I$7:'Flota'!I44))),"") ->  | G53: =IFERROR(INDEX(Placa_A,SMALL( IF(Monto_arriendo>$C$13,ROW(Placa_A)-ROW(Flota!J$7)+1), ROWS(Flota!J$7:'Flota'!J44))),"") ->  | H53: =IFERROR(INDEX(Placa_A,SMALL( IF(Monto_arriendo>$C$13,ROW(Placa_A)-ROW(Flota!K$7)+1), ROWS(Flota!K$7:'Flota'!K44))),"") ->  | I53: =IFERROR(INDEX(Placa_A,SMALL( IF(Monto_arriendo>$C$13,ROW(Placa_A)-ROW(Flota!L$7)+1), ROWS(Flota!L$7:'Flota'!L44))),"") ->  | J53: =IFERROR(INDEX(Placa_A,SMALL( IF(Monto_arriendo>$C$13,ROW(Placa_A)-ROW(Flota!M$7)+1), ROWS(Flota!M$7:'Flota'!M44))),"") ->  | L53: N/A | N53: N/A | O53: =IF(J53="tipo 1",'Datos para costos'!$E$81,IF(J53="tipo 2",'Datos para costos'!$E$83,"N/A")) -> N/A | P53: N/A
B54: =IFERROR(INDEX(Placa_A,SMALL( IF(Monto_arriendo>$C$13,ROW(Placa_A)-ROW(Flota!D$7)+1), ROWS(Flota!D$7:'Flota'!D45))),"") ->  | C54: =IFERROR(INDEX(Placa_A,SMALL( IF(Monto_arriendo>$C$13,ROW(Placa_A)-ROW(Flota!E$7)+1), ROWS(Flota!E$7:'Flota'!E45))),"") ->  | D54: =IFERROR(INDEX(Placa_A,SMALL( IF(Monto_arriendo>$C$13,ROW(Placa_A)-ROW(Flota!G$7)+1), ROWS(Flota!G$7:'Flota'!G45))),"") ->  | E54: =IFERROR(INDEX(Placa_A,SMALL( IF(Monto_arriendo>$C$13,ROW(Placa_A)-ROW(Flota!H$7)+1), ROWS(Flota!H$7:'Flota'!H45))),"") ->  | F54: =IFERROR(INDEX(Placa_A,SMALL( IF(Monto_arriendo>$C$13,ROW(Placa_A)-ROW(Flota!I$7)+1), ROWS(Flota!I$7:'Flota'!I45))),"") ->  | G54: =IFERROR(INDEX(Placa_A,SMALL( IF(Monto_arriendo>$C$13,ROW(Placa_A)-ROW(Flota!J$7)+1), ROWS(Flota!J$7:'Flota'!J45))),"") ->  | H54: =IFERROR(INDEX(Placa_A,SMALL( IF(Monto_arriendo>$C$13,ROW(Placa_A)-ROW(Flota!K$7)+1), ROWS(Flota!K$7:'Flota'!K45))),"") ->  | I54: =IFERROR(INDEX(Placa_A,SMALL( IF(Monto_arriendo>$C$13,ROW(Placa_A)-ROW(Flota!L$7)+1), ROWS(Flota!L$7:'Flota'!L45))),"") ->  | J54: =IFERROR(INDEX(Placa_A,SMALL( IF(Monto_arriendo>$C$13,ROW(Placa_A)-ROW(Flota!M$7)+1), ROWS(Flota!M$7:'Flota'!M45))),"") ->  | L54: N/A | N54: N/A | O54: =IF(J54="tipo 1",'Datos para costos'!$E$81,IF(J54="tipo 2",'Datos para costos'!$E$83,"N/A")) -> N/A | P54: N/A
B55: =IFERROR(INDEX(Placa_A,SMALL( IF(Monto_arriendo>$C$13,ROW(Placa_A)-ROW(Flota!D$7)+1), ROWS(Flota!D$7:'Flota'!D46))),"") ->  | C55: =IFERROR(INDEX(Placa_A,SMALL( IF(Monto_arriendo>$C$13,ROW(Placa_A)-ROW(Flota!E$7)+1), ROWS(Flota!E$7:'Flota'!E46))),"") ->  | D55: =IFERROR(INDEX(Placa_A,SMALL( IF(Monto_arriendo>$C$13,ROW(Placa_A)-ROW(Flota!G$7)+1), ROWS(Flota!G$7:'Flota'!G46))),"") ->  | E55: =IFERROR(INDEX(Placa_A,SMALL( IF(Monto_arriendo>$C$13,ROW(Placa_A)-ROW(Flota!H$7)+1), ROWS(Flota!H$7:'Flota'!H46))),"") ->  | F55: =IFERROR(INDEX(Placa_A,SMALL( IF(Monto_arriendo>$C$13,ROW(Placa_A)-ROW(Flota!I$7)+1), ROWS(Flota!I$7:'Flota'!I46))),"") ->  | G55: =IFERROR(INDEX(Placa_A,SMALL( IF(Monto_arriendo>$C$13,ROW(Placa_A)-ROW(Flota!J$7)+1), ROWS(Flota!J$7:'Flota'!J46))),"") ->  | H55: =IFERROR(INDEX(Placa_A,SMALL( IF(Monto_arriendo>$C$13,ROW(Placa_A)-ROW(Flota!K$7)+1), ROWS(Flota!K$7:'Flota'!K46))),"") ->  | I55: =IFERROR(INDEX(Placa_A,SMALL( IF(Monto_arriendo>$C$13,ROW(Placa_A)-ROW(Flota!L$7)+1), ROWS(Flota!L$7:'Flota'!L46))),"") ->  | J55: =IFERROR(INDEX(Placa_A,SMALL( IF(Monto_arriendo>$C$13,ROW(Placa_A)-ROW(Flota!M$7)+1), ROWS(Flota!M$7:'Flota'!M46))),"") ->  | L55: N/A | N55: N/A | O55: =IF(J55="tipo 1",'Datos para costos'!$E$81,IF(J55="tipo 2",'Datos para costos'!$E$83,"N/A")) -> N/A | P55: N/A
B56: =IFERROR(INDEX(Placa_A,SMALL( IF(Monto_arriendo>$C$13,ROW(Placa_A)-ROW(Flota!D$7)+1), ROWS(Flota!D$7:'Flota'!D47))),"") ->  | C56: =IFERROR(INDEX(Placa_A,SMALL( IF(Monto_arriendo>$C$13,ROW(Placa_A)-ROW(Flota!E$7)+1), ROWS(Flota!E$7:'Flota'!E47))),"") ->  | D56: =IFERROR(INDEX(Placa_A,SMALL( IF(Monto_arriendo>$C$13,ROW(Placa_A)-ROW(Flota!G$7)+1), ROWS(Flota!G$7:'Flota'!G47))),"") ->  | E56: =IFERROR(INDEX(Placa_A,SMALL( IF(Monto_arriendo>$C$13,ROW(Placa_A)-ROW(Flota!H$7)+1), ROWS(Flota!H$7:'Flota'!H47))),"") ->  | F56: =IFERROR(INDEX(Placa_A,SMALL( IF(Monto_arriendo>$C$13,ROW(Placa_A)-ROW(Flota!I$7)+1), ROWS(Flota!I$7:'Flota'!I47))),"") ->  | G56: =IFERROR(INDEX(Placa_A,SMALL( IF(Monto_arriendo>$C$13,ROW(Placa_A)-ROW(Flota!J$7)+1), ROWS(Flota!J$7:'Flota'!J47))),"") ->  | H56: =IFERROR(INDEX(Placa_A,SMALL( IF(Monto_arriendo>$C$13,ROW(Placa_A)-ROW(Flota!K$7)+1), ROWS(Flota!K$7:'Flota'!K47))),"") ->  | I56: =IFERROR(INDEX(Placa_A,SMALL( IF(Monto_arriendo>$C$13,ROW(Placa_A)-ROW(Flota!L$7)+1), ROWS(Flota!L$7:'Flota'!L47))),"") ->  | J56: =IFERROR(INDEX(Placa_A,SMALL( IF(Monto_arriendo>$C$13,ROW(Placa_A)-ROW(Flota!M$7)+1), ROWS(Flota!M$7:'Flota'!M47))),"") ->  | L56: N/A | N56: N/A | O56: =IF(J56="tipo 1",'Datos para costos'!$E$81,IF(J56="tipo 2",'Datos para costos'!$E$83,"N/A")) -> N/A | P56: N/A

Sheet CVr
B1: 2. Costos variables mensuales
E5: Ecuación 22
B7: CVr | C7: Costos variables mensuales de la ruta “r” | D7: =SUM(D8:D10) -> 13091053.49
B8: CCCr | C8: Costo mensual en consumo de combustible de la ruta “r" | D8: =CCC!D7 -> 11090048.14
B9: CCLLr | C9: Costo mensual en consumo de llantas de la ruta “r” | D9: =CCLL!D7 -> 1142143.259
B10: CCAMr | C10: Costo mensual en consumo de aceite de motor de la ruta “r” | D10: =CCAM!D7 -> 858862.0901
B11: CCACCr | C11: Costo mensual en consumo de aceite de caja de cambios de la ruta “r” | D11: =CCACC!D7 -> 50522.05805
B12: CCADr | C12: Costo mensual en consumo de aceite de diferencial de la ruta “r” | D12: =CCAD!D7 -> 69768.55635
B13: CCLFr | C13: Costo mensual en consumo de líquido de frenos de la ruta “r” | D13: =CCLF!D7 -> 50767.7618
B14: CCGr | C14: Costo mensual en consumo por grasa de la ruta “r” | D14: =CCG!D7 -> 195033.0988
B15: r | C15: Ruta de transporte remunerado de personas | D15: ='DATOS DE ENTRADA'!D17 -> Urbana
A17: =+Aclaraciones!$B$4 -> Aclaraciones: 1. Este instrumento de cálculo de tarifas para el servicio de transporte público por autobús fue elaborado con el único propósito de revisar la consistencia interna de la propuesta de la "Metodología para fijación ordinaria de tarifas para el servicio de transporte remunerado de personas, modalidad autobús". 2. Este instrumento no forma parte del Expediente OT-104-2015 y por tanto, no es parte de la propuesta de "metodología para fijación ordinaria de tarifas para el servicio de transporte remunerado de personas, modalidad autobús". 3. Este instrumento de cálculo corresponde a una versión preliminar, y por lo tanto no es necesariamente el que se usará para estimar los ajustes tarifarios derivados de la aplicación del "Metodología para fijación ordinaria de tarifas para el servicio de transporte remunerado de personas, modalidad autobús", pues este debe ser elaborado y validado por la Intendencia de Transportes dentro de la etapa de fijación tarifaria.

Sheet CCC
B1: 2.1 Costo mensual en consumo de combustible
E5: Ecuación 29
B7: CCCr | C7: Costo mensual en consumo de combustible de la ruta “r” | D7: =D8*(1+D9)*D10*(1+D11)*D12*D13 -> 11090048.14
B8: ccc | C8: Coeficiente de consumo de combustible diésel para cualquier tipo de vehículo | D8: =HLOOKUP(D14,Constantes!D86:F87,2,FALSE) -> 0.42
B9: ccsr | C9: Coeficiente de ajuste de acuerdo a las condiciones de la superficie de rodamiento del recorrido de la ruta | D9: =IF('DATOS DE ENTRADA'!D56="SI",10%,0) -> 0
B10: Dr | C10: Distancia de la carrera de la ruta “r” | D10: =Ponderaciones!AA11 -> 30.68
B11: cki | C11: Coeficiente de ajuste por reconocimiento de kilometraje improductivo | D11: ='DATOS DE ENTRADA'!D58 -> 0.05
B12: CMr | C12: Cantidad de carreras mensuales de la ruta “r" | D12: =Ponderaciones!R11 -> 1306.610485
B13: PC | C13: Precio promedio del combustible en colones por litro | D13: ='Datos para costos'!E53 -> 627.326087
B14: r | C14: Ruta de transporte remunerado de personas | D14: ='DATOS DE ENTRADA'!D17 -> Urbana
A16: =+Aclaraciones!$B$4 -> Aclaraciones: 1. Este instrumento de cálculo de tarifas para el servicio de transporte público por autobús fue elaborado con el único propósito de revisar la consistencia interna de la propuesta de la "Metodología para fijación ordinaria de tarifas para el servicio de transporte remunerado de personas, modalidad autobús". 2. Este instrumento no forma parte del Expediente OT-104-2015 y por tanto, no es parte de la propuesta de "metodología para fijación ordinaria de tarifas para el servicio de transporte remunerado de personas, modalidad autobús". 3. Este instrumento de cálculo corresponde a una versión preliminar, y por lo tanto no es necesariamente el que se usará para estimar los ajustes tarifarios derivados de la aplicación del "Metodología para fijación ordinaria de tarifas para el servicio de transporte remunerado de personas, modalidad autobús", pues este debe ser elaborado y validado por la Intendencia de Transportes dentro de la etapa de fijación tarifaria.

Sheet CCLL
B1: 2.2 Costo mensual en consumo de llantas
E5: Ecuación 30
B7: CCLLr | C7: Costo mensual en consumo de llantas de la ruta “r” | D7: =D8*(1+D9)*D10*(1+D11)*D12*(D13*D14+D17*D18+D15*D16) -> 1142143.259
B8: ccll | C8: Coeficiente de consumo de llantas para cualquier tipo de vehículo | D8: =HLOOKUP(D19,Constantes!D90:F91,2,FALSE) -> 1e-05
B9: ccsr | C9: Coeficiente de ajuste de acuerdo a las condiciones de la superficie de rodamiento del recorrido de la ruta. | D9: =IF('DATOS DE ENTRADA'!D56="SI",10%,0) -> 0
B10: Dr | C10: Distancia de la carrera de la ruta “r” | D10: =Ponderaciones!AA11 -> 30.68
B11: cki | C11: Coeficiente de ajuste por reconocimiento de kilometraje improductivo | D11: ='DATOS DE ENTRADA'!D58 -> 0.05
B12: CMr | C12: Cantidad de carreras mensuales de la ruta “r" | D12: =Ponderaciones!R11 -> 1306.610485
B13: QLL | C13: Cantidad de llantas por vehículo automotor | D13: =6 -> 6
B14: PLL | C14: Precio de una llanta nueva | D14: ='Datos para costos'!E56 -> 204300
B15: QR | C15: Cantidad de rencauches por llanta | D15: =6*2 -> 12
B16: PR | C16: Precio de un reencauche de llanta | D16: ='Datos para costos'!E57 -> 106149.58
B17: QN | C17: Cantidad de neumáticos de llanta | D17: =6*2 -> 12
B18: PN | C18: Precio de un neumático nuevo de llanta | D18: ='Datos para costos'!E58 -> 17825.4
B19: r | C19: Ruta de transporte remunerado de personas | D19: ='DATOS DE ENTRADA'!D17 -> Urbana
A21: =+Aclaraciones!$B$4 -> Aclaraciones: 1. Este instrumento de cálculo de tarifas para el servicio de transporte público por autobús fue elaborado con el único propósito de revisar la consistencia interna de la propuesta de la "Metodología para fijación ordinaria de tarifas para el servicio de transporte remunerado de personas, modalidad autobús". 2. Este instrumento no forma parte del Expediente OT-104-2015 y por tanto, no es parte de la propuesta de "metodología para fijación ordinaria de tarifas para el servicio de transporte remunerado de personas, modalidad autobús". 3. Este instrumento de cálculo corresponde a una versión preliminar, y por lo tanto no es necesariamente el que se usará para estimar los ajustes tarifarios derivados de la aplicación del "Metodología para fijación ordinaria de tarifas para el servicio de transporte remunerado de personas, modalidad autobús", pues este debe ser elaborado y validado por la Intendencia de Transportes dentro de la etapa de fijación tarifaria.

Sheet CCAM
B1: 2.3 Costo mensual en consumo de aceite de motor
E5: Ecuación 31
B7: CCAMr | C7: Costo mensual en consumo de aceite de motor de la ruta “r” | D7: =D8*(1+D9)*D10*(1+D11)*D12*D13 -> 858862.0901
B8: ccam | C8: Coeficiente de consumo de aceite de motor para cualquier tipo de vehículo | D8: =HLOOKUP(D14,Constantes!D94:F95,2,FALSE) -> 0.0073
B9: ccsr | C9: Coeficiente de ajuste de acuerdo a las condiciones de la superficie de rodamiento del recorrido de la ruta | D9: =IF('DATOS DE ENTRADA'!D56="SI",10%,0) -> 0
B10: Dr | C10: Distancia de la carrera de la ruta “r” | D10: =Ponderaciones!AA11 -> 30.68
B11: cki | C11: Coeficiente de ajuste por reconocimiento de kilometraje improductivo | D11: ='DATOS DE ENTRADA'!D58 -> 0.05
B12: CMr | C12: Cantidad de carreras mensuales de la ruta “r" | D12: =Ponderaciones!R11 -> 1306.610485
B13: PAM | C13: Precio del aceite de motor en colones por litro | D13: ='Datos para costos'!E61 -> 2795.18
B14: r | C14: Ruta de transporte remunerado de personas | D14: ='DATOS DE ENTRADA'!D17 -> Urbana
A16: =+Aclaraciones!$B$4 -> Aclaraciones: 1. Este instrumento de cálculo de tarifas para el servicio de transporte público por autobús fue elaborado con el único propósito de revisar la consistencia interna de la propuesta de la "Metodología para fijación ordinaria de tarifas para el servicio de transporte remunerado de personas, modalidad autobús". 2. Este instrumento no forma parte del Expediente OT-104-2015 y por tanto, no es parte de la propuesta de "metodología para fijación ordinaria de tarifas para el servicio de transporte remunerado de personas, modalidad autobús". 3. Este instrumento de cálculo corresponde a una versión preliminar, y por lo tanto no es necesariamente el que se usará para estimar los ajustes tarifarios derivados de la aplicación del "Metodología para fijación ordinaria de tarifas para el servicio de transporte remunerado de personas, modalidad autobús", pues este debe ser elaborado y validado por la Intendencia de Transportes dentro de la etapa de fijación tarifaria.

Sheet CCACC
B1: 2.4 Costo mensual en consumo de aceite de caja de cambios
E5: Ecuación 32
B7: CCACCr | C7: Costo mensual en consumo de aceite de caja de cambios de la ruta “r” | D7: =D8*(1+D9)*D10*(1+D11)*D12*D13 -> 50522.05805
B8: ccacc | C8: Coeficiente de consumo de aceite de caja de cambios para cualquier tipo de vehículo | D8: =HLOOKUP(D14,Constantes!D98:F99,2,FALSE) -> 0.00042
B9: ccsr | C9: Coeficiente de ajuste de acuerdo a las condiciones de la superficie de rodamiento del recorrido de la ruta | D9: =IF('DATOS DE ENTRADA'!D56="SI",10%,0) -> 0
B10: Dr | C10: Distancia de la carrera de la ruta “r” | D10: =Ponderaciones!AA11 -> 30.68
B11: cki | C11: Coeficiente de ajuste por reconocimiento de kilometraje improductivo | D11: ='DATOS DE ENTRADA'!D58 -> 0.05
B12: CMr | C12: Cantidad de carreras mensuales de la ruta “r" | D12: =Ponderaciones!R11 -> 1306.610485
B13: PAC | C13: Precio del aceite de caja de cambios en colones por litro | D13: ='Datos para costos'!E64 -> 2857.86
B14: r | C14: Ruta de transporte remunerado de personas | D14: ='DATOS DE ENTRADA'!D17 -> Urbana
A16: =+Aclaraciones!$B$4 -> Aclaraciones: 1. Este instrumento de cálculo de tarifas para el servicio de transporte público por autobús fue elaborado con el único propósito de revisar la consistencia interna de la propuesta de la "Metodología para fijación ordinaria de tarifas para el servicio de transporte remunerado de personas, modalidad autobús". 2. Este instrumento no forma parte del Expediente OT-104-2015 y por tanto, no es parte de la propuesta de "metodología para fijación ordinaria de tarifas para el servicio de transporte remunerado de personas, modalidad autobús". 3. Este instrumento de cálculo corresponde a una versión preliminar, y por lo tanto no es necesariamente el que se usará para estimar los ajustes tarifarios derivados de la aplicación del "Metodología para fijación ordinaria de tarifas para el servicio de transporte remunerado de personas, modalidad autobús", pues este debe ser elaborado y validado por la Intendencia de Transportes dentro de la etapa de fijación tarifaria.

Sheet CCAD
B1: 2.5 Costo mensual en consumo de aceite de diferencial
E5: Ecuación 33
B7: CCACCr | C7: Costo mensual en consumo de aceite para diferencial de la ruta “r” | D7: =D8*(1+D9)*D10*(1+D11)*D12*D13 -> 69768.55635
B8: ccad | C8: Coeficiente de consumo en aceite diferencial cualquier tipo de vehículo | D8: =HLOOKUP(D14,Constantes!D102:F103,2,FALSE) -> 0.00058
B9: ccsr | C9: Coeficiente de ajuste de acuerdo a las condiciones de la superficie de rodamiento del recorrido de la ruta | D9: =IF('DATOS DE ENTRADA'!D56="SI",10%,0) -> 0
B10: Dr | C10: Distancia de la carrera de la ruta “r” | D10: =Ponderaciones!AA11 -> 30.68
B11: cki | C11: Coeficiente de ajuste por reconocimiento de kilometraje improductivo | D11: ='DATOS DE ENTRADA'!D58 -> 0.05
B12: CMr | C12: Cantidad de carreras mensuales de la ruta “r" | D12: =Ponderaciones!R11 -> 1306.610485
B13: PAD | C13: Precio del aceite diferencial en colones por litro | D13: ='Datos para costos'!E67 -> 2857.86
B14: r | C14: Ruta de transporte remunerado de personas | D14: ='DATOS DE ENTRADA'!D17 -> Urbana
A16: =+Aclaraciones!$B$4 -> Aclaraciones: 1. Este instrumento de cálculo de tarifas para el servicio de transporte público por autobús fue elaborado con el único propósito de revisar la consistencia interna de la propuesta de la "Metodología para fijación ordinaria de tarifas para el servicio de transporte remunerado de personas, modalidad autobús". 2. Este instrumento no forma parte del Expediente OT-104-2015 y por tanto, no es parte de la propuesta de "metodología para fijación ordinaria de tarifas para el servicio de transporte remunerado de personas, modalidad autobús". 3. Este instrumento de cálculo corresponde a una versión preliminar, y por lo tanto no es necesariamente el que se usará para estimar los ajustes tarifarios derivados de la aplicación del "Metodología para fijación ordinaria de tarifas para el servicio de transporte remunerado de personas, modalidad autobús", pues este debe ser elaborado y validado por la Intendencia de Transportes dentro de la etapa de fijación tarifaria.

Sheet CCLF
B1: 2.6 Costo mensual en consumo de líquido de frenos
E5: Ecuación 34
B7: CCLFr | C7: Costo mensual en consumo de líquido para frenos de la ruta “r” | D7: =D8*(1+D9)*D10*(1+D11)*D12*D13 -> 50767.7618
B8: cclf | C8: Coeficiente mensual en consumo de líquido para frenos para cualquier tipo de vehículo | D8: =HLOOKUP(D14,Constantes!D106:F107,2,FALSE) -> 0.00022
B9: ccsr | C9: Coeficiente de ajuste de acuerdo a las condiciones de la superficie de rodamiento del recorrido de la ruta | D9: =IF('DATOS DE ENTRADA'!D56="SI",10%,0) -> 0
B10: Dr | C10: Distancia de la carrera de la ruta “r” | D10: =Ponderaciones!AA11 -> 30.68
B11: cki | C11: Coeficiente de ajuste por reconocimiento de kilometraje improductivo | D11: ='DATOS DE ENTRADA'!D58 -> 0.05
B12: CMr | C12: Cantidad de carreras mensuales de la ruta “r" | D12: =Ponderaciones!R11 -> 1306.610485
B13: PLF | C13: Precio del líquido de frenos en colones por litro | D13: ='Datos para costos'!E70 -> 5482.448276
B14: r | C14: Ruta de transporte remunerado de personas | D14: ='DATOS DE ENTRADA'!D17 -> Urbana
A16: =+Aclaraciones!$B$4 -> Aclaraciones: 1. Este instrumento de cálculo de tarifas para el servicio de transporte público por autobús fue elaborado con el único propósito de revisar la consistencia interna de la propuesta de la "Metodología para fijación ordinaria de tarifas para el servicio de transporte remunerado de personas, modalidad autobús". 2. Este instrumento no forma parte del Expediente OT-104-2015 y por tanto, no es parte de la propuesta de "metodología para fijación ordinaria de tarifas para el servicio de transporte remunerado de personas, modalidad autobús". 3. Este instrumento de cálculo corresponde a una versión preliminar, y por lo tanto no es necesariamente el que se usará para estimar los ajustes tarifarios derivados de la aplicación del "Metodología para fijación ordinaria de tarifas para el servicio de transporte remunerado de personas, modalidad autobús", pues este debe ser elaborado y validado por la Intendencia de Transportes dentro de la etapa de fijación tarifaria.

Sheet CCG
B1: 2.7 Costo mensual en consumo de grasa
E5: Ecuación 35
B7: CCGr | C7: Costo mensual en consumo de grasa de la ruta “r”. | D7: =D8*(1+D9)*D10*(1+D11)*D12*D13 -> 195033.0988
B8: ccg | C8: Coeficiente mensual por consumo de grasa para cualquier tipo de vehículo | D8: =HLOOKUP(D14,Constantes!D110:F111,2,FALSE) -> 0.00092
B9: ccsr | C9: Coeficiente de ajuste de acuerdo a las condiciones de la superficie de rodamiento del recorrido de la ruta | D9: =IF('DATOS DE ENTRADA'!D56="SI",10%,0) -> 0
B10: Dr | C10: Distancia de la carrera de la ruta “r” | D10: =Ponderaciones!AA11 -> 30.68
B11: cki | C11: Coeficiente de ajuste por reconocimiento de kilometraje improductivo | D11: ='DATOS DE ENTRADA'!D58 -> 0.05
B12: CMr | C12: Cantidad de carreras mensuales de la ruta “r" | D12: =Ponderaciones!R11 -> 1306.610485
B13: PG | C13: Precio de la grasa en colones por kilogramo | D13: ='Datos para costos'!E73 -> 5036.51
B14: r | C14: Ruta de transporte remunerado de personas | D14: ='DATOS DE ENTRADA'!D17 -> Urbana
A16: =+Aclaraciones!$B$4 -> Aclaraciones: 1. Este instrumento de cálculo de tarifas para el servicio de transporte público por autobús fue elaborado con el único propósito de revisar la consistencia interna de la propuesta de la "Metodología para fijación ordinaria de tarifas para el servicio de transporte remunerado de personas, modalidad autobús". 2. Este instrumento no forma parte del Expediente OT-104-2015 y por tanto, no es parte de la propuesta de "metodología para fijación ordinaria de tarifas para el servicio de transporte remunerado de personas, modalidad autobús". 3. Este instrumento de cálculo corresponde a una versión preliminar, y por lo tanto no es necesariamente el que se usará para estimar los ajustes tarifarios derivados de la aplicación del "Metodología para fijación ordinaria de tarifas para el servicio de transporte remunerado de personas, modalidad autobús", pues este debe ser elaborado y validado por la Intendencia de Transportes dentro de la etapa de fijación tarifaria.

Sheet RTr
B1: 3 Rentabilidad del capital invertido
E5: Ecuación 36
B7: RTr | C7: Rentabilidad mensual al capital para la operación de la ruta “r”. | D7: =SUM(D8:D9) -> 202898.7657
B8: RAFr | C8: Rentabilidad mensual al capital invertido en activos fijos en la ruta “r” | D8: =RAF!D7 -> 197239.5541
B9: RCPr | C9: Rentabilidad mensual al capital invertido en inventario de repuestos y accesorios en la ruta “r” | D9: =RCP!D7 -> 5659.211641
B10: r | C10: Ruta de transporte remunerado de personas | D10: ='DATOS DE ENTRADA'!D17 -> Urbana
A12: =+Aclaraciones!$B$4 -> Aclaraciones: 1. Este instrumento de cálculo de tarifas para el servicio de transporte público por autobús fue elaborado con el único propósito de revisar la consistencia interna de la propuesta de la "Metodología para fijación ordinaria de tarifas para el servicio de transporte remunerado de personas, modalidad autobús". 2. Este instrumento no forma parte del Expediente OT-104-2015 y por tanto, no es parte de la propuesta de "metodología para fijación ordinaria de tarifas para el servicio de transporte remunerado de personas, modalidad autobús". 3. Este instrumento de cálculo corresponde a una versión preliminar, y por lo tanto no es necesariamente el que se usará para estimar los ajustes tarifarios derivados de la aplicación del "Metodología para fijación ordinaria de tarifas para el servicio de transporte remunerado de personas, modalidad autobús", pues este debe ser elaborado y validado por la Intendencia de Transportes dentro de la etapa de fijación tarifaria.

Sheet RAF
B1: 3.1 Rentabilidad mensual al capital invertido en activos fijos
E5: Ecuación 37
B7: RAFr | C7: Rentabilidad mensual al capital invertido en activos fijos en la ruta "r" | D7: =SUM(D8:D10) -> 197239.5541
B8: RFr | C8: Rentabilidad mensual al capital invertido en la flota en la ruta “r” | D8: =RF!G7 -> 189693.9386
B9: RMEIr | C9: Rentabilidad mensual al capital invertido en maquinaria, equipo e instalaciones en la ruta “r”. | D9: =+RMEI!D7 -> 7545.615521
B10: RSCPr | C10: Rentabilidad mensual al capital invertido en el equipo automatizado de conteo de pasajeros en la ruta “r” | D10: =RSCP!D7 -> 0
B11: r | C11: Ruta de transporte remunerado de personas | D11: ='DATOS DE ENTRADA'!D17 -> Urbana
A13: =+Aclaraciones!$B$4 -> Aclaraciones: 1. Este instrumento de cálculo de tarifas para el servicio de transporte público por autobús fue elaborado con el único propósito de revisar la consistencia interna de la propuesta de la "Metodología para fijación ordinaria de tarifas para el servicio de transporte remunerado de personas, modalidad autobús". 2. Este instrumento no forma parte del Expediente OT-104-2015 y por tanto, no es parte de la propuesta de "metodología para fijación ordinaria de tarifas para el servicio de transporte remunerado de personas, modalidad autobús". 3. Este instrumento de cálculo corresponde a una versión preliminar, y por lo tanto no es necesariamente el que se usará para estimar los ajustes tarifarios derivados de la aplicación del "Metodología para fijación ordinaria de tarifas para el servicio de transporte remunerado de personas, modalidad autobús", pues este debe ser elaborado y validado por la Intendencia de Transportes dentro de la etapa de fijación tarifaria.

Sheet RF
B1: 3.1.1 Rentabilidad mensual del capital invertido en la flota de la ruta “r”.
H5: Ecuación 41
B7: RFr | C7: Rentabilidad mensual del capital invertido en la flota de la ruta “r”. | G7: =(G8+G10+G13)/12 -> 189693.9386
C8: Sumatoria del valor tarifario de la unidad de transporte remunerado de personas modalidad autobús sin llantas ni neumáticos de edad “b” del tipo de vehículo que se utiliza en la ruta “r”, del conjunto de unidades “α” multiplicado por Factor de rentabilidad anual según la edad “b” de las unidades que conforman la flota en la ruta “r” multiplicado por Cantidad de unidades de la flota autorizada según la edad “b” en la ruta “r”, del conjunto de unidades “α” multiplicado por Tasa de rentabilidad anual para vehículos con reglas de cálculo tarifario tipo 1 para la ruta “r” del conjunto de unidades “α” | G8: =($M$39+$M$61) -> 2216327.263
C9: Tasa de rentabilidad anual para vehículos con reglas de cálculo tarifario tipo 1 para la ruta “r” del conjunto de unidades “α” | G9: ='Datos para costos'!$E$81 -> 0.1658231259
C10: Valor tarifario de la unidad de transporte remunerado de personas modalidad autobús sin llantas en el año “p” de edad “b” y número de placa “n” del tipo de vehículo que se utiliza en la ruta “r”, del conjunto de unidades “γ” multiplicado por Tasa de rentabilidad anual para vehículos con reglas de cálculo tarifario tipo 2 para la ruta “r” del conjunto de unidades “γ” | G10: =Flota!$X$5*$G$11 -> 0
B11: Procedimiento de cálculo de tasa de Rentabilidad Reglas tipo 2.xlsx | C11: Tasa de rentabilidad anual para vehículos con reglas de cálculo tarifario tipo 2 para la ruta “r” del conjunto de unidades “γ” | G11: ='Datos para costos'!$E$83 -> 0.129
B12: Fbr | C12: Flota total | G12: =Flota!$I$45 -> 10
B13: Arriendo* | C13: Total de rentabilidad por concepto de arriendo | G13: =CARR!$S$14 -> 60000 | H13: *Solo cuando aplica
B14: r | C14: Ruta de transporte remunerado de personas | G14: ='DATOS DE ENTRADA'!D17 -> Urbana
B17: =+Aclaraciones!$B$4 -> Aclaraciones: 1. Este instrumento de cálculo de tarifas para el servicio de transporte público por autobús fue elaborado con el único propósito de revisar la consistencia interna de la propuesta de la "Metodología para fijación ordinaria de tarifas para el servicio de transporte remunerado de personas, modalidad autobús". 2. Este instrumento no forma parte del Expediente OT-104-2015 y por tanto, no es parte de la propuesta de "metodología para fijación ordinaria de tarifas para el servicio de transporte remunerado de personas, modalidad autobús". 3. Este instrumento de cálculo corresponde a una versión preliminar, y por lo tanto no es necesariamente el que se usará para estimar los ajustes tarifarios derivados de la aplicación del "Metodología para fijación ordinaria de tarifas para el servicio de transporte remunerado de personas, modalidad autobús", pues este debe ser elaborado y validado por la Intendencia de Transportes dentro de la etapa de fijación tarifaria.
B19: ="SIN RAMPA, AÑO MODELO MENOR IGUAL AL "&ParámetrosPropuesta!$B$6 -> SIN RAMPA, AÑO MODELO MENOR IGUAL AL 2015
B20: Edad del vehículo (años) | C20: Año modelo (b) | D20: Valor del vehículo en colones (VTAbr) | E20: Valor de las llantas | F20: Valor del vehículo sin llantas (VTANbr) | G20: Cantidad de vehículos (Fbr) | H20: Cantidad de unidades arrendadas (Fa) | I20: Valor de flota con llantas (VTAbr*Fbr) | J20: Valor de flota sin llantas (VTANbr*Fbr) | K20: Factor RENTABILIDAD de unidades (frfb) | L20: Tasa de rentabilidad anual según la edad "b" de las unidades | M20: Valor de flota x factor de rentabilidad x tasa de rentabilidad
A21: 1 | B21: 0 | C21: =CONCATENATE(YEAR('DATOS DE ENTRADA'!$D$21)+A21) -> 2015 | D21: =IFERROR((SUMIFS(Valor_pond_U,Modelo_Aceptado,CDF!$C22,Rampa,"NO"))/(COUNTIF(Modelo_Aceptado,C21)),0) -> 0 | E21: =6*'Datos para costos'!$E$56+6*'Datos para costos'!$E$58 -> 1332752.4 | F21: =IF(D21=0,0,D21-E21) -> 0 | G21: =COUNTIFS(Modelo_Aceptado,"<="&ParámetrosPropuesta!$B$6,Modelo_Aceptado,C21,Rampa,"NO",Regla_calculo,"tipo 1") -> 0 | H21: =COUNTIFS(Modelo_Aceptado,"<="&ParámetrosPropuesta!$B$6,Modelo_Aceptado,C21,Rampa,"NO",Arriendo_flota,"SI",Regla_calculo,"tipo 1") -> 0 | I21: =IF(ISERROR(D21),0,D21*(G21-H21)) -> 0 | J21: =IF(ISERROR(D21),0,F21*(G21-H21)) -> 0 | K21: =Constantes!$E$122 -> 1 | L21: ='Datos para costos'!$F$10 -> 0.1658231259 | M21: =K21*J21*L21 -> 0
A22: 0 | B22: 0 | C22: =CONCATENATE(YEAR('DATOS DE ENTRADA'!$D$21)+A22) -> 2014 | D22: =IFERROR((SUMIFS(Valor_pond_U,Modelo_Aceptado,CDF!$C23,Rampa,"NO"))/(COUNTIF(Modelo_Aceptado,C22)),0) -> 0 | E22: =6*'Datos para costos'!$E$56+6*'Datos para costos'!$E$58 -> 1332752.4 | F22: 0 | G22: =COUNTIFS(Modelo_Aceptado,"<="&ParámetrosPropuesta!$B$6,Modelo_Aceptado,C22,Rampa,"NO",Regla_calculo,"tipo 1") -> 0 | H22: =COUNTIFS(Modelo_Aceptado,"<="&ParámetrosPropuesta!$B$6,Modelo_Aceptado,C22,Rampa,"NO",Arriendo_flota,"SI",Regla_calculo,"tipo 1") -> 0 | I22: =IF(ISERROR(D22),0,D22*(G22-H22)) -> 0 | J22: 0 | K22: =Constantes!$E$122 -> 1 | L22: ='Datos para costos'!$F$10 -> 0.1658231259 | M22: =K22*J22*L22 -> 0
A23: -1 | B23: 1 | C23: =CONCATENATE(YEAR('DATOS DE ENTRADA'!$D$21)+A23) -> 2013 | D23: =IFERROR((SUMIFS(Valor_pond_U,Modelo_Aceptado,CDF!$C24,Rampa,"NO"))/(COUNTIF(Modelo_Aceptado,C23)),0) -> 0 | E23: =6*'Datos para costos'!$E$56+6*'Datos para costos'!$E$58 -> 1332752.4 | F23: 0 | G23: =COUNTIFS(Modelo_Aceptado,"<="&ParámetrosPropuesta!$B$6,Modelo_Aceptado,C23,Rampa,"NO",Regla_calculo,"tipo 1") -> 0 | H23: =COUNTIFS(Modelo_Aceptado,"<="&ParámetrosPropuesta!$B$6,Modelo_Aceptado,C23,Rampa,"NO",Arriendo_flota,"SI",Regla_calculo,"tipo 1") -> 0 | I23: 0 | J23: 0 | K23: =Constantes!$E$123 -> 0.75 | L23: ='Datos para costos'!$F$10 -> 0.1658231259 | M23: 0
A24: -2 | B24: 2 | C24: =CONCATENATE(YEAR('DATOS DE ENTRADA'!$D$21)+A24) -> 2012 | D24: =IFERROR((SUMIFS(Valor_pond_U,Modelo_Aceptado,CDF!$C25,Rampa,"NO"))/(COUNTIF(Modelo_Aceptado,C24)),0) -> 0 | E24: =6*'Datos para costos'!$E$56+6*'Datos para costos'!$E$58 -> 1332752.4 | F24: 0 | G24: =COUNTIFS(Modelo_Aceptado,"<="&ParámetrosPropuesta!$B$6,Modelo_Aceptado,C24,Rampa,"NO",Regla_calculo,"tipo 1") -> 0 | H24: =COUNTIFS(Modelo_Aceptado,"<="&ParámetrosPropuesta!$B$6,Modelo_Aceptado,C24,Rampa,"NO",Arriendo_flota,"SI",Regla_calculo,"tipo 1") -> 0 | I24: 0 | J24: 0 | K24: =Constantes!$E$124 -> 0.5357142857 | L24: ='Datos para costos'!$F$10 -> 0.1658231259 | M24: 0
A25: -3 | B25: 3 | C25: =CONCATENATE(YEAR('DATOS DE ENTRADA'!$D$21)+A25) -> 2011 | D25: =IFERROR((SUMIFS(Valor_pond_U,Modelo_Aceptado,CDF!$C26,Rampa,"NO"))/(COUNTIF(Modelo_Aceptado,C25)),0) -> 0 | E25: =6*'Datos para costos'!$E$56+6*'Datos para costos'!$E$58 -> 1332752.4 | F25: 0 | G25: =COUNTIFS(Modelo_Aceptado,"<="&ParámetrosPropuesta!$B$6,Modelo_Aceptado,C25,Rampa,"NO",Regla_calculo,"tipo 1") -> 0 | H25: =COUNTIFS(Modelo_Aceptado,"<="&ParámetrosPropuesta!$B$6,Modelo_Aceptado,C25,Rampa,"NO",Arriendo_flota,"SI",Regla_calculo,"tipo 1") -> 0 | I25: 0 | J25: 0 | K25: =Constantes!$E$125 -> 0.3571428571 | L25: ='Datos para costos'!$F$10 -> 0.1658231259 | M25: 0
A26: -4 | B26: 4 | C26: =CONCATENATE(YEAR('DATOS DE ENTRADA'!$D$21)+A26) -> 2010 | D26: =IFERROR((SUMIFS(Valor_pond_U,Modelo_Aceptado,CDF!$C27,Rampa,"NO"))/(COUNTIF(Modelo_Aceptado,C26)),0) -> 0 | E26: =6*'Datos para costos'!$E$56+6*'Datos para costos'!$E$58 -> 1332752.4 | F26: 0 | G26: =COUNTIFS(Modelo_Aceptado,"<="&ParámetrosPropuesta!$B$6,Modelo_Aceptado,C26,Rampa,"NO",Regla_calculo,"tipo 1") -> 0 | H26: =COUNTIFS(Modelo_Aceptado,"<="&ParámetrosPropuesta!$B$6,Modelo_Aceptado,C26,Rampa,"NO",Arriendo_flota,"SI",Regla_calculo,"tipo 1") -> 0 | I26: 0 | J26: 0 | K26: =Constantes!$E$126 -> 0.2142857143 | L26: ='Datos para costos'!$F$10 -> 0.1658231259 | M26: 0
A27: -5 | B27: 5 | C27: =CONCATENATE(YEAR('DATOS DE ENTRADA'!$D$21)+A27) -> 2009 | D27: =IFERROR((SUMIFS(Valor_pond_U,Modelo_Aceptado,CDF!$C28,Rampa,"NO"))/(COUNTIF(Modelo_Aceptado,C27)),0) -> 0 | E27: =6*'Datos para costos'!$E$56+6*'Datos para costos'!$E$58 -> 1332752.4 | F27: 0 | G27: =COUNTIFS(Modelo_Aceptado,"<="&ParámetrosPropuesta!$B$6,Modelo_Aceptado,C27,Rampa,"NO",Regla_calculo,"tipo 1") -> 0 | H27: =COUNTIFS(Modelo_Aceptado,"<="&ParámetrosPropuesta!$B$6,Modelo_Aceptado,C27,Rampa,"NO",Arriendo_flota,"SI",Regla_calculo,"tipo 1") -> 0 | I27: 0 | J27: 0 | K27: =Constantes!$E$127 -> 0.1071428571 | L27: ='Datos para costos'!$F$10 -> 0.1658231259 | M27: 0
A28: -6 | B28: 6 | C28: =CONCATENATE(YEAR('DATOS DE ENTRADA'!$D$21)+A28) -> 2008 | D28: =IFERROR((SUMIFS(Valor_pond_U,Modelo_Aceptado,CDF!$C29,Rampa,"NO"))/(COUNTIF(Modelo_Aceptado,C28)),0) -> 0 | E28: =6*'Datos para costos'!$E$56+6*'Datos para costos'!$E$58 -> 1332752.4 | F28: 0 | G28: =COUNTIFS(Modelo_Aceptado,"<="&ParámetrosPropuesta!$B$6,Modelo_Aceptado,C28,Rampa,"NO",Regla_calculo,"tipo 1") -> 0 | H28: =COUNTIFS(Modelo_Aceptado,"<="&ParámetrosPropuesta!$B$6,Modelo_Aceptado,C28,Rampa,"NO",Arriendo_flota,"SI",Regla_calculo,"tipo 1") -> 0 | I28: 0 | J28: 0 | K28: =Constantes!$E$128 -> 0.03571428571 | L28: ='Datos para costos'!$F$10 -> 0.1658231259 | M28: 0
A29: -7 | B29: 7 | C29: =CONCATENATE(YEAR('DATOS DE ENTRADA'!$D$21)+A29) -> 2007 | D29: =IFERROR((SUMIFS(Valor_pond_U,Modelo_Aceptado,CDF!$C30,Rampa,"NO"))/(COUNTIF(Modelo_Aceptado,C29)),0) -> 0 | E29: =6*'Datos para costos'!$E$56+6*'Datos para costos'!$E$58 -> 1332752.4 | F29: 0 | G29: =COUNTIFS(Modelo_Aceptado,"<="&ParámetrosPropuesta!$B$6,Modelo_Aceptado,C29,Rampa,"NO",Regla_calculo,"tipo 1") -> 0 | H29: =COUNTIFS(Modelo_Aceptado,"<="&ParámetrosPropuesta!$B$6,Modelo_Aceptado,C29,Rampa,"NO",Arriendo_flota,"SI",Regla_calculo,"tipo 1") -> 0 | I29: 0 | J29: 0 | K29: =Constantes!$E$129 -> 0 | L29: ='Datos para costos'!$F$10 -> 0.1658231259 | M29: 0
A30: -8 | B30: 8 | C30: =CONCATENATE(YEAR('DATOS DE ENTRADA'!$D$21)+A30) -> 2006 | D30: =IFERROR((SUMIFS(Valor_pond_U,Modelo_Aceptado,CDF!$C31,Rampa,"NO"))/(COUNTIF(Modelo_Aceptado,C30)),0) -> 0 | E30: =6*'Datos para costos'!$E$56+6*'Datos para costos'!$E$58 -> 1332752.4 | F30: 0 | G30: =COUNTIFS(Modelo_Aceptado,"<="&ParámetrosPropuesta!$B$6,Modelo_Aceptado,C30,Rampa,"NO",Regla_calculo,"tipo 1") -> 0 | H30: =COUNTIFS(Modelo_Aceptado,"<="&ParámetrosPropuesta!$B$6,Modelo_Aceptado,C30,Rampa,"NO",Arriendo_flota,"SI",Regla_calculo,"tipo 1") -> 0 | I30: 0 | J30: 0 | K30: =Constantes!$E$130 -> 0 | L30: ='Datos para costos'!$F$10 -> 0.1658231259 | M30: 0
A31: -9 | B31: 9 | C31: =CONCATENATE(YEAR('DATOS DE ENTRADA'!$D$21)+A31) -> 2005 | D31: =IFERROR((SUMIFS(Valor_pond_U,Modelo_Aceptado,CDF!$C32,Rampa,"NO"))/(COUNTIF(Modelo_Aceptado,C31)),0) -> 0 | E31: =6*'Datos para costos'!$E$56+6*'Datos para costos'!$E$58 -> 1332752.4 | F31: 0 | G31: =COUNTIFS(Modelo_Aceptado,"<="&ParámetrosPropuesta!$B$6,Modelo_Aceptado,C31,Rampa,"NO",Regla_calculo,"tipo 1") -> 0 | H31: =COUNTIFS(Modelo_Aceptado,"<="&ParámetrosPropuesta!$B$6,Modelo_Aceptado,C31,Rampa,"NO",Arriendo_flota,"SI",Regla_calculo,"tipo 1") -> 0 | I31: 0 | J31: 0 | K31: =Constantes!$E$130 -> 0 | L31: ='Datos para costos'!$F$10 -> 0.1658231259 | M31: 0
A32: -10 | B32: 10 | C32: =CONCATENATE(YEAR('DATOS DE ENTRADA'!$D$21)+A32) -> 2004 | D32: =IFERROR((SUMIFS(Valor_pond_U,Modelo_Aceptado,CDF!$C33,Rampa,"NO"))/(COUNTIF(Modelo_Aceptado,C32)),0) -> 0 | E32: =6*'Datos para costos'!$E$56+6*'Datos para costos'!$E$58 -> 1332752.4 | F32: 0 | G32: =COUNTIFS(Modelo_Aceptado,"<="&ParámetrosPropuesta!$B$6,Modelo_Aceptado,C32,Rampa,"NO",Regla_calculo,"tipo 1") -> 0 | H32: =COUNTIFS(Modelo_Aceptado,"<="&ParámetrosPropuesta!$B$6,Modelo_Aceptado,C32,Rampa,"NO",Arriendo_flota,"SI",Regla_calculo,"tipo 1") -> 0 | I32: 0 | J32: 0 | K32: =Constantes!$E$130 -> 0 | L32: ='Datos para costos'!$F$10 -> 0.1658231259 | M32: 0
A33: -11 | B33: 11 | C33: =CONCATENATE(YEAR('DATOS DE ENTRADA'!$D$21)+A33) -> 2003 | D33: =IFERROR((SUMIFS(Valor_pond_U,Modelo_Aceptado,CDF!$C34,Rampa,"NO"))/(COUNTIF(Modelo_Aceptado,C33)),0) -> 0 | E33: =6*'Datos para costos'!$E$56+6*'Datos para costos'!$E$58 -> 1332752.4 | F33: 0 | G33: =COUNTIFS(Modelo_Aceptado,"<="&ParámetrosPropuesta!$B$6,Modelo_Aceptado,C33,Rampa,"NO",Regla_calculo,"tipo 1") -> 0 | H33: =COUNTIFS(Modelo_Aceptado,"<="&ParámetrosPropuesta!$B$6,Modelo_Aceptado,C33,Rampa,"NO",Arriendo_flota,"SI",Regla_calculo,"tipo 1") -> 0 | I33: 0 | J33: 0 | K33: =Constantes!$E$130 -> 0 | L33: ='Datos para costos'!$F$10 -> 0.1658231259 | M33: 0
A34: -12 | B34: 12 | C34: =CONCATENATE(YEAR('DATOS DE ENTRADA'!$D$21)+A34) -> 2002 | D34: =IFERROR((SUMIFS(Valor_pond_U,Modelo_Aceptado,CDF!$C35,Rampa,"NO"))/(COUNTIF(Modelo_Aceptado,C34)),0) -> 0 | E34: =6*'Datos para costos'!$E$56+6*'Datos para costos'!$E$58 -> 1332752.4 | F34: 0 | G34: =COUNTIFS(Modelo_Aceptado,"<="&ParámetrosPropuesta!$B$6,Modelo_Aceptado,C34,Rampa,"NO",Regla_calculo,"tipo 1") -> 0 | H34: =COUNTIFS(Modelo_Aceptado,"<="&ParámetrosPropuesta!$B$6,Modelo_Aceptado,C34,Rampa,"NO",Arriendo_flota,"SI",Regla_calculo,"tipo 1") -> 0 | I34: 0 | J34: 0 | K34: =Constantes!$E$130 -> 0 | L34: ='Datos para costos'!$F$10 -> 0.1658231259 | M34: 0
A35: -13 | B35: 13 | C35: =CONCATENATE(YEAR('DATOS DE ENTRADA'!$D$21)+A35) -> 2001 | D35: =IFERROR((SUMIFS(Valor_pond_U,Modelo_Aceptado,CDF!$C36,Rampa,"NO"))/(COUNTIF(Modelo_Aceptado,C35)),0) -> 0 | E35: =6*'Datos para costos'!$E$56+6*'Datos para costos'!$E$58 -> 1332752.4 | F35: 0 | G35: =COUNTIFS(Modelo_Aceptado,"<="&ParámetrosPropuesta!$B$6,Modelo_Aceptado,C35,Rampa,"NO",Regla_calculo,"tipo 1") -> 0 | H35: =COUNTIFS(Modelo_Aceptado,"<="&ParámetrosPropuesta!$B$6,Modelo_Aceptado,C35,Rampa,"NO",Arriendo_flota,"SI",Regla_calculo,"tipo 1") -> 0 | I35: 0 | J35: 0 | K35: =Constantes!$E$130 -> 0 | L35: ='Datos para costos'!$F$10 -> 0.1658231259 | M35: 0
A36: -14 | B36: 14 | C36: =CONCATENATE(YEAR('DATOS DE ENTRADA'!$D$21)+A36) -> 2000 | D36: =IFERROR((SUMIFS(Valor_pond_U,Modelo_Aceptado,CDF!$C37,Rampa,"NO"))/(COUNTIF(Modelo_Aceptado,C36)),0) -> 0 | E36: =6*'Datos para costos'!$E$56+6*'Datos para costos'!$E$58 -> 1332752.4 | F36: 0 | G36: =COUNTIFS(Modelo_Aceptado,"<="&ParámetrosPropuesta!$B$6,Modelo_Aceptado,C36,Rampa,"NO",Regla_calculo,"tipo 1") -> 0 | H36: =COUNTIFS(Modelo_Aceptado,"<="&ParámetrosPropuesta!$B$6,Modelo_Aceptado,C36,Rampa,"NO",Arriendo_flota,"SI",Regla_calculo,"tipo 1") -> 0 | I36: 0 | J36: 0 | K36: =Constantes!$E$130 -> 0 | L36: ='Datos para costos'!$F$10 -> 0.1658231259 | M36: 0
A37: -15 | B37: 15 | C37: =CONCATENATE(YEAR('DATOS DE ENTRADA'!$D$21)+A37) -> 1999 | D37: =IFERROR((SUMIFS(Valor_pond_U,Modelo_Aceptado,CDF!$C38,Rampa,"NO"))/(COUNTIF(Modelo_Aceptado,C37)),0) -> 0 | E37: =6*'Datos para costos'!$E$56+6*'Datos para costos'!$E$58 -> 1332752.4 | F37: 0 | G37: =COUNTIFS(Modelo_Aceptado,"<="&ParámetrosPropuesta!$B$6,Modelo_Aceptado,C37,Rampa,"NO",Regla_calculo,"tipo 1") -> 0 | H37: =COUNTIFS(Modelo_Aceptado,"<="&ParámetrosPropuesta!$B$6,Modelo_Aceptado,C37,Rampa,"NO",Arriendo_flota,"SI",Regla_calculo,"tipo 1") -> 0 | I37: 0 | J37: 0 | K37: =Constantes!$E$130 -> 0 | L37: ='Datos para costos'!$F$10 -> 0.1658231259 | M37: 0
A38: -16 | B38: 16 o más | C38: =CONCATENATE("<=",YEAR('DATOS DE ENTRADA'!$D$21)+A38) -> <=1998 | D38: =IFERROR((SUMIFS(Valor_pond_U,Modelo_Aceptado,CDF!$C39,Rampa,"NO"))/(COUNTIF(Modelo_Aceptado,C38)),0) -> 0 | E38: =6*'Datos para costos'!$E$56+6*'Datos para costos'!$E$58 -> 1332752.4 | F38: 0 | G38: =COUNTIFS(Modelo_Aceptado,"<="&ParámetrosPropuesta!$B$6,Modelo_Aceptado,C38,Rampa,"NO",Regla_calculo,"tipo 1") -> 0 | H38: =COUNTIFS(Modelo_Aceptado,"<="&ParámetrosPropuesta!$B$6,Modelo_Aceptado,C38,Rampa,"NO",Arriendo_flota,"SI",Regla_calculo,"tipo 1") -> 0 | I38: 0 | J38: 0 | K38: =Constantes!$E$130 -> 0 | L38: ='Datos para costos'!$F$10 -> 0.1658231259 | M38: 0
G39: =SUM(G21:G38) -> 0 | H39: =SUM(H21:H38) -> 0 | I39: =SUM(I21:I38) -> 0 | J39: =SUM(J21:J38) -> 0 | M39: =SUM(M21:M38) -> 0
B41: ="CON RAMPA, AÑO MODELO MENOR IGUAL AL "&ParámetrosPropuesta!$B$6 -> CON RAMPA, AÑO MODELO MENOR IGUAL AL 2015
B42: Edad del vehículo (años) | C42: Año modelo (b) | D42: Valor del vehículo en colones (VTAbr) | E42: Valor de las llantas | F42: Valor del vehículo sin llantas (VTANbr) | G42: Cantidad de vehículos (Fbr) | H42: Cantidad de unidades arrendadas (Fa) | I42: Valor de flota con llantas (VTAbr*Fbr) | J42: Valor de flota sin llantas (VTANbr*Fbr) | K42: Factor RENTABILIDAD de unidades (frfb) | L42: Tasa de rentabilidad anual según la edad "b" de las unidades | M42: Valor de flota x factor de rentabilidad x tasa de rentabilidad
A43: 1 | B43: 0 | C43: =CONCATENATE(YEAR('DATOS DE ENTRADA'!$D$21)+A43) -> 2015 | D43: =IFERROR((SUMIFS(Valor_pond_U,Modelo_Aceptado,CDF!$C44,Rampa,"SI"))/(COUNTIF(Modelo_Aceptado,C43)),0) -> 0 | E43: =6*'Datos para costos'!$E$56+6*'Datos para costos'!$E$58 -> 1332752.4 | F43: =IF(D43=0,0,D43-E43) -> 0 | G43: =COUNTIFS(Modelo_Aceptado,"<="&ParámetrosPropuesta!$B$6,Modelo_Aceptado,C43,Rampa,"SI",Regla_calculo,"tipo 1") -> 0 | H43: =COUNTIFS(Modelo_Aceptado,"<="&ParámetrosPropuesta!$B$6,Modelo_Aceptado,C43,Rampa,"SI",Arriendo_flota,"SI",Regla_calculo,"tipo 1") -> 0 | I43: =IF(ISERROR(D43),0,D43*(G43-H43)) -> 0 | J43: =IF(ISERROR(D43),0,F43*(G43-H43)) -> 0 | K43: =Constantes!$E$122 -> 1 | L43: ='Datos para costos'!$F$10 -> 0.1658231259 | M43: =K43*J43*L43 -> 0 | N43: =+K43*L43/12 -> 0.01381859383 | O43: =+VALUE(C43) -> 2015 | P43: =+VALUE(K43) -> 1
A44: 0 | B44: 0 | C44: =CONCATENATE(YEAR('DATOS DE ENTRADA'!$D$21)+A44) -> 2014 | D44: =IFERROR((SUMIFS(Valor_pond_U,Modelo_Aceptado,CDF!$C45,Rampa,"SI"))/(COUNTIF(Modelo_Aceptado,C44)),0) -> 0 | E44: =6*'Datos para costos'!$E$56+6*'Datos para costos'!$E$58 -> 1332752.4 | F44: 0 | G44: =COUNTIFS(Modelo_Aceptado,"<="&ParámetrosPropuesta!$B$6,Modelo_Aceptado,C44,Rampa,"SI",Regla_calculo,"tipo 1") -> 0 | H44: =COUNTIFS(Modelo_Aceptado,"<="&ParámetrosPropuesta!$B$6,Modelo_Aceptado,C44,Rampa,"SI",Arriendo_flota,"SI",Regla_calculo,"tipo 1") -> 0 | I44: =IF(ISERROR(D44),0,D44*(G44-H44)) -> 0 | J44: 0 | K44: =Constantes!$E$122 -> 1 | L44: ='Datos para costos'!$F$10 -> 0.1658231259 | M44: 0 | N44: =+K44*L44/12 -> 0.01381859383 | O44: =+VALUE(C44) -> 2014 | P44: =+VALUE(K44) -> 1
A45: -1 | B45: 1 | C45: =CONCATENATE(YEAR('DATOS DE ENTRADA'!$D$21)+A45) -> 2013 | D45: =IFERROR((SUMIFS(Valor_pond_U,Modelo_Aceptado,CDF!$C46,Rampa,"SI"))/(COUNTIF(Modelo_Aceptado,C45)),0) -> 0 | E45: =6*'Datos para costos'!$E$56+6*'Datos para costos'!$E$58 -> 1332752.4 | F45: 0 | G45: =COUNTIFS(Modelo_Aceptado,"<="&ParámetrosPropuesta!$B$6,Modelo_Aceptado,C45,Rampa,"SI",Regla_calculo,"tipo 1") -> 0 | H45: =COUNTIFS(Modelo_Aceptado,"<="&ParámetrosPropuesta!$B$6,Modelo_Aceptado,C45,Rampa,"SI",Arriendo_flota,"SI",Regla_calculo,"tipo 1") -> 0 | I45: 0 | J45: 0 | K45: =Constantes!$E$123 -> 0.75 | L45: ='Datos para costos'!$F$10 -> 0.1658231259 | M45: 0 | N45: 0.01036394537 | O45: 2013 | P45: 0.75
A46: -2 | B46: 2 | C46: =CONCATENATE(YEAR('DATOS DE ENTRADA'!$D$21)+A46) -> 2012 | D46: =IFERROR((SUMIFS(Valor_pond_U,Modelo_Aceptado,CDF!$C47,Rampa,"SI"))/(COUNTIF(Modelo_Aceptado,C46)),0) -> 0 | E46: =6*'Datos para costos'!$E$56+6*'Datos para costos'!$E$58 -> 1332752.4 | F46: 0 | G46: =COUNTIFS(Modelo_Aceptado,"<="&ParámetrosPropuesta!$B$6,Modelo_Aceptado,C46,Rampa,"SI",Regla_calculo,"tipo 1") -> 0 | H46: =COUNTIFS(Modelo_Aceptado,"<="&ParámetrosPropuesta!$B$6,Modelo_Aceptado,C46,Rampa,"SI",Arriendo_flota,"SI",Regla_calculo,"tipo 1") -> 0 | I46: 0 | J46: 0 | K46: =Constantes!$E$124 -> 0.5357142857 | L46: ='Datos para costos'!$F$10 -> 0.1658231259 | M46: 0 | N46: 0.007402818121 | O46: 2012 | P46: 0.5357142857
A47: -3 | B47: 3 | C47: =CONCATENATE(YEAR('DATOS DE ENTRADA'!$D$21)+A47) -> 2011 | D47: =IFERROR((SUMIFS(Valor_pond_U,Modelo_Aceptado,CDF!$C48,Rampa,"SI"))/(COUNTIF(Modelo_Aceptado,C47)),0) -> 0 | E47: =6*'Datos para costos'!$E$56+6*'Datos para costos'!$E$58 -> 1332752.4 | F47: 0 | G47: =COUNTIFS(Modelo_Aceptado,"<="&ParámetrosPropuesta!$B$6,Modelo_Aceptado,C47,Rampa,"SI",Regla_calculo,"tipo 1") -> 0 | H47: =COUNTIFS(Modelo_Aceptado,"<="&ParámetrosPropuesta!$B$6,Modelo_Aceptado,C47,Rampa,"SI",Arriendo_flota,"SI",Regla_calculo,"tipo 1") -> 0 | I47: 0 | J47: 0 | K47: =Constantes!$E$125 -> 0.3571428571 | L47: ='Datos para costos'!$F$10 -> 0.1658231259 | M47: 0 | N47: 0.00493521208 | O47: 2011 | P47: 0.3571428571
A48: -4 | B48: 4 | C48: =CONCATENATE(YEAR('DATOS DE ENTRADA'!$D$21)+A48) -> 2010 | D48: =IFERROR((SUMIFS(Valor_pond_U,Modelo_Aceptado,CDF!$C49,Rampa,"SI"))/(COUNTIF(Modelo_Aceptado,C48)),0) -> 63705600 | E48: =6*'Datos para costos'!$E$56+6*'Datos para costos'!$E$58 -> 1332752.4 | F48: 62372847.6 | G48: =COUNTIFS(Modelo_Aceptado,"<="&ParámetrosPropuesta!$B$6,Modelo_Aceptado,C48,Rampa,"SI",Regla_calculo,"tipo 1") -> 1 | H48: =COUNTIFS(Modelo_Aceptado,"<="&ParámetrosPropuesta!$B$6,Modelo_Aceptado,C48,Rampa,"SI",Arriendo_flota,"SI",Regla_calculo,"tipo 1") -> 0 | I48: 63705600 | J48: 62372847.6 | K48: =Constantes!$E$126 -> 0.2142857143 | L48: ='Datos para costos'!$F$10 -> 0.1658231259 | M48: 2216327.263 | N48: 0.002961127248 | O48: 2010 | P48: 0.2142857143
A49: -5 | B49: 5 | C49: =CONCATENATE(YEAR('DATOS DE ENTRADA'!$D$21)+A49) -> 2009 | D49: =IFERROR((SUMIFS(Valor_pond_U,Modelo_Aceptado,CDF!$C50,Rampa,"SI"))/(COUNTIF(Modelo_Aceptado,C49)),0) -> 0 | E49: =6*'Datos para costos'!$E$56+6*'Datos para costos'!$E$58 -> 1332752.4 | F49: 0 | G49: =COUNTIFS(Modelo_Aceptado,"<="&ParámetrosPropuesta!$B$6,Modelo_Aceptado,C49,Rampa,"SI",Regla_calculo,"tipo 1") -> 0 | H49: =COUNTIFS(Modelo_Aceptado,"<="&ParámetrosPropuesta!$B$6,Modelo_Aceptado,C49,Rampa,"SI",Arriendo_flota,"SI",Regla_calculo,"tipo 1") -> 0 | I49: 0 | J49: 0 | K49: =Constantes!$E$127 -> 0.1071428571 | L49: ='Datos para costos'!$F$10 -> 0.1658231259 | M49: 0 | N49: 0.001480563624 | O49: 2009 | P49: 0.1071428571
A50: -6 | B50: 6 | C50: =CONCATENATE(YEAR('DATOS DE ENTRADA'!$D$21)+A50) -> 2008 | D50: =IFERROR((SUMIFS(Valor_pond_U,Modelo_Aceptado,CDF!$C51,Rampa,"SI"))/(COUNTIF(Modelo_Aceptado,C50)),0) -> 0 | E50: =6*'Datos para costos'!$E$56+6*'Datos para costos'!$E$58 -> 1332752.4 | F50: 0 | G50: =COUNTIFS(Modelo_Aceptado,"<="&ParámetrosPropuesta!$B$6,Modelo_Aceptado,C50,Rampa,"SI",Regla_calculo,"tipo 1") -> 0 | H50: =COUNTIFS(Modelo_Aceptado,"<="&ParámetrosPropuesta!$B$6,Modelo_Aceptado,C50,Rampa,"SI",Arriendo_flota,"SI",Regla_calculo,"tipo 1") -> 0 | I50: 0 | J50: 0 | K50: =Constantes!$E$128 -> 0.03571428571 | L50: ='Datos para costos'!$F$10 -> 0.1658231259 | M50: 0 | N50: 0.000493521208 | O50: 2008 | P50: 0.03571428571
A51: -7 | B51: 7 | C51: =CONCATENATE(YEAR('DATOS DE ENTRADA'!$D$21)+A51) -> 2007 | D51: =IFERROR((SUMIFS(Valor_pond_U,Modelo_Aceptado,CDF!$C52,Rampa,"SI"))/(COUNTIF(Modelo_Aceptado,C51)),0) -> 63705600 | E51: =6*'Datos para costos'!$E$56+6*'Datos para costos'!$E$58 -> 1332752.4 | F51: 62372847.6 | G51: =COUNTIFS(Modelo_Aceptado,"<="&ParámetrosPropuesta!$B$6,Modelo_Aceptado,C51,Rampa,"SI",Regla_calculo,"tipo 1") -> 1 | H51: =COUNTIFS(Modelo_Aceptado,"<="&ParámetrosPropuesta!$B$6,Modelo_Aceptado,C51,Rampa,"SI",Arriendo_flota,"SI",Regla_calculo,"tipo 1") -> 1 | I51: 0 | J51: 0 | K51: =Constantes!$E$129 -> 0 | L51: ='Datos para costos'!$F$10 -> 0.1658231259 | M51: 0 | N51: 0 | O51: 2007 | P51: 0
A52: -8 | B52: 8 | C52: =CONCATENATE(YEAR('DATOS DE ENTRADA'!$D$21)+A52) -> 2006 | D52: =IFERROR((SUMIFS(Valor_pond_U,Modelo_Aceptado,CDF!$C53,Rampa,"SI"))/(COUNTIF(Modelo_Aceptado,C52)),0) -> 63705600 | E52: =6*'Datos para costos'!$E$56+6*'Datos para costos'!$E$58 -> 1332752.4 | F52: 62372847.6 | G52: =COUNTIFS(Modelo_Aceptado,"<="&ParámetrosPropuesta!$B$6,Modelo_Aceptado,C52,Rampa,"SI",Regla_calculo,"tipo 1") -> 1 | H52: =COUNTIFS(Modelo_Aceptado,"<="&ParámetrosPropuesta!$B$6,Modelo_Aceptado,C52,Rampa,"SI",Arriendo_flota,"SI",Regla_calculo,"tipo 1") -> 0 | I52: 63705600 | J52: 62372847.6 | K52: =Constantes!$E$130 -> 0 | L52: ='Datos para costos'!$F$10 -> 0.1658231259 | M52: 0 | N52: 0 | O52: 2006 | P52: 0
A53: -9 | B53: 9 | C53: =CONCATENATE(YEAR('DATOS DE ENTRADA'!$D$21)+A53) -> 2005 | D53: =IFERROR((SUMIFS(Valor_pond_U,Modelo_Aceptado,CDF!$C54,Rampa,"SI"))/(COUNTIF(Modelo_Aceptado,C53)),0) -> 63705600 | E53: =6*'Datos para costos'!$E$56+6*'Datos para costos'!$E$58 -> 1332752.4 | F53: 62372847.6 | G53: =COUNTIFS(Modelo_Aceptado,"<="&ParámetrosPropuesta!$B$6,Modelo_Aceptado,C53,Rampa,"SI",Regla_calculo,"tipo 1") -> 2 | H53: =COUNTIFS(Modelo_Aceptado,"<="&ParámetrosPropuesta!$B$6,Modelo_Aceptado,C53,Rampa,"SI",Arriendo_flota,"SI",Regla_calculo,"tipo 1") -> 1 | I53: 63705600 | J53: 62372847.6 | K53: =Constantes!$E$130 -> 0 | L53: ='Datos para costos'!$F$10 -> 0.1658231259 | M53: 0 | N53: 0 | O53: 2005 | P53: 0
A54: -10 | B54: 10 | C54: =CONCATENATE(YEAR('DATOS DE ENTRADA'!$D$21)+A54) -> 2004 | D54: =IFERROR((SUMIFS(Valor_pond_U,Modelo_Aceptado,CDF!$C55,Rampa,"SI"))/(COUNTIF(Modelo_Aceptado,C54)),0) -> 0 | E54: =6*'Datos para costos'!$E$56+6*'Datos para costos'!$E$58 -> 1332752.4 | F54: 0 | G54: =COUNTIFS(Modelo_Aceptado,"<="&ParámetrosPropuesta!$B$6,Modelo_Aceptado,C54,Rampa,"SI",Regla_calculo,"tipo 1") -> 0 | H54: =COUNTIFS(Modelo_Aceptado,"<="&ParámetrosPropuesta!$B$6,Modelo_Aceptado,C54,Rampa,"SI",Arriendo_flota,"SI",Regla_calculo,"tipo 1") -> 0 | I54: 0 | J54: 0 | K54: =Constantes!$E$130 -> 0 | L54: ='Datos para costos'!$F$10 -> 0.1658231259 | M54: 0 | N54: 0 | O54: 2004 | P54: 0
A55: -11 | B55: 11 | C55: =CONCATENATE(YEAR('DATOS DE ENTRADA'!$D$21)+A55) -> 2003 | D55: =IFERROR((SUMIFS(Valor_pond_U,Modelo_Aceptado,CDF!$C56,Rampa,"SI"))/(COUNTIF(Modelo_Aceptado,C55)),0) -> 63705600 | E55: =6*'Datos para costos'!$E$56+6*'Datos para costos'!$E$58 -> 1332752.4 | F55: 62372847.6 | G55: =COUNTIFS(Modelo_Aceptado,"<="&ParámetrosPropuesta!$B$6,Modelo_Aceptado,C55,Rampa,"SI",Regla_calculo,"tipo 1") -> 1 | H55: =COUNTIFS(Modelo_Aceptado,"<="&ParámetrosPropuesta!$B$6,Modelo_Aceptado,C55,Rampa,"SI",Arriendo_flota,"SI",Regla_calculo,"tipo 1") -> 0 | I55: 63705600 | J55: 62372847.6 | K55: =Constantes!$E$130 -> 0 | L55: ='Datos para costos'!$F$10 -> 0.1658231259 | M55: 0 | N55: 0 | O55: 2003 | P55: 0
A56: -12 | B56: 12 | C56: =CONCATENATE(YEAR('DATOS DE ENTRADA'!$D$21)+A56) -> 2002 | D56: =IFERROR((SUMIFS(Valor_pond_U,Modelo_Aceptado,CDF!$C57,Rampa,"SI"))/(COUNTIF(Modelo_Aceptado,C56)),0) -> 63705600 | E56: =6*'Datos para costos'!$E$56+6*'Datos para costos'!$E$58 -> 1332752.4 | F56: 62372847.6 | G56: =COUNTIFS(Modelo_Aceptado,"<="&ParámetrosPropuesta!$B$6,Modelo_Aceptado,C56,Rampa,"SI",Regla_calculo,"tipo 1") -> 1 | H56: =COUNTIFS(Modelo_Aceptado,"<="&ParámetrosPropuesta!$B$6,Modelo_Aceptado,C56,Rampa,"SI",Arriendo_flota,"SI",Regla_calculo,"tipo 1") -> 0 | I56: 63705600 | J56: 62372847.6 | K56: =Constantes!$E$130 -> 0 | L56: ='Datos para costos'!$F$10 -> 0.1658231259 | M56: 0 | N56: 0 | O56: 2002 | P56: 0
A57: -13 | B57: 13 | C57: =CONCATENATE(YEAR('DATOS DE ENTRADA'!$D$21)+A57) -> 2001 | D57: =IFERROR((SUMIFS(Valor_pond_U,Modelo_Aceptado,CDF!$C58,Rampa,"SI"))/(COUNTIF(Modelo_Aceptado,C57)),0) -> 63705600 | E57: =6*'Datos para costos'!$E$56+6*'Datos para costos'!$E$58 -> 1332752.4 | F57: 62372847.6 | G57: =COUNTIFS(Modelo_Aceptado,"<="&ParámetrosPropuesta!$B$6,Modelo_Aceptado,C57,Rampa,"SI",Regla_calculo,"tipo 1") -> 1 | H57: =COUNTIFS(Modelo_Aceptado,"<="&ParámetrosPropuesta!$B$6,Modelo_Aceptado,C57,Rampa,"SI",Arriendo_flota,"SI",Regla_calculo,"tipo 1") -> 0 | I57: 63705600 | J57: 62372847.6 | K57: =Constantes!$E$130 -> 0 | L57: ='Datos para costos'!$F$10 -> 0.1658231259 | M57: 0 | N57: 0 | O57: 2001 | P57: 0
A58: -14 | B58: 14 | C58: =CONCATENATE(YEAR('DATOS DE ENTRADA'!$D$21)+A58) -> 2000 | D58: =IFERROR((SUMIFS(Valor_pond_U,Modelo_Aceptado,CDF!$C59,Rampa,"SI"))/(COUNTIF(Modelo_Aceptado,C58)),0) -> 63705600 | E58: =6*'Datos para costos'!$E$56+6*'Datos para costos'!$E$58 -> 1332752.4 | F58: 62372847.6 | G58: =COUNTIFS(Modelo_Aceptado,"<="&ParámetrosPropuesta!$B$6,Modelo_Aceptado,C58,Rampa,"SI",Regla_calculo,"tipo 1") -> 1 | H58: =COUNTIFS(Modelo_Aceptado,"<="&ParámetrosPropuesta!$B$6,Modelo_Aceptado,C58,Rampa,"SI",Arriendo_flota,"SI",Regla_calculo,"tipo 1") -> 0 | I58: 63705600 | J58: 62372847.6 | K58: =Constantes!$E$130 -> 0 | L58: ='Datos para costos'!$F$10 -> 0.1658231259 | M58: 0 | N58: 0 | O58: 2000 | P58: 0
A59: -15 | B59: 15 | C59: =CONCATENATE(YEAR('DATOS DE ENTRADA'!$D$21)+A59) -> 1999 | D59: =IFERROR((SUMIFS(Valor_pond_U,Modelo_Aceptado,CDF!$C60,Rampa,"SI"))/(COUNTIF(Modelo_Aceptado,C59)),0) -> 63705600 | E59: =6*'Datos para costos'!$E$56+6*'Datos para costos'!$E$58 -> 1332752.4 | F59: 62372847.6 | G59: =COUNTIFS(Modelo_Aceptado,"<="&ParámetrosPropuesta!$B$6,Modelo_Aceptado,C59,Rampa,"SI",Regla_calculo,"tipo 1") -> 1 | H59: =COUNTIFS(Modelo_Aceptado,"<="&ParámetrosPropuesta!$B$6,Modelo_Aceptado,C59,Rampa,"SI",Arriendo_flota,"SI",Regla_calculo,"tipo 1") -> 0 | I59: 63705600 | J59: 62372847.6 | K59: =Constantes!$E$130 -> 0 | L59: ='Datos para costos'!$F$10 -> 0.1658231259 | M59: 0 | N59: 0 | O59: 1999 | P59: 0
A60: -16 | B60: 16 o más | C60: =CONCATENATE("<=",YEAR('DATOS DE ENTRADA'!$D$21)+A60) -> <=1998 | D60: =IFERROR((SUMIFS(Valor_pond_U,Modelo_Aceptado,CDF!$C61,Rampa,"SI"))/(COUNTIF(Modelo_Aceptado,C60)),0) -> 0 | E60: =6*'Datos para costos'!$E$56+6*'Datos para costos'!$E$58 -> 1332752.4 | F60: 0 | G60: =COUNTIFS(Modelo_Aceptado,"<="&ParámetrosPropuesta!$B$6,Modelo_Aceptado,C60,Rampa,"SI",Regla_calculo,"tipo 1") -> 0 | H60: =COUNTIFS(Modelo_Aceptado,"<="&ParámetrosPropuesta!$B$6,Modelo_Aceptado,C60,Rampa,"SI",Arriendo_flota,"SI",Regla_calculo,"tipo 1") -> 0 | I60: 0 | J60: 0 | K60: =Constantes!$E$130 -> 0 | L60: ='Datos para costos'!$F$10 -> 0.1658231259 | M60: 0 | N60: 0
G61: =SUM(G43:G60) -> 10 | H61: =SUM(H43:H60) -> 2 | I61: =SUM(I43:I60) -> 509644800 | J61: =SUM(J43:J60) -> 498982780.8 | M61: =SUM(M43:M60) -> 2216327.263

Sheet RMEI
B1: 3.1.2 Rentabilidad mensual del capital invertido en maquinaria, equipo e instalaciones en la ruta “r”
L3: QR | M3: =ParámetrosPropuesta!B7 -> 0 | O3: AñoCorte | P3: =ParámetrosPropuesta!B6 -> 2015
L4: QN | M4: =ParámetrosPropuesta!B8 -> 1
E5: Ecuación 42
B7: RMEIr | C7: Rentabilidad mensual del capital invertido en maquinaria, equipo e instalaciones en la ruta “r” | D7: =1/12*(D8*(D9+D11)) -> 7545.615521
B8: crmei | C8: Coeficiente de rentabilidad anual en la maquinaria, equipo e instalaciones para cualquier tipo de ruta | D8: =Constantes!$D$156 -> 0.04
C9: Sumatoria del valor tarifario de la unidad de transporte remunerado de personas modalidad autobús de edad “b” del tipo de vehículo que se utiliza en la ruta “r”, del conjunto de unidades “α” multiplicado por Factor de rentabilidad anual según la edad “b” de las unidades que conforman la flota en la ruta “r” multiplicado por Cantidad de unidades de la flota autorizada según la edad “b” en la ruta “r”, del conjunto de unidades “α” multiplicado por Tasa de rentabilidad anual para vehículos con reglas de cálculo tarifario tipo 1 para la ruta “r” del conjunto de unidades “α” | D9: =($L$38+$L$60) -> 2263684.656
C10: Tasa de rentabilidad anual para vehículos con reglas de cálculo tarifario tipo 1 para la ruta “r” del conjunto de unidades “α” | D10: ='Datos para costos'!$E$81 -> 0.1658231259
C11: Valor tarifario de la unidad de transporte remunerado de personas modalidad autobús en el año “p” de edad “b” y número de placa “n” del tipo de vehículo que se utiliza en la ruta “r”, del conjunto de unidades “γ” multiplicado por Tasa de rentabilidad anual para vehículos con reglas de cálculo tarifario tipo 2 para la ruta “r” del conjunto de unidades “γ” | D11: =Flota!$W$5*$D$12 -> 0
C12: Tasa de rentabilidad anual para vehículos con reglas de cálculo tarifario tipo 2 para la ruta “r” del conjunto de unidades “γ” | D12: ='Datos para costos'!E83 -> 0.129
B13: r | C13: Ruta de transporte remunerado de personas | D13: ='DATOS DE ENTRADA'!D17 -> Urbana
A16: =+Aclaraciones!$B$4 -> Aclaraciones: 1. Este instrumento de cálculo de tarifas para el servicio de transporte público por autobús fue elaborado con el único propósito de revisar la consistencia interna de la propuesta de la "Metodología para fijación ordinaria de tarifas para el servicio de transporte remunerado de personas, modalidad autobús". 2. Este instrumento no forma parte del Expediente OT-104-2015 y por tanto, no es parte de la propuesta de "metodología para fijación ordinaria de tarifas para el servicio de transporte remunerado de personas, modalidad autobús". 3. Este instrumento de cálculo corresponde a una versión preliminar, y por lo tanto no es necesariamente el que se usará para estimar los ajustes tarifarios derivados de la aplicación del "Metodología para fijación ordinaria de tarifas para el servicio de transporte remunerado de personas, modalidad autobús", pues este debe ser elaborado y validado por la Intendencia de Transportes dentro de la etapa de fijación tarifaria.
B18: ="SIN RAMPA, AÑO MODELO MENOR IGUAL AL "&ParámetrosPropuesta!$B$6 -> SIN RAMPA, AÑO MODELO MENOR IGUAL AL 2015
B19: Edad del vehículo (años) | C19: Año modelo (b) | D19: Valor del vehículo en colones (VTAbr) | E19: Valor de las llantas | F19: Valor del vehículo sin llantas (VTANbr) | G19: Cantidad de vehículos (Fbr) | H19: Cantidad de unidades arrendadas (Fa) | I19: Valor de flota con llantas (VTAbr*Fbr) | J19: Factor RENTABILIDAD de unidades (frfb) | K19: Tasa de rentabilidad anual según la edad "b" de las unidades | L19: Valor de flota x factor de rentabilidad x tasa de rentabilidad
A20: 1 | B20: 0 | C20: =CONCATENATE(YEAR('DATOS DE ENTRADA'!$D$21)+A20) -> 2015 | D20: =IFERROR((SUMIFS(Valor_pond_U,Modelo_Aceptado,CDF!$C22,Rampa,"NO"))/(COUNTIF(Modelo_Aceptado,C20)),0) -> 0 | E20: =6*'Datos para costos'!$E$56+6*'Datos para costos'!$E$58 -> 1332752.4 | F20: =IF(D20=0,0,D20-E20) -> 0 | G20: =COUNTIFS(Modelo_Aceptado,"<="&ParámetrosPropuesta!$B$6,Modelo_Aceptado,C20,Rampa,"NO",Regla_calculo,"tipo 1") -> 0 | H20: =COUNTIFS(Modelo_Aceptado,"<="&ParámetrosPropuesta!$B$6,Modelo_Aceptado,C20,Rampa,"NO",Arriendo_flota,"SI",Regla_calculo,"tipo 1") -> 0 | I20: =IF(ISERROR(D20),0,D20*(G20-H20)) -> 0 | J20: =Constantes!$E$122 -> 1 | K20: ='Datos para costos'!$F$10 -> 0.1658231259 | L20: =J20*I20*K20 -> 0
A21: 0 | B21: 0 | C21: =CONCATENATE(YEAR('DATOS DE ENTRADA'!$D$21)+A21) -> 2014 | D21: =IFERROR((SUMIFS(Valor_pond_U,Modelo_Aceptado,CDF!$C23,Rampa,"NO"))/(COUNTIF(Modelo_Aceptado,C21)),0) -> 0 | E21: =6*'Datos para costos'!$E$56+6*'Datos para costos'!$E$58 -> 1332752.4 | F21: 0 | G21: =COUNTIFS(Modelo_Aceptado,"<="&ParámetrosPropuesta!$B$6,Modelo_Aceptado,C21,Rampa,"NO",Regla_calculo,"tipo 1") -> 0 | H21: =COUNTIFS(Modelo_Aceptado,"<="&ParámetrosPropuesta!$B$6,Modelo_Aceptado,C21,Rampa,"NO",Arriendo_flota,"SI",Regla_calculo,"tipo 1") -> 0 | I21: =IF(ISERROR(D21),0,D21*(G21-H21)) -> 0 | J21: =Constantes!$E$122 -> 1 | K21: ='Datos para costos'!$F$10 -> 0.1658231259 | L21: 0
A22: -1 | B22: 1 | C22: =CONCATENATE(YEAR('DATOS DE ENTRADA'!$D$21)+A22) -> 2013 | D22: =IFERROR((SUMIFS(Valor_pond_U,Modelo_Aceptado,CDF!$C24,Rampa,"NO"))/(COUNTIF(Modelo_Aceptado,C22)),0) -> 0 | E22: =6*'Datos para costos'!$E$56+6*'Datos para costos'!$E$58 -> 1332752.4 | F22: 0 | G22: =COUNTIFS(Modelo_Aceptado,"<="&ParámetrosPropuesta!$B$6,Modelo_Aceptado,C22,Rampa,"NO",Regla_calculo,"tipo 1") -> 0 | H22: =COUNTIFS(Modelo_Aceptado,"<="&ParámetrosPropuesta!$B$6,Modelo_Aceptado,C22,Rampa,"NO",Arriendo_flota,"SI",Regla_calculo,"tipo 1") -> 0 | I22: 0 | J22: =Constantes!$E$123 -> 0.75 | K22: ='Datos para costos'!$F$10 -> 0.1658231259 | L22: 0
A23: -2 | B23: 2 | C23: =CONCATENATE(YEAR('DATOS DE ENTRADA'!$D$21)+A23) -> 2012 | D23: =IFERROR((SUMIFS(Valor_pond_U,Modelo_Aceptado,CDF!$C25,Rampa,"NO"))/(COUNTIF(Modelo_Aceptado,C23)),0) -> 0 | E23: =6*'Datos para costos'!$E$56+6*'Datos para costos'!$E$58 -> 1332752.4 | F23: 0 | G23: =COUNTIFS(Modelo_Aceptado,"<="&ParámetrosPropuesta!$B$6,Modelo_Aceptado,C23,Rampa,"NO",Regla_calculo,"tipo 1") -> 0 | H23: =COUNTIFS(Modelo_Aceptado,"<="&ParámetrosPropuesta!$B$6,Modelo_Aceptado,C23,Rampa,"NO",Arriendo_flota,"SI",Regla_calculo,"tipo 1") -> 0 | I23: 0 | J23: =Constantes!$E$124 -> 0.5357142857 | K23: ='Datos para costos'!$F$10 -> 0.1658231259 | L23: 0
A24: -3 | B24: 3 | C24: =CONCATENATE(YEAR('DATOS DE ENTRADA'!$D$21)+A24) -> 2011 | D24: =IFERROR((SUMIFS(Valor_pond_U,Modelo_Aceptado,CDF!$C26,Rampa,"NO"))/(COUNTIF(Modelo_Aceptado,C24)),0) -> 0 | E24: =6*'Datos para costos'!$E$56+6*'Datos para costos'!$E$58 -> 1332752.4 | F24: 0 | G24: =COUNTIFS(Modelo_Aceptado,"<="&ParámetrosPropuesta!$B$6,Modelo_Aceptado,C24,Rampa,"NO",Regla_calculo,"tipo 1") -> 0 | H24: =COUNTIFS(Modelo_Aceptado,"<="&ParámetrosPropuesta!$B$6,Modelo_Aceptado,C24,Rampa,"NO",Arriendo_flota,"SI",Regla_calculo,"tipo 1") -> 0 | I24: 0 | J24: =Constantes!$E$125 -> 0.3571428571 | K24: ='Datos para costos'!$F$10 -> 0.1658231259 | L24: 0
A25: -4 | B25: 4 | C25: =CONCATENATE(YEAR('DATOS DE ENTRADA'!$D$21)+A25) -> 2010 | D25: =IFERROR((SUMIFS(Valor_pond_U,Modelo_Aceptado,CDF!$C27,Rampa,"NO"))/(COUNTIF(Modelo_Aceptado,C25)),0) -> 0 | E25: =6*'Datos para costos'!$E$56+6*'Datos para costos'!$E$58 -> 1332752.4 | F25: 0 | G25: =COUNTIFS(Modelo_Aceptado,"<="&ParámetrosPropuesta!$B$6,Modelo_Aceptado,C25,Rampa,"NO",Regla_calculo,"tipo 1") -> 0 | H25: =COUNTIFS(Modelo_Aceptado,"<="&ParámetrosPropuesta!$B$6,Modelo_Aceptado,C25,Rampa,"NO",Arriendo_flota,"SI",Regla_calculo,"tipo 1") -> 0 | I25: 0 | J25: =Constantes!$E$126 -> 0.2142857143 | K25: ='Datos para costos'!$F$10 -> 0.1658231259 | L25: 0
A26: -5 | B26: 5 | C26: =CONCATENATE(YEAR('DATOS DE ENTRADA'!$D$21)+A26) -> 2009 | D26: =IFERROR((SUMIFS(Valor_pond_U,Modelo_Aceptado,CDF!$C28,Rampa,"NO"))/(COUNTIF(Modelo_Aceptado,C26)),0) -> 0 | E26: =6*'Datos para costos'!$E$56+6*'Datos para costos'!$E$58 -> 1332752.4 | F26: 0 | G26: =COUNTIFS(Modelo_Aceptado,"<="&ParámetrosPropuesta!$B$6,Modelo_Aceptado,C26,Rampa,"NO",Regla_calculo,"tipo 1") -> 0 | H26: =COUNTIFS(Modelo_Aceptado,"<="&ParámetrosPropuesta!$B$6,Modelo_Aceptado,C26,Rampa,"NO",Arriendo_flota,"SI",Regla_calculo,"tipo 1") -> 0 | I26: 0 | J26: =Constantes!$E$127 -> 0.1071428571 | K26: ='Datos para costos'!$F$10 -> 0.1658231259 | L26: 0
A27: -6 | B27: 6 | C27: =CONCATENATE(YEAR('DATOS DE ENTRADA'!$D$21)+A27) -> 2008 | D27: =IFERROR((SUMIFS(Valor_pond_U,Modelo_Aceptado,CDF!$C29,Rampa,"NO"))/(COUNTIF(Modelo_Aceptado,C27)),0) -> 0 | E27: =6*'Datos para costos'!$E$56+6*'Datos para costos'!$E$58 -> 1332752.4 | F27: 0 | G27: =COUNTIFS(Modelo_Aceptado,"<="&ParámetrosPropuesta!$B$6,Modelo_Aceptado,C27,Rampa,"NO",Regla_calculo,"tipo 1") -> 0 | H27: =COUNTIFS(Modelo_Aceptado,"<="&ParámetrosPropuesta!$B$6,Modelo_Aceptado,C27,Rampa,"NO",Arriendo_flota,"SI",Regla_calculo,"tipo 1") -> 0 | I27: 0 | J27: =Constantes!$E$128 -> 0.03571428571 | K27: ='Datos para costos'!$F$10 -> 0.1658231259 | L27: 0
A28: -7 | B28: 7 | C28: =CONCATENATE(YEAR('DATOS DE ENTRADA'!$D$21)+A28) -> 2007 | D28: =IFERROR((SUMIFS(Valor_pond_U,Modelo_Aceptado,CDF!$C30,Rampa,"NO"))/(COUNTIF(Modelo_Aceptado,C28)),0) -> 0 | E28: =6*'Datos para costos'!$E$56+6*'Datos para costos'!$E$58 -> 1332752.4 | F28: 0 | G28: =COUNTIFS(Modelo_Aceptado,"<="&ParámetrosPropuesta!$B$6,Modelo_Aceptado,C28,Rampa,"NO",Regla_calculo,"tipo 1") -> 0 | H28: =COUNTIFS(Modelo_Aceptado,"<="&ParámetrosPropuesta!$B$6,Modelo_Aceptado,C28,Rampa,"NO",Arriendo_flota,"SI",Regla_calculo,"tipo 1") -> 0 | I28: 0 | J28: =Constantes!$E$129 -> 0 | K28: ='Datos para costos'!$F$10 -> 0.1658231259 | L28: 0
A29: -8 | B29: 8 | C29: =CONCATENATE(YEAR('DATOS DE ENTRADA'!$D$21)+A29) -> 2006 | D29: =IFERROR((SUMIFS(Valor_pond_U,Modelo_Aceptado,CDF!$C31,Rampa,"NO"))/(COUNTIF(Modelo_Aceptado,C29)),0) -> 0 | E29: =6*'Datos para costos'!$E$56+6*'Datos para costos'!$E$58 -> 1332752.4 | F29: 0 | G29: =COUNTIFS(Modelo_Aceptado,"<="&ParámetrosPropuesta!$B$6,Modelo_Aceptado,C29,Rampa,"NO",Regla_calculo,"tipo 1") -> 0 | H29: =COUNTIFS(Modelo_Aceptado,"<="&ParámetrosPropuesta!$B$6,Modelo_Aceptado,C29,Rampa,"NO",Arriendo_flota,"SI",Regla_calculo,"tipo 1") -> 0 | I29: 0 | J29: =Constantes!$E$130 -> 0 | K29: ='Datos para costos'!$F$10 -> 0.1658231259 | L29: 0
A30: -9 | B30: 9 | C30: =CONCATENATE(YEAR('DATOS DE ENTRADA'!$D$21)+A30) -> 2005 | D30: =IFERROR((SUMIFS(Valor_pond_U,Modelo_Aceptado,CDF!$C32,Rampa,"NO"))/(COUNTIF(Modelo_Aceptado,C30)),0) -> 0 | E30: =6*'Datos para costos'!$E$56+6*'Datos para costos'!$E$58 -> 1332752.4 | F30: 0 | G30: =COUNTIFS(Modelo_Aceptado,"<="&ParámetrosPropuesta!$B$6,Modelo_Aceptado,C30,Rampa,"NO",Regla_calculo,"tipo 1") -> 0 | H30: =COUNTIFS(Modelo_Aceptado,"<="&ParámetrosPropuesta!$B$6,Modelo_Aceptado,C30,Rampa,"NO",Arriendo_flota,"SI",Regla_calculo,"tipo 1") -> 0 | I30: 0 | J30: =Constantes!$E$130 -> 0 | K30: ='Datos para costos'!$F$10 -> 0.1658231259 | L30: 0
A31: -10 | B31: 10 | C31: =CONCATENATE(YEAR('DATOS DE ENTRADA'!$D$21)+A31) -> 2004 | D31: =IFERROR((SUMIFS(Valor_pond_U,Modelo_Aceptado,CDF!$C33,Rampa,"NO"))/(COUNTIF(Modelo_Aceptado,C31)),0) -> 0 | E31: =6*'Datos para costos'!$E$56+6*'Datos para costos'!$E$58 -> 1332752.4 | F31: 0 | G31: =COUNTIFS(Modelo_Aceptado,"<="&ParámetrosPropuesta!$B$6,Modelo_Aceptado,C31,Rampa,"NO",Regla_calculo,"tipo 1") -> 0 | H31: =COUNTIFS(Modelo_Aceptado,"<="&ParámetrosPropuesta!$B$6,Modelo_Aceptado,C31,Rampa,"NO",Arriendo_flota,"SI",Regla_calculo,"tipo 1") -> 0 | I31: 0 | J31: =Constantes!$E$130 -> 0 | K31: ='Datos para costos'!$F$10 -> 0.1658231259 | L31: 0
A32: -11 | B32: 11 | C32: =CONCATENATE(YEAR('DATOS DE ENTRADA'!$D$21)+A32) -> 2003 | D32: =IFERROR((SUMIFS(Valor_pond_U,Modelo_Aceptado,CDF!$C34,Rampa,"NO"))/(COUNTIF(Modelo_Aceptado,C32)),0) -> 0 | E32: =6*'Datos para costos'!$E$56+6*'Datos para costos'!$E$58 -> 1332752.4 | F32: 0 | G32: =COUNTIFS(Modelo_Aceptado,"<="&ParámetrosPropuesta!$B$6,Modelo_Aceptado,C32,Rampa,"NO",Regla_calculo,"tipo 1") -> 0 | H32: =COUNTIFS(Modelo_Aceptado,"<="&ParámetrosPropuesta!$B$6,Modelo_Aceptado,C32,Rampa,"NO",Arriendo_flota,"SI",Regla_calculo,"tipo 1") -> 0 | I32: 0 | J32: =Constantes!$E$130 -> 0 | K32: ='Datos para costos'!$F$10 -> 0.1658231259 | L32: 0
A33: -12 | B33: 12 | C33: =CONCATENATE(YEAR('DATOS DE ENTRADA'!$D$21)+A33) -> 2002 | D33: =IFERROR((SUMIFS(Valor_pond_U,Modelo_Aceptado,CDF!$C35,Rampa,"NO"))/(COUNTIF(Modelo_Aceptado,C33)),0) -> 0 | E33: =6*'Datos para costos'!$E$56+6*'Datos para costos'!$E$58 -> 1332752.4 | F33: 0 | G33: =COUNTIFS(Modelo_Aceptado,"<="&ParámetrosPropuesta!$B$6,Modelo_Aceptado,C33,Rampa,"NO",Regla_calculo,"tipo 1") -> 0 | H33: =COUNTIFS(Modelo_Aceptado,"<="&ParámetrosPropuesta!$B$6,Modelo_Aceptado,C33,Rampa,"NO",Arriendo_flota,"SI",Regla_calculo,"tipo 1") -> 0 | I33: 0 | J33: =Constantes!$E$130 -> 0 | K33: ='Datos para costos'!$F$10 -> 0.1658231259 | L33: 0
A34: -13 | B34: 13 | C34: =CONCATENATE(YEAR('DATOS DE ENTRADA'!$D$21)+A34) -> 2001 | D34: =IFERROR((SUMIFS(Valor_pond_U,Modelo_Aceptado,CDF!$C36,Rampa,"NO"))/(COUNTIF(Modelo_Aceptado,C34)),0) -> 0 | E34: =6*'Datos para costos'!$E$56+6*'Datos para costos'!$E$58 -> 1332752.4 | F34: 0 | G34: =COUNTIFS(Modelo_Aceptado,"<="&ParámetrosPropuesta!$B$6,Modelo_Aceptado,C34,Rampa,"NO",Regla_calculo,"tipo 1") -> 0 | H34: =COUNTIFS(Modelo_Aceptado,"<="&ParámetrosPropuesta!$B$6,Modelo_Aceptado,C34,Rampa,"NO",Arriendo_flota,"SI",Regla_calculo,"tipo 1") -> 0 | I34: 0 | J34: =Constantes!$E$130 -> 0 | K34: ='Datos para costos'!$F$10 -> 0.1658231259 | L34: 0
A35: -14 | B35: 14 | C35: =CONCATENATE(YEAR('DATOS DE ENTRADA'!$D$21)+A35) -> 2000 | D35: =IFERROR((SUMIFS(Valor_pond_U,Modelo_Aceptado,CDF!$C37,Rampa,"NO"))/(COUNTIF(Modelo_Aceptado,C35)),0) -> 0 | E35: =6*'Datos para costos'!$E$56+6*'Datos para costos'!$E$58 -> 1332752.4 | F35: 0 | G35: =COUNTIFS(Modelo_Aceptado,"<="&ParámetrosPropuesta!$B$6,Modelo_Aceptado,C35,Rampa,"NO",Regla_calculo,"tipo 1") -> 0 | H35: =COUNTIFS(Modelo_Aceptado,"<="&ParámetrosPropuesta!$B$6,Modelo_Aceptado,C35,Rampa,"NO",Arriendo_flota,"SI",Regla_calculo,"tipo 1") -> 0 | I35: 0 | J35: =Constantes!$E$130 -> 0 | K35: ='Datos para costos'!$F$10 -> 0.1658231259 | L35: 0
A36: -15 | B36: 15 | C36: =CONCATENATE(YEAR('DATOS DE ENTRADA'!$D$21)+A36) -> 1999 | D36: =IFERROR((SUMIFS(Valor_pond_U,Modelo_Aceptado,CDF!$C38,Rampa,"NO"))/(COUNTIF(Modelo_Aceptado,C36)),0) -> 0 | E36: =6*'Datos para costos'!$E$56+6*'Datos para costos'!$E$58 -> 1332752.4 | F36: 0 | G36: =COUNTIFS(Modelo_Aceptado,"<="&ParámetrosPropuesta!$B$6,Modelo_Aceptado,C36,Rampa,"NO",Regla_calculo,"tipo 1") -> 0 | H36: =COUNTIFS(Modelo_Aceptado,"<="&ParámetrosPropuesta!$B$6,Modelo_Aceptado,C36,Rampa,"NO",Arriendo_flota,"SI",Regla_calculo,"tipo 1") -> 0 | I36: 0 | J36: =Constantes!$E$130 -> 0 | K36: ='Datos para costos'!$F$10 -> 0.1658231259 | L36: 0
A37: -16 | B37: 16 o más | C37: =CONCATENATE("<=",YEAR('DATOS DE ENTRADA'!$D$21)+A37) -> <=1998 | D37: =IFERROR((SUMIFS(Valor_pond_U,Modelo_Aceptado,CDF!$C39,Rampa,"NO"))/(COUNTIF(Modelo_Aceptado,C37)),0) -> 0 | E37: =6*'Datos para costos'!$E$56+6*'Datos para costos'!$E$58 -> 1332752.4 | F37: 0 | G37: =COUNTIFS(Modelo_Aceptado,"<="&ParámetrosPropuesta!$B$6,Modelo_Aceptado,C37,Rampa,"NO",Regla_calculo,"tipo 1") -> 0 | H37: =COUNTIFS(Modelo_Aceptado,"<="&ParámetrosPropuesta!$B$6,Modelo_Aceptado,C37,Rampa,"NO",Arriendo_flota,"SI",Regla_calculo,"tipo 1") -> 0 | I37: 0 | J37: =Constantes!$E$130 -> 0 | K37: ='Datos para costos'!$F$10 -> 0.1658231259 | L37: 0
G38: =SUM(G20:G37) -> 0 | H38: =SUM(H20:H37) -> 0 | I38: =SUM(I20:I37) -> 0 | L38: =SUM(L20:L37) -> 0
B40: ="CON RAMPA, AÑO MODELO MENOR IGUAL AL "&ParámetrosPropuesta!$B$6 -> CON RAMPA, AÑO MODELO MENOR IGUAL AL 2015
B41: Edad del vehículo (años) | C41: Año modelo (b) | D41: Valor del vehículo en colones (VTAbr) | E41: Valor de las llantas | F41: Valor del vehículo sin llantas (VTANbr) | G41: Cantidad de vehículos (Fbr) | H41: Cantidad de unidades arrendadas (Fa) | I41: Valor de flota con llantas (VTAbr*Fbr) | J41: Factor RENTABILIDAD de unidades (frfb) | K41: Tasa de rentabilidad anual según la edad "b" de las unidades | L41: Valor de flota x factor de rentabilidad x tasa de rentabilidad
A42: 1 | B42: 0 | C42: =CONCATENATE(YEAR('DATOS DE ENTRADA'!$D$21)+A42) -> 2015 | D42: =IFERROR((SUMIFS(Valor_pond_U,Modelo_Aceptado,CDF!$C44,Rampa,"SI"))/(COUNTIF(Modelo_Aceptado,C42)),0) -> 0 | E42: =6*'Datos para costos'!$E$56+6*'Datos para costos'!$E$58 -> 1332752.4 | F42: =IF(D42=0,0,D42-E42) -> 0 | G42: =COUNTIFS(Modelo_Aceptado,"<="&ParámetrosPropuesta!$B$6,Modelo_Aceptado,C42,Rampa,"SI",Regla_calculo,"tipo 1") -> 0 | H42: =COUNTIFS(Modelo_Aceptado,"<="&ParámetrosPropuesta!$B$6,Modelo_Aceptado,C42,Rampa,"SI",Arriendo_flota,"SI",Regla_calculo,"tipo 1") -> 0 | I42: =IF(ISERROR(D42),0,D42*(G42-H42)) -> 0 | J42: =Constantes!$E$122 -> 1 | K42: ='Datos para costos'!$F$10 -> 0.1658231259 | L42: =J42*I42*K42 -> 0 | M42: =+J42*K42/12 -> 0.01381859383 | N42: =+VALUE(C42) -> 2015 | O42: =+VALUE(J42) -> 1
A43: 0 | B43: 0 | C43: =CONCATENATE(YEAR('DATOS DE ENTRADA'!$D$21)+A43) -> 2014 | D43: =IFERROR((SUMIFS(Valor_pond_U,Modelo_Aceptado,CDF!$C45,Rampa,"SI"))/(COUNTIF(Modelo_Aceptado,C43)),0) -> 0 | E43: =6*'Datos para costos'!$E$56+6*'Datos para costos'!$E$58 -> 1332752.4 | F43: 0 | G43: =COUNTIFS(Modelo_Aceptado,"<="&ParámetrosPropuesta!$B$6,Modelo_Aceptado,C43,Rampa,"SI",Regla_calculo,"tipo 1") -> 0 | H43: =COUNTIFS(Modelo_Aceptado,"<="&ParámetrosPropuesta!$B$6,Modelo_Aceptado,C43,Rampa,"SI",Arriendo_flota,"SI",Regla_calculo,"tipo 1") -> 0 | I43: =IF(ISERROR(D43),0,D43*(G43-H43)) -> 0 | J43: =Constantes!$E$122 -> 1 | K43: ='Datos para costos'!$F$10 -> 0.1658231259 | L43: 0 | M43: =+J43*K43/12 -> 0.01381859383 | N43: 2014 | O43: =+VALUE(J43) -> 1
A44: -1 | B44: 1 | C44: =CONCATENATE(YEAR('DATOS DE ENTRADA'!$D$21)+A44) -> 2013 | D44: =IFERROR((SUMIFS(Valor_pond_U,Modelo_Aceptado,CDF!$C46,Rampa,"SI"))/(COUNTIF(Modelo_Aceptado,C44)),0) -> 0 | E44: =6*'Datos para costos'!$E$56+6*'Datos para costos'!$E$58 -> 1332752.4 | F44: 0 | G44: =COUNTIFS(Modelo_Aceptado,"<="&ParámetrosPropuesta!$B$6,Modelo_Aceptado,C44,Rampa,"SI",Regla_calculo,"tipo 1") -> 0 | H44: =COUNTIFS(Modelo_Aceptado,"<="&ParámetrosPropuesta!$B$6,Modelo_Aceptado,C44,Rampa,"SI",Arriendo_flota,"SI",Regla_calculo,"tipo 1") -> 0 | I44: 0 | J44: =Constantes!$E$123 -> 0.75 | K44: ='Datos para costos'!$F$10 -> 0.1658231259 | L44: 0 | M44: 0.01036394537 | N44: 2013 | O44: 0.75
A45: -2 | B45: 2 | C45: =CONCATENATE(YEAR('DATOS DE ENTRADA'!$D$21)+A45) -> 2012 | D45: =IFERROR((SUMIFS(Valor_pond_U,Modelo_Aceptado,CDF!$C47,Rampa,"SI"))/(COUNTIF(Modelo_Aceptado,C45)),0) -> 0 | E45: =6*'Datos para costos'!$E$56+6*'Datos para costos'!$E$58 -> 1332752.4 | F45: 0 | G45: =COUNTIFS(Modelo_Aceptado,"<="&ParámetrosPropuesta!$B$6,Modelo_Aceptado,C45,Rampa,"SI",Regla_calculo,"tipo 1") -> 0 | H45: =COUNTIFS(Modelo_Aceptado,"<="&ParámetrosPropuesta!$B$6,Modelo_Aceptado,C45,Rampa,"SI",Arriendo_flota,"SI",Regla_calculo,"tipo 1") -> 0 | I45: 0 | J45: =Constantes!$E$124 -> 0.5357142857 | K45: ='Datos para costos'!$F$10 -> 0.1658231259 | L45: 0 | M45: 0.007402818121 | N45: 2012 | O45: 0.5357142857
A46: -3 | B46: 3 | C46: =CONCATENATE(YEAR('DATOS DE ENTRADA'!$D$21)+A46) -> 2011 | D46: =IFERROR((SUMIFS(Valor_pond_U,Modelo_Aceptado,CDF!$C48,Rampa,"SI"))/(COUNTIF(Modelo_Aceptado,C46)),0) -> 0 | E46: =6*'Datos para costos'!$E$56+6*'Datos para costos'!$E$58 -> 1332752.4 | F46: 0 | G46: =COUNTIFS(Modelo_Aceptado,"<="&ParámetrosPropuesta!$B$6,Modelo_Aceptado,C46,Rampa,"SI",Regla_calculo,"tipo 1") -> 0 | H46: =COUNTIFS(Modelo_Aceptado,"<="&ParámetrosPropuesta!$B$6,Modelo_Aceptado,C46,Rampa,"SI",Arriendo_flota,"SI",Regla_calculo,"tipo 1") -> 0 | I46: 0 | J46: =Constantes!$E$125 -> 0.3571428571 | K46: ='Datos para costos'!$F$10 -> 0.1658231259 | L46: 0 | M46: 0.00493521208 | N46: 2011 | O46: 0.3571428571
A47: -4 | B47: 4 | C47: =CONCATENATE(YEAR('DATOS DE ENTRADA'!$D$21)+A47) -> 2010 | D47: =IFERROR((SUMIFS(Valor_pond_U,Modelo_Aceptado,CDF!$C49,Rampa,"SI"))/(COUNTIF(Modelo_Aceptado,C47)),0) -> 63705600 | E47: =6*'Datos para costos'!$E$56+6*'Datos para costos'!$E$58 -> 1332752.4 | F47: 62372847.6 | G47: =COUNTIFS(Modelo_Aceptado,"<="&ParámetrosPropuesta!$B$6,Modelo_Aceptado,C47,Rampa,"SI",Regla_calculo,"tipo 1") -> 1 | H47: =COUNTIFS(Modelo_Aceptado,"<="&ParámetrosPropuesta!$B$6,Modelo_Aceptado,C47,Rampa,"SI",Arriendo_flota,"SI",Regla_calculo,"tipo 1") -> 0 | I47: 63705600 | J47: =Constantes!$E$126 -> 0.2142857143 | K47: ='Datos para costos'!$F$10 -> 0.1658231259 | L47: 2263684.656 | M47: 0.002961127248 | N47: 2010 | O47: 0.2142857143
A48: -5 | B48: 5 | C48: =CONCATENATE(YEAR('DATOS DE ENTRADA'!$D$21)+A48) -> 2009 | D48: =IFERROR((SUMIFS(Valor_pond_U,Modelo_Aceptado,CDF!$C50,Rampa,"SI"))/(COUNTIF(Modelo_Aceptado,C48)),0) -> 0 | E48: =6*'Datos para costos'!$E$56+6*'Datos para costos'!$E$58 -> 1332752.4 | F48: 0 | G48: =COUNTIFS(Modelo_Aceptado,"<="&ParámetrosPropuesta!$B$6,Modelo_Aceptado,C48,Rampa,"SI",Regla_calculo,"tipo 1") -> 0 | H48: =COUNTIFS(Modelo_Aceptado,"<="&ParámetrosPropuesta!$B$6,Modelo_Aceptado,C48,Rampa,"SI",Arriendo_flota,"SI",Regla_calculo,"tipo 1") -> 0 | I48: 0 | J48: =Constantes!$E$127 -> 0.1071428571 | K48: ='Datos para costos'!$F$10 -> 0.1658231259 | L48: 0 | M48: 0.001480563624 | N48: 2009 | O48: 0.1071428571
A49: -6 | B49: 6 | C49: =CONCATENATE(YEAR('DATOS DE ENTRADA'!$D$21)+A49) -> 2008 | D49: =IFERROR((SUMIFS(Valor_pond_U,Modelo_Aceptado,CDF!$C51,Rampa,"SI"))/(COUNTIF(Modelo_Aceptado,C49)),0) -> 0 | E49: =6*'Datos para costos'!$E$56+6*'Datos para costos'!$E$58 -> 1332752.4 | F49: 0 | G49: =COUNTIFS(Modelo_Aceptado,"<="&ParámetrosPropuesta!$B$6,Modelo_Aceptado,C49,Rampa,"SI",Regla_calculo,"tipo 1") -> 0 | H49: =COUNTIFS(Modelo_Aceptado,"<="&ParámetrosPropuesta!$B$6,Modelo_Aceptado,C49,Rampa,"SI",Arriendo_flota,"SI",Regla_calculo,"tipo 1") -> 0 | I49: 0 | J49: =Constantes!$E$128 -> 0.03571428571 | K49: ='Datos para costos'!$F$10 -> 0.1658231259 | L49: 0 | M49: 0.000493521208 | N49: 2008 | O49: 0.03571428571
A50: -7 | B50: 7 | C50: =CONCATENATE(YEAR('DATOS DE ENTRADA'!$D$21)+A50) -> 2007 | D50: =IFERROR((SUMIFS(Valor_pond_U,Modelo_Aceptado,CDF!$C52,Rampa,"SI"))/(COUNTIF(Modelo_Aceptado,C50)),0) -> 63705600 | E50: =6*'Datos para costos'!$E$56+6*'Datos para costos'!$E$58 -> 1332752.4 | F50: 62372847.6 | G50: =COUNTIFS(Modelo_Aceptado,"<="&ParámetrosPropuesta!$B$6,Modelo_Aceptado,C50,Rampa,"SI",Regla_calculo,"tipo 1") -> 1 | H50: =COUNTIFS(Modelo_Aceptado,"<="&ParámetrosPropuesta!$B$6,Modelo_Aceptado,C50,Rampa,"SI",Arriendo_flota,"SI",Regla_calculo,"tipo 1") -> 1 | I50: 0 | J50: =Constantes!$E$129 -> 0 | K50: ='Datos para costos'!$F$10 -> 0.1658231259 | L50: 0 | M50: 0 | N50: 2007 | O50: 0
A51: -8 | B51: 8 | C51: =CONCATENATE(YEAR('DATOS DE ENTRADA'!$D$21)+A51) -> 2006 | D51: =IFERROR((SUMIFS(Valor_pond_U,Modelo_Aceptado,CDF!$C53,Rampa,"SI"))/(COUNTIF(Modelo_Aceptado,C51)),0) -> 63705600 | E51: =6*'Datos para costos'!$E$56+6*'Datos para costos'!$E$58 -> 1332752.4 | F51: 62372847.6 | G51: =COUNTIFS(Modelo_Aceptado,"<="&ParámetrosPropuesta!$B$6,Modelo_Aceptado,C51,Rampa,"SI",Regla_calculo,"tipo 1") -> 1 | H51: =COUNTIFS(Modelo_Aceptado,"<="&ParámetrosPropuesta!$B$6,Modelo_Aceptado,C51,Rampa,"SI",Arriendo_flota,"SI",Regla_calculo,"tipo 1") -> 0 | I51: 63705600 | J51: =Constantes!$E$130 -> 0 | K51: ='Datos para costos'!$F$10 -> 0.1658231259 | L51: 0 | M51: 0 | N51: 2006 | O51: 0
A52: -9 | B52: 9 | C52: =CONCATENATE(YEAR('DATOS DE ENTRADA'!$D$21)+A52) -> 2005 | D52: =IFERROR((SUMIFS(Valor_pond_U,Modelo_Aceptado,CDF!$C54,Rampa,"SI"))/(COUNTIF(Modelo_Aceptado,C52)),0) -> 63705600 | E52: =6*'Datos para costos'!$E$56+6*'Datos para costos'!$E$58 -> 1332752.4 | F52: 62372847.6 | G52: =COUNTIFS(Modelo_Aceptado,"<="&ParámetrosPropuesta!$B$6,Modelo_Aceptado,C52,Rampa,"SI",Regla_calculo,"tipo 1") -> 2 | H52: =COUNTIFS(Modelo_Aceptado,"<="&ParámetrosPropuesta!$B$6,Modelo_Aceptado,C52,Rampa,"SI",Arriendo_flota,"SI",Regla_calculo,"tipo 1") -> 1 | I52: 63705600 | J52: =Constantes!$E$130 -> 0 | K52: ='Datos para costos'!$F$10 -> 0.1658231259 | L52: 0 | M52: 0 | N52: 2005 | O52: 0
A53: -10 | B53: 10 | C53: =CONCATENATE(YEAR('DATOS DE ENTRADA'!$D$21)+A53) -> 2004 | D53: =IFERROR((SUMIFS(Valor_pond_U,Modelo_Aceptado,CDF!$C55,Rampa,"SI"))/(COUNTIF(Modelo_Aceptado,C53)),0) -> 0 | E53: =6*'Datos para costos'!$E$56+6*'Datos para costos'!$E$58 -> 1332752.4 | F53: 0 | G53: =COUNTIFS(Modelo_Aceptado,"<="&ParámetrosPropuesta!$B$6,Modelo_Aceptado,C53,Rampa,"SI",Regla_calculo,"tipo 1") -> 0 | H53: =COUNTIFS(Modelo_Aceptado,"<="&ParámetrosPropuesta!$B$6,Modelo_Aceptado,C53,Rampa,"SI",Arriendo_flota,"SI",Regla_calculo,"tipo 1") -> 0 | I53: 0 | J53: =Constantes!$E$130 -> 0 | K53: ='Datos para costos'!$F$10 -> 0.1658231259 | L53: 0 | M53: 0 | N53: 2004 | O53: 0
A54: -11 | B54: 11 | C54: =CONCATENATE(YEAR('DATOS DE ENTRADA'!$D$21)+A54) -> 2003 | D54: =IFERROR((SUMIFS(Valor_pond_U,Modelo_Aceptado,CDF!$C56,Rampa,"SI"))/(COUNTIF(Modelo_Aceptado,C54)),0) -> 63705600 | E54: =6*'Datos para costos'!$E$56+6*'Datos para costos'!$E$58 -> 1332752.4 | F54: 62372847.6 | G54: =COUNTIFS(Modelo_Aceptado,"<="&ParámetrosPropuesta!$B$6,Modelo_Aceptado,C54,Rampa,"SI",Regla_calculo,"tipo 1") -> 1 | H54: =COUNTIFS(Modelo_Aceptado,"<="&ParámetrosPropuesta!$B$6,Modelo_Aceptado,C54,Rampa,"SI",Arriendo_flota,"SI",Regla_calculo,"tipo 1") -> 0 | I54: 63705600 | J54: =Constantes!$E$130 -> 0 | K54: ='Datos para costos'!$F$10 -> 0.1658231259 | L54: 0 | M54: 0 | N54: 2003 | O54: 0
A55: -12 | B55: 12 | C55: =CONCATENATE(YEAR('DATOS DE ENTRADA'!$D$21)+A55) -> 2002 | D55: =IFERROR((SUMIFS(Valor_pond_U,Modelo_Aceptado,CDF!$C57,Rampa,"SI"))/(COUNTIF(Modelo_Aceptado,C55)),0) -> 63705600 | E55: =6*'Datos para costos'!$E$56+6*'Datos para costos'!$E$58 -> 1332752.4 | F55: 62372847.6 | G55: =COUNTIFS(Modelo_Aceptado,"<="&ParámetrosPropuesta!$B$6,Modelo_Aceptado,C55,Rampa,"SI",Regla_calculo,"tipo 1") -> 1 | H55: =COUNTIFS(Modelo_Aceptado,"<="&ParámetrosPropuesta!$B$6,Modelo_Aceptado,C55,Rampa,"SI",Arriendo_flota,"SI",Regla_calculo,"tipo 1") -> 0 | I55: 63705600 | J55: =Constantes!$E$130 -> 0 | K55: ='Datos para costos'!$F$10 -> 0.1658231259 | L55: 0 | M55: 0 | N55: 2002 | O55: 0
A56: -13 | B56: 13 | C56: =CONCATENATE(YEAR('DATOS DE ENTRADA'!$D$21)+A56) -> 2001 | D56: =IFERROR((SUMIFS(Valor_pond_U,Modelo_Aceptado,CDF!$C58,Rampa,"SI"))/(COUNTIF(Modelo_Aceptado,C56)),0) -> 63705600 | E56: =6*'Datos para costos'!$E$56+6*'Datos para costos'!$E$58 -> 1332752.4 | F56: 62372847.6 | G56: =COUNTIFS(Modelo_Aceptado,"<="&ParámetrosPropuesta!$B$6,Modelo_Aceptado,C56,Rampa,"SI",Regla_calculo,"tipo 1") -> 1 | H56: =COUNTIFS(Modelo_Aceptado,"<="&ParámetrosPropuesta!$B$6,Modelo_Aceptado,C56,Rampa,"SI",Arriendo_flota,"SI",Regla_calculo,"tipo 1") -> 0 | I56: 63705600 | J56: =Constantes!$E$130 -> 0 | K56: ='Datos para costos'!$F$10 -> 0.1658231259 | L56: 0 | M56: 0 | N56: 2001 | O56: 0
A57: -14 | B57: 14 | C57: =CONCATENATE(YEAR('DATOS DE ENTRADA'!$D$21)+A57) -> 2000 | D57: =IFERROR((SUMIFS(Valor_pond_U,Modelo_Aceptado,CDF!$C59,Rampa,"SI"))/(COUNTIF(Modelo_Aceptado,C57)),0) -> 63705600 | E57: =6*'Datos para costos'!$E$56+6*'Datos para costos'!$E$58 -> 1332752.4 | F57: 62372847.6 | G57: =COUNTIFS(Modelo_Aceptado,"<="&ParámetrosPropuesta!$B$6,Modelo_Aceptado,C57,Rampa,"SI",Regla_calculo,"tipo 1") -> 1 | H57: =COUNTIFS(Modelo_Aceptado,"<="&ParámetrosPropuesta!$B$6,Modelo_Aceptado,C57,Rampa,"SI",Arriendo_flota,"SI",Regla_calculo,"tipo 1") -> 0 | I57: 63705600 | J57: =Constantes!$E$130 -> 0 | K57: ='Datos para costos'!$F$10 -> 0.1658231259 | L57: 0 | M57: 0 | N57: 2000 | O57: 0
A58: -15 | B58: 15 | C58: =CONCATENATE(YEAR('DATOS DE ENTRADA'!$D$21)+A58) -> 1999 | D58: =IFERROR((SUMIFS(Valor_pond_U,Modelo_Aceptado,CDF!$C60,Rampa,"SI"))/(COUNTIF(Modelo_Aceptado,C58)),0) -> 63705600 | E58: =6*'Datos para costos'!$E$56+6*'Datos para costos'!$E$58 -> 1332752.4 | F58: 62372847.6 | G58: =COUNTIFS(Modelo_Aceptado,"<="&ParámetrosPropuesta!$B$6,Modelo_Aceptado,C58,Rampa,"SI",Regla_calculo,"tipo 1") -> 1 | H58: =COUNTIFS(Modelo_Aceptado,"<="&ParámetrosPropuesta!$B$6,Modelo_Aceptado,C58,Rampa,"SI",Arriendo_flota,"SI",Regla_calculo,"tipo 1") -> 0 | I58: 63705600 | J58: =Constantes!$E$130 -> 0 | K58: ='Datos para costos'!$F$10 -> 0.1658231259 | L58: 0 | M58: 0 | N58: 1999 | O58: 0
A59: -16 | B59: 16 o más | C59: =CONCATENATE("<=",YEAR('DATOS DE ENTRADA'!$D$21)+A59) -> <=1998 | D59: =IFERROR((SUMIFS(Valor_pond_U,Modelo_Aceptado,CDF!$C61,Rampa,"SI"))/(COUNTIF(Modelo_Aceptado,C59)),0) -> 0 | E59: =6*'Datos para costos'!$E$56+6*'Datos para costos'!$E$58 -> 1332752.4 | F59: 0 | G59: =COUNTIFS(Modelo_Aceptado,"<="&ParámetrosPropuesta!$B$6,Modelo_Aceptado,C59,Rampa,"SI",Regla_calculo,"tipo 1") -> 0 | H59: =COUNTIFS(Modelo_Aceptado,"<="&ParámetrosPropuesta!$B$6,Modelo_Aceptado,C59,Rampa,"SI",Arriendo_flota,"SI",Regla_calculo,"tipo 1") -> 0 | I59: 0 | J59: =Constantes!$E$130 -> 0 | K59: ='Datos para costos'!$F$10 -> 0.1658231259 | L59: 0 | M59: 0
G60: =SUM(G42:G59) -> 10 | H60: =SUM(H42:H59) -> 2 | I60: =SUM(I42:I59) -> 509644800 | L60: =SUM(L42:L59) -> 2263684.656

Sheet RSCP
B1: 3.1.3 Rentabilidad mensual del capital invertido en el sistema automatizado de conteo de pasajeros en la ruta “r”
E5: Ecuación 45
B7: RSCPr | C7: Rentabilidad mensual del capital invertido en el sistema automatizado de conteo de pasajeros en la ruta “r” | D7: =((D8*D9*D10)*D11)/12 -> 0
B8: frscp | C8: Factor de rentabilidad anual del capital invertido en el sistema automatizado de conteo de pasajeros | D8: =+Constantes!D168 -> 0.5
B9: VNSCP | C9: Valor representativo del equipo automatizado de conteo de pasajeros | D9: ='Datos para costos'!E45 -> 0
B10: Fr | C10: Cantidad total de unidades de la flota autorizada de la ruta “r”. | D10: =Flota!$I$45 -> 10
C11: Tasa de rentabilidad anual para vehículos con reglas de cálculo tarifario tipo 2 para la ruta “r” del conjunto de unidades “γ”. | D11: ='Datos para costos'!$E$83 -> 0.129
B12: r | C12: Ruta de transporte remunerado de personas. | D12: ='DATOS DE ENTRADA'!D17 -> Urbana
A14: =+Aclaraciones!$B$4 -> Aclaraciones: 1. Este instrumento de cálculo de tarifas para el servicio de transporte público por autobús fue elaborado con el único propósito de revisar la consistencia interna de la propuesta de la "Metodología para fijación ordinaria de tarifas para el servicio de transporte remunerado de personas, modalidad autobús". 2. Este instrumento no forma parte del Expediente OT-104-2015 y por tanto, no es parte de la propuesta de "metodología para fijación ordinaria de tarifas para el servicio de transporte remunerado de personas, modalidad autobús". 3. Este instrumento de cálculo corresponde a una versión preliminar, y por lo tanto no es necesariamente el que se usará para estimar los ajustes tarifarios derivados de la aplicación del "Metodología para fijación ordinaria de tarifas para el servicio de transporte remunerado de personas, modalidad autobús", pues este debe ser elaborado y validado por la Intendencia de Transportes dentro de la etapa de fijación tarifaria.

Sheet RCP
B1: 3.2 Rentabilidad mensual del capital invertido en proveeduría en la ruta “r”.
E5: Ecuación 46
B7: RCPr | C7: Rentabilidad mensual del capital invertido en proveeduría en la ruta “r”. | D7: =(D8*(D9+D11))/12 -> 5659.211641
B8: crp | C8: Coeficiente de rentabilidad anual al capital de proveeduría para cualquier tipo de ruta | D8: =HLOOKUP(D13,Constantes!D160:F161,2,FALSE) -> 0.03
C9: Sumatoria del valor tarifario de la unidad de transporte remunerado de personas modalidad autobús de edad “b” del tipo de vehículo que se utiliza en la ruta “r”, del conjunto de unidades “α” multiplicado por Factor de rentabilidad anual según la edad “b” de las unidades que conforman la flota en la ruta “r” multiplicado por Cantidad de unidades de la flota autorizada según la edad “b” en la ruta “r”, del conjunto de unidades “α” multiplicado por Tasa de rentabilidad anual para vehículos con reglas de cálculo tarifario tipo 1 para la ruta “r” del conjunto de unidades “α” | D9: =($L$38+$L$60) -> 2263684.656
C10: Tasa de rentabilidad anual para vehículos con reglas de cálculo tarifario tipo 1 para la ruta “r” del conjunto de unidades “α” | D10: ='Datos para costos'!$E$81 -> 0.1658231259
C11: Valor tarifario de la unidad de transporte remunerado de personas modalidad autobús en el año “p” de edad “b” y número de placa “n” del tipo de vehículo que se utiliza en la ruta “r”, del conjunto de unidades “γ” multiplicado por Tasa de rentabilidad anual para vehículos con reglas de cálculo tarifario tipo 2 para la ruta “r” del conjunto de unidades “γ” | D11: =Flota!$W$5*$D$12 -> 0
C12: Tasa de rentabilidad anual para vehículos con reglas de cálculo tarifario tipo 2 para la ruta “r” del conjunto de unidades “γ” | D12: ='Datos para costos'!E83 -> 0.129
B13: r | C13: Ruta de transporte remunerado de personas. | D13: =+'DATOS DE ENTRADA'!$D$17 -> Urbana
A16: =+Aclaraciones!$B$4 -> Aclaraciones: 1. Este instrumento de cálculo de tarifas para el servicio de transporte público por autobús fue elaborado con el único propósito de revisar la consistencia interna de la propuesta de la "Metodología para fijación ordinaria de tarifas para el servicio de transporte remunerado de personas, modalidad autobús". 2. Este instrumento no forma parte del Expediente OT-104-2015 y por tanto, no es parte de la propuesta de "metodología para fijación ordinaria de tarifas para el servicio de transporte remunerado de personas, modalidad autobús". 3. Este instrumento de cálculo corresponde a una versión preliminar, y por lo tanto no es necesariamente el que se usará para estimar los ajustes tarifarios derivados de la aplicación del "Metodología para fijación ordinaria de tarifas para el servicio de transporte remunerado de personas, modalidad autobús", pues este debe ser elaborado y validado por la Intendencia de Transportes dentro de la etapa de fijación tarifaria.
B18: ="SIN RAMPA, AÑO MODELO MENOR IGUAL AL "&ParámetrosPropuesta!$B$6 -> SIN RAMPA, AÑO MODELO MENOR IGUAL AL 2015
B19: Edad del vehículo (años) | C19: Año modelo (b) | D19: Valor del vehículo en colones (VTAbr) | E19: Valor de las llantas | F19: Valor del vehículo sin llantas (VTANbr) | G19: Cantidad de vehículos (Fbr) | H19: Cantidad de unidades arrendadas (Fa) | I19: Valor de flota con llantas (VTAbr*Fbr) | J19: Factor RENTABILIDAD de unidades (frfb) | K19: Tasa de rentabilidad anual según la edad "b" de las unidades | L19: Valor de flota x factor de rentabilidad x tasa de rentabilidad
A20: 1 | B20: 0 | C20: =CONCATENATE(YEAR('DATOS DE ENTRADA'!$D$21)+A20) -> 2015 | D20: =IFERROR((SUMIFS(Valor_pond_U,Modelo_Aceptado,CDF!$C22,Rampa,"NO"))/(COUNTIF(Modelo_Aceptado,C20)),0) -> 0 | E20: =6*'Datos para costos'!$E$56+6*'Datos para costos'!$E$58 -> 1332752.4 | F20: =IF(D20=0,0,D20-E20) -> 0 | G20: =COUNTIFS(Modelo_Aceptado,"<="&ParámetrosPropuesta!$B$6,Modelo_Aceptado,C20,Rampa,"NO",Regla_calculo,"tipo 1") -> 0 | H20: =COUNTIFS(Modelo_Aceptado,"<="&ParámetrosPropuesta!$B$6,Modelo_Aceptado,C20,Rampa,"NO",Arriendo_flota,"SI",Regla_calculo,"tipo 1") -> 0 | I20: =IF(ISERROR(D20),0,D20*(G20-H20)) -> 0 | J20: =Constantes!$E$122 -> 1 | K20: ='Datos para costos'!$F$10 -> 0.1658231259 | L20: =J20*I20*K20 -> 0
A21: 0 | B21: 0 | C21: =CONCATENATE(YEAR('DATOS DE ENTRADA'!$D$21)+A21) -> 2014 | D21: =IFERROR((SUMIFS(Valor_pond_U,Modelo_Aceptado,CDF!$C23,Rampa,"NO"))/(COUNTIF(Modelo_Aceptado,C21)),0) -> 0 | E21: =6*'Datos para costos'!$E$56+6*'Datos para costos'!$E$58 -> 1332752.4 | F21: 0 | G21: =COUNTIFS(Modelo_Aceptado,"<="&ParámetrosPropuesta!$B$6,Modelo_Aceptado,C21,Rampa,"NO",Regla_calculo,"tipo 1") -> 0 | H21: =COUNTIFS(Modelo_Aceptado,"<="&ParámetrosPropuesta!$B$6,Modelo_Aceptado,C21,Rampa,"NO",Arriendo_flota,"SI",Regla_calculo,"tipo 1") -> 0 | I21: =IF(ISERROR(D21),0,D21*(G21-H21)) -> 0 | J21: =Constantes!$E$122 -> 1 | K21: ='Datos para costos'!$F$10 -> 0.1658231259 | L21: 0
A22: -1 | B22: 1 | C22: =CONCATENATE(YEAR('DATOS DE ENTRADA'!$D$21)+A22) -> 2013 | D22: =IFERROR((SUMIFS(Valor_pond_U,Modelo_Aceptado,CDF!$C24,Rampa,"NO"))/(COUNTIF(Modelo_Aceptado,C22)),0) -> 0 | E22: =6*'Datos para costos'!$E$56+6*'Datos para costos'!$E$58 -> 1332752.4 | F22: 0 | G22: =COUNTIFS(Modelo_Aceptado,"<="&ParámetrosPropuesta!$B$6,Modelo_Aceptado,C22,Rampa,"NO",Regla_calculo,"tipo 1") -> 0 | H22: =COUNTIFS(Modelo_Aceptado,"<="&ParámetrosPropuesta!$B$6,Modelo_Aceptado,C22,Rampa,"NO",Arriendo_flota,"SI",Regla_calculo,"tipo 1") -> 0 | I22: 0 | J22: =Constantes!$E$123 -> 0.75 | K22: ='Datos para costos'!$F$10 -> 0.1658231259 | L22: 0
A23: -2 | B23: 2 | C23: =CONCATENATE(YEAR('DATOS DE ENTRADA'!$D$21)+A23) -> 2012 | D23: =IFERROR((SUMIFS(Valor_pond_U,Modelo_Aceptado,CDF!$C25,Rampa,"NO"))/(COUNTIF(Modelo_Aceptado,C23)),0) -> 0 | E23: =6*'Datos para costos'!$E$56+6*'Datos para costos'!$E$58 -> 1332752.4 | F23: 0 | G23: =COUNTIFS(Modelo_Aceptado,"<="&ParámetrosPropuesta!$B$6,Modelo_Aceptado,C23,Rampa,"NO",Regla_calculo,"tipo 1") -> 0 | H23: =COUNTIFS(Modelo_Aceptado,"<="&ParámetrosPropuesta!$B$6,Modelo_Aceptado,C23,Rampa,"NO",Arriendo_flota,"SI",Regla_calculo,"tipo 1") -> 0 | I23: 0 | J23: =Constantes!$E$124 -> 0.5357142857 | K23: ='Datos para costos'!$F$10 -> 0.1658231259 | L23: 0
A24: -3 | B24: 3 | C24: =CONCATENATE(YEAR('DATOS DE ENTRADA'!$D$21)+A24) -> 2011 | D24: =IFERROR((SUMIFS(Valor_pond_U,Modelo_Aceptado,CDF!$C26,Rampa,"NO"))/(COUNTIF(Modelo_Aceptado,C24)),0) -> 0 | E24: =6*'Datos para costos'!$E$56+6*'Datos para costos'!$E$58 -> 1332752.4 | F24: 0 | G24: =COUNTIFS(Modelo_Aceptado,"<="&ParámetrosPropuesta!$B$6,Modelo_Aceptado,C24,Rampa,"NO",Regla_calculo,"tipo 1") -> 0 | H24: =COUNTIFS(Modelo_Aceptado,"<="&ParámetrosPropuesta!$B$6,Modelo_Aceptado,C24,Rampa,"NO",Arriendo_flota,"SI",Regla_calculo,"tipo 1") -> 0 | I24: 0 | J24: =Constantes!$E$125 -> 0.3571428571 | K24: ='Datos para costos'!$F$10 -> 0.1658231259 | L24: 0
A25: -4 | B25: 4 | C25: =CONCATENATE(YEAR('DATOS DE ENTRADA'!$D$21)+A25) -> 2010 | D25: =IFERROR((SUMIFS(Valor_pond_U,Modelo_Aceptado,CDF!$C27,Rampa,"NO"))/(COUNTIF(Modelo_Aceptado,C25)),0) -> 0 | E25: =6*'Datos para costos'!$E$56+6*'Datos para costos'!$E$58 -> 1332752.4 | F25: 0 | G25: =COUNTIFS(Modelo_Aceptado,"<="&ParámetrosPropuesta!$B$6,Modelo_Aceptado,C25,Rampa,"NO",Regla_calculo,"tipo 1") -> 0 | H25: =COUNTIFS(Modelo_Aceptado,"<="&ParámetrosPropuesta!$B$6,Modelo_Aceptado,C25,Rampa,"NO",Arriendo_flota,"SI",Regla_calculo,"tipo 1") -> 0 | I25: 0 | J25: =Constantes!$E$126 -> 0.2142857143 | K25: ='Datos para costos'!$F$10 -> 0.1658231259 | L25: 0
A26: -5 | B26: 5 | C26: =CONCATENATE(YEAR('DATOS DE ENTRADA'!$D$21)+A26) -> 2009 | D26: =IFERROR((SUMIFS(Valor_pond_U,Modelo_Aceptado,CDF!$C28,Rampa,"NO"))/(COUNTIF(Modelo_Aceptado,C26)),0) -> 0 | E26: =6*'Datos para costos'!$E$56+6*'Datos para costos'!$E$58 -> 1332752.4 | F26: 0 | G26: =COUNTIFS(Modelo_Aceptado,"<="&ParámetrosPropuesta!$B$6,Modelo_Aceptado,C26,Rampa,"NO",Regla_calculo,"tipo 1") -> 0 | H26: =COUNTIFS(Modelo_Aceptado,"<="&ParámetrosPropuesta!$B$6,Modelo_Aceptado,C26,Rampa,"NO",Arriendo_flota,"SI",Regla_calculo,"tipo 1") -> 0 | I26: 0 | J26: =Constantes!$E$127 -> 0.1071428571 | K26: ='Datos para costos'!$F$10 -> 0.1658231259 | L26: 0
A27: -6 | B27: 6 | C27: =CONCATENATE(YEAR('DATOS DE ENTRADA'!$D$21)+A27) -> 2008 | D27: =IFERROR((SUMIFS(Valor_pond_U,Modelo_Aceptado,CDF!$C29,Rampa,"NO"))/(COUNTIF(Modelo_Aceptado,C27)),0) -> 0 | E27: =6*'Datos para costos'!$E$56+6*'Datos para costos'!$E$58 -> 1332752.4 | F27: 0 | G27: =COUNTIFS(Modelo_Aceptado,"<="&ParámetrosPropuesta!$B$6,Modelo_Aceptado,C27,Rampa,"NO",Regla_calculo,"tipo 1") -> 0 | H27: =COUNTIFS(Modelo_Aceptado,"<="&ParámetrosPropuesta!$B$6,Modelo_Aceptado,C27,Rampa,"NO",Arriendo_flota,"SI",Regla_calculo,"tipo 1") -> 0 | I27: 0 | J27: =Constantes!$E$128 -> 0.03571428571 | K27: ='Datos para costos'!$F$10 -> 0.1658231259 | L27: 0
A28: -7 | B28: 7 | C28: =CONCATENATE(YEAR('DATOS DE ENTRADA'!$D$21)+A28) -> 2007 | D28: =IFERROR((SUMIFS(Valor_pond_U,Modelo_Aceptado,CDF!$C30,Rampa,"NO"))/(COUNTIF(Modelo_Aceptado,C28)),0) -> 0 | E28: =6*'Datos para costos'!$E$56+6*'Datos para costos'!$E$58 -> 1332752.4 | F28: 0 | G28: =COUNTIFS(Modelo_Aceptado,"<="&ParámetrosPropuesta!$B$6,Modelo_Aceptado,C28,Rampa,"NO",Regla_calculo,"tipo 1") -> 0 | H28: =COUNTIFS(Modelo_Aceptado,"<="&ParámetrosPropuesta!$B$6,Modelo_Aceptado,C28,Rampa,"NO",Arriendo_flota,"SI",Regla_calculo,"tipo 1") -> 0 | I28: 0 | J28: =Constantes!$E$129 -> 0 | K28: ='Datos para costos'!$F$10 -> 0.1658231259 | L28: 0
A29: -8 | B29: 8 | C29: =CONCATENATE(YEAR('DATOS DE ENTRADA'!$D$21)+A29) -> 2006 | D29: =IFERROR((SUMIFS(Valor_pond_U,Modelo_Aceptado,CDF!$C31,Rampa,"NO"))/(COUNTIF(Modelo_Aceptado,C29)),0) -> 0 | E29: =6*'Datos para costos'!$E$56+6*'Datos para costos'!$E$58 -> 1332752.4 | F29: 0 | G29: =COUNTIFS(Modelo_Aceptado,"<="&ParámetrosPropuesta!$B$6,Modelo_Aceptado,C29,Rampa,"NO",Regla_calculo,"tipo 1") -> 0 | H29: =COUNTIFS(Modelo_Aceptado,"<="&ParámetrosPropuesta!$B$6,Modelo_Aceptado,C29,Rampa,"NO",Arriendo_flota,"SI",Regla_calculo,"tipo 1") -> 0 | I29: 0 | J29: =Constantes!$E$130 -> 0 | K29: ='Datos para costos'!$F$10 -> 0.1658231259 | L29: 0
A30: -9 | B30: 9 | C30: =CONCATENATE(YEAR('DATOS DE ENTRADA'!$D$21)+A30) -> 2005 | D30: =IFERROR((SUMIFS(Valor_pond_U,Modelo_Aceptado,CDF!$C32,Rampa,"NO"))/(COUNTIF(Modelo_Aceptado,C30)),0) -> 0 | E30: =6*'Datos para costos'!$E$56+6*'Datos para costos'!$E$58 -> 1332752.4 | F30: 0 | G30: =COUNTIFS(Modelo_Aceptado,"<="&ParámetrosPropuesta!$B$6,Modelo_Aceptado,C30,Rampa,"NO",Regla_calculo,"tipo 1") -> 0 | H30: =COUNTIFS(Modelo_Aceptado,"<="&ParámetrosPropuesta!$B$6,Modelo_Aceptado,C30,Rampa,"NO",Arriendo_flota,"SI",Regla_calculo,"tipo 1") -> 0 | I30: 0 | J30: =Constantes!$E$130 -> 0 | K30: ='Datos para costos'!$F$10 -> 0.1658231259 | L30: 0
A31: -10 | B31: 10 | C31: =CONCATENATE(YEAR('DATOS DE ENTRADA'!$D$21)+A31) -> 2004 | D31: =IFERROR((SUMIFS(Valor_pond_U,Modelo_Aceptado,CDF!$C33,Rampa,"NO"))/(COUNTIF(Modelo_Aceptado,C31)),0) -> 0 | E31: =6*'Datos para costos'!$E$56+6*'Datos para costos'!$E$58 -> 1332752.4 | F31: 0 | G31: =COUNTIFS(Modelo_Aceptado,"<="&ParámetrosPropuesta!$B$6,Modelo_Aceptado,C31,Rampa,"NO",Regla_calculo,"tipo 1") -> 0 | H31: =COUNTIFS(Modelo_Aceptado,"<="&ParámetrosPropuesta!$B$6,Modelo_Aceptado,C31,Rampa,"NO",Arriendo_flota,"SI",Regla_calculo,"tipo 1") -> 0 | I31: 0 | J31: =Constantes!$E$130 -> 0 | K31: ='Datos para costos'!$F$10 -> 0.1658231259 | L31: 0
A32: -11 | B32: 11 | C32: =CONCATENATE(YEAR('DATOS DE ENTRADA'!$D$21)+A32) -> 2003 | D32: =IFERROR((SUMIFS(Valor_pond_U,Modelo_Aceptado,CDF!$C34,Rampa,"NO"))/(COUNTIF(Modelo_Aceptado,C32)),0) -> 0 | E32: =6*'Datos para costos'!$E$56+6*'Datos para costos'!$E$58 -> 1332752.4 | F32: 0 | G32: =COUNTIFS(Modelo_Aceptado,"<="&ParámetrosPropuesta!$B$6,Modelo_Aceptado,C32,Rampa,"NO",Regla_calculo,"tipo 1") -> 0 | H32: =COUNTIFS(Modelo_Aceptado,"<="&ParámetrosPropuesta!$B$6,Modelo_Aceptado,C32,Rampa,"NO",Arriendo_flota,"SI",Regla_calculo,"tipo 1") -> 0 | I32: 0 | J32: =Constantes!$E$130 -> 0 | K32: ='Datos para costos'!$F$10 -> 0.1658231259 | L32: 0
A33: -12 | B33: 12 | C33: =CONCATENATE(YEAR('DATOS DE ENTRADA'!$D$21)+A33) -> 2002 | D33: =IFERROR((SUMIFS(Valor_pond_U,Modelo_Aceptado,CDF!$C35,Rampa,"NO"))/(COUNTIF(Modelo_Aceptado,C33)),0) -> 0 | E33: =6*'Datos para costos'!$E$56+6*'Datos para costos'!$E$58 -> 1332752.4 | F33: 0 | G33: =COUNTIFS(Modelo_Aceptado,"<="&ParámetrosPropuesta!$B$6,Modelo_Aceptado,C33,Rampa,"NO",Regla_calculo,"tipo 1") -> 0 | H33: =COUNTIFS(Modelo_Aceptado,"<="&ParámetrosPropuesta!$B$6,Modelo_Aceptado,C33,Rampa,"NO",Arriendo_flota,"SI",Regla_calculo,"tipo 1") -> 0 | I33: 0 | J33: =Constantes!$E$130 -> 0 | K33: ='Datos para costos'!$F$10 -> 0.1658231259 | L33: 0
A34: -13 | B34: 13 | C34: =CONCATENATE(YEAR('DATOS DE ENTRADA'!$D$21)+A34) -> 2001 | D34: =IFERROR((SUMIFS(Valor_pond_U,Modelo_Aceptado,CDF!$C36,Rampa,"NO"))/(COUNTIF(Modelo_Aceptado,C34)),0) -> 0 | E34: =6*'Datos para costos'!$E$56+6*'Datos para costos'!$E$58 -> 1332752.4 | F34: 0 | G34: =COUNTIFS(Modelo_Aceptado,"<="&ParámetrosPropuesta!$B$6,Modelo_Aceptado,C34,Rampa,"NO",Regla_calculo,"tipo 1") -> 0 | H34: =COUNTIFS(Modelo_Aceptado,"<="&ParámetrosPropuesta!$B$6,Modelo_Aceptado,C34,Rampa,"NO",Arriendo_flota,"SI",Regla_calculo,"tipo 1") -> 0 | I34: 0 | J34: =Constantes!$E$130 -> 0 | K34: ='Datos para costos'!$F$10 -> 0.1658231259 | L34: 0
A35: -14 | B35: 14 | C35: =CONCATENATE(YEAR('DATOS DE ENTRADA'!$D$21)+A35) -> 2000 | D35: =IFERROR((SUMIFS(Valor_pond_U,Modelo_Aceptado,CDF!$C37,Rampa,"NO"))/(COUNTIF(Modelo_Aceptado,C35)),0) -> 0 | E35: =6*'Datos para costos'!$E$56+6*'Datos para costos'!$E$58 -> 1332752.4 | F35: 0 | G35: =COUNTIFS(Modelo_Aceptado,"<="&ParámetrosPropuesta!$B$6,Modelo_Aceptado,C35,Rampa,"NO",Regla_calculo,"tipo 1") -> 0 | H35: =COUNTIFS(Modelo_Aceptado,"<="&ParámetrosPropuesta!$B$6,Modelo_Aceptado,C35,Rampa,"NO",Arriendo_flota,"SI",Regla_calculo,"tipo 1") -> 0 | I35: 0 | J35: =Constantes!$E$130 -> 0 | K35: ='Datos para costos'!$F$10 -> 0.1658231259 | L35: 0
A36: -15 | B36: 15 | C36: =CONCATENATE(YEAR('DATOS DE ENTRADA'!$D$21)+A36) -> 1999 | D36: =IFERROR((SUMIFS(Valor_pond_U,Modelo_Aceptado,CDF!$C38,Rampa,"NO"))/(COUNTIF(Modelo_Aceptado,C36)),0) -> 0 | E36: =6*'Datos para costos'!$E$56+6*'Datos para costos'!$E$58 -> 1332752.4 | F36: 0 | G36: =COUNTIFS(Modelo_Aceptado,"<="&ParámetrosPropuesta!$B$6,Modelo_Aceptado,C36,Rampa,"NO",Regla_calculo,"tipo 1") -> 0 | H36: =COUNTIFS(Modelo_Aceptado,"<="&ParámetrosPropuesta!$B$6,Modelo_Aceptado,C36,Rampa,"NO",Arriendo_flota,"SI",Regla_calculo,"tipo 1") -> 0 | I36: 0 | J36: =Constantes!$E$130 -> 0 | K36: ='Datos para costos'!$F$10 -> 0.1658231259 | L36: 0
A37: -16 | B37: 16 o más | C37: =CONCATENATE("<=",YEAR('DATOS DE ENTRADA'!$D$21)+A37) -> <=1998 | D37: =IFERROR((SUMIFS(Valor_pond_U,Modelo_Aceptado,CDF!$C39,Rampa,"NO"))/(COUNTIF(Modelo_Aceptado,C37)),0) -> 0 | E37: =6*'Datos para costos'!$E$56+6*'Datos para costos'!$E$58 -> 1332752.4 | F37: 0 | G37: =COUNTIFS(Modelo_Aceptado,"<="&ParámetrosPropuesta!$B$6,Modelo_Aceptado,C37,Rampa,"NO",Regla_calculo,"tipo 1") -> 0 | H37: =COUNTIFS(Modelo_Aceptado,"<="&ParámetrosPropuesta!$B$6,Modelo_Aceptado,C37,Rampa,"NO",Arriendo_flota,"SI",Regla_calculo,"tipo 1") -> 0 | I37: 0 | J37: =Constantes!$E$130 -> 0 | K37: ='Datos para costos'!$F$10 -> 0.1658231259 | L37: 0
G38: =SUM(G20:G37) -> 0 | H38: =SUM(H20:H37) -> 0 | I38: =SUM(I20:I37) -> 0 | L38: =SUM(L20:L37) -> 0
B40: ="CON RAMPA, AÑO MODELO MENOR IGUAL AL "&ParámetrosPropuesta!$B$6 -> CON RAMPA, AÑO MODELO MENOR IGUAL AL 2015
B41: Edad del vehículo (años) | C41: Año modelo (b) | D41: Valor del vehículo en colones (VTAbr) | E41: Valor de las llantas | F41: Valor del vehículo sin llantas (VTANbr) | G41: Cantidad de vehículos (Fbr) | H41: Cantidad de unidades arrendadas (Fa) | I41: Valor de flota con llantas (VTAbr*Fbr) | J41: Factor RENTABILIDAD de unidades (frfb) | K41: Tasa de rentabilidad anual según la edad "b" de las unidades | L41: Valor de flota x factor de rentabilidad x tasa de rentabilidad
A42: 1 | B42: 0 | C42: =CONCATENATE(YEAR('DATOS DE ENTRADA'!$D$21)+A42) -> 2015 | D42: =IFERROR((SUMIFS(Valor_pond_U,Modelo_Aceptado,CDF!$C44,Rampa,"SI"))/(COUNTIF(Modelo_Aceptado,C42)),0) -> 0 | E42: =6*'Datos para costos'!$E$56+6*'Datos para costos'!$E$58 -> 1332752.4 | F42: =IF(D42=0,0,D42-E42) -> 0 | G42: =COUNTIFS(Modelo_Aceptado,"<="&ParámetrosPropuesta!$B$6,Modelo_Aceptado,C42,Rampa,"SI",Regla_calculo,"tipo 1") -> 0 | H42: =COUNTIFS(Modelo_Aceptado,"<="&ParámetrosPropuesta!$B$6,Modelo_Aceptado,C42,Rampa,"SI",Arriendo_flota,"SI",Regla_calculo,"tipo 1") -> 0 | I42: =IF(ISERROR(D42),0,D42*(G42-H42)) -> 0 | J42: =Constantes!$E$122 -> 1 | K42: ='Datos para costos'!$F$10 -> 0.1658231259 | L42: =J42*I42*K42 -> 0 | M42: =+J42*K42/12 -> 0.01381859383 | N42: =+VALUE(C42) -> 2015 | O42: =+VALUE(J42) -> 1
A43: 0 | B43: 0 | C43: =CONCATENATE(YEAR('DATOS DE ENTRADA'!$D$21)+A43) -> 2014 | D43: =IFERROR((SUMIFS(Valor_pond_U,Modelo_Aceptado,CDF!$C45,Rampa,"SI"))/(COUNTIF(Modelo_Aceptado,C43)),0) -> 0 | E43: =6*'Datos para costos'!$E$56+6*'Datos para costos'!$E$58 -> 1332752.4 | F43: 0 | G43: =COUNTIFS(Modelo_Aceptado,"<="&ParámetrosPropuesta!$B$6,Modelo_Aceptado,C43,Rampa,"SI",Regla_calculo,"tipo 1") -> 0 | H43: =COUNTIFS(Modelo_Aceptado,"<="&ParámetrosPropuesta!$B$6,Modelo_Aceptado,C43,Rampa,"SI",Arriendo_flota,"SI",Regla_calculo,"tipo 1") -> 0 | I43: =IF(ISERROR(D43),0,D43*(G43-H43)) -> 0 | J43: =Constantes!$E$122 -> 1 | K43: ='Datos para costos'!$F$10 -> 0.1658231259 | L43: 0 | M43: =+J43*K43/12 -> 0.01381859383 | N43: 2014 | O43: =+VALUE(J43) -> 1
A44: -1 | B44: 1 | C44: =CONCATENATE(YEAR('DATOS DE ENTRADA'!$D$21)+A44) -> 2013 | D44: =IFERROR((SUMIFS(Valor_pond_U,Modelo_Aceptado,CDF!$C46,Rampa,"SI"))/(COUNTIF(Modelo_Aceptado,C44)),0) -> 0 | E44: =6*'Datos para costos'!$E$56+6*'Datos para costos'!$E$58 -> 1332752.4 | F44: 0 | G44: =COUNTIFS(Modelo_Aceptado,"<="&ParámetrosPropuesta!$B$6,Modelo_Aceptado,C44,Rampa,"SI",Regla_calculo,"tipo 1") -> 0 | H44: =COUNTIFS(Modelo_Aceptado,"<="&ParámetrosPropuesta!$B$6,Modelo_Aceptado,C44,Rampa,"SI",Arriendo_flota,"SI",Regla_calculo,"tipo 1") -> 0 | I44: 0 | J44: =Constantes!$E$123 -> 0.75 | K44: ='Datos para costos'!$F$10 -> 0.1658231259 | L44: 0 | M44: 0.01036394537 | N44: 2013 | O44: 0.75
A45: -2 | B45: 2 | C45: =CONCATENATE(YEAR('DATOS DE ENTRADA'!$D$21)+A45) -> 2012 | D45: =IFERROR((SUMIFS(Valor_pond_U,Modelo_Aceptado,CDF!$C47,Rampa,"SI"))/(COUNTIF(Modelo_Aceptado,C45)),0) -> 0 | E45: =6*'Datos para costos'!$E$56+6*'Datos para costos'!$E$58 -> 1332752.4 | F45: 0 | G45: =COUNTIFS(Modelo_Aceptado,"<="&ParámetrosPropuesta!$B$6,Modelo_Aceptado,C45,Rampa,"SI",Regla_calculo,"tipo 1") -> 0 | H45: =COUNTIFS(Modelo_Aceptado,"<="&ParámetrosPropuesta!$B$6,Modelo_Aceptado,C45,Rampa,"SI",Arriendo_flota,"SI",Regla_calculo,"tipo 1") -> 0 | I45: 0 | J45: =Constantes!$E$124 -> 0.5357142857 | K45: ='Datos para costos'!$F$10 -> 0.1658231259 | L45: 0 | M45: 0.007402818121 | N45: 2012 | O45: 0.5357142857
A46: -3 | B46: 3 | C46: =CONCATENATE(YEAR('DATOS DE ENTRADA'!$D$21)+A46) -> 2011 | D46: =IFERROR((SUMIFS(Valor_pond_U,Modelo_Aceptado,CDF!$C48,Rampa,"SI"))/(COUNTIF(Modelo_Aceptado,C46)),0) -> 0 | E46: =6*'Datos para costos'!$E$56+6*'Datos para costos'!$E$58 -> 1332752.4 | F46: 0 | G46: =COUNTIFS(Modelo_Aceptado,"<="&ParámetrosPropuesta!$B$6,Modelo_Aceptado,C46,Rampa,"SI",Regla_calculo,"tipo 1") -> 0 | H46: =COUNTIFS(Modelo_Aceptado,"<="&ParámetrosPropuesta!$B$6,Modelo_Aceptado,C46,Rampa,"SI",Arriendo_flota,"SI",Regla_calculo,"tipo 1") -> 0 | I46: 0 | J46: =Constantes!$E$125 -> 0.3571428571 | K46: ='Datos para costos'!$F$10 -> 0.1658231259 | L46: 0 | M46: 0.00493521208 | N46: 2011 | O46: 0.3571428571
A47: -4 | B47: 4 | C47: =CONCATENATE(YEAR('DATOS DE ENTRADA'!$D$21)+A47) -> 2010 | D47: =IFERROR((SUMIFS(Valor_pond_U,Modelo_Aceptado,CDF!$C49,Rampa,"SI"))/(COUNTIF(Modelo_Aceptado,C47)),0) -> 63705600 | E47: =6*'Datos para costos'!$E$56+6*'Datos para costos'!$E$58 -> 1332752.4 | F47: 62372847.6 | G47: =COUNTIFS(Modelo_Aceptado,"<="&ParámetrosPropuesta!$B$6,Modelo_Aceptado,C47,Rampa,"SI",Regla_calculo,"tipo 1") -> 1 | H47: =COUNTIFS(Modelo_Aceptado,"<="&ParámetrosPropuesta!$B$6,Modelo_Aceptado,C47,Rampa,"SI",Arriendo_flota,"SI",Regla_calculo,"tipo 1") -> 0 | I47: 63705600 | J47: =Constantes!$E$126 -> 0.2142857143 | K47: ='Datos para costos'!$F$10 -> 0.1658231259 | L47: 2263684.656 | M47: 0.002961127248 | N47: 2010 | O47: 0.2142857143
A48: -5 | B48: 5 | C48: =CONCATENATE(YEAR('DATOS DE ENTRADA'!$D$21)+A48) -> 2009 | D48: =IFERROR((SUMIFS(Valor_pond_U,Modelo_Aceptado,CDF!$C50,Rampa,"SI"))/(COUNTIF(Modelo_Aceptado,C48)),0) -> 0 | E48: =6*'Datos para costos'!$E$56+6*'Datos para costos'!$E$58 -> 1332752.4 | F48: 0 | G48: =COUNTIFS(Modelo_Aceptado,"<="&ParámetrosPropuesta!$B$6,Modelo_Aceptado,C48,Rampa,"SI",Regla_calculo,"tipo 1") -> 0 | H48: =COUNTIFS(Modelo_Aceptado,"<="&ParámetrosPropuesta!$B$6,Modelo_Aceptado,C48,Rampa,"SI",Arriendo_flota,"SI",Regla_calculo,"tipo 1") -> 0 | I48: 0 | J48: =Constantes!$E$127 -> 0.1071428571 | K48: ='Datos para costos'!$F$10 -> 0.1658231259 | L48: 0 | M48: 0.001480563624 | N48: 2009 | O48: 0.1071428571
A49: -6 | B49: 6 | C49: =CONCATENATE(YEAR('DATOS DE ENTRADA'!$D$21)+A49) -> 2008 | D49: =IFERROR((SUMIFS(Valor_pond_U,Modelo_Aceptado,CDF!$C51,Rampa,"SI"))/(COUNTIF(Modelo_Aceptado,C49)),0) -> 0 | E49: =6*'Datos para costos'!$E$56+6*'Datos para costos'!$E$58 -> 1332752.4 | F49: 0 | G49: =COUNTIFS(Modelo_Aceptado,"<="&ParámetrosPropuesta!$B$6,Modelo_Aceptado,C49,Rampa,"SI",Regla_calculo,"tipo 1") -> 0 | H49: =COUNTIFS(Modelo_Aceptado,"<="&ParámetrosPropuesta!$B$6,Modelo_Aceptado,C49,Rampa,"SI",Arriendo_flota,"SI",Regla_calculo,"tipo 1") -> 0 | I49: 0 | J49: =Constantes!$E$128 -> 0.03571428571 | K49: ='Datos para costos'!$F$10 -> 0.1658231259 | L49: 0 | M49: 0.000493521208 | N49: 2008 | O49: 0.03571428571
A50: -7 | B50: 7 | C50: =CONCATENATE(YEAR('DATOS DE ENTRADA'!$D$21)+A50) -> 2007 | D50: =IFERROR((SUMIFS(Valor_pond_U,Modelo_Aceptado,CDF!$C52,Rampa,"SI"))/(COUNTIF(Modelo_Aceptado,C50)),0) -> 63705600 | E50: =6*'Datos para costos'!$E$56+6*'Datos para costos'!$E$58 -> 1332752.4 | F50: 62372847.6 | G50: =COUNTIFS(Modelo_Aceptado,"<="&ParámetrosPropuesta!$B$6,Modelo_Aceptado,C50,Rampa,"SI",Regla_calculo,"tipo 1") -> 1 | H50: =COUNTIFS(Modelo_Aceptado,"<="&ParámetrosPropuesta!$B$6,Modelo_Aceptado,C50,Rampa,"SI",Arriendo_flota,"SI",Regla_calculo,"tipo 1") -> 1 | I50: 0 | J50: =Constantes!$E$129 -> 0 | K50: ='Datos para costos'!$F$10 -> 0.1658231259 | L50: 0 | M50: 0 | N50: 2007 | O50: 0
A51: -8 | B51: 8 | C51: =CONCATENATE(YEAR('DATOS DE ENTRADA'!$D$21)+A51) -> 2006 | D51: =IFERROR((SUMIFS(Valor_pond_U,Modelo_Aceptado,CDF!$C53,Rampa,"SI"))/(COUNTIF(Modelo_Aceptado,C51)),0) -> 63705600 | E51: =6*'Datos para costos'!$E$56+6*'Datos para costos'!$E$58 -> 1332752.4 | F51: 62372847.6 | G51: =COUNTIFS(Modelo_Aceptado,"<="&ParámetrosPropuesta!$B$6,Modelo_Aceptado,C51,Rampa,"SI",Regla_calculo,"tipo 1") -> 1 | H51: =COUNTIFS(Modelo_Aceptado,"<="&ParámetrosPropuesta!$B$6,Modelo_Aceptado,C51,Rampa,"SI",Arriendo_flota,"SI",Regla_calculo,"tipo 1") -> 0 | I51: 63705600 | J51: =Constantes!$E$130 -> 0 | K51: ='Datos para costos'!$F$10 -> 0.1658231259 | L51: 0 | M51: 0 | N51: 2006 | O51: 0
A52: -9 | B52: 9 | C52: =CONCATENATE(YEAR('DATOS DE ENTRADA'!$D$21)+A52) -> 2005 | D52: =IFERROR((SUMIFS(Valor_pond_U,Modelo_Aceptado,CDF!$C54,Rampa,"SI"))/(COUNTIF(Modelo_Aceptado,C52)),0) -> 63705600 | E52: =6*'Datos para costos'!$E$56+6*'Datos para costos'!$E$58 -> 1332752.4 | F52: 62372847.6 | G52: =COUNTIFS(Modelo_Aceptado,"<="&ParámetrosPropuesta!$B$6,Modelo_Aceptado,C52,Rampa,"SI",Regla_calculo,"tipo 1") -> 2 | H52: =COUNTIFS(Modelo_Aceptado,"<="&ParámetrosPropuesta!$B$6,Modelo_Aceptado,C52,Rampa,"SI",Arriendo_flota,"SI",Regla_calculo,"tipo 1") -> 1 | I52: 63705600 | J52: =Constantes!$E$130 -> 0 | K52: ='Datos para costos'!$F$10 -> 0.1658231259 | L52: 0 | M52: 0 | N52: 2005 | O52: 0
A53: -10 | B53: 10 | C53: =CONCATENATE(YEAR('DATOS DE ENTRADA'!$D$21)+A53) -> 2004 | D53: =IFERROR((SUMIFS(Valor_pond_U,Modelo_Aceptado,CDF!$C55,Rampa,"SI"))/(COUNTIF(Modelo_Aceptado,C53)),0) -> 0 | E53: =6*'Datos para costos'!$E$56+6*'Datos para costos'!$E$58 -> 1332752.4 | F53: 0 | G53: =COUNTIFS(Modelo_Aceptado,"<="&ParámetrosPropuesta!$B$6,Modelo_Aceptado,C53,Rampa,"SI",Regla_calculo,"tipo 1") -> 0 | H53: =COUNTIFS(Modelo_Aceptado,"<="&ParámetrosPropuesta!$B$6,Modelo_Aceptado,C53,Rampa,"SI",Arriendo_flota,"SI",Regla_calculo,"tipo 1") -> 0 | I53: 0 | J53: =Constantes!$E$130 -> 0 | K53: ='Datos para costos'!$F$10 -> 0.1658231259 | L53: 0 | M53: 0 | N53: 2004 | O53: 0
A54: -11 | B54: 11 | C54: =CONCATENATE(YEAR('DATOS DE ENTRADA'!$D$21)+A54) -> 2003 | D54: =IFERROR((SUMIFS(Valor_pond_U,Modelo_Aceptado,CDF!$C56,Rampa,"SI"))/(COUNTIF(Modelo_Aceptado,C54)),0) -> 63705600 | E54: =6*'Datos para costos'!$E$56+6*'Datos para costos'!$E$58 -> 1332752.4 | F54: 62372847.6 | G54: =COUNTIFS(Modelo_Aceptado,"<="&ParámetrosPropuesta!$B$6,Modelo_Aceptado,C54,Rampa,"SI",Regla_calculo,"tipo 1") -> 1 | H54: =COUNTIFS(Modelo_Aceptado,"<="&ParámetrosPropuesta!$B$6,Modelo_Aceptado,C54,Rampa,"SI",Arriendo_flota,"SI",Regla_calculo,"tipo 1") -> 0 | I54: 63705600 | J54: =Constantes!$E$130 -> 0 | K54: ='Datos para costos'!$F$10 -> 0.1658231259 | L54: 0 | M54: 0 | N54: 2003 | O54: 0
